Workbook

Sheet Konfig (hidden)
A1: Zeiterfassung für Allgemeines Personal | N1: Jahressaldo | O1: Kernzeit% | P1: KZOK | Q1: WAZVZOK | R1: WAZTZOK | S1: WAZOK | T1: KonfigOK | U1: Tages Einträge | V1: Adresse Tages Einträge | W1: KZSL-Tabelle | Z1: KZSZeile | AA1: MacroTest | AB1: AktivesSheet
A2: =" Konfigurationstabelle" -> Konfigurationstabelle | N2: ="Dezember!$I$43" -> Dezember!$I$43 | O2: =IF(WAZ>0,ROUND(($P$22/$O$22)*(24*4),0)/(24*4),1) -> 0.5729166667 | P2: =AND(Zeitmodell="Teilzeit",KZProzent<=0.75) -> FALSE | Q2: =AND(Zeitmodell="Vollzeit",WAZ*24=40) -> TRUE | R2: =AND(Zeitmodell="Teilzeit",WAZ*24<40,WAZ*24>0) -> FALSE | S2: =OR(WAZVZOK,WAZTZOK) -> TRUE | T2: =IF(Zeitmodell="Teilzeit",AND(KZOK,WAZOK),WAZOK) -> TRUE | U2: =IF(ISERROR(INDIRECT($V$2)),0,INDIRECT($V$2)) -> 0 | V2: Dezember!$S$3 | W2: Nummer | X2: KZSL-Adr | Y2: KZSR-Adr | Z2: 0 | AA2: FALSE | AB2: Konfig
A3: Allgemein | B3: Mitarbeiter/in: | I3: Vorname Nachname | M3: < Vor- und Nachname < des Mitarbeiters | W3: 0 | X3: FALSE | Y3: FALSE | AA3: Konfig
B4: Vorgesetze/r: | I4: Vorname Nachname | M4: < Vor- und Nachname < des Vorgesetzten | W4: 1 | X4: ="$AH17" -> $AH17 | Y4: ="$AI17" -> $AI17
B5: Org.-Einheit: | I5: HXXXXX | J5: < Hier die Org-Nr. der Einrichtung eingeben | N5: Gültigkeit Jahr und Übertrag | W5: 2 | X5: ="$AH18" -> $AH18 | Y5: ="$AI18" -> $AI18
B6: Jahr: | I6: 2023 | J6: < Hier das Jahr eingeben (Achtung: Bei der Eingabe einer neuen Jahreszahl werden alle < Monatsblätter gelöscht, und diese danach mit leeren Eingabefeldern wieder neu erstellt.) | N6: =AND(ISNUMBER($I$6),$I$6>2009,$I$6<8001) -> TRUE | W6: 3 | X6: ="$AH19" -> $AH19 | Y6: ="$AI19" -> $AI19
B7: Arbeitsstunden-Übertrag Vorjahr: | I7: 0 | J7: < Hier den Übertrag der Arbeitsstunden des Vorjahres eingeben | N7: =AND(ISNUMBER($I$7)) -> TRUE | W7: 4 | X7: ="$AH20" -> $AH20 | Y7: ="$AI20" -> $AI20
B8: Zeitmodus: | I8: Gleitzeit | J8: < Hier über Auswahl-Liste den Zeitmodus für Gleitzeit oder keine GZ (keine Gleitzeit) wählen | N8: =AND(ISNUMBER($I$7)) -> TRUE | W8: 5 | X8: $AH21 | Y8: $AI21
B9: Zeitmodell: | I9: Vollzeit | J9: < Hier über Auswahl-Liste das Zeitmodell für Vollzeit oder Teilzeit wählen | N9: =AND(ISNUMBER($I$7)) -> TRUE
A11: =" Definition der Normalarbeitszeit (=Dienstplan)"&IF(Zeitmodell="Teilzeit"," und ermitteln der Kernzeit ","")&" für die Woche" -> Definition der Normalarbeitszeit (=Dienstplan) für die Woche | N11: Text bei Vollzeit | O11: Text bei Teilzeit | P11: Text bei VZ Gesperrt | Q11: Text bei TZ Gesperrt | R11: KernzeitText bei VZ | S11: KernzeitText bei TZ
A12: Wochentage | B12: =IF(Zeitmodus=C_Gleitzeit,"Gleitzeitrahmen","keine Gleitzeit") -> Gleitzeitrahmen | I12: =IF(MakroTest," Eingabestatus: "&IF(KonfigOK,"OK","Fehler!"),"Makros sind nicht aktiv!") -> Makros sind nicht aktiv! | N12: Momentan ist der Vollzeitmodus aktiviert. Klicken Sie mit der linken Maustaste auf die Schaltfläche darunter für Teilzeitmodus | O12: Momentan ist der Teilzeitmodus aktiviert. Klicken Sie mit der linken Maustaste auf die Schaltfläche darunter für Vollzeitmodus | P12: Momentan ist der Vollzeitmodus aktiviert. Der Zeitmodus kann nicht verändert werden, da in den Monatsblättern Einträge vorhanden sind. | Q12: Momentan ist der Teilzeitmodus aktiviert. Der Zeitmodus kann nicht verändert werden, da in den Monatsblättern Einträge vorhanden sind. | R12: Achtung: Die Kernzeit ist im Vollzeitmodus vorgegeben und kann hier nicht verändert werden. | S12: Die Kernzeit berechnet sich im Teilzeitmodus automatisch. Mit den Schaltflächen "15min" darf die Kernzeit für jeden Tag in 15min-Schritten innerhalb der Normalarbeitszeit verschoben werden.
C13: ="Normalarbeitszeit"&CHAR(10)&"(=Dienstplan "&TEXT(WAZ,"[hh]:mm")&"h)" -> Normalarbeitszeit (=Dienstplan 40:00h) | I13: =IF(MakroTest,IF(TEin=0,IF($P$14="","Alle Eingaben sind korrekt durchgeführt!",$P$14),"Achtung: Sie können bei der Dienstplankonfiguration keine Änderungen mehr vornehmen, da Sie in den Monatsblättern Daten eingetragen haben!"),"Bitte lesen Sie unten in der Beschreibung mehr über das Einschalten von Makros nach. Ohne Makros funktioniert die Tabelle nicht!") -> Bitte lesen Sie unten in der Beschreibung mehr über das Einschalten von Makros nach. Ohne Makros funktioniert die Tabelle nicht! | N13: Statustext | P13: FehlerMldg
C14: Vollzeit | N14: Eingabestatus: | P14: =IF(Zeitmodell="Teilzeit",IF(NOT(WAZOK),"Teilzeit-Fehler1: Wochenarbeitszeit ist größer,gleich 40 Stunden oder 0!"&CHAR(10),"")&IF(NOT(KZOK),"Teilzeit-Fehler2: Die Kernzeit beträgt mehr als 75% der Normalarbeitszeit!",""),IF(NOT(WAZOK)," Vollzeit Fehler: Die Normalarbeitszeit beträgt nicht 40 Stunden!","")) ->  | AH14: KZShift-Status
D15: Kernzeit | I15: TAZ | J15: Beschreibung der Eingabe- und Berechnungsfelder | N15: Gesamtstundenberechnung | Q15: NAZ Teilzeit gültig | S15: NAZ Vollzeit gültig | U15: NAZ gültig | W15: Umrechnung auf 25-Minutenwerte | AA15: Abzugswerte | AF15: 75%NAZ | AG15: Offset KZ-Beginn | AH15: KZSL | AI15: KZSR | AJ15: Offset Toleranz | AK15: Offset Teilzeit Standard | AL15: Offset KZ-Beginn + Offset Teilzeit Standard
B16: Gleitzeit Von | C16: Normal AZ Von | D16: Kernzeit Von | E16: Prozent von NAZ | F16: Kernzeit Bis | G16: Normal AZ Bis | H16: Gleitzeit Bis | I16: Tages Arbeitszeit | J16: =IF(Zeitmodus="Gleitzeit",IF(Zeitmodell="Vollzeit",$R$12,$S$12),"Im Zeitmodus 'keine Gleitzeit' entfällt die Kernzeit") -> Achtung: Die Kernzeit ist im Vollzeitmodus vorgegeben und kann hier nicht verändert werden. | N16: GLZ-Std. | O16: NAZ-Std. | P16: Kernzeit-Std. | Q16: Von | R16: Bis | S16: Von | T16: Bis | U16: Von | V16: Bis | W16: NAZ-Von25 | X16: Kern-Von25 | Y16: Kern-Bis25 | Z16: NAZ-Bis25 | AA16: NAZ25 | AB16: KernZeit25 | AC16: KZ% von NAZ | AD16: (NAZ-KZ)/2 | AE16: KZ% von NAZ | AH16: =IF(OR(KZSZeile=0,Zeitmodell="Vollzeit",TEin>0,NOT(MakroTest)),FALSE,INDIRECT(VLOOKUP(KZSZeile,KZSTab,2,FALSE))) -> FALSE | AI16: =IF(OR(KZSZeile=0,Zeitmodell="Vollzeit",TEin>0,NOT(MakroTest)),FALSE,INDIRECT(VLOOKUP(KZSZeile,KZSTab,3,FALSE))) -> FALSE
A17: Mo | B17: =TIME(7,0,0) -> 07:00:00 | C17: 08:00:00 | D17: =IF(Zeitmodell="Vollzeit",Hilfskonfig!F3,$C17+$AG17) -> 09:00:00 | E17: =$AC17 -> 0.625 | F17: =IF(Zeitmodell="Vollzeit",Hilfskonfig!G3,$C17+$AF17+AG17) -> 14:00:00 | G17: 16:00:00 | H17: 18:00:00 | I17: =$G17-$C17 -> 08:00:00 | J17: ="< Von- und Bis-Normalarbeitszeit für "&$A17&" im Format [hh:mm] im weissen Feld eingeben"&IF(OR(Zeitmodell="Vollzeit",Zeitmodus<>"Gleitzeit"),"",CHAR(10)&"< Von- und Bis-Kernzeit für "&$A17&" ändert sich automatisch auf ca. 75% der Normalarbeitszeit") -> < Von- und Bis-Normalarbeitszeit für Mo im Format [hh:mm] im weissen Feld eingeben | N17: =H17-B17 -> 0.4583333333 | O17: =G17-C17 -> 0.3333333333 | P17: =F17-D17 -> 0.2083333333 | Q17: =AND(ISNUMBER($C17),ROUND($C17*24*4,0)/(24*4)=$C17,$C17>=$B17,$C17<=$H17) -> TRUE | R17: =AND(ISNUMBER($G17),ROUND($G17*24*4,0)/(24*4)=$G17,$G17>=$B17,$G17<=$H17) -> TRUE | S17: =AND(ISNUMBER($C17),ROUND($C17*24*4,0)/(24*4)=$C17,$C17>=$B17,$C17<=$D17) -> TRUE | T17: =AND(ISNUMBER($G17),ROUND($G17*24*4,0)/(24*4)=$G17,$G17>=$F17,$G17<=$H17) -> TRUE | U17: =IF(Zeitmodus="Gleitzeit",IF(Zeitmodell="Teilzeit",$Q17,$S17),AND(ISNUMBER($C17),$C17<=$G17)) -> TRUE | V17: =IF(Zeitmodus="Gleitzeit",IF(Zeitmodell="Teilzeit",$R17,$T17),AND(ISNUMBER($C17),$C17<=$G17)) -> TRUE | W17: =C17*24*4 -> 32 | X17: 36 | Y17: =F17*24*4 -> 56 | Z17: 64 | AA17: =$Z17-$W17 -> 32 | AB17: =($Y17-$X17) -> 20 | AC17: =IF($AA17=0,0,$AB17/$AA17) -> 0.625 | AD17: =ROUND(($AA17-$AB17)/2,0)/(24*4) -> 01:30:00 | AE17: 0.75 | AF17: =INT($AA17*$AE17)/(24*4) -> 06:00:00 | AG17: 00:00:00 | AH17: =$C17<$D17 -> TRUE | AI17: =$G17>$F17 -> TRUE | AJ17: =($G17-$C17)-($F17-$D17) -> 03:00:00 | AK17: =ROUND(($AJ17*24*4)/2,0)/(24*4) -> 01:30:00 | AL17: =$AK17+$AG17 -> 01:30:00
A18: Di | B18: 07:00:00 | C18: 08:00:00 | D18: =IF(Zeitmodell="Vollzeit",Hilfskonfig!F4,$C18+$AG18) -> 09:00:00 | E18: =$AC18 -> 0.625 | F18: =IF(Zeitmodell="Vollzeit",Hilfskonfig!G4,$C18+$AF18+AG18) -> 14:00:00 | G18: 16:00:00 | H18: 18:00:00 | I18: =$G18-$C18 -> 08:00:00 | J18: ="< Von- und Bis-Normalarbeitszeit für "&$A18&" im Format [hh:mm] im weissen Feld eingeben"&IF(OR(Zeitmodell="Vollzeit",Zeitmodus<>"Gleitzeit"),"",CHAR(10)&"< Von- und Bis-Kernzeit für "&$A18&" ändert sich automatisch auf ca. 75% der Normalarbeitszeit") -> < Von- und Bis-Normalarbeitszeit für Di im Format [hh:mm] im weissen Feld eingeben | N18: =H18-B18 -> 0.4583333333 | O18: =G18-C18 -> 0.3333333333 | P18: =F18-D18 -> 0.2083333333 | Q18: =AND(ISNUMBER($C18),ROUND($C18*24*4,0)/(24*4)=$C18,$C18>=$B18,$C18<=$H18) -> TRUE | R18: =AND(ISNUMBER($G18),ROUND($G18*24*4,0)/(24*4)=$G18,$G18>=$B18,$G18<=$H18) -> TRUE | S18: =AND(ISNUMBER($C18),ROUND($C18*24*4,0)/(24*4)=$C18,$C18>=$B18,$C18<=$D18) -> TRUE | T18: =AND(ISNUMBER($G18),ROUND($G18*24*4,0)/(24*4)=$G18,$G18>=$F18,$G18<=$H18) -> TRUE | U18: =IF(Zeitmodus="Gleitzeit",IF(Zeitmodell="Teilzeit",$Q18,$S18),AND(ISNUMBER($C18),$C18<=$G18)) -> TRUE | V18: =IF(Zeitmodus="Gleitzeit",IF(Zeitmodell="Teilzeit",$R18,$T18),AND(ISNUMBER($C18),$C18<=$G18)) -> TRUE | W18: 32 | X18: 36 | Y18: 56 | Z18: 64 | AA18: =$Z18-$W18 -> 32 | AB18: =($Y18-$X18) -> 20 | AC18: =IF($AA18=0,0,$AB18/$AA18) -> 0.625 | AD18: =ROUND(($AA18-$AB18)/2,0)/(24*4) -> 01:30:00 | AE18: 0.75 | AF18: =INT($AA18*$AE18)/(24*4) -> 06:00:00 | AG18: 00:00:00 | AH18: =$C18<$D18 -> TRUE | AI18: =$G18>$F18 -> TRUE | AJ18: =($G18-$C18)-($F18-$D18) -> 03:00:00 | AK18: =ROUND(($AJ18*24*4)/2,0)/(24*4) -> 01:30:00 | AL18: =$AK18+$AG18 -> 01:30:00
A19: Mi | B19: 07:00:00 | C19: 08:00:00 | D19: =IF(Zeitmodell="Vollzeit",Hilfskonfig!F5,$C19+$AG19) -> 09:00:00 | E19: =$AC19 -> 0.625 | F19: =IF(Zeitmodell="Vollzeit",Hilfskonfig!G5,$C19+$AF19+AG19) -> 14:00:00 | G19: 16:00:00 | H19: 18:00:00 | I19: =$G19-$C19 -> 08:00:00 | J19: ="< Von- und Bis-Normalarbeitszeit für "&$A19&" im Format [hh:mm] im weissen Feld eingeben"&IF(OR(Zeitmodell="Vollzeit",Zeitmodus<>"Gleitzeit"),"",CHAR(10)&"< Von- und Bis-Kernzeit für "&$A19&" ändert sich automatisch auf ca. 75% der Normalarbeitszeit") -> < Von- und Bis-Normalarbeitszeit für Mi im Format [hh:mm] im weissen Feld eingeben | N19: =H19-B19 -> 0.4583333333 | O19: =G19-C19 -> 0.3333333333 | P19: =F19-D19 -> 0.2083333333 | Q19: =AND(ISNUMBER($C19),ROUND($C19*24*4,0)/(24*4)=$C19,$C19>=$B19,$C19<=$H19) -> TRUE | R19: =AND(ISNUMBER($G19),ROUND($G19*24*4,0)/(24*4)=$G19,$G19>=$B19,$G19<=$H19) -> TRUE | S19: =AND(ISNUMBER($C19),ROUND($C19*24*4,0)/(24*4)=$C19,$C19>=$B19,$C19<=$D19) -> TRUE | T19: =AND(ISNUMBER($G19),ROUND($G19*24*4,0)/(24*4)=$G19,$G19>=$F19,$G19<=$H19) -> TRUE | U19: =IF(Zeitmodus="Gleitzeit",IF(Zeitmodell="Teilzeit",$Q19,$S19),AND(ISNUMBER($C19),$C19<=$G19)) -> TRUE | V19: =IF(Zeitmodus="Gleitzeit",IF(Zeitmodell="Teilzeit",$R19,$T19),AND(ISNUMBER($C19),$C19<=$G19)) -> TRUE | W19: 32 | X19: 36 | Y19: 56 | Z19: 64 | AA19: =$Z19-$W19 -> 32 | AB19: =($Y19-$X19) -> 20 | AC19: =IF($AA19=0,0,$AB19/$AA19) -> 0.625 | AD19: =ROUND(($AA19-$AB19)/2,0)/(24*4) -> 01:30:00 | AE19: 0.75 | AF19: =INT($AA19*$AE19)/(24*4) -> 06:00:00 | AG19: 00:00:00 | AH19: =$C19<$D19 -> TRUE | AI19: =$G19>$F19 -> TRUE | AJ19: =($G19-$C19)-($F19-$D19) -> 03:00:00 | AK19: =ROUND(($AJ19*24*4)/2,0)/(24*4) -> 01:30:00 | AL19: =$AK19+$AG19 -> 01:30:00
A20: Do | B20: 07:00:00 | C20: 08:00:00 | D20: =IF(Zeitmodell="Vollzeit",Hilfskonfig!F6,$C20+$AG20) -> 09:00:00 | E20: =$AC20 -> 0.625 | F20: =IF(Zeitmodell="Vollzeit",Hilfskonfig!G6,$C20+$AF20+AG20) -> 14:00:00 | G20: 16:00:00 | H20: 18:00:00 | I20: =$G20-$C20 -> 08:00:00 | J20: ="< Von- und Bis-Normalarbeitszeit für "&$A20&" im Format [hh:mm] im weissen Feld eingeben"&IF(OR(Zeitmodell="Vollzeit",Zeitmodus<>"Gleitzeit"),"",CHAR(10)&"< Von- und Bis-Kernzeit für "&$A20&" ändert sich automatisch auf ca. 75% der Normalarbeitszeit") -> < Von- und Bis-Normalarbeitszeit für Do im Format [hh:mm] im weissen Feld eingeben | N20: =H20-B20 -> 0.4583333333 | O20: =G20-C20 -> 0.3333333333 | P20: =F20-D20 -> 0.2083333333 | Q20: =AND(ISNUMBER($C20),ROUND($C20*24*4,0)/(24*4)=$C20,$C20>=$B20,$C20<=$H20) -> TRUE | R20: =AND(ISNUMBER($G20),ROUND($G20*24*4,0)/(24*4)=$G20,$G20>=$B20,$G20<=$H20) -> TRUE | S20: =AND(ISNUMBER($C20),ROUND($C20*24*4,0)/(24*4)=$C20,$C20>=$B20,$C20<=$D20) -> TRUE | T20: =AND(ISNUMBER($G20),ROUND($G20*24*4,0)/(24*4)=$G20,$G20>=$F20,$G20<=$H20) -> TRUE | U20: =IF(Zeitmodus="Gleitzeit",IF(Zeitmodell="Teilzeit",$Q20,$S20),AND(ISNUMBER($C20),$C20<=$G20)) -> TRUE | V20: =IF(Zeitmodus="Gleitzeit",IF(Zeitmodell="Teilzeit",$R20,$T20),AND(ISNUMBER($C20),$C20<=$G20)) -> TRUE | W20: 32 | X20: 36 | Y20: 56 | Z20: 64 | AA20: =$Z20-$W20 -> 32 | AB20: =($Y20-$X20) -> 20 | AC20: =IF($AA20=0,0,$AB20/$AA20) -> 0.625 | AD20: =ROUND(($AA20-$AB20)/2,0)/(24*4) -> 01:30:00 | AE20: 0.75 | AF20: =INT($AA20*$AE20)/(24*4) -> 06:00:00 | AG20: 00:00:00 | AH20: =$C20<$D20 -> TRUE | AI20: =$G20>$F20 -> TRUE | AJ20: =($G20-$C20)-($F20-$D20) -> 03:00:00 | AK20: =ROUND(($AJ20*24*4)/2,0)/(24*4) -> 01:30:00 | AL20: =$AK20+$AG20 -> 01:30:00
A21: Fr | B21: 07:00:00 | C21: 08:00:00 | D21: =IF(Zeitmodell="Vollzeit",Hilfskonfig!F7,$C21+$AG21) -> 09:00:00 | E21: =$AC21 -> 0.375 | F21: =IF(Zeitmodell="Vollzeit",Hilfskonfig!G7,$C21+$AF21+AG21) -> 12:00:00 | G21: 16:00:00 | H21: 18:00:00 | I21: =$G21-$C21 -> 08:00:00 | J21: ="< Von- und Bis-Normalarbeitszeit für "&$A21&" im Format [hh:mm] im weissen Feld eingeben"&IF(OR(Zeitmodell="Vollzeit",Zeitmodus<>"Gleitzeit"),"",CHAR(10)&"< Von- und Bis-Kernzeit für "&$A21&" ändert sich automatisch auf ca. 75% der Normalarbeitszeit") -> < Von- und Bis-Normalarbeitszeit für Fr im Format [hh:mm] im weissen Feld eingeben | N21: =H21-B21 -> 0.4583333333 | O21: =G21-C21 -> 0.3333333333 | P21: =F21-D21 -> 0.125 | Q21: =AND(ISNUMBER($C21),ROUND($C21*24*4,0)/(24*4)=$C21,$C21>=$B21,$C21<=$H21) -> TRUE | R21: =AND(ISNUMBER($G21),ROUND($G21*24*4,0)/(24*4)=$G21,$G21>=$B21,$G21<=$H21) -> TRUE | S21: =AND(ISNUMBER($C21),ROUND($C21*24*4,0)/(24*4)=$C21,$C21>=$B21,$C21<=$D21) -> TRUE | T21: =AND(ISNUMBER($G21),ROUND($G21*24*4,0)/(24*4)=$G21,$G21>=$F21,$G21<=$H21) -> TRUE | U21: =IF(Zeitmodus="Gleitzeit",IF(Zeitmodell="Teilzeit",$Q21,$S21),AND(ISNUMBER($C21),$C21<=$G21)) -> TRUE | V21: =IF(Zeitmodus="Gleitzeit",IF(Zeitmodell="Teilzeit",$R21,$T21),AND(ISNUMBER($C21),$C21<=$G21)) -> TRUE | W21: 32 | X21: 36 | Y21: 48 | Z21: 64 | AA21: =$Z21-$W21 -> 32 | AB21: =($Y21-$X21) -> 12 | AC21: =IF($AA21=0,0,$AB21/$AA21) -> 0.375 | AD21: =ROUND(($AA21-$AB21)/2,0)/(24*4) -> 02:30:00 | AE21: 0.75 | AF21: =INT($AA21*$AE21)/(24*4) -> 06:00:00 | AG21: 00:00:00 | AH21: =$C21<$D21 -> TRUE | AI21: =$G21>$F21 -> TRUE | AJ21: =($G21-$C21)-($F21-$D21) -> 05:00:00 | AK21: =ROUND(($AJ21*24*4)/2,0)/(24*4) -> 02:30:00 | AL21: =$AK21+$AG21 -> 02:30:00
A22: Wochenarbeitszeit: | I22: =SUM(I17:I21) -> 1.666666667 | J22: < Arbeitszeit pro Woche berechnet aus der Normalzeiteingabe von Mo.-Fr. | N22: =SUM(N17:N21) -> 2.291666667 | O22: =SUM(O17:O21) -> 1.666666667 | P22: =SUM(P17:P21) -> 0.9583333333 | W22: =SUM(AA17:AA21) -> 160 | X22: =SUM(AB17:AB21) -> 92 | Y22: =SUM(AC17:AC21)/5 -> 0.575 | AA22: =SUM(AE17:AE21)/5 -> 0.75
A23: Arbeitszeitsaldo: | I23: =IF(ISERROR(INDIRECT(Jahressaldo)),0,INDIRECT(Jahressaldo)) -> 0 | J23: < aktueller Stand des Arbeiszeitstunden-Saldos < dieser Wert wird < oder = -8 Std. und > oder = 24 Std. Rot hinterlegt

Sheet Jänner (hidden)
A1: BOKU-Zeiterfassung für Allgemeines Personal | Q1: Monat | R1: Stunden-Saldo Grenzen | S1: Status Blatteingabe
A2: =" Org.-Einh. : "&OrgEinheit -> Org.-Einh. : HXXXXX | F2: Zeitmodell: | I2: =" "&Zeitmodell -> Vollzeit | J2: Modus: | K2: =" "&Zeitmodus -> Gleitzeit | Q2: =IF(ISNA($Q$4),1,$Q$4) -> 1 | R2: =IF($Q$2=12,NormalOGDez,NormalOG) -> 72 | S2: =SUM($BH8:$BH38) -> 0
A3: =" Mitarbeiter/in: "&Name -> Mitarbeiter/in: Vorname Nachname | F3: Vorgesetzte/r: | I3: =" "&Vorgesetzter -> Vorname Nachname | Q3: =RIGHT(CELL("filename",A1),LEN(CELL("filename",A1))-SEARCH("]",CELL("filename",A1),1)) -> Jänner | R3: =IF($Q$2=12,NormalUGDez,NormalUG) -> -24 | S3: =IF($Q$2=1,$S$2,$S$2+INDIRECT($S$5)) -> 0
A4: =" Monat: "&$Q$3&" "&Jahr -> Monat: Jänner 2023 | E4: Dienstplan | G4: Normalstunden Feiertag-ÜS1:2 | J4: Übertrag | K4: Überstundenberechnung | O4: Unterschrift des Vorgesetzten | P4: Anmerkungen (z.B. Überstunden- notwendigkeit) | Q4: =IF(ISNA(VLOOKUP($Q$3,MTab,2,FALSE)),1,VLOOKUP($Q$3,MTab,2,FALSE)) -> 1 | S4: Übertrags Adresse Blatteingabe
A5: Datum | B5: Wochentag | C5: Tagesinformationen | E5: ="Wochen-AZ"&" "&TEXT(WAZ,"[hh]:mm") -> Wochen-AZ 40:00 | J5: =IF(ISNA($Q$5),Übertrag,INDIRECT($Q$5)) -> 0 | K5: ÜS1:2 | L5: =IF(Zeitmodell="Vollzeit"," Überstunden1:1,5"," Überstunden1:1,25") -> Überstunden1:1,5 | Q5: =IF(ISNA(VLOOKUP($Q$3,MTab,3,FALSE)),"Übertrag",VLOOKUP($Q$3,MTab,3,FALSE)) -> Übertrag | S5: =IF(ISNA(VLOOKUP($Q$3,MTab,4,FALSE)),$Q$3&"!$S$2",VLOOKUP($Q$3,MTab,4,FALSE)) -> Jänner!$S$2
C6: Feiertage Wochenende Urlaub, ZA, Krank | D6: [U]rlaub [Z]A [ZK] [K]rank | E6: Normal- | F6: Soll | G6: Von | H6: Bis | I6: Plus | J6: Saldo | K6: Plus | L6: Von | M6: Bis | N6: Plus | Q6: Hintergrundberechnungen | X6: Saldo aktuell | AB6: GAZ-Tabellenabbildung | AH6: Eingabebeprüfungen
E7: Arbeitszeit | I7: Minus | J7: akuell | Q7: Datum | R7: Monat OK | S7: Abwesenh. | T7: Freie Tage | U7: ÜA-Tage | V7: Std. | W7: Soll-Std. | X7: =IF(ISNA($Q$5),Übertrag,INDIRECT($Q$5)) -> 0 | Y7: Std.-Soll = 0 | Z7: Std.-Soll > 0 | AA7: Std.-Soll < 0 | AB7: =I_GAZGRVon -> 2 | AC7: =I_GAZNAZVon -> 3 | AD7: =I_GAZKVon -> 4 | AE7: =I_GAZKBis -> 6 | AF7: =I_GAZNAZBis -> 7 | AG7: =I_GAZGRBis -> 8 | AH7: Zeiteingabe | AI7: UZK-Eing. erlaubt | AJ7: UZK-Eing. gültig | AK7: Normalst. ein erlaubt | AL7: Überstd. ein erlaubt | AM7: Normalstd. eingegeben | AN7: Überstd. eingegeben | AO7: Normal VON möglich OG | AP7: Normal VON möglich UG | AQ7: Normal BIS möglich OG | AR7: Normal BIS möglich UG | AS7: Normal VON 15min | AT7: Normal VON richtig | AU7: Normal BIS 15min | AV7: Normal BIS richtig | AW7: ZA-Kern Von | AX7: ZA-Kern Bis | AY7: ZA-Kern | AZ7: Über VON Obergrenze | BA7: Über VON Untergrenze | BB7: Über BIS Obergrenze | BC7: Über BIS Untergrenze | BD7: Über VON 15min | BE7: Über VON richtig | BF7: Überl BIS 15min | BG7: Über BIS richtig | BH7: Status Zeilen Eingabe
A8: =IF($R8,$Q8,"") -> 2023-01-01 | B8: =IF($R8,VLOOKUP(WEEKDAY($Q8,2),WOTA,2,FALSE),"") -> So | C8: =IF($R8," "&IF($S8="",VLOOKUP($Q8,FListe,3,FALSE),$S8),"") -> Neujahrstag | E8: =IF(AND($R8,$T8<>"F"),IF($AC8=$AF8,"keine NAZ",TEXT($AC8,"hh:mm")&"-"&TEXT($AF8,"hh:mm")),"") ->  | F8: =IF($R8,IF($T8="F",0,VLOOKUP($B8,GAZ,I_GAZNAZ,FALSE)),"") -> 00:00:00 | I8: =IF(Zeitmodus="Gleitzeit",IF($U8="F","",IF(AND($R8,$AM8,NOT($Y8)),ROUND(($V8-$F8)*24,2),IF($D8="Z",$F8*-24,""))),IF(OR($D8="Z",AND($AM8,$U8="A",W8<0)),ROUND($W8*24,2),"")) ->  | J8: =IF($R8,$X8,"") -> 0 | K8: =IF(AND($U8="F",$AM8),ROUND($V8*24,2),"") ->  | N8: =IF(Zeitmodus="Gleitzeit",IF(AND($R8,$AN8,$M8-$L8<>0,$AL8),ROUND(($M8-$L8)*24,2),""),IF(AND($AM8,$U8="A",W8>0),ROUND(W8*24,2),"")) ->  | Q8: =DATE(Jahr,$Q2,1) -> 2023-01-01 | R8: =$Q$2=MONTH($Q8) -> TRUE | S8: =IF(OR($D8="U",$D8="Z",$D8="ZK",$D8="K"),VLOOKUP($D8,UZK,2,FALSE),"") ->  | T8: =IF($R8,VLOOKUP($Q8,FListe,4,FALSE),"") -> F | U8: =IF($R8,VLOOKUP($Q8,FListe,5,FALSE),"") -> F | V8: =$H8-$G8 -> 0 | W8: =IF($R8,ROUND($V8-$F8,15),"") -> 0 | X8: =IF($I8<>"",$X7+$I8,$X7) -> 0 | Y8: =($W8=0) -> TRUE | Z8: =($W8>0) -> FALSE | AA8: =($W8<0) -> FALSE | AB8: =IF(ISNA(VLOOKUP($B8,GAZ,AB$7,FALSE)),"",VLOOKUP($B8,GAZ,AB$7,FALSE)) ->  | AD8: =IF(ISNA(VLOOKUP($B8,GAZ,AD$7,FALSE)),"",IF($AC8=$AF8,$G8,VLOOKUP($B8,GAZ,AD$7,FALSE))) ->  | AE8: =IF(ISNA(VLOOKUP($B8,GAZ,AE$7,FALSE)),"",IF($AC8=$AF8,$H8,VLOOKUP($B8,GAZ,AE$7,FALSE))) ->  | AH8: =OR($G8<>"",$H8<>"",$L8<>"",$M8<>"") -> FALSE | AI8: =AND($T8<>"F",NOT($AH8),NOT($AC8=$AF8)) -> FALSE | AJ8: =AND($AI8,OR($D8="U",$D8="Z",$D8="K")) -> FALSE | AK8: =AND($D8<>"U",$D8<>"Z",$D8<>"K",$R8) -> TRUE | AL8: =AND(Zeitmodus=C_Gleitzeit,$U8<>"F",OR($B8="Sa",AND($AM8,$I8>=0,NOT($AY8)))) -> FALSE | AM8: =AND($G8<>"",$H8<>"") -> FALSE | AN8: =OR($K8<>"",AND($L8<>"",$M8<>"")) -> FALSE | AO8: =IF($AK8,TagUG,"") -> 00:00:00 | AP8: =IF($AK8,IF($H8="",IF(AND($L8<>"",$L8<$AG8),$L8,IF(AND($M8<>"",$M8<$AG8),$M8,TagOG)),$H8),"") -> 23:59:00 | AQ8: =IF($AK8,IF($G8="",$AB8,$G8),"") ->  | AR8: =IF($AK8,IF(AND($L8<>"",$L8<$AG8),$L8,IF(AND($M8<>"",$M8<$AG8),$M8,TagOG)),"") -> 23:59:00 | AS8: =MOD($G8*24,0.25)=0 -> TRUE | AT8: =AND($AK8,ISNUMBER($G8),$G8>=$AO8,$G8<=$AP8) -> FALSE | AU8: =MOD($H8*24,0.25)=0 -> TRUE | AV8: =AND($AK8,ISNUMBER($H8),$H8>=$AQ8,$H8<=$AR8) -> FALSE | AW8: =AND(Zeitmodus=C_Gleitzeit,$B8<>"Sa",$G8<>"",$G8>$AD8) -> FALSE | AX8: =AND(Zeitmodus=C_Gleitzeit,$B8<>"Sa",$H8<>"",$H8<$AE8) -> FALSE | AY8: =AND($U8<>"F",OR($AW8,$AX8)) -> FALSE | AZ8: =IF($B8="Sa",IF($H8<>"",$H8,TIME(0,0,0)),IF($AL8,IF(AND($H8<>"",$H8>$AF8),$H8,$AF8),"")) ->  | BA8: =IF($AL8,IF($M8<>"",$M8,$BC8),"") ->  | BB8: =IF($B8="Sa",IF($L8="",TIME(0,0,0),$L8),IF($AL8,IF($L8<>"",$L8,IF(AND($H8<>"",$H8>$AF8),$H8,$AF8)),"")) ->  | BC8: =IF($AL8,TIME(23,59,0),"") ->  | BD8: =MOD($L8*24,0.25)=0 -> TRUE | BE8: =AND($AL8,ISNUMBER($L8),$L8>=$AZ8,$BA8>=$L8) -> FALSE | BF8: =MOD($M8*24,0.25)=0 -> TRUE | BG8: =AND($AL8,ISNUMBER($M8),$M8>=$BB8,$M8<=$BC8) -> FALSE | BH8: =IF(AND(ISBLANK($D8),ISBLANK($G8),ISBLANK($H8),ISBLANK($L8),ISBLANK($M8),ISBLANK($P8)),0,1) -> 0
A9: =IF($R9,$Q9,"") -> 2023-01-02 | B9: Mo | E9: =IF(AND($R9,$T9<>"F"),IF($AC9=$AF9,"keine NAZ",TEXT($AC9,"hh:mm")&"-"&TEXT($AF9,"hh:mm")),"") -> 08:00-16:00 | F9: 08:00:00 | J9: 0 | K9: =IF(AND($U9="F",$AM9),ROUND($V9*24,2),"") ->  | Q9: =Q8+1 -> 2023-01-02 | R9: TRUE | T9: A | U9: A | V9: 0 | W9: -0.3333333333 | X9: 0 | Y9: FALSE | Z9: FALSE | AA9: TRUE | AB9: 07:00:00 | AC9: 08:00:00 | AD9: 09:00:00 | AE9: 14:00:00 | AF9: 16:00:00 | AG9: 18:00:00 | AH9: FALSE | AI9: =AND($T9<>"F",NOT($AH9),NOT($AC9=$AF9)) -> TRUE | AJ9: FALSE | AK9: TRUE | AL9: =AND(Zeitmodus=C_Gleitzeit,$U9<>"F",OR($B9="Sa",AND($AM9,$I9>=0,NOT($AY9)))) -> FALSE | AM9: FALSE | AN9: =OR($K9<>"",AND($L9<>"",$M9<>"")) -> FALSE | AO9: 00:00:00 | AP9: 23:59:00 | AQ9: =IF($AK9,IF($G9="",TagUG,$G9),"") -> 00:00:00 | AR9: 23:59:00 | AS9: TRUE | AT9: FALSE | AU9: TRUE | AV9: FALSE | AW9: FALSE | AX9: FALSE | AY9: =AND($U9<>"F",OR($AW9,$AX9)) -> FALSE | BD9: TRUE | BE9: FALSE | BF9: TRUE | BG9: FALSE | BH9: 0
A10: 2023-01-03 | B10: Di | E10: 08:00-16:00 | F10: 08:00:00 | J10: 0 | Q10: 2023-01-03 | R10: TRUE | T10: A | U10: A | V10: 0 | W10: -0.3333333333 | X10: 0 | Y10: FALSE | Z10: FALSE | AA10: TRUE | AB10: 07:00:00 | AC10: 08:00:00 | AD10: 09:00:00 | AE10: 14:00:00 | AF10: 16:00:00 | AG10: 18:00:00 | AH10: FALSE | AI10: TRUE | AJ10: FALSE | AK10: TRUE | AL10: FALSE | AM10: FALSE | AN10: FALSE | AO10: 00:00:00 | AP10: 23:59:00 | AQ10: 00:00:00 | AR10: 23:59:00 | AS10: TRUE | AT10: FALSE | AU10: TRUE | AV10: FALSE | AW10: FALSE | AX10: FALSE | AY10: FALSE | BD10: TRUE | BE10: FALSE | BF10: TRUE | BG10: FALSE | BH10: 0
A11: 2023-01-04 | B11: Mi | E11: 08:00-16:00 | F11: 08:00:00 | J11: 0 | Q11: 2023-01-04 | R11: TRUE | T11: A | U11: A | V11: 0 | W11: -0.3333333333 | X11: 0 | Y11: FALSE | Z11: FALSE | AA11: TRUE | AB11: 07:00:00 | AC11: 08:00:00 | AD11: 09:00:00 | AE11: 14:00:00 | AF11: 16:00:00 | AG11: 18:00:00 | AH11: FALSE | AI11: TRUE | AJ11: FALSE | AK11: TRUE | AL11: FALSE | AM11: FALSE | AN11: FALSE | AO11: 00:00:00 | AP11: 23:59:00 | AQ11: 00:00:00 | AR11: 23:59:00 | AS11: TRUE | AT11: FALSE | AU11: TRUE | AV11: FALSE | AW11: FALSE | AX11: FALSE | AY11: FALSE | BD11: TRUE | BE11: FALSE | BF11: TRUE | BG11: FALSE | BH11: 0
A12: 2023-01-05 | B12: Do | E12: 08:00-16:00 | F12: 08:00:00 | J12: 0 | Q12: 2023-01-05 | R12: TRUE | T12: A | U12: A | V12: 0 | W12: -0.3333333333 | X12: 0 | Y12: FALSE | Z12: FALSE | AA12: TRUE | AB12: 07:00:00 | AC12: 08:00:00 | AD12: 09:00:00 | AE12: 14:00:00 | AF12: 16:00:00 | AG12: 18:00:00 | AH12: FALSE | AI12: TRUE | AJ12: FALSE | AK12: TRUE | AL12: FALSE | AM12: FALSE | AN12: FALSE | AO12: 00:00:00 | AP12: 23:59:00 | AQ12: 00:00:00 | AR12: 23:59:00 | AS12: TRUE | AT12: FALSE | AU12: TRUE | AV12: FALSE | AW12: FALSE | AX12: FALSE | AY12: FALSE | BD12: TRUE | BE12: FALSE | BF12: TRUE | BG12: FALSE | BH12: 0
A13: 2023-01-06 | B13: Fr | C13: Hl. drei Könige | F13: 00:00:00 | J13: 0 | Q13: 2023-01-06 | R13: TRUE | T13: F | U13: F | V13: 0 | W13: 0 | X13: 0 | Y13: TRUE | Z13: FALSE | AA13: FALSE | AB13: 07:00:00 | AC13: 08:00:00 | AD13: 09:00:00 | AE13: 12:00:00 | AF13: 16:00:00 | AG13: 18:00:00 | AH13: FALSE | AI13: FALSE | AJ13: FALSE | AK13: TRUE | AL13: FALSE | AM13: FALSE | AN13: FALSE | AO13: 00:00:00 | AP13: 23:59:00 | AQ13: 00:00:00 | AR13: 23:59:00 | AS13: TRUE | AT13: FALSE | AU13: TRUE | AV13: FALSE | AW13: FALSE | AX13: FALSE | AY13: FALSE | BD13: TRUE | BE13: FALSE | BF13: TRUE | BG13: FALSE | BH13: 0
A14: 2023-01-07 | B14: Sa | C14: Wochenende | F14: 00:00:00 | J14: 0 | Q14: 2023-01-07 | R14: TRUE | T14: F | U14: A | V14: 0 | W14: 0 | X14: 0 | Y14: TRUE | Z14: FALSE | AA14: FALSE | AH14: FALSE | AI14: FALSE | AJ14: FALSE | AK14: TRUE | AL14: TRUE | AM14: FALSE | AN14: FALSE | AO14: 00:00:00 | AP14: 23:59:00 | AQ14: 00:00:00 | AR14: 23:59:00 | AS14: TRUE | AT14: FALSE | AU14: TRUE | AV14: FALSE | AW14: FALSE | AX14: FALSE | AY14: FALSE | AZ14: 00:00:00 | BA14: 23:59:00 | BB14: 00:00:00 | BC14: 23:59:00 | BD14: TRUE | BE14: FALSE | BF14: TRUE | BG14: FALSE | BH14: 0
A15: 2023-01-08 | B15: So | C15: Wochenende | F15: 00:00:00 | J15: 0 | Q15: 2023-01-08 | R15: TRUE | T15: F | U15: F | V15: 0 | W15: 0 | X15: 0 | Y15: TRUE | Z15: FALSE | AA15: FALSE | AH15: FALSE | AI15: FALSE | AJ15: FALSE | AK15: TRUE | AL15: FALSE | AM15: FALSE | AN15: FALSE | AO15: 00:00:00 | AP15: 23:59:00 | AQ15: 00:00:00 | AR15: 23:59:00 | AS15: TRUE | AT15: FALSE | AU15: TRUE | AV15: FALSE | AW15: FALSE | AX15: FALSE | AY15: FALSE | BD15: TRUE | BE15: FALSE | BF15: TRUE | BG15: FALSE | BH15: 0
A16: 2023-01-09 | B16: Mo | E16: 08:00-16:00 | F16: 08:00:00 | J16: 0 | Q16: 2023-01-09 | R16: TRUE | T16: A | U16: A | V16: 0 | W16: -0.3333333333 | X16: 0 | Y16: FALSE | Z16: FALSE | AA16: TRUE | AB16: 07:00:00 | AC16: 08:00:00 | AD16: 09:00:00 | AE16: 14:00:00 | AF16: 16:00:00 | AG16: 18:00:00 | AH16: FALSE | AI16: TRUE | AJ16: FALSE | AK16: TRUE | AL16: FALSE | AM16: FALSE | AN16: FALSE | AO16: 00:00:00 | AP16: 23:59:00 | AQ16: 00:00:00 | AR16: 23:59:00 | AS16: TRUE | AT16: FALSE | AU16: TRUE | AV16: FALSE | AW16: FALSE | AX16: FALSE | AY16: FALSE | BD16: TRUE | BE16: FALSE | BF16: TRUE | BG16: FALSE | BH16: 0
A17: 2023-01-10 | B17: Di | E17: 08:00-16:00 | F17: 08:00:00 | J17: 0 | Q17: 2023-01-10 | R17: TRUE | T17: A | U17: A | V17: 0 | W17: -0.3333333333 | X17: 0 | Y17: FALSE | Z17: FALSE | AA17: TRUE | AB17: 07:00:00 | AC17: 08:00:00 | AD17: 09:00:00 | AE17: 14:00:00 | AF17: 16:00:00 | AG17: 18:00:00 | AH17: FALSE | AI17: TRUE | AJ17: FALSE | AK17: TRUE | AL17: FALSE | AM17: FALSE | AN17: FALSE | AO17: 00:00:00 | AP17: 23:59:00 | AQ17: 00:00:00 | AR17: 23:59:00 | AS17: TRUE | AT17: FALSE | AU17: TRUE | AV17: FALSE | AW17: FALSE | AX17: FALSE | AY17: FALSE | BD17: TRUE | BE17: FALSE | BF17: TRUE | BG17: FALSE | BH17: 0
A18: 2023-01-11 | B18: Mi | E18: 08:00-16:00 | F18: 08:00:00 | J18: 0 | Q18: 2023-01-11 | R18: TRUE | T18: A | U18: A | V18: 0 | W18: -0.3333333333 | X18: 0 | Y18: FALSE | Z18: FALSE | AA18: TRUE | AB18: 07:00:00 | AC18: 08:00:00 | AD18: 09:00:00 | AE18: 14:00:00 | AF18: 16:00:00 | AG18: 18:00:00 | AH18: FALSE | AI18: TRUE | AJ18: FALSE | AK18: TRUE | AL18: FALSE | AM18: FALSE | AN18: FALSE | AO18: 00:00:00 | AP18: 23:59:00 | AQ18: 00:00:00 | AR18: 23:59:00 | AS18: TRUE | AT18: FALSE | AU18: TRUE | AV18: FALSE | AW18: FALSE | AX18: FALSE | AY18: FALSE | BD18: TRUE | BE18: FALSE | BF18: TRUE | BG18: FALSE | BH18: 0
A19: 2023-01-12 | B19: Do | E19: 08:00-16:00 | F19: 08:00:00 | J19: 0 | Q19: 2023-01-12 | R19: TRUE | T19: A | U19: A | V19: 0 | W19: -0.3333333333 | X19: 0 | Y19: FALSE | Z19: FALSE | AA19: TRUE | AB19: 07:00:00 | AC19: 08:00:00 | AD19: 09:00:00 | AE19: 14:00:00 | AF19: 16:00:00 | AG19: 18:00:00 | AH19: FALSE | AI19: TRUE | AJ19: FALSE | AK19: TRUE | AL19: FALSE | AM19: FALSE | AN19: FALSE | AO19: 00:00:00 | AP19: 23:59:00 | AQ19: 00:00:00 | AR19: 23:59:00 | AS19: TRUE | AT19: FALSE | AU19: TRUE | AV19: FALSE | AW19: FALSE | AX19: FALSE | AY19: FALSE | BD19: TRUE | BE19: FALSE | BF19: TRUE | BG19: FALSE | BH19: 0
A20: 2023-01-13 | B20: Fr | E20: 08:00-16:00 | F20: 08:00:00 | J20: 0 | Q20: 2023-01-13 | R20: TRUE | T20: A | U20: A | V20: 0 | W20: -0.3333333333 | X20: 0 | Y20: FALSE | Z20: FALSE | AA20: TRUE | AB20: 07:00:00 | AC20: 08:00:00 | AD20: 09:00:00 | AE20: 12:00:00 | AF20: 16:00:00 | AG20: 18:00:00 | AH20: FALSE | AI20: TRUE | AJ20: FALSE | AK20: TRUE | AL20: FALSE | AM20: FALSE | AN20: FALSE | AO20: 00:00:00 | AP20: 23:59:00 | AQ20: 00:00:00 | AR20: 23:59:00 | AS20: TRUE | AT20: FALSE | AU20: TRUE | AV20: FALSE | AW20: FALSE | AX20: FALSE | AY20: FALSE | BD20: TRUE | BE20: FALSE | BF20: TRUE | BG20: FALSE | BH20: 0
A21: 2023-01-14 | B21: Sa | C21: Wochenende | F21: 00:00:00 | J21: 0 | Q21: 2023-01-14 | R21: TRUE | T21: F | U21: A | V21: 0 | W21: 0 | X21: 0 | Y21: TRUE | Z21: FALSE | AA21: FALSE | AH21: FALSE | AI21: FALSE | AJ21: FALSE | AK21: TRUE | AL21: TRUE | AM21: FALSE | AN21: FALSE | AO21: 00:00:00 | AP21: 23:59:00 | AQ21: 00:00:00 | AR21: 23:59:00 | AS21: TRUE | AT21: FALSE | AU21: TRUE | AV21: FALSE | AW21: FALSE | AX21: FALSE | AY21: FALSE | AZ21: 00:00:00 | BA21: 23:59:00 | BB21: 00:00:00 | BC21: 23:59:00 | BD21: TRUE | BE21: FALSE | BF21: TRUE | BG21: FALSE | BH21: 0
A22: 2023-01-15 | B22: So | C22: Wochenende | F22: 00:00:00 | J22: 0 | Q22: 2023-01-15 | R22: TRUE | T22: F | U22: F | V22: 0 | W22: 0 | X22: 0 | Y22: TRUE | Z22: FALSE | AA22: FALSE | AH22: FALSE | AI22: FALSE | AJ22: FALSE | AK22: TRUE | AL22: FALSE | AM22: FALSE | AN22: FALSE | AO22: 00:00:00 | AP22: 23:59:00 | AQ22: 00:00:00 | AR22: 23:59:00 | AS22: TRUE | AT22: FALSE | AU22: TRUE | AV22: FALSE | AW22: FALSE | AX22: FALSE | AY22: FALSE | BD22: TRUE | BE22: FALSE | BF22: TRUE | BG22: FALSE | BH22: 0
A23: 2023-01-16 | B23: Mo | E23: 08:00-16:00 | F23: 08:00:00 | J23: 0 | Q23: 2023-01-16 | R23: TRUE | T23: A | U23: A | V23: 0 | W23: -0.3333333333 | X23: 0 | Y23: FALSE | Z23: FALSE | AA23: TRUE | AB23: 07:00:00 | AC23: 08:00:00 | AD23: 09:00:00 | AE23: 14:00:00 | AF23: 16:00:00 | AG23: 18:00:00 | AH23: FALSE | AI23: TRUE | AJ23: FALSE | AK23: TRUE | AL23: FALSE | AM23: FALSE | AN23: FALSE | AO23: 00:00:00 | AP23: 23:59:00 | AQ23: 00:00:00 | AR23: 23:59:00 | AS23: TRUE | AT23: FALSE | AU23: TRUE | AV23: FALSE | AW23: FALSE | AX23: FALSE | AY23: FALSE | BD23: TRUE | BE23: FALSE | BF23: TRUE | BG23: FALSE | BH23: 0
A24: 2023-01-17 | B24: Di | E24: 08:00-16:00 | F24: 08:00:00 | J24: 0 | Q24: 2023-01-17 | R24: TRUE | T24: A | U24: A | V24: 0 | W24: -0.3333333333 | X24: 0 | Y24: FALSE | Z24: FALSE | AA24: TRUE | AB24: =IF(ISNA(VLOOKUP($B24,GAZ,AB$7,FALSE)),"",VLOOKUP($B24,GAZ,AB$7,FALSE)) -> 07:00:00 | AC24: 08:00:00 | AD24: 09:00:00 | AE24: 14:00:00 | AF24: 16:00:00 | AG24: 18:00:00 | AH24: FALSE | AI24: TRUE | AJ24: FALSE | AK24: TRUE | AL24: FALSE | AM24: FALSE | AN24: FALSE | AO24: 00:00:00 | AP24: 23:59:00 | AQ24: 00:00:00 | AR24: 23:59:00 | AS24: TRUE | AT24: FALSE | AU24: TRUE | AV24: FALSE | AW24: FALSE | AX24: FALSE | AY24: FALSE | BD24: TRUE | BE24: FALSE | BF24: TRUE | BG24: FALSE | BH24: 0
A25: 2023-01-18 | B25: Mi | E25: 08:00-16:00 | F25: 08:00:00 | J25: 0 | Q25: 2023-01-18 | R25: TRUE | T25: A | U25: A | V25: 0 | W25: -0.3333333333 | X25: 0 | Y25: FALSE | Z25: FALSE | AA25: TRUE | AB25: 07:00:00 | AC25: 08:00:00 | AD25: 09:00:00 | AE25: 14:00:00 | AF25: 16:00:00 | AG25: 18:00:00 | AH25: FALSE | AI25: TRUE | AJ25: FALSE | AK25: TRUE | AL25: FALSE | AM25: FALSE | AN25: FALSE | AO25: 00:00:00 | AP25: 23:59:00 | AQ25: 00:00:00 | AR25: 23:59:00 | AS25: TRUE | AT25: FALSE | AU25: TRUE | AV25: FALSE | AW25: FALSE | AX25: FALSE | AY25: FALSE | BD25: TRUE | BE25: FALSE | BF25: TRUE | BG25: FALSE | BH25: 0
A26: 2023-01-19 | B26: Do | E26: 08:00-16:00 | F26: 08:00:00 | J26: 0 | Q26: 2023-01-19 | R26: TRUE | T26: A | U26: A | V26: 0 | W26: -0.3333333333 | X26: 0 | Y26: FALSE | Z26: FALSE | AA26: TRUE | AB26: 07:00:00 | AC26: 08:00:00 | AD26: 09:00:00 | AE26: 14:00:00 | AF26: 16:00:00 | AG26: 18:00:00 | AH26: FALSE | AI26: TRUE | AJ26: FALSE | AK26: TRUE | AL26: FALSE | AM26: FALSE | AN26: FALSE | AO26: 00:00:00 | AP26: 23:59:00 | AQ26: 00:00:00 | AR26: 23:59:00 | AS26: TRUE | AT26: FALSE | AU26: TRUE | AV26: FALSE | AW26: FALSE | AX26: FALSE | AY26: FALSE | BD26: TRUE | BE26: FALSE | BF26: TRUE | BG26: FALSE | BH26: 0
A27: 2023-01-20 | B27: Fr | E27: 08:00-16:00 | F27: 08:00:00 | J27: 0 | Q27: 2023-01-20 | R27: TRUE | T27: A | U27: A | V27: 0 | W27: -0.3333333333 | X27: 0 | Y27: FALSE | Z27: FALSE | AA27: TRUE | AB27: 07:00:00 | AC27: 08:00:00 | AD27: 09:00:00 | AE27: 12:00:00 | AF27: 16:00:00 | AG27: 18:00:00 | AH27: FALSE | AI27: TRUE | AJ27: FALSE | AK27: TRUE | AL27: FALSE | AM27: FALSE | AN27: FALSE | AO27: 00:00:00 | AP27: 23:59:00 | AQ27: 00:00:00 | AR27: 23:59:00 | AS27: TRUE | AT27: FALSE | AU27: TRUE | AV27: FALSE | AW27: FALSE | AX27: FALSE | AY27: FALSE | BD27: TRUE | BE27: FALSE | BF27: TRUE | BG27: FALSE | BH27: 0
A28: 2023-01-21 | B28: Sa | C28: Wochenende | F28: 00:00:00 | J28: 0 | Q28: 2023-01-21 | R28: TRUE | T28: F | U28: A | V28: 0 | W28: 0 | X28: 0 | Y28: TRUE | Z28: FALSE | AA28: FALSE | AH28: FALSE | AI28: FALSE | AJ28: FALSE | AK28: TRUE | AL28: TRUE | AM28: FALSE | AN28: FALSE | AO28: 00:00:00 | AP28: 23:59:00 | AQ28: 00:00:00 | AR28: 23:59:00 | AS28: TRUE | AT28: FALSE | AU28: TRUE | AV28: FALSE | AW28: FALSE | AX28: FALSE | AY28: FALSE | AZ28: 00:00:00 | BA28: 23:59:00 | BB28: 00:00:00 | BC28: 23:59:00 | BD28: TRUE | BE28: FALSE | BF28: TRUE | BG28: FALSE | BH28: 0
A29: 2023-01-22 | B29: So | C29: Wochenende | F29: 00:00:00 | J29: 0 | Q29: 2023-01-22 | R29: TRUE | T29: F | U29: F | V29: 0 | W29: 0 | X29: 0 | Y29: TRUE | Z29: FALSE | AA29: FALSE | AH29: FALSE | AI29: FALSE | AJ29: FALSE | AK29: TRUE | AL29: FALSE | AM29: FALSE | AN29: FALSE | AO29: 00:00:00 | AP29: 23:59:00 | AQ29: 00:00:00 | AR29: 23:59:00 | AS29: TRUE | AT29: FALSE | AU29: TRUE | AV29: FALSE | AW29: FALSE | AX29: FALSE | AY29: FALSE | BD29: TRUE | BE29: FALSE | BF29: TRUE | BG29: FALSE | BH29: 0
A30: 2023-01-23 | B30: Mo | E30: 08:00-16:00 | F30: 08:00:00 | J30: 0 | Q30: 2023-01-23 | R30: TRUE | T30: A | U30: A | V30: 0 | W30: -0.3333333333 | X30: 0 | Y30: FALSE | Z30: FALSE | AA30: TRUE | AB30: 07:00:00 | AC30: 08:00:00 | AD30: 09:00:00 | AE30: 14:00:00 | AF30: 16:00:00 | AG30: 18:00:00 | AH30: FALSE | AI30: TRUE | AJ30: FALSE | AK30: TRUE | AL30: FALSE | AM30: FALSE | AN30: FALSE | AO30: 00:00:00 | AP30: 23:59:00 | AQ30: 00:00:00 | AR30: 23:59:00 | AS30: TRUE | AT30: FALSE | AU30: TRUE | AV30: FALSE | AW30: FALSE | AX30: FALSE | AY30: FALSE | BD30: TRUE | BE30: FALSE | BF30: TRUE | BG30: FALSE | BH30: 0
A31: 2023-01-24 | B31: Di | E31: 08:00-16:00 | F31: 08:00:00 | J31: 0 | Q31: 2023-01-24 | R31: TRUE | T31: A | U31: A | V31: 0 | W31: -0.3333333333 | X31: 0 | Y31: FALSE | Z31: FALSE | AA31: TRUE | AB31: 07:00:00 | AC31: 08:00:00 | AD31: 09:00:00 | AE31: 14:00:00 | AF31: 16:00:00 | AG31: 18:00:00 | AH31: FALSE | AI31: TRUE | AJ31: FALSE | AK31: TRUE | AL31: FALSE | AM31: FALSE | AN31: FALSE | AO31: 00:00:00 | AP31: 23:59:00 | AQ31: 00:00:00 | AR31: 23:59:00 | AS31: TRUE | AT31: FALSE | AU31: TRUE | AV31: FALSE | AW31: FALSE | AX31: FALSE | AY31: FALSE | BD31: TRUE | BE31: FALSE | BF31: TRUE | BG31: FALSE | BH31: 0
A32: 2023-01-25 | B32: Mi | E32: 08:00-16:00 | F32: 08:00:00 | J32: 0 | Q32: 2023-01-25 | R32: TRUE | T32: A | U32: A | V32: 0 | W32: -0.3333333333 | X32: 0 | Y32: FALSE | Z32: FALSE | AA32: TRUE | AB32: 07:00:00 | AC32: 08:00:00 | AD32: 09:00:00 | AE32: 14:00:00 | AF32: 16:00:00 | AG32: 18:00:00 | AH32: FALSE | AI32: TRUE | AJ32: FALSE | AK32: TRUE | AL32: FALSE | AM32: FALSE | AN32: FALSE | AO32: 00:00:00 | AP32: 23:59:00 | AQ32: 00:00:00 | AR32: 23:59:00 | AS32: TRUE | AT32: FALSE | AU32: TRUE | AV32: FALSE | AW32: FALSE | AX32: FALSE | AY32: FALSE | BD32: TRUE | BE32: FALSE | BF32: TRUE | BG32: FALSE | BH32: 0
A33: 2023-01-26 | B33: Do | E33: 08:00-16:00 | F33: 08:00:00 | J33: 0 | Q33: 2023-01-26 | R33: TRUE | T33: A | U33: A | V33: 0 | W33: -0.3333333333 | X33: 0 | Y33: FALSE | Z33: FALSE | AA33: TRUE | AB33: 07:00:00 | AC33: 08:00:00 | AD33: 09:00:00 | AE33: 14:00:00 | AF33: 16:00:00 | AG33: 18:00:00 | AH33: FALSE | AI33: TRUE | AJ33: FALSE | AK33: TRUE | AL33: FALSE | AM33: FALSE | AN33: FALSE | AO33: 00:00:00 | AP33: 23:59:00 | AQ33: 00:00:00 | AR33: 23:59:00 | AS33: TRUE | AT33: FALSE | AU33: TRUE | AV33: FALSE | AW33: FALSE | AX33: FALSE | AY33: FALSE | BD33: TRUE | BE33: FALSE | BF33: TRUE | BG33: FALSE | BH33: 0
A34: 2023-01-27 | B34: Fr | E34: 08:00-16:00 | F34: 08:00:00 | J34: 0 | Q34: 2023-01-27 | R34: TRUE | T34: A | U34: A | V34: 0 | W34: -0.3333333333 | X34: 0 | Y34: FALSE | Z34: FALSE | AA34: TRUE | AB34: 07:00:00 | AC34: 08:00:00 | AD34: 09:00:00 | AE34: 12:00:00 | AF34: 16:00:00 | AG34: 18:00:00 | AH34: FALSE | AI34: TRUE | AJ34: FALSE | AK34: TRUE | AL34: FALSE | AM34: FALSE | AN34: FALSE | AO34: 00:00:00 | AP34: 23:59:00 | AQ34: 00:00:00 | AR34: 23:59:00 | AS34: TRUE | AT34: FALSE | AU34: TRUE | AV34: FALSE | AW34: FALSE | AX34: FALSE | AY34: FALSE | BD34: TRUE | BE34: FALSE | BF34: TRUE | BG34: FALSE | BH34: 0
A35: 2023-01-28 | B35: Sa | C35: Wochenende | F35: 00:00:00 | J35: 0 | Q35: 2023-01-28 | R35: TRUE | T35: F | U35: A | V35: 0 | W35: 0 | X35: 0 | Y35: TRUE | Z35: FALSE | AA35: FALSE | AH35: FALSE | AI35: FALSE | AJ35: FALSE | AK35: TRUE | AL35: TRUE | AM35: FALSE | AN35: FALSE | AO35: 00:00:00 | AP35: 23:59:00 | AQ35: 00:00:00 | AR35: 23:59:00 | AS35: TRUE | AT35: FALSE | AU35: TRUE | AV35: FALSE | AW35: FALSE | AX35: FALSE | AY35: FALSE | AZ35: 00:00:00 | BA35: 23:59:00 | BB35: 00:00:00 | BC35: 23:59:00 | BD35: TRUE | BE35: FALSE | BF35: TRUE | BG35: FALSE | BH35: 0
A36: 2023-01-29 | B36: So | C36: Wochenende | F36: 00:00:00 | J36: 0 | Q36: 2023-01-29 | R36: TRUE | T36: F | U36: F | V36: 0 | W36: 0 | X36: 0 | Y36: TRUE | Z36: FALSE | AA36: FALSE | AH36: FALSE | AI36: FALSE | AJ36: FALSE | AK36: TRUE | AL36: FALSE | AM36: FALSE | AN36: FALSE | AO36: 00:00:00 | AP36: 23:59:00 | AQ36: 00:00:00 | AR36: 23:59:00 | AS36: TRUE | AT36: FALSE | AU36: TRUE | AV36: FALSE | AW36: FALSE | AX36: FALSE | AY36: FALSE | BD36: TRUE | BE36: FALSE | BF36: TRUE | BG36: FALSE | BH36: 0
A37: 2023-01-30 | B37: Mo | E37: 08:00-16:00 | F37: 08:00:00 | J37: 0 | Q37: 2023-01-30 | R37: TRUE | T37: A | U37: A | V37: 0 | W37: -0.3333333333 | X37: 0 | Y37: FALSE | Z37: FALSE | AA37: TRUE | AB37: 07:00:00 | AC37: 08:00:00 | AD37: 09:00:00 | AE37: 14:00:00 | AF37: 16:00:00 | AG37: 18:00:00 | AH37: FALSE | AI37: TRUE | AJ37: FALSE | AK37: TRUE | AL37: FALSE | AM37: FALSE | AN37: FALSE | AO37: 00:00:00 | AP37: 23:59:00 | AQ37: 00:00:00 | AR37: 23:59:00 | AS37: TRUE | AT37: FALSE | AU37: TRUE | AV37: FALSE | AW37: FALSE | AX37: FALSE | AY37: FALSE | BD37: TRUE | BE37: FALSE | BF37: TRUE | BG37: FALSE | BH37: 0
A38: 2023-01-31 | B38: Di | E38: 08:00-16:00 | F38: 08:00:00 | J38: =IF($R38,$X38,"") -> 0 | Q38: 2023-01-31 | R38: TRUE | T38: A | U38: A | V38: 0 | W38: -0.3333333333 | X38: 0 | Y38: FALSE | Z38: FALSE | AA38: TRUE | AB38: 07:00:00 | AC38: 08:00:00 | AD38: 09:00:00 | AE38: 14:00:00 | AF38: 16:00:00 | AG38: 18:00:00 | AH38: FALSE | AI38: TRUE | AJ38: FALSE | AK38: TRUE | AL38: FALSE | AM38: FALSE | AN38: FALSE | AO38: 00:00:00 | AP38: 23:59:00 | AQ38: 00:00:00 | AR38: 23:59:00 | AS38: TRUE | AT38: FALSE | AU38: TRUE | AV38: FALSE | AW38: FALSE | AX38: FALSE | AY38: FALSE | BD38: TRUE | BE38: FALSE | BF38: TRUE | BG38: FALSE | BH38: 0
A39: Arbeitstage | B39: =COUNTIF(T$8:T$38,"A") -> 21 | E39: ="Saldo Monat (~15min) > " -> Saldo Monat (~15min) > | I39: =ROUND(SUM(I8:I38)*4,0)/4 -> 0 | K39: =SUM(K8:K38) -> 0 | L39: < ÜS1:2 | N39: =SUM(N8:N38) -> 0 | O39: =IF(Zeitmodell="Vollzeit"," < ÜS1:1,5 "," < ÜS1:1,25 ")&Zeitmodell -> < ÜS1:1,5 Vollzeit | Q39: Zeitmodell Text
A40: Freie Tage | B40: =COUNTIF(T$8:T$38,"F") -> 10 | E40: ="Saldo "&IF(Zeitmodell="Vollzeit","1:1,5","1:1,25")& " (~15min) > " -> Saldo 1:1,5 (~15min) > | I40: =ROUND($N40*4,0)/4 -> 0 | N40: =IF(Zeitmodell="Vollzeit",$N39*1.5,$N39*1.25) -> 0 | O40: =IF(Zeitmodell="Vollzeit"," < 1:1,5 "," < 1:1,25 ")&$Q40 -> < 1:1,5 Stunden berechnen | Q40: Stunden berechnen
A41: ZK-Tage | B41: 0 | E41: Saldo 1:2 (~15min) > | I41: =ROUND($N41*4,0)/4 -> 0 | N41: =K39*2 -> 0 | O41: < 1:2 Stunden berechnen
A42: ZA-Tage | B42: =COUNTIF(D$8:D$38,"Z") -> 0 | E42: Saldo Vormonat > | I42: =$J5 -> 0 | Q42: Gültigkeit ausbezahlt
A43: Urlaubstage | B43: =COUNTIF(D$8:D$38,"U") -> 0 | E43: Saldo Gesamt > | I43: =SUM(I39:I42) -> 0 | K43: =IF($I$43>=$R$2,"< Hier ausbezahlte Std. eingeben. (Die Eingabe ist hier erst ab < einem Saldo von "&TEXT($R$2,"#.##0,00")&" Std., und nur in 0,25-Schritten möglich.)","") ->  | Q43: =IF(AND($J$43<>"",NOT(ISNUMBER($J$43))),FALSE,OR(AND($J$43>=0,$J$43<=$I$43,MOD($J$43,0.25)=0),$J$43="")) -> TRUE
A44: Krank | B44: =COUNTIF(D$8:D$38,"K") -> 0 | E44: Saldo Übertrag > | I44: =$I43-$J43 -> 0 | J44: =" < Dieser Stunden-Saldo wird in das nächste "&IF($Q$3="Dezember","Jahr","Monat")&" übertragen" -> < Dieser Stunden-Saldo wird in das nächste Monat übertragen
D45: Z
A48: ="Unterschrift von "&Vorgesetzter -> Unterschrift von Vorname Nachname | L48: ="Unterschrift von "&Name -> Unterschrift von Vorname Nachname

Sheet Februar (hidden)
A1: BOKU-Zeiterfassung für Allgemeines Personal | Q1: Monat | R1: Stunden-Saldo Grenzen | S1: Status Blatteingabe
A2: =" Org.-Einh. : "&OrgEinheit -> Org.-Einh. : HXXXXX | F2: Zeitmodell: | I2: =" "&Zeitmodell -> Vollzeit | J2: Modus: | K2: =" "&Zeitmodus -> Gleitzeit | Q2: =IF(ISNA($Q$4),1,$Q$4) -> 2 | R2: =IF($Q$2=12,NormalOGDez,NormalOG) -> 72 | S2: =SUM($BH8:$BH38) -> 0
A3: =" Mitarbeiter/in: "&Name -> Mitarbeiter/in: Vorname Nachname | F3: Vorgesetzte/r: | I3: =" "&Vorgesetzter -> Vorname Nachname | Q3: =RIGHT(CELL("filename",A1),LEN(CELL("filename",A1))-SEARCH("]",CELL("filename",A1),1)) -> Februar | R3: =IF($Q$2=12,NormalUGDez,NormalUG) -> -24 | S3: =IF($Q$2=1,$S$2,$S$2+INDIRECT($S$5)) -> 0
A4: =" Monat: "&$Q$3&" "&Jahr -> Monat: Februar 2023 | E4: Dienstplan | G4: Normalstunden Feiertag-ÜS1:2 | J4: Übertrag | K4: Überstundenberechnung | O4: Unterschrift des Vorgesetzten | P4: Anmerkungen (z.B. Überstunden- notwendigkeit) | Q4: =IF(ISNA(VLOOKUP($Q$3,MTab,2,FALSE)),1,VLOOKUP($Q$3,MTab,2,FALSE)) -> 2 | S4: Übertrags Adresse Blatteingabe
A5: Datum | B5: Wochentag | C5: Tagesinformationen | E5: ="Wochen-AZ"&" "&TEXT(WAZ,"[hh]:mm") -> Wochen-AZ 40:00 | J5: =IF(ISNA($Q$5),Übertrag,INDIRECT($Q$5)) -> 0 | K5: ÜS1:2 | L5: =IF(Zeitmodell="Vollzeit"," Überstunden1:1,5"," Überstunden1:1,25") -> Überstunden1:1,5 | Q5: =IF(ISNA(VLOOKUP($Q$3,MTab,3,FALSE)),"Übertrag",VLOOKUP($Q$3,MTab,3,FALSE)) -> Jänner!$I$44 | S5: =IF(ISNA(VLOOKUP($Q$3,MTab,4,FALSE)),$Q$3&"!$S$2",VLOOKUP($Q$3,MTab,4,FALSE)) -> Jänner!$S$3
C6: Feiertage Wochenende Urlaub, ZA, Krank | D6: [U]rlaub [Z]A [ZK] [K]rank | E6: Normal- | F6: Soll | G6: Von | H6: Bis | I6: Plus | J6: Saldo | K6: Plus | L6: Von | M6: Bis | N6: Plus | Q6: Hintergrundberechnungen | X6: Saldo aktuell | AB6: GAZ-Tabellenabbildung | AH6: Eingabebeprüfungen
E7: Arbeitszeit | I7: Minus | J7: akuell | Q7: Datum | R7: Monat OK | S7: Abwesenh. | T7: Freie Tage | U7: ÜA-Tage | V7: Std. | W7: Soll-Std. | X7: =IF(ISNA($Q$5),Übertrag,INDIRECT($Q$5)) -> 0 | Y7: Std.-Soll = 0 | Z7: Std.-Soll > 0 | AA7: Std.-Soll < 0 | AB7: =I_GAZGRVon -> 2 | AC7: =I_GAZNAZVon -> 3 | AD7: =I_GAZKVon -> 4 | AE7: =I_GAZKBis -> 6 | AF7: =I_GAZNAZBis -> 7 | AG7: =I_GAZGRBis -> 8 | AH7: Zeiteingabe | AI7: UZK-Eing. erlaubt | AJ7: UZK-Eing. gültig | AK7: Normalst. ein erlaubt | AL7: Überstd. ein erlaubt | AM7: Normalstd. eingegeben | AN7: Überstd. eingegeben | AO7: Normal VON möglich OG | AP7: Normal VON möglich UG | AQ7: Normal BIS möglich OG | AR7: Normal BIS möglich UG | AS7: Normal VON 15min | AT7: Normal VON richtig | AU7: Normal BIS 15min | AV7: Normal BIS richtig | AW7: ZA-Kern Von | AX7: ZA-Kern Bis | AY7: ZA-Kern | AZ7: Über VON Obergrenze | BA7: Über VON Untergrenze | BB7: Über BIS Obergrenze | BC7: Über BIS Untergrenze | BD7: Über VON 15min | BE7: Über VON richtig | BF7: Überl BIS 15min | BG7: Über BIS richtig | BH7: Status Zeilen Eingabe
A8: =IF($R8,$Q8,"") -> 2023-02-01 | B8: =IF($R8,VLOOKUP(WEEKDAY($Q8,2),WOTA,2,FALSE),"") -> Mi | C8: =IF($R8," "&IF($S8="",VLOOKUP($Q8,FListe,3,FALSE),$S8),"") ->  | E8: =IF(AND($R8,$T8<>"F"),IF($AC8=$AF8,"keine NAZ",TEXT($AC8,"hh:mm")&"-"&TEXT($AF8,"hh:mm")),"") -> 08:00-16:00 | F8: =IF($R8,IF($T8="F",0,VLOOKUP($B8,GAZ,I_GAZNAZ,FALSE)),"") -> 08:00:00 | I8: =IF(Zeitmodus="Gleitzeit",IF($U8="F","",IF(AND($R8,$AM8,NOT($Y8)),ROUND(($V8-$F8)*24,2),IF($D8="Z",$F8*-24,""))),IF(OR($D8="Z",AND($AM8,$U8="A",W8<0)),ROUND($W8*24,2),"")) ->  | J8: =IF($R8,$X8,"") -> 0 | K8: =IF(AND($U8="F",$AM8),ROUND($V8*24,2),"") ->  | N8: =IF(Zeitmodus="Gleitzeit",IF(AND($R8,$AN8,$M8-$L8<>0,$AL8),ROUND(($M8-$L8)*24,2),""),IF(AND($AM8,$U8="A",W8>0),ROUND(W8*24,2),"")) ->  | Q8: =DATE(Jahr,$Q2,1) -> 2023-02-01 | R8: =$Q$2=MONTH($Q8) -> TRUE | S8: =IF(OR($D8="U",$D8="Z",$D8="ZK",$D8="K"),VLOOKUP($D8,UZK,2,FALSE),"") ->  | T8: =IF($R8,VLOOKUP($Q8,FListe,4,FALSE),"") -> A | U8: =IF($R8,VLOOKUP($Q8,FListe,5,FALSE),"") -> A | V8: =$H8-$G8 -> 0 | W8: =IF($R8,ROUND($V8-$F8,15),"") -> -0.3333333333 | X8: =IF($I8<>"",$X7+$I8,$X7) -> 0 | Y8: =($W8=0) -> FALSE | Z8: =($W8>0) -> FALSE | AA8: =($W8<0) -> TRUE | AB8: =IF(ISNA(VLOOKUP($B8,GAZ,AB$7,FALSE)),"",VLOOKUP($B8,GAZ,AB$7,FALSE)) -> 07:00:00 | AC8: 08:00:00 | AD8: =IF(ISNA(VLOOKUP($B8,GAZ,AD$7,FALSE)),"",IF($AC8=$AF8,$G8,VLOOKUP($B8,GAZ,AD$7,FALSE))) -> 09:00:00 | AE8: =IF(ISNA(VLOOKUP($B8,GAZ,AE$7,FALSE)),"",IF($AC8=$AF8,$H8,VLOOKUP($B8,GAZ,AE$7,FALSE))) -> 14:00:00 | AF8: 16:00:00 | AG8: 18:00:00 | AH8: =OR($G8<>"",$H8<>"",$L8<>"",$M8<>"") -> FALSE | AI8: =AND($T8<>"F",NOT($AH8),NOT($AC8=$AF8)) -> TRUE | AJ8: =AND($AI8,OR($D8="U",$D8="Z",$D8="K")) -> FALSE | AK8: =AND($D8<>"U",$D8<>"Z",$D8<>"K",$R8) -> TRUE | AL8: =AND(Zeitmodus=C_Gleitzeit,$U8<>"F",OR($B8="Sa",AND($AM8,$I8>=0,NOT($AY8)))) -> FALSE | AM8: =AND($G8<>"",$H8<>"") -> FALSE | AN8: =OR($K8<>"",AND($L8<>"",$M8<>"")) -> FALSE | AO8: =IF($AK8,TagUG,"") -> 00:00:00 | AP8: =IF($AK8,IF($H8="",IF(AND($L8<>"",$L8<$AG8),$L8,IF(AND($M8<>"",$M8<$AG8),$M8,TagOG)),$H8),"") -> 23:59:00 | AQ8: =IF($AK8,IF($G8="",$AB8,$G8),"") -> 07:00:00 | AR8: =IF($AK8,IF(AND($L8<>"",$L8<$AG8),$L8,IF(AND($M8<>"",$M8<$AG8),$M8,TagOG)),"") -> 23:59:00 | AS8: =MOD($G8*24,0.25)=0 -> TRUE | AT8: =AND($AK8,ISNUMBER($G8),$G8>=$AO8,$G8<=$AP8) -> FALSE | AU8: =MOD($H8*24,0.25)=0 -> TRUE | AV8: =AND($AK8,ISNUMBER($H8),$H8>=$AQ8,$H8<=$AR8) -> FALSE | AW8: =AND(Zeitmodus=C_Gleitzeit,$B8<>"Sa",$G8<>"",$G8>$AD8) -> FALSE | AX8: =AND(Zeitmodus=C_Gleitzeit,$B8<>"Sa",$H8<>"",$H8<$AE8) -> FALSE | AY8: =AND($U8<>"F",OR($AW8,$AX8)) -> FALSE | AZ8: =IF($B8="Sa",IF($H8<>"",$H8,TIME(0,0,0)),IF($AL8,IF(AND($H8<>"",$H8>$AF8),$H8,$AF8),"")) ->  | BA8: =IF($AL8,IF($M8<>"",$M8,$BC8),"") ->  | BB8: =IF($B8="Sa",IF($L8="",TIME(0,0,0),$L8),IF($AL8,IF($L8<>"",$L8,IF(AND($H8<>"",$H8>$AF8),$H8,$AF8)),"")) ->  | BC8: =IF($AL8,TIME(23,59,0),"") ->  | BD8: =MOD($L8*24,0.25)=0 -> TRUE | BE8: =AND($AL8,ISNUMBER($L8),$L8>=$AZ8,$BA8>=$L8) -> FALSE | BF8: =MOD($M8*24,0.25)=0 -> TRUE | BG8: =AND($AL8,ISNUMBER($M8),$M8>=$BB8,$M8<=$BC8) -> FALSE | BH8: =IF(AND(ISBLANK($D8),ISBLANK($G8),ISBLANK($H8),ISBLANK($L8),ISBLANK($M8),ISBLANK($P8)),0,1) -> 0
A9: =IF($R9,$Q9,"") -> 2023-02-02 | B9: Do | E9: =IF(AND($R9,$T9<>"F"),IF($AC9=$AF9,"keine NAZ",TEXT($AC9,"hh:mm")&"-"&TEXT($AF9,"hh:mm")),"") -> 08:00-16:00 | F9: 08:00:00 | J9: 0 | K9: =IF(AND($U9="F",$AM9),ROUND($V9*24,2),"") ->  | Q9: =Q8+1 -> 2023-02-02 | R9: TRUE | T9: A | U9: A | V9: 0 | W9: -0.3333333333 | X9: 0 | Y9: FALSE | Z9: FALSE | AA9: TRUE | AB9: 07:00:00 | AC9: 08:00:00 | AD9: 09:00:00 | AE9: 14:00:00 | AF9: 16:00:00 | AG9: 18:00:00 | AH9: FALSE | AI9: =AND($T9<>"F",NOT($AH9),NOT($AC9=$AF9)) -> TRUE | AJ9: FALSE | AK9: TRUE | AL9: =AND(Zeitmodus=C_Gleitzeit,$U9<>"F",OR($B9="Sa",AND($AM9,$I9>=0,NOT($AY9)))) -> FALSE | AM9: FALSE | AN9: =OR($K9<>"",AND($L9<>"",$M9<>"")) -> FALSE | AO9: 00:00:00 | AP9: 23:59:00 | AQ9: =IF($AK9,IF($G9="",TagUG,$G9),"") -> 00:00:00 | AR9: 23:59:00 | AS9: TRUE | AT9: FALSE | AU9: TRUE | AV9: FALSE | AW9: FALSE | AX9: FALSE | AY9: =AND($U9<>"F",OR($AW9,$AX9)) -> FALSE | BD9: TRUE | BE9: FALSE | BF9: TRUE | BG9: FALSE | BH9: 0
A10: 2023-02-03 | B10: Fr | E10: 08:00-16:00 | F10: 08:00:00 | J10: 0 | Q10: 2023-02-03 | R10: TRUE | T10: A | U10: A | V10: 0 | W10: -0.3333333333 | X10: 0 | Y10: FALSE | Z10: FALSE | AA10: TRUE | AB10: 07:00:00 | AC10: 08:00:00 | AD10: 09:00:00 | AE10: 12:00:00 | AF10: 16:00:00 | AG10: 18:00:00 | AH10: FALSE | AI10: TRUE | AJ10: FALSE | AK10: TRUE | AL10: FALSE | AM10: FALSE | AN10: FALSE | AO10: 00:00:00 | AP10: 23:59:00 | AQ10: 00:00:00 | AR10: 23:59:00 | AS10: TRUE | AT10: FALSE | AU10: TRUE | AV10: FALSE | AW10: FALSE | AX10: FALSE | AY10: FALSE | BD10: TRUE | BE10: FALSE | BF10: TRUE | BG10: FALSE | BH10: 0
A11: 2023-02-04 | B11: Sa | C11: Wochenende | F11: 00:00:00 | J11: 0 | Q11: 2023-02-04 | R11: TRUE | T11: F | U11: A | V11: 0 | W11: 0 | X11: 0 | Y11: TRUE | Z11: FALSE | AA11: FALSE | AH11: FALSE | AI11: FALSE | AJ11: FALSE | AK11: TRUE | AL11: TRUE | AM11: FALSE | AN11: FALSE | AO11: 00:00:00 | AP11: 23:59:00 | AQ11: 00:00:00 | AR11: 23:59:00 | AS11: TRUE | AT11: FALSE | AU11: TRUE | AV11: FALSE | AW11: FALSE | AX11: FALSE | AY11: FALSE | AZ11: 00:00:00 | BA11: 23:59:00 | BB11: 00:00:00 | BC11: 23:59:00 | BD11: TRUE | BE11: FALSE | BF11: TRUE | BG11: FALSE | BH11: 0
A12: 2023-02-05 | B12: So | C12: Wochenende | F12: 00:00:00 | J12: 0 | Q12: 2023-02-05 | R12: TRUE | T12: F | U12: F | V12: 0 | W12: 0 | X12: 0 | Y12: TRUE | Z12: FALSE | AA12: FALSE | AH12: FALSE | AI12: FALSE | AJ12: FALSE | AK12: TRUE | AL12: FALSE | AM12: FALSE | AN12: FALSE | AO12: 00:00:00 | AP12: 23:59:00 | AQ12: 00:00:00 | AR12: 23:59:00 | AS12: TRUE | AT12: FALSE | AU12: TRUE | AV12: FALSE | AW12: FALSE | AX12: FALSE | AY12: FALSE | BD12: TRUE | BE12: FALSE | BF12: TRUE | BG12: FALSE | BH12: 0
A13: 2023-02-06 | B13: Mo | E13: 08:00-16:00 | F13: 08:00:00 | J13: 0 | Q13: 2023-02-06 | R13: TRUE | T13: A | U13: A | V13: 0 | W13: -0.3333333333 | X13: 0 | Y13: FALSE | Z13: FALSE | AA13: TRUE | AB13: 07:00:00 | AC13: 08:00:00 | AD13: 09:00:00 | AE13: 14:00:00 | AF13: 16:00:00 | AG13: 18:00:00 | AH13: FALSE | AI13: TRUE | AJ13: FALSE | AK13: TRUE | AL13: FALSE | AM13: FALSE | AN13: FALSE | AO13: 00:00:00 | AP13: 23:59:00 | AQ13: 00:00:00 | AR13: 23:59:00 | AS13: TRUE | AT13: FALSE | AU13: TRUE | AV13: FALSE | AW13: FALSE | AX13: FALSE | AY13: FALSE | BD13: TRUE | BE13: FALSE | BF13: TRUE | BG13: FALSE | BH13: 0
A14: 2023-02-07 | B14: Di | E14: 08:00-16:00 | F14: 08:00:00 | J14: 0 | Q14: 2023-02-07 | R14: TRUE | T14: A | U14: A | V14: 0 | W14: -0.3333333333 | X14: 0 | Y14: FALSE | Z14: FALSE | AA14: TRUE | AB14: 07:00:00 | AC14: 08:00:00 | AD14: 09:00:00 | AE14: 14:00:00 | AF14: 16:00:00 | AG14: 18:00:00 | AH14: FALSE | AI14: TRUE | AJ14: FALSE | AK14: TRUE | AL14: FALSE | AM14: FALSE | AN14: FALSE | AO14: 00:00:00 | AP14: 23:59:00 | AQ14: 00:00:00 | AR14: 23:59:00 | AS14: TRUE | AT14: FALSE | AU14: TRUE | AV14: FALSE | AW14: FALSE | AX14: FALSE | AY14: FALSE | BD14: TRUE | BE14: FALSE | BF14: TRUE | BG14: FALSE | BH14: 0
A15: 2023-02-08 | B15: Mi | E15: 08:00-16:00 | F15: 08:00:00 | J15: 0 | Q15: 2023-02-08 | R15: TRUE | T15: A | U15: A | V15: 0 | W15: -0.3333333333 | X15: 0 | Y15: FALSE | Z15: FALSE | AA15: TRUE | AB15: 07:00:00 | AC15: 08:00:00 | AD15: 09:00:00 | AE15: 14:00:00 | AF15: 16:00:00 | AG15: 18:00:00 | AH15: FALSE | AI15: TRUE | AJ15: FALSE | AK15: TRUE | AL15: FALSE | AM15: FALSE | AN15: FALSE | AO15: 00:00:00 | AP15: 23:59:00 | AQ15: 00:00:00 | AR15: 23:59:00 | AS15: TRUE | AT15: FALSE | AU15: TRUE | AV15: FALSE | AW15: FALSE | AX15: FALSE | AY15: FALSE | BD15: TRUE | BE15: FALSE | BF15: TRUE | BG15: FALSE | BH15: 0
A16: 2023-02-09 | B16: Do | E16: 08:00-16:00 | F16: 08:00:00 | J16: 0 | Q16: 2023-02-09 | R16: TRUE | T16: A | U16: A | V16: 0 | W16: -0.3333333333 | X16: 0 | Y16: FALSE | Z16: FALSE | AA16: TRUE | AB16: 07:00:00 | AC16: 08:00:00 | AD16: 09:00:00 | AE16: 14:00:00 | AF16: 16:00:00 | AG16: 18:00:00 | AH16: FALSE | AI16: TRUE | AJ16: FALSE | AK16: TRUE | AL16: FALSE | AM16: FALSE | AN16: FALSE | AO16: 00:00:00 | AP16: 23:59:00 | AQ16: 00:00:00 | AR16: 23:59:00 | AS16: TRUE | AT16: FALSE | AU16: TRUE | AV16: FALSE | AW16: FALSE | AX16: FALSE | AY16: FALSE | BD16: TRUE | BE16: FALSE | BF16: TRUE | BG16: FALSE | BH16: 0
A17: 2023-02-10 | B17: Fr | E17: 08:00-16:00 | F17: 08:00:00 | J17: 0 | Q17: 2023-02-10 | R17: TRUE | T17: A | U17: A | V17: 0 | W17: -0.3333333333 | X17: 0 | Y17: FALSE | Z17: FALSE | AA17: TRUE | AB17: 07:00:00 | AC17: 08:00:00 | AD17: 09:00:00 | AE17: 12:00:00 | AF17: 16:00:00 | AG17: 18:00:00 | AH17: FALSE | AI17: TRUE | AJ17: FALSE | AK17: TRUE | AL17: FALSE | AM17: FALSE | AN17: FALSE | AO17: 00:00:00 | AP17: 23:59:00 | AQ17: 00:00:00 | AR17: 23:59:00 | AS17: TRUE | AT17: FALSE | AU17: TRUE | AV17: FALSE | AW17: FALSE | AX17: FALSE | AY17: FALSE | BD17: TRUE | BE17: FALSE | BF17: TRUE | BG17: FALSE | BH17: 0
A18: 2023-02-11 | B18: Sa | C18: Wochenende | F18: 00:00:00 | J18: 0 | Q18: 2023-02-11 | R18: TRUE | T18: F | U18: A | V18: 0 | W18: 0 | X18: 0 | Y18: TRUE | Z18: FALSE | AA18: FALSE | AH18: FALSE | AI18: FALSE | AJ18: FALSE | AK18: TRUE | AL18: TRUE | AM18: FALSE | AN18: FALSE | AO18: 00:00:00 | AP18: 23:59:00 | AQ18: 00:00:00 | AR18: 23:59:00 | AS18: TRUE | AT18: FALSE | AU18: TRUE | AV18: FALSE | AW18: FALSE | AX18: FALSE | AY18: FALSE | AZ18: 00:00:00 | BA18: 23:59:00 | BB18: 00:00:00 | BC18: 23:59:00 | BD18: TRUE | BE18: FALSE | BF18: TRUE | BG18: FALSE | BH18: 0
A19: 2023-02-12 | B19: So | C19: Wochenende | F19: 00:00:00 | J19: 0 | Q19: 2023-02-12 | R19: TRUE | T19: F | U19: F | V19: 0 | W19: 0 | X19: 0 | Y19: TRUE | Z19: FALSE | AA19: FALSE | AH19: FALSE | AI19: FALSE | AJ19: FALSE | AK19: TRUE | AL19: FALSE | AM19: FALSE | AN19: FALSE | AO19: 00:00:00 | AP19: 23:59:00 | AQ19: 00:00:00 | AR19: 23:59:00 | AS19: TRUE | AT19: FALSE | AU19: TRUE | AV19: FALSE | AW19: FALSE | AX19: FALSE | AY19: FALSE | BD19: TRUE | BE19: FALSE | BF19: TRUE | BG19: FALSE | BH19: 0
A20: 2023-02-13 | B20: Mo | E20: 08:00-16:00 | F20: 08:00:00 | J20: 0 | Q20: 2023-02-13 | R20: TRUE | T20: A | U20: A | V20: 0 | W20: -0.3333333333 | X20: 0 | Y20: FALSE | Z20: FALSE | AA20: TRUE | AB20: 07:00:00 | AC20: 08:00:00 | AD20: 09:00:00 | AE20: 14:00:00 | AF20: 16:00:00 | AG20: 18:00:00 | AH20: FALSE | AI20: TRUE | AJ20: FALSE | AK20: TRUE | AL20: FALSE | AM20: FALSE | AN20: FALSE | AO20: 00:00:00 | AP20: 23:59:00 | AQ20: 00:00:00 | AR20: 23:59:00 | AS20: TRUE | AT20: FALSE | AU20: TRUE | AV20: FALSE | AW20: FALSE | AX20: FALSE | AY20: FALSE | BD20: TRUE | BE20: FALSE | BF20: TRUE | BG20: FALSE | BH20: 0
A21: 2023-02-14 | B21: Di | C21: Valentinstag | E21: 08:00-16:00 | F21: 08:00:00 | J21: 0 | Q21: 2023-02-14 | R21: TRUE | T21: A | U21: A | V21: 0 | W21: -0.3333333333 | X21: 0 | Y21: FALSE | Z21: FALSE | AA21: TRUE | AB21: 07:00:00 | AC21: 08:00:00 | AD21: 09:00:00 | AE21: 14:00:00 | AF21: 16:00:00 | AG21: 18:00:00 | AH21: FALSE | AI21: TRUE | AJ21: FALSE | AK21: TRUE | AL21: FALSE | AM21: FALSE | AN21: FALSE | AO21: 00:00:00 | AP21: 23:59:00 | AQ21: 00:00:00 | AR21: 23:59:00 | AS21: TRUE | AT21: FALSE | AU21: TRUE | AV21: FALSE | AW21: FALSE | AX21: FALSE | AY21: FALSE | BD21: TRUE | BE21: FALSE | BF21: TRUE | BG21: FALSE | BH21: 0
A22: 2023-02-15 | B22: Mi | E22: 08:00-16:00 | F22: 08:00:00 | J22: 0 | Q22: 2023-02-15 | R22: TRUE | T22: A | U22: A | V22: 0 | W22: -0.3333333333 | X22: 0 | Y22: FALSE | Z22: FALSE | AA22: TRUE | AB22: 07:00:00 | AC22: 08:00:00 | AD22: 09:00:00 | AE22: 14:00:00 | AF22: 16:00:00 | AG22: 18:00:00 | AH22: FALSE | AI22: TRUE | AJ22: FALSE | AK22: TRUE | AL22: FALSE | AM22: FALSE | AN22: FALSE | AO22: 00:00:00 | AP22: 23:59:00 | AQ22: 00:00:00 | AR22: 23:59:00 | AS22: TRUE | AT22: FALSE | AU22: TRUE | AV22: FALSE | AW22: FALSE | AX22: FALSE | AY22: FALSE | BD22: TRUE | BE22: FALSE | BF22: TRUE | BG22: FALSE | BH22: 0
A23: 2023-02-16 | B23: Do | E23: 08:00-16:00 | F23: 08:00:00 | J23: 0 | Q23: 2023-02-16 | R23: TRUE | T23: A | U23: A | V23: 0 | W23: -0.3333333333 | X23: 0 | Y23: FALSE | Z23: FALSE | AA23: TRUE | AB23: 07:00:00 | AC23: 08:00:00 | AD23: 09:00:00 | AE23: 14:00:00 | AF23: 16:00:00 | AG23: 18:00:00 | AH23: FALSE | AI23: TRUE | AJ23: FALSE | AK23: TRUE | AL23: FALSE | AM23: FALSE | AN23: FALSE | AO23: 00:00:00 | AP23: 23:59:00 | AQ23: 00:00:00 | AR23: 23:59:00 | AS23: TRUE | AT23: FALSE | AU23: TRUE | AV23: FALSE | AW23: FALSE | AX23: FALSE | AY23: FALSE | BD23: TRUE | BE23: FALSE | BF23: TRUE | BG23: FALSE | BH23: 0
A24: 2023-02-17 | B24: Fr | E24: 08:00-16:00 | F24: 08:00:00 | J24: 0 | Q24: 2023-02-17 | R24: TRUE | T24: A | U24: A | V24: 0 | W24: -0.3333333333 | X24: 0 | Y24: FALSE | Z24: FALSE | AA24: TRUE | AB24: =IF(ISNA(VLOOKUP($B24,GAZ,AB$7,FALSE)),"",VLOOKUP($B24,GAZ,AB$7,FALSE)) -> 07:00:00 | AC24: 08:00:00 | AD24: 09:00:00 | AE24: 12:00:00 | AF24: 16:00:00 | AG24: 18:00:00 | AH24: FALSE | AI24: TRUE | AJ24: FALSE | AK24: TRUE | AL24: FALSE | AM24: FALSE | AN24: FALSE | AO24: 00:00:00 | AP24: 23:59:00 | AQ24: 00:00:00 | AR24: 23:59:00 | AS24: TRUE | AT24: FALSE | AU24: TRUE | AV24: FALSE | AW24: FALSE | AX24: FALSE | AY24: FALSE | BD24: TRUE | BE24: FALSE | BF24: TRUE | BG24: FALSE | BH24: 0
A25: 2023-02-18 | B25: Sa | C25: Wochenende | F25: 00:00:00 | J25: 0 | Q25: 2023-02-18 | R25: TRUE | T25: F | U25: A | V25: 0 | W25: 0 | X25: 0 | Y25: TRUE | Z25: FALSE | AA25: FALSE | AH25: FALSE | AI25: FALSE | AJ25: FALSE | AK25: TRUE | AL25: TRUE | AM25: FALSE | AN25: FALSE | AO25: 00:00:00 | AP25: 23:59:00 | AQ25: 00:00:00 | AR25: 23:59:00 | AS25: TRUE | AT25: FALSE | AU25: TRUE | AV25: FALSE | AW25: FALSE | AX25: FALSE | AY25: FALSE | AZ25: 00:00:00 | BA25: 23:59:00 | BB25: 00:00:00 | BC25: 23:59:00 | BD25: TRUE | BE25: FALSE | BF25: TRUE | BG25: FALSE | BH25: 0
A26: 2023-02-19 | B26: So | C26: Wochenende | F26: 00:00:00 | J26: 0 | Q26: 2023-02-19 | R26: TRUE | T26: F | U26: F | V26: 0 | W26: 0 | X26: 0 | Y26: TRUE | Z26: FALSE | AA26: FALSE | AH26: FALSE | AI26: FALSE | AJ26: FALSE | AK26: TRUE | AL26: FALSE | AM26: FALSE | AN26: FALSE | AO26: 00:00:00 | AP26: 23:59:00 | AQ26: 00:00:00 | AR26: 23:59:00 | AS26: TRUE | AT26: FALSE | AU26: TRUE | AV26: FALSE | AW26: FALSE | AX26: FALSE | AY26: FALSE | BD26: TRUE | BE26: FALSE | BF26: TRUE | BG26: FALSE | BH26: 0
A27: 2023-02-20 | B27: Mo | E27: 08:00-16:00 | F27: 08:00:00 | J27: 0 | Q27: 2023-02-20 | R27: TRUE | T27: A | U27: A | V27: 0 | W27: -0.3333333333 | X27: 0 | Y27: FALSE | Z27: FALSE | AA27: TRUE | AB27: 07:00:00 | AC27: 08:00:00 | AD27: 09:00:00 | AE27: 14:00:00 | AF27: 16:00:00 | AG27: 18:00:00 | AH27: FALSE | AI27: TRUE | AJ27: FALSE | AK27: TRUE | AL27: FALSE | AM27: FALSE | AN27: FALSE | AO27: 00:00:00 | AP27: 23:59:00 | AQ27: 00:00:00 | AR27: 23:59:00 | AS27: TRUE | AT27: FALSE | AU27: TRUE | AV27: FALSE | AW27: FALSE | AX27: FALSE | AY27: FALSE | BD27: TRUE | BE27: FALSE | BF27: TRUE | BG27: FALSE | BH27: 0
A28: 2023-02-21 | B28: Di | E28: 08:00-16:00 | F28: 08:00:00 | J28: 0 | Q28: 2023-02-21 | R28: TRUE | T28: A | U28: A | V28: 0 | W28: -0.3333333333 | X28: 0 | Y28: FALSE | Z28: FALSE | AA28: TRUE | AB28: 07:00:00 | AC28: 08:00:00 | AD28: 09:00:00 | AE28: 14:00:00 | AF28: 16:00:00 | AG28: 18:00:00 | AH28: FALSE | AI28: TRUE | AJ28: FALSE | AK28: TRUE | AL28: FALSE | AM28: FALSE | AN28: FALSE | AO28: 00:00:00 | AP28: 23:59:00 | AQ28: 00:00:00 | AR28: 23:59:00 | AS28: TRUE | AT28: FALSE | AU28: TRUE | AV28: FALSE | AW28: FALSE | AX28: FALSE | AY28: FALSE | BD28: TRUE | BE28: FALSE | BF28: TRUE | BG28: FALSE | BH28: 0
A29: 2023-02-22 | B29: Mi | C29: Aschermittwoch | E29: 08:00-16:00 | F29: 08:00:00 | J29: 0 | Q29: 2023-02-22 | R29: TRUE | T29: A | U29: A | V29: 0 | W29: -0.3333333333 | X29: 0 | Y29: FALSE | Z29: FALSE | AA29: TRUE | AB29: 07:00:00 | AC29: 08:00:00 | AD29: 09:00:00 | AE29: 14:00:00 | AF29: 16:00:00 | AG29: 18:00:00 | AH29: FALSE | AI29: TRUE | AJ29: FALSE | AK29: TRUE | AL29: FALSE | AM29: FALSE | AN29: FALSE | AO29: 00:00:00 | AP29: 23:59:00 | AQ29: 00:00:00 | AR29: 23:59:00 | AS29: TRUE | AT29: FALSE | AU29: TRUE | AV29: FALSE | AW29: FALSE | AX29: FALSE | AY29: FALSE | BD29: TRUE | BE29: FALSE | BF29: TRUE | BG29: FALSE | BH29: 0
A30: 2023-02-23 | B30: Do | E30: 08:00-16:00 | F30: 08:00:00 | J30: 0 | Q30: 2023-02-23 | R30: TRUE | T30: A | U30: A | V30: 0 | W30: -0.3333333333 | X30: 0 | Y30: FALSE | Z30: FALSE | AA30: TRUE | AB30: 07:00:00 | AC30: 08:00:00 | AD30: 09:00:00 | AE30: 14:00:00 | AF30: 16:00:00 | AG30: 18:00:00 | AH30: FALSE | AI30: TRUE | AJ30: FALSE | AK30: TRUE | AL30: FALSE | AM30: FALSE | AN30: FALSE | AO30: 00:00:00 | AP30: 23:59:00 | AQ30: 00:00:00 | AR30: 23:59:00 | AS30: TRUE | AT30: FALSE | AU30: TRUE | AV30: FALSE | AW30: FALSE | AX30: FALSE | AY30: FALSE | BD30: TRUE | BE30: FALSE | BF30: TRUE | BG30: FALSE | BH30: 0
A31: 2023-02-24 | B31: Fr | E31: 08:00-16:00 | F31: 08:00:00 | J31: 0 | Q31: 2023-02-24 | R31: TRUE | T31: A | U31: A | V31: 0 | W31: -0.3333333333 | X31: 0 | Y31: FALSE | Z31: FALSE | AA31: TRUE | AB31: 07:00:00 | AC31: 08:00:00 | AD31: 09:00:00 | AE31: 12:00:00 | AF31: 16:00:00 | AG31: 18:00:00 | AH31: FALSE | AI31: TRUE | AJ31: FALSE | AK31: TRUE | AL31: FALSE | AM31: FALSE | AN31: FALSE | AO31: 00:00:00 | AP31: 23:59:00 | AQ31: 00:00:00 | AR31: 23:59:00 | AS31: TRUE | AT31: FALSE | AU31: TRUE | AV31: FALSE | AW31: FALSE | AX31: FALSE | AY31: FALSE | BD31: TRUE | BE31: FALSE | BF31: TRUE | BG31: FALSE | BH31: 0
A32: 2023-02-25 | B32: Sa | C32: Wochenende | F32: 00:00:00 | J32: 0 | Q32: 2023-02-25 | R32: TRUE | T32: F | U32: A | V32: 0 | W32: 0 | X32: 0 | Y32: TRUE | Z32: FALSE | AA32: FALSE | AH32: FALSE | AI32: FALSE | AJ32: FALSE | AK32: TRUE | AL32: TRUE | AM32: FALSE | AN32: FALSE | AO32: 00:00:00 | AP32: 23:59:00 | AQ32: 00:00:00 | AR32: 23:59:00 | AS32: TRUE | AT32: FALSE | AU32: TRUE | AV32: FALSE | AW32: FALSE | AX32: FALSE | AY32: FALSE | AZ32: 00:00:00 | BA32: 23:59:00 | BB32: 00:00:00 | BC32: 23:59:00 | BD32: TRUE | BE32: FALSE | BF32: TRUE | BG32: FALSE | BH32: 0
A33: 2023-02-26 | B33: So | C33: Wochenende | F33: 00:00:00 | J33: 0 | Q33: 2023-02-26 | R33: TRUE | T33: F | U33: F | V33: 0 | W33: 0 | X33: 0 | Y33: TRUE | Z33: FALSE | AA33: FALSE | AH33: FALSE | AI33: FALSE | AJ33: FALSE | AK33: TRUE | AL33: FALSE | AM33: FALSE | AN33: FALSE | AO33: 00:00:00 | AP33: 23:59:00 | AQ33: 00:00:00 | AR33: 23:59:00 | AS33: TRUE | AT33: FALSE | AU33: TRUE | AV33: FALSE | AW33: FALSE | AX33: FALSE | AY33: FALSE | BD33: TRUE | BE33: FALSE | BF33: TRUE | BG33: FALSE | BH33: 0
A34: 2023-02-27 | B34: Mo | E34: 08:00-16:00 | F34: 08:00:00 | J34: 0 | Q34: 2023-02-27 | R34: TRUE | T34: A | U34: A | V34: 0 | W34: -0.3333333333 | X34: 0 | Y34: FALSE | Z34: FALSE | AA34: TRUE | AB34: 07:00:00 | AC34: 08:00:00 | AD34: 09:00:00 | AE34: 14:00:00 | AF34: 16:00:00 | AG34: 18:00:00 | AH34: FALSE | AI34: TRUE | AJ34: FALSE | AK34: TRUE | AL34: FALSE | AM34: FALSE | AN34: FALSE | AO34: 00:00:00 | AP34: 23:59:00 | AQ34: 00:00:00 | AR34: 23:59:00 | AS34: TRUE | AT34: FALSE | AU34: TRUE | AV34: FALSE | AW34: FALSE | AX34: FALSE | AY34: FALSE | BD34: TRUE | BE34: FALSE | BF34: TRUE | BG34: FALSE | BH34: 0
A35: 2023-02-28 | B35: Di | E35: 08:00-16:00 | F35: 08:00:00 | J35: 0 | Q35: 2023-02-28 | R35: TRUE | T35: A | U35: A | V35: 0 | W35: -0.3333333333 | X35: 0 | Y35: FALSE | Z35: FALSE | AA35: TRUE | AB35: 07:00:00 | AC35: 08:00:00 | AD35: 09:00:00 | AE35: 14:00:00 | AF35: 16:00:00 | AG35: 18:00:00 | AH35: FALSE | AI35: TRUE | AJ35: FALSE | AK35: TRUE | AL35: FALSE | AM35: FALSE | AN35: FALSE | AO35: 00:00:00 | AP35: 23:59:00 | AQ35: 00:00:00 | AR35: 23:59:00 | AS35: TRUE | AT35: FALSE | AU35: TRUE | AV35: FALSE | AW35: FALSE | AX35: FALSE | AY35: FALSE | BD35: TRUE | BE35: FALSE | BF35: TRUE | BG35: FALSE | BH35: 0
Q36: 2023-03-01 | R36: FALSE | V36: 0 | X36: 0 | Y36: FALSE | Z36: TRUE | AA36: FALSE | AH36: FALSE | AI36: FALSE | AJ36: FALSE | AK36: FALSE | AL36: FALSE | AM36: FALSE | AN36: FALSE | AS36: TRUE | AT36: FALSE | AU36: TRUE | AV36: FALSE | AW36: FALSE | AX36: FALSE | AY36: FALSE | BD36: TRUE | BE36: FALSE | BF36: TRUE | BG36: FALSE | BH36: 0
Q37: 2023-03-02 | R37: FALSE | V37: 0 | X37: 0 | Y37: FALSE | Z37: TRUE | AA37: FALSE | AH37: FALSE | AI37: FALSE | AJ37: FALSE | AK37: FALSE | AL37: FALSE | AM37: FALSE | AN37: FALSE | AS37: TRUE | AT37: FALSE | AU37: TRUE | AV37: FALSE | AW37: FALSE | AX37: FALSE | AY37: FALSE | BD37: TRUE | BE37: FALSE | BF37: TRUE | BG37: FALSE | BH37: 0
J38: =IF($R38,$X38,"") ->  | Q38: 2023-03-03 | R38: FALSE | V38: 0 | X38: 0 | Y38: FALSE | Z38: TRUE | AA38: FALSE | AH38: FALSE | AI38: FALSE | AJ38: FALSE | AK38: FALSE | AL38: FALSE | AM38: FALSE | AN38: FALSE | AS38: TRUE | AT38: FALSE | AU38: TRUE | AV38: FALSE | AW38: FALSE | AX38: FALSE | AY38: FALSE | BD38: TRUE | BE38: FALSE | BF38: TRUE | BG38: FALSE | BH38: 0
A39: Arbeitstage | B39: =COUNTIF(T$8:T$38,"A") -> 20 | E39: ="Saldo Monat (~15min) > " -> Saldo Monat (~15min) > | I39: =ROUND(SUM(I8:I38)*4,0)/4 -> 0 | K39: =SUM(K8:K38) -> 0 | L39: < ÜS1:2 | N39: =SUM(N8:N38) -> 0 | O39: =IF(Zeitmodell="Vollzeit"," < ÜS1:1,5 "," < ÜS1:1,25 ")&Zeitmodell -> < ÜS1:1,5 Vollzeit | Q39: Zeitmodell Text
A40: Freie Tage | B40: =COUNTIF(T$8:T$38,"F") -> 8 | E40: ="Saldo "&IF(Zeitmodell="Vollzeit","1:1,5","1:1,25")& " (~15min) > " -> Saldo 1:1,5 (~15min) > | I40: =ROUND($N40*4,0)/4 -> 0 | N40: =IF(Zeitmodell="Vollzeit",$N39*1.5,$N39*1.25) -> 0 | O40: =IF(Zeitmodell="Vollzeit"," < 1:1,5 "," < 1:1,25 ")&$Q40 -> < 1:1,5 Stunden berechnen | Q40: Stunden berechnen
A41: ZK-Tage | B41: 0 | E41: Saldo 1:2 (~15min) > | I41: =ROUND($N41*4,0)/4 -> 0 | N41: =K39*2 -> 0 | O41: < 1:2 Stunden berechnen
A42: ZA-Tage | B42: =COUNTIF(D$8:D$38,"Z") -> 0 | E42: Saldo Vormonat > | I42: =$J5 -> 0 | Q42: Gültigkeit ausbezahlt
A43: Urlaubstage | B43: =COUNTIF(D$8:D$38,"U") -> 0 | E43: Saldo Gesamt > | I43: =SUM(I39:I42) -> 0 | K43: =IF($I$43>=$R$2,"< Hier ausbezahlte Std. eingeben. (Die Eingabe ist hier erst ab < einem Saldo von "&TEXT($R$2,"#.##0,00")&" Std., und nur in 0,25-Schritten möglich.)","") ->  | Q43: =IF(AND($J$43<>"",NOT(ISNUMBER($J$43))),FALSE,OR(AND($J$43>=0,$J$43<=$I$43,MOD($J$43,0.25)=0),$J$43="")) -> TRUE
A44: Krank | B44: =COUNTIF(D$8:D$38,"K") -> 0 | E44: Saldo Übertrag > | I44: =$I43-$J43 -> 0 | J44: =" < Dieser Stunden-Saldo wird in das nächste "&IF($Q$3="Dezember","Jahr","Monat")&" übertragen" -> < Dieser Stunden-Saldo wird in das nächste Monat übertragen
D45: Z
A48: ="Unterschrift von "&Vorgesetzter -> Unterschrift von Vorname Nachname | L48: ="Unterschrift von "&Name -> Unterschrift von Vorname Nachname

Sheet März (hidden)
A1: BOKU-Zeiterfassung für Allgemeines Personal | Q1: Monat | R1: Stunden-Saldo Grenzen | S1: Status Blatteingabe
A2: =" Org.-Einh. : "&OrgEinheit -> Org.-Einh. : HXXXXX | F2: Zeitmodell: | I2: =" "&Zeitmodell -> Vollzeit | J2: Modus: | K2: =" "&Zeitmodus -> Gleitzeit | Q2: =IF(ISNA($Q$4),1,$Q$4) -> 3 | R2: =IF($Q$2=12,NormalOGDez,NormalOG) -> 72 | S2: =SUM($BH8:$BH38) -> 0
A3: =" Mitarbeiter/in: "&Name -> Mitarbeiter/in: Vorname Nachname | F3: Vorgesetzte/r: | I3: =" "&Vorgesetzter -> Vorname Nachname | Q3: =RIGHT(CELL("filename",A1),LEN(CELL("filename",A1))-SEARCH("]",CELL("filename",A1),1)) -> März | R3: =IF($Q$2=12,NormalUGDez,NormalUG) -> -24 | S3: =IF($Q$2=1,$S$2,$S$2+INDIRECT($S$5)) -> 0
A4: =" Monat: "&$Q$3&" "&Jahr -> Monat: März 2023 | E4: Dienstplan | G4: Normalstunden Feiertag-ÜS1:2 | J4: Übertrag | K4: Überstundenberechnung | O4: Unterschrift des Vorgesetzten | P4: Anmerkungen (z.B. Überstunden- notwendigkeit) | Q4: =IF(ISNA(VLOOKUP($Q$3,MTab,2,FALSE)),1,VLOOKUP($Q$3,MTab,2,FALSE)) -> 3 | S4: Übertrags Adresse Blatteingabe
A5: Datum | B5: Wochentag | C5: Tagesinformationen | E5: ="Wochen-AZ"&" "&TEXT(WAZ,"[hh]:mm") -> Wochen-AZ 40:00 | J5: =IF(ISNA($Q$5),Übertrag,INDIRECT($Q$5)) -> 0 | K5: ÜS1:2 | L5: =IF(Zeitmodell="Vollzeit"," Überstunden1:1,5"," Überstunden1:1,25") -> Überstunden1:1,5 | Q5: =IF(ISNA(VLOOKUP($Q$3,MTab,3,FALSE)),"Übertrag",VLOOKUP($Q$3,MTab,3,FALSE)) -> Februar!$I$44 | S5: =IF(ISNA(VLOOKUP($Q$3,MTab,4,FALSE)),$Q$3&"!$S$2",VLOOKUP($Q$3,MTab,4,FALSE)) -> Februar!$S$3
C6: Feiertage Wochenende Urlaub, ZA, Krank | D6: [U]rlaub [Z]A [ZK] [K]rank | E6: Normal- | F6: Soll | G6: Von | H6: Bis | I6: Plus | J6: Saldo | K6: Plus | L6: Von | M6: Bis | N6: Plus | Q6: Hintergrundberechnungen | X6: Saldo aktuell | AB6: GAZ-Tabellenabbildung | AH6: Eingabebeprüfungen
E7: Arbeitszeit | I7: Minus | J7: akuell | Q7: Datum | R7: Monat OK | S7: Abwesenh. | T7: Freie Tage | U7: ÜA-Tage | V7: Std. | W7: Soll-Std. | X7: =IF(ISNA($Q$5),Übertrag,INDIRECT($Q$5)) -> 0 | Y7: Std.-Soll = 0 | Z7: Std.-Soll > 0 | AA7: Std.-Soll < 0 | AB7: =I_GAZGRVon -> 2 | AC7: =I_GAZNAZVon -> 3 | AD7: =I_GAZKVon -> 4 | AE7: =I_GAZKBis -> 6 | AF7: =I_GAZNAZBis -> 7 | AG7: =I_GAZGRBis -> 8 | AH7: Zeiteingabe | AI7: UZK-Eing. erlaubt | AJ7: UZK-Eing. gültig | AK7: Normalst. ein erlaubt | AL7: Überstd. ein erlaubt | AM7: Normalstd. eingegeben | AN7: Überstd. eingegeben | AO7: Normal VON möglich OG | AP7: Normal VON möglich UG | AQ7: Normal BIS möglich OG | AR7: Normal BIS möglich UG | AS7: Normal VON 15min | AT7: Normal VON richtig | AU7: Normal BIS 15min | AV7: Normal BIS richtig | AW7: ZA-Kern Von | AX7: ZA-Kern Bis | AY7: ZA-Kern | AZ7: Über VON Obergrenze | BA7: Über VON Untergrenze | BB7: Über BIS Obergrenze | BC7: Über BIS Untergrenze | BD7: Über VON 15min | BE7: Über VON richtig | BF7: Überl BIS 15min | BG7: Über BIS richtig | BH7: Status Zeilen Eingabe
A8: =IF($R8,$Q8,"") -> 2023-03-01 | B8: =IF($R8,VLOOKUP(WEEKDAY($Q8,2),WOTA,2,FALSE),"") -> Mi | C8: =IF($R8," "&IF($S8="",VLOOKUP($Q8,FListe,3,FALSE),$S8),"") ->  | E8: =IF(AND($R8,$T8<>"F"),IF($AC8=$AF8,"keine NAZ",TEXT($AC8,"hh:mm")&"-"&TEXT($AF8,"hh:mm")),"") -> 08:00-16:00 | F8: =IF($R8,IF($T8="F",0,VLOOKUP($B8,GAZ,I_GAZNAZ,FALSE)),"") -> 08:00:00 | I8: =IF(Zeitmodus="Gleitzeit",IF($U8="F","",IF(AND($R8,$AM8,NOT($Y8)),ROUND(($V8-$F8)*24,2),IF($D8="Z",$F8*-24,""))),IF(OR($D8="Z",AND($AM8,$U8="A",W8<0)),ROUND($W8*24,2),"")) ->  | J8: =IF($R8,$X8,"") -> 0 | K8: =IF(AND($U8="F",$AM8),ROUND($V8*24,2),"") ->  | N8: =IF(Zeitmodus="Gleitzeit",IF(AND($R8,$AN8,$M8-$L8<>0,$AL8),ROUND(($M8-$L8)*24,2),""),IF(AND($AM8,$U8="A",W8>0),ROUND(W8*24,2),"")) ->  | Q8: =DATE(Jahr,$Q2,1) -> 2023-03-01 | R8: =$Q$2=MONTH($Q8) -> TRUE | S8: =IF(OR($D8="U",$D8="Z",$D8="ZK",$D8="K"),VLOOKUP($D8,UZK,2,FALSE),"") ->  | T8: =IF($R8,VLOOKUP($Q8,FListe,4,FALSE),"") -> A | U8: =IF($R8,VLOOKUP($Q8,FListe,5,FALSE),"") -> A | V8: =$H8-$G8 -> 0 | W8: =IF($R8,ROUND($V8-$F8,15),"") -> -0.3333333333 | X8: =IF($I8<>"",$X7+$I8,$X7) -> 0 | Y8: =($W8=0) -> FALSE | Z8: =($W8>0) -> FALSE | AA8: =($W8<0) -> TRUE | AB8: =IF(ISNA(VLOOKUP($B8,GAZ,AB$7,FALSE)),"",VLOOKUP($B8,GAZ,AB$7,FALSE)) -> 07:00:00 | AC8: 08:00:00 | AD8: =IF(ISNA(VLOOKUP($B8,GAZ,AD$7,FALSE)),"",IF($AC8=$AF8,$G8,VLOOKUP($B8,GAZ,AD$7,FALSE))) -> 09:00:00 | AE8: =IF(ISNA(VLOOKUP($B8,GAZ,AE$7,FALSE)),"",IF($AC8=$AF8,$H8,VLOOKUP($B8,GAZ,AE$7,FALSE))) -> 14:00:00 | AF8: 16:00:00 | AG8: 18:00:00 | AH8: =OR($G8<>"",$H8<>"",$L8<>"",$M8<>"") -> FALSE | AI8: =AND($T8<>"F",NOT($AH8),NOT($AC8=$AF8)) -> TRUE | AJ8: =AND($AI8,OR($D8="U",$D8="Z",$D8="K")) -> FALSE | AK8: =AND($D8<>"U",$D8<>"Z",$D8<>"K",$R8) -> TRUE | AL8: =AND(Zeitmodus=C_Gleitzeit,$U8<>"F",OR($B8="Sa",AND($AM8,$I8>=0,NOT($AY8)))) -> FALSE | AM8: =AND($G8<>"",$H8<>"") -> FALSE | AN8: =OR($K8<>"",AND($L8<>"",$M8<>"")) -> FALSE | AO8: =IF($AK8,TagUG,"") -> 00:00:00 | AP8: =IF($AK8,IF($H8="",IF(AND($L8<>"",$L8<$AG8),$L8,IF(AND($M8<>"",$M8<$AG8),$M8,TagOG)),$H8),"") -> 23:59:00 | AQ8: =IF($AK8,IF($G8="",$AB8,$G8),"") -> 07:00:00 | AR8: =IF($AK8,IF(AND($L8<>"",$L8<$AG8),$L8,IF(AND($M8<>"",$M8<$AG8),$M8,TagOG)),"") -> 23:59:00 | AS8: =MOD($G8*24,0.25)=0 -> TRUE | AT8: =AND($AK8,ISNUMBER($G8),$G8>=$AO8,$G8<=$AP8) -> FALSE | AU8: =MOD($H8*24,0.25)=0 -> TRUE | AV8: =AND($AK8,ISNUMBER($H8),$H8>=$AQ8,$H8<=$AR8) -> FALSE | AW8: =AND(Zeitmodus=C_Gleitzeit,$B8<>"Sa",$G8<>"",$G8>$AD8) -> FALSE | AX8: =AND(Zeitmodus=C_Gleitzeit,$B8<>"Sa",$H8<>"",$H8<$AE8) -> FALSE | AY8: =AND($U8<>"F",OR($AW8,$AX8)) -> FALSE | AZ8: =IF($B8="Sa",IF($H8<>"",$H8,TIME(0,0,0)),IF($AL8,IF(AND($H8<>"",$H8>$AF8),$H8,$AF8),"")) ->  | BA8: =IF($AL8,IF($M8<>"",$M8,$BC8),"") ->  | BB8: =IF($B8="Sa",IF($L8="",TIME(0,0,0),$L8),IF($AL8,IF($L8<>"",$L8,IF(AND($H8<>"",$H8>$AF8),$H8,$AF8)),"")) ->  | BC8: =IF($AL8,TIME(23,59,0),"") ->  | BD8: =MOD($L8*24,0.25)=0 -> TRUE | BE8: =AND($AL8,ISNUMBER($L8),$L8>=$AZ8,$BA8>=$L8) -> FALSE | BF8: =MOD($M8*24,0.25)=0 -> TRUE | BG8: =AND($AL8,ISNUMBER($M8),$M8>=$BB8,$M8<=$BC8) -> FALSE | BH8: =IF(AND(ISBLANK($D8),ISBLANK($G8),ISBLANK($H8),ISBLANK($L8),ISBLANK($M8),ISBLANK($P8)),0,1) -> 0
A9: =IF($R9,$Q9,"") -> 2023-03-02 | B9: Do | E9: =IF(AND($R9,$T9<>"F"),IF($AC9=$AF9,"keine NAZ",TEXT($AC9,"hh:mm")&"-"&TEXT($AF9,"hh:mm")),"") -> 08:00-16:00 | F9: 08:00:00 | J9: 0 | K9: =IF(AND($U9="F",$AM9),ROUND($V9*24,2),"") ->  | Q9: =Q8+1 -> 2023-03-02 | R9: TRUE | T9: A | U9: A | V9: 0 | W9: -0.3333333333 | X9: 0 | Y9: FALSE | Z9: FALSE | AA9: TRUE | AB9: 07:00:00 | AC9: 08:00:00 | AD9: 09:00:00 | AE9: 14:00:00 | AF9: 16:00:00 | AG9: 18:00:00 | AH9: FALSE | AI9: =AND($T9<>"F",NOT($AH9),NOT($AC9=$AF9)) -> TRUE | AJ9: FALSE | AK9: TRUE | AL9: =AND(Zeitmodus=C_Gleitzeit,$U9<>"F",OR($B9="Sa",AND($AM9,$I9>=0,NOT($AY9)))) -> FALSE | AM9: FALSE | AN9: =OR($K9<>"",AND($L9<>"",$M9<>"")) -> FALSE | AO9: 00:00:00 | AP9: 23:59:00 | AQ9: =IF($AK9,IF($G9="",TagUG,$G9),"") -> 00:00:00 | AR9: 23:59:00 | AS9: TRUE | AT9: FALSE | AU9: TRUE | AV9: FALSE | AW9: FALSE | AX9: FALSE | AY9: =AND($U9<>"F",OR($AW9,$AX9)) -> FALSE | BD9: TRUE | BE9: FALSE | BF9: TRUE | BG9: FALSE | BH9: 0
A10: 2023-03-03 | B10: Fr | E10: 08:00-16:00 | F10: 08:00:00 | J10: 0 | Q10: 2023-03-03 | R10: TRUE | T10: A | U10: A | V10: 0 | W10: -0.3333333333 | X10: 0 | Y10: FALSE | Z10: FALSE | AA10: TRUE | AB10: 07:00:00 | AC10: 08:00:00 | AD10: 09:00:00 | AE10: 12:00:00 | AF10: 16:00:00 | AG10: 18:00:00 | AH10: FALSE | AI10: TRUE | AJ10: FALSE | AK10: TRUE | AL10: FALSE | AM10: FALSE | AN10: FALSE | AO10: 00:00:00 | AP10: 23:59:00 | AQ10: 00:00:00 | AR10: 23:59:00 | AS10: TRUE | AT10: FALSE | AU10: TRUE | AV10: FALSE | AW10: FALSE | AX10: FALSE | AY10: FALSE | BD10: TRUE | BE10: FALSE | BF10: TRUE | BG10: FALSE | BH10: 0
A11: 2023-03-04 | B11: Sa | C11: Wochenende | F11: 00:00:00 | J11: 0 | Q11: 2023-03-04 | R11: TRUE | T11: F | U11: A | V11: 0 | W11: 0 | X11: 0 | Y11: TRUE | Z11: FALSE | AA11: FALSE | AH11: FALSE | AI11: FALSE | AJ11: FALSE | AK11: TRUE | AL11: TRUE | AM11: FALSE | AN11: FALSE | AO11: 00:00:00 | AP11: 23:59:00 | AQ11: 00:00:00 | AR11: 23:59:00 | AS11: TRUE | AT11: FALSE | AU11: TRUE | AV11: FALSE | AW11: FALSE | AX11: FALSE | AY11: FALSE | AZ11: 00:00:00 | BA11: 23:59:00 | BB11: 00:00:00 | BC11: 23:59:00 | BD11: TRUE | BE11: FALSE | BF11: TRUE | BG11: FALSE | BH11: 0
A12: 2023-03-05 | B12: So | C12: Wochenende | F12: 00:00:00 | J12: 0 | Q12: 2023-03-05 | R12: TRUE | T12: F | U12: F | V12: 0 | W12: 0 | X12: 0 | Y12: TRUE | Z12: FALSE | AA12: FALSE | AH12: FALSE | AI12: FALSE | AJ12: FALSE | AK12: TRUE | AL12: FALSE | AM12: FALSE | AN12: FALSE | AO12: 00:00:00 | AP12: 23:59:00 | AQ12: 00:00:00 | AR12: 23:59:00 | AS12: TRUE | AT12: FALSE | AU12: TRUE | AV12: FALSE | AW12: FALSE | AX12: FALSE | AY12: FALSE | BD12: TRUE | BE12: FALSE | BF12: TRUE | BG12: FALSE | BH12: 0
A13: 2023-03-06 | B13: Mo | E13: 08:00-16:00 | F13: 08:00:00 | J13: 0 | Q13: 2023-03-06 | R13: TRUE | T13: A | U13: A | V13: 0 | W13: -0.3333333333 | X13: 0 | Y13: FALSE | Z13: FALSE | AA13: TRUE | AB13: 07:00:00 | AC13: 08:00:00 | AD13: 09:00:00 | AE13: 14:00:00 | AF13: 16:00:00 | AG13: 18:00:00 | AH13: FALSE | AI13: TRUE | AJ13: FALSE | AK13: TRUE | AL13: FALSE | AM13: FALSE | AN13: FALSE | AO13: 00:00:00 | AP13: 23:59:00 | AQ13: 00:00:00 | AR13: 23:59:00 | AS13: TRUE | AT13: FALSE | AU13: TRUE | AV13: FALSE | AW13: FALSE | AX13: FALSE | AY13: FALSE | BD13: TRUE | BE13: FALSE | BF13: TRUE | BG13: FALSE | BH13: 0
A14: 2023-03-07 | B14: Di | E14: 08:00-16:00 | F14: 08:00:00 | J14: 0 | Q14: 2023-03-07 | R14: TRUE | T14: A | U14: A | V14: 0 | W14: -0.3333333333 | X14: 0 | Y14: FALSE | Z14: FALSE | AA14: TRUE | AB14: 07:00:00 | AC14: 08:00:00 | AD14: 09:00:00 | AE14: 14:00:00 | AF14: 16:00:00 | AG14: 18:00:00 | AH14: FALSE | AI14: TRUE | AJ14: FALSE | AK14: TRUE | AL14: FALSE | AM14: FALSE | AN14: FALSE | AO14: 00:00:00 | AP14: 23:59:00 | AQ14: 00:00:00 | AR14: 23:59:00 | AS14: TRUE | AT14: FALSE | AU14: TRUE | AV14: FALSE | AW14: FALSE | AX14: FALSE | AY14: FALSE | BD14: TRUE | BE14: FALSE | BF14: TRUE | BG14: FALSE | BH14: 0
A15: 2023-03-08 | B15: Mi | E15: 08:00-16:00 | F15: 08:00:00 | J15: 0 | Q15: 2023-03-08 | R15: TRUE | T15: A | U15: A | V15: 0 | W15: -0.3333333333 | X15: 0 | Y15: FALSE | Z15: FALSE | AA15: TRUE | AB15: 07:00:00 | AC15: 08:00:00 | AD15: 09:00:00 | AE15: 14:00:00 | AF15: 16:00:00 | AG15: 18:00:00 | AH15: FALSE | AI15: TRUE | AJ15: FALSE | AK15: TRUE | AL15: FALSE | AM15: FALSE | AN15: FALSE | AO15: 00:00:00 | AP15: 23:59:00 | AQ15: 00:00:00 | AR15: 23:59:00 | AS15: TRUE | AT15: FALSE | AU15: TRUE | AV15: FALSE | AW15: FALSE | AX15: FALSE | AY15: FALSE | BD15: TRUE | BE15: FALSE | BF15: TRUE | BG15: FALSE | BH15: 0
A16: 2023-03-09 | B16: Do | E16: 08:00-16:00 | F16: 08:00:00 | J16: 0 | Q16: 2023-03-09 | R16: TRUE | T16: A | U16: A | V16: 0 | W16: -0.3333333333 | X16: 0 | Y16: FALSE | Z16: FALSE | AA16: TRUE | AB16: 07:00:00 | AC16: 08:00:00 | AD16: 09:00:00 | AE16: 14:00:00 | AF16: 16:00:00 | AG16: 18:00:00 | AH16: FALSE | AI16: TRUE | AJ16: FALSE | AK16: TRUE | AL16: FALSE | AM16: FALSE | AN16: FALSE | AO16: 00:00:00 | AP16: 23:59:00 | AQ16: 00:00:00 | AR16: 23:59:00 | AS16: TRUE | AT16: FALSE | AU16: TRUE | AV16: FALSE | AW16: FALSE | AX16: FALSE | AY16: FALSE | BD16: TRUE | BE16: FALSE | BF16: TRUE | BG16: FALSE | BH16: 0
A17: 2023-03-10 | B17: Fr | E17: 08:00-16:00 | F17: 08:00:00 | J17: 0 | Q17: 2023-03-10 | R17: TRUE | T17: A | U17: A | V17: 0 | W17: -0.3333333333 | X17: 0 | Y17: FALSE | Z17: FALSE | AA17: TRUE | AB17: 07:00:00 | AC17: 08:00:00 | AD17: 09:00:00 | AE17: 12:00:00 | AF17: 16:00:00 | AG17: 18:00:00 | AH17: FALSE | AI17: TRUE | AJ17: FALSE | AK17: TRUE | AL17: FALSE | AM17: FALSE | AN17: FALSE | AO17: 00:00:00 | AP17: 23:59:00 | AQ17: 00:00:00 | AR17: 23:59:00 | AS17: TRUE | AT17: FALSE | AU17: TRUE | AV17: FALSE | AW17: FALSE | AX17: FALSE | AY17: FALSE | BD17: TRUE | BE17: FALSE | BF17: TRUE | BG17: FALSE | BH17: 0
A18: 2023-03-11 | B18: Sa | C18: Wochenende | F18: 00:00:00 | J18: 0 | Q18: 2023-03-11 | R18: TRUE | T18: F | U18: A | V18: 0 | W18: 0 | X18: 0 | Y18: TRUE | Z18: FALSE | AA18: FALSE | AH18: FALSE | AI18: FALSE | AJ18: FALSE | AK18: TRUE | AL18: TRUE | AM18: FALSE | AN18: FALSE | AO18: 00:00:00 | AP18: 23:59:00 | AQ18: 00:00:00 | AR18: 23:59:00 | AS18: TRUE | AT18: FALSE | AU18: TRUE | AV18: FALSE | AW18: FALSE | AX18: FALSE | AY18: FALSE | AZ18: 00:00:00 | BA18: 23:59:00 | BB18: 00:00:00 | BC18: 23:59:00 | BD18: TRUE | BE18: FALSE | BF18: TRUE | BG18: FALSE | BH18: 0
A19: 2023-03-12 | B19: So | C19: Wochenende | F19: 00:00:00 | J19: 0 | Q19: 2023-03-12 | R19: TRUE | T19: F | U19: F | V19: 0 | W19: 0 | X19: 0 | Y19: TRUE | Z19: FALSE | AA19: FALSE | AH19: FALSE | AI19: FALSE | AJ19: FALSE | AK19: TRUE | AL19: FALSE | AM19: FALSE | AN19: FALSE | AO19: 00:00:00 | AP19: 23:59:00 | AQ19: 00:00:00 | AR19: 23:59:00 | AS19: TRUE | AT19: FALSE | AU19: TRUE | AV19: FALSE | AW19: FALSE | AX19: FALSE | AY19: FALSE | BD19: TRUE | BE19: FALSE | BF19: TRUE | BG19: FALSE | BH19: 0
A20: 2023-03-13 | B20: Mo | E20: 08:00-16:00 | F20: 08:00:00 | J20: 0 | Q20: 2023-03-13 | R20: TRUE | T20: A | U20: A | V20: 0 | W20: -0.3333333333 | X20: 0 | Y20: FALSE | Z20: FALSE | AA20: TRUE | AB20: 07:00:00 | AC20: 08:00:00 | AD20: 09:00:00 | AE20: 14:00:00 | AF20: 16:00:00 | AG20: 18:00:00 | AH20: FALSE | AI20: TRUE | AJ20: FALSE | AK20: TRUE | AL20: FALSE | AM20: FALSE | AN20: FALSE | AO20: 00:00:00 | AP20: 23:59:00 | AQ20: 00:00:00 | AR20: 23:59:00 | AS20: TRUE | AT20: FALSE | AU20: TRUE | AV20: FALSE | AW20: FALSE | AX20: FALSE | AY20: FALSE | BD20: TRUE | BE20: FALSE | BF20: TRUE | BG20: FALSE | BH20: 0
A21: 2023-03-14 | B21: Di | E21: 08:00-16:00 | F21: 08:00:00 | J21: 0 | Q21: 2023-03-14 | R21: TRUE | T21: A | U21: A | V21: 0 | W21: -0.3333333333 | X21: 0 | Y21: FALSE | Z21: FALSE | AA21: TRUE | AB21: 07:00:00 | AC21: 08:00:00 | AD21: 09:00:00 | AE21: 14:00:00 | AF21: 16:00:00 | AG21: 18:00:00 | AH21: FALSE | AI21: TRUE | AJ21: FALSE | AK21: TRUE | AL21: FALSE | AM21: FALSE | AN21: FALSE | AO21: 00:00:00 | AP21: 23:59:00 | AQ21: 00:00:00 | AR21: 23:59:00 | AS21: TRUE | AT21: FALSE | AU21: TRUE | AV21: FALSE | AW21: FALSE | AX21: FALSE | AY21: FALSE | BD21: TRUE | BE21: FALSE | BF21: TRUE | BG21: FALSE | BH21: 0
A22: 2023-03-15 | B22: Mi | E22: 08:00-16:00 | F22: 08:00:00 | J22: 0 | Q22: 2023-03-15 | R22: TRUE | T22: A | U22: A | V22: 0 | W22: -0.3333333333 | X22: 0 | Y22: FALSE | Z22: FALSE | AA22: TRUE | AB22: 07:00:00 | AC22: 08:00:00 | AD22: 09:00:00 | AE22: 14:00:00 | AF22: 16:00:00 | AG22: 18:00:00 | AH22: FALSE | AI22: TRUE | AJ22: FALSE | AK22: TRUE | AL22: FALSE | AM22: FALSE | AN22: FALSE | AO22: 00:00:00 | AP22: 23:59:00 | AQ22: 00:00:00 | AR22: 23:59:00 | AS22: TRUE | AT22: FALSE | AU22: TRUE | AV22: FALSE | AW22: FALSE | AX22: FALSE | AY22: FALSE | BD22: TRUE | BE22: FALSE | BF22: TRUE | BG22: FALSE | BH22: 0
A23: 2023-03-16 | B23: Do | E23: 08:00-16:00 | F23: 08:00:00 | J23: 0 | Q23: 2023-03-16 | R23: TRUE | T23: A | U23: A | V23: 0 | W23: -0.3333333333 | X23: 0 | Y23: FALSE | Z23: FALSE | AA23: TRUE | AB23: 07:00:00 | AC23: 08:00:00 | AD23: 09:00:00 | AE23: 14:00:00 | AF23: 16:00:00 | AG23: 18:00:00 | AH23: FALSE | AI23: TRUE | AJ23: FALSE | AK23: TRUE | AL23: FALSE | AM23: FALSE | AN23: FALSE | AO23: 00:00:00 | AP23: 23:59:00 | AQ23: 00:00:00 | AR23: 23:59:00 | AS23: TRUE | AT23: FALSE | AU23: TRUE | AV23: FALSE | AW23: FALSE | AX23: FALSE | AY23: FALSE | BD23: TRUE | BE23: FALSE | BF23: TRUE | BG23: FALSE | BH23: 0
A24: 2023-03-17 | B24: Fr | E24: 08:00-16:00 | F24: 08:00:00 | J24: 0 | Q24: 2023-03-17 | R24: TRUE | T24: A | U24: A | V24: 0 | W24: -0.3333333333 | X24: 0 | Y24: FALSE | Z24: FALSE | AA24: TRUE | AB24: =IF(ISNA(VLOOKUP($B24,GAZ,AB$7,FALSE)),"",VLOOKUP($B24,GAZ,AB$7,FALSE)) -> 07:00:00 | AC24: 08:00:00 | AD24: 09:00:00 | AE24: 12:00:00 | AF24: 16:00:00 | AG24: 18:00:00 | AH24: FALSE | AI24: TRUE | AJ24: FALSE | AK24: TRUE | AL24: FALSE | AM24: FALSE | AN24: FALSE | AO24: 00:00:00 | AP24: 23:59:00 | AQ24: 00:00:00 | AR24: 23:59:00 | AS24: TRUE | AT24: FALSE | AU24: TRUE | AV24: FALSE | AW24: FALSE | AX24: FALSE | AY24: FALSE | BD24: TRUE | BE24: FALSE | BF24: TRUE | BG24: FALSE | BH24: 0
A25: 2023-03-18 | B25: Sa | C25: Wochenende | F25: 00:00:00 | J25: 0 | Q25: 2023-03-18 | R25: TRUE | T25: F | U25: A | V25: 0 | W25: 0 | X25: 0 | Y25: TRUE | Z25: FALSE | AA25: FALSE | AH25: FALSE | AI25: FALSE | AJ25: FALSE | AK25: TRUE | AL25: TRUE | AM25: FALSE | AN25: FALSE | AO25: 00:00:00 | AP25: 23:59:00 | AQ25: 00:00:00 | AR25: 23:59:00 | AS25: TRUE | AT25: FALSE | AU25: TRUE | AV25: FALSE | AW25: FALSE | AX25: FALSE | AY25: FALSE | AZ25: 00:00:00 | BA25: 23:59:00 | BB25: 00:00:00 | BC25: 23:59:00 | BD25: TRUE | BE25: FALSE | BF25: TRUE | BG25: FALSE | BH25: 0
A26: 2023-03-19 | B26: So | C26: Wochenende | F26: 00:00:00 | J26: 0 | Q26: 2023-03-19 | R26: TRUE | T26: F | U26: F | V26: 0 | W26: 0 | X26: 0 | Y26: TRUE | Z26: FALSE | AA26: FALSE | AH26: FALSE | AI26: FALSE | AJ26: FALSE | AK26: TRUE | AL26: FALSE | AM26: FALSE | AN26: FALSE | AO26: 00:00:00 | AP26: 23:59:00 | AQ26: 00:00:00 | AR26: 23:59:00 | AS26: TRUE | AT26: FALSE | AU26: TRUE | AV26: FALSE | AW26: FALSE | AX26: FALSE | AY26: FALSE | BD26: TRUE | BE26: FALSE | BF26: TRUE | BG26: FALSE | BH26: 0
A27: 2023-03-20 | B27: Mo | E27: 08:00-16:00 | F27: 08:00:00 | J27: 0 | Q27: 2023-03-20 | R27: TRUE | T27: A | U27: A | V27: 0 | W27: -0.3333333333 | X27: 0 | Y27: FALSE | Z27: FALSE | AA27: TRUE | AB27: 07:00:00 | AC27: 08:00:00 | AD27: 09:00:00 | AE27: 14:00:00 | AF27: 16:00:00 | AG27: 18:00:00 | AH27: FALSE | AI27: TRUE | AJ27: FALSE | AK27: TRUE | AL27: FALSE | AM27: FALSE | AN27: FALSE | AO27: 00:00:00 | AP27: 23:59:00 | AQ27: 00:00:00 | AR27: 23:59:00 | AS27: TRUE | AT27: FALSE | AU27: TRUE | AV27: FALSE | AW27: FALSE | AX27: FALSE | AY27: FALSE | BD27: TRUE | BE27: FALSE | BF27: TRUE | BG27: FALSE | BH27: 0
A28: 2023-03-21 | B28: Di | E28: 08:00-16:00 | F28: 08:00:00 | J28: 0 | Q28: 2023-03-21 | R28: TRUE | T28: A | U28: A | V28: 0 | W28: -0.3333333333 | X28: 0 | Y28: FALSE | Z28: FALSE | AA28: TRUE | AB28: 07:00:00 | AC28: 08:00:00 | AD28: 09:00:00 | AE28: 14:00:00 | AF28: 16:00:00 | AG28: 18:00:00 | AH28: FALSE | AI28: TRUE | AJ28: FALSE | AK28: TRUE | AL28: FALSE | AM28: FALSE | AN28: FALSE | AO28: 00:00:00 | AP28: 23:59:00 | AQ28: 00:00:00 | AR28: 23:59:00 | AS28: TRUE | AT28: FALSE | AU28: TRUE | AV28: FALSE | AW28: FALSE | AX28: FALSE | AY28: FALSE | BD28: TRUE | BE28: FALSE | BF28: TRUE | BG28: FALSE | BH28: 0
A29: 2023-03-22 | B29: Mi | E29: 08:00-16:00 | F29: 08:00:00 | J29: 0 | Q29: 2023-03-22 | R29: TRUE | T29: A | U29: A | V29: 0 | W29: -0.3333333333 | X29: 0 | Y29: FALSE | Z29: FALSE | AA29: TRUE | AB29: 07:00:00 | AC29: 08:00:00 | AD29: 09:00:00 | AE29: 14:00:00 | AF29: 16:00:00 | AG29: 18:00:00 | AH29: FALSE | AI29: TRUE | AJ29: FALSE | AK29: TRUE | AL29: FALSE | AM29: FALSE | AN29: FALSE | AO29: 00:00:00 | AP29: 23:59:00 | AQ29: 00:00:00 | AR29: 23:59:00 | AS29: TRUE | AT29: FALSE | AU29: TRUE | AV29: FALSE | AW29: FALSE | AX29: FALSE | AY29: FALSE | BD29: TRUE | BE29: FALSE | BF29: TRUE | BG29: FALSE | BH29: 0
A30: 2023-03-23 | B30: Do | E30: 08:00-16:00 | F30: 08:00:00 | J30: 0 | Q30: 2023-03-23 | R30: TRUE | T30: A | U30: A | V30: 0 | W30: -0.3333333333 | X30: 0 | Y30: FALSE | Z30: FALSE | AA30: TRUE | AB30: 07:00:00 | AC30: 08:00:00 | AD30: 09:00:00 | AE30: 14:00:00 | AF30: 16:00:00 | AG30: 18:00:00 | AH30: FALSE | AI30: TRUE | AJ30: FALSE | AK30: TRUE | AL30: FALSE | AM30: FALSE | AN30: FALSE | AO30: 00:00:00 | AP30: 23:59:00 | AQ30: 00:00:00 | AR30: 23:59:00 | AS30: TRUE | AT30: FALSE | AU30: TRUE | AV30: FALSE | AW30: FALSE | AX30: FALSE | AY30: FALSE | BD30: TRUE | BE30: FALSE | BF30: TRUE | BG30: FALSE | BH30: 0
A31: 2023-03-24 | B31: Fr | E31: 08:00-16:00 | F31: 08:00:00 | J31: 0 | Q31: 2023-03-24 | R31: TRUE | T31: A | U31: A | V31: 0 | W31: -0.3333333333 | X31: 0 | Y31: FALSE | Z31: FALSE | AA31: TRUE | AB31: 07:00:00 | AC31: 08:00:00 | AD31: 09:00:00 | AE31: 12:00:00 | AF31: 16:00:00 | AG31: 18:00:00 | AH31: FALSE | AI31: TRUE | AJ31: FALSE | AK31: TRUE | AL31: FALSE | AM31: FALSE | AN31: FALSE | AO31: 00:00:00 | AP31: 23:59:00 | AQ31: 00:00:00 | AR31: 23:59:00 | AS31: TRUE | AT31: FALSE | AU31: TRUE | AV31: FALSE | AW31: FALSE | AX31: FALSE | AY31: FALSE | BD31: TRUE | BE31: FALSE | BF31: TRUE | BG31: FALSE | BH31: 0
A32: 2023-03-25 | B32: Sa | C32: Wochenende | F32: 00:00:00 | J32: 0 | Q32: 2023-03-25 | R32: TRUE | T32: F | U32: A | V32: 0 | W32: 0 | X32: 0 | Y32: TRUE | Z32: FALSE | AA32: FALSE | AH32: FALSE | AI32: FALSE | AJ32: FALSE | AK32: TRUE | AL32: TRUE | AM32: FALSE | AN32: FALSE | AO32: 00:00:00 | AP32: 23:59:00 | AQ32: 00:00:00 | AR32: 23:59:00 | AS32: TRUE | AT32: FALSE | AU32: TRUE | AV32: FALSE | AW32: FALSE | AX32: FALSE | AY32: FALSE | AZ32: 00:00:00 | BA32: 23:59:00 | BB32: 00:00:00 | BC32: 23:59:00 | BD32: TRUE | BE32: FALSE | BF32: TRUE | BG32: FALSE | BH32: 0
A33: 2023-03-26 | B33: So | C33: Wochenende | F33: 00:00:00 | J33: 0 | Q33: 2023-03-26 | R33: TRUE | T33: F | U33: F | V33: 0 | W33: 0 | X33: 0 | Y33: TRUE | Z33: FALSE | AA33: FALSE | AH33: FALSE | AI33: FALSE | AJ33: FALSE | AK33: TRUE | AL33: FALSE | AM33: FALSE | AN33: FALSE | AO33: 00:00:00 | AP33: 23:59:00 | AQ33: 00:00:00 | AR33: 23:59:00 | AS33: TRUE | AT33: FALSE | AU33: TRUE | AV33: FALSE | AW33: FALSE | AX33: FALSE | AY33: FALSE | BD33: TRUE | BE33: FALSE | BF33: TRUE | BG33: FALSE | BH33: 0
A34: 2023-03-27 | B34: Mo | E34: 08:00-16:00 | F34: 08:00:00 | J34: 0 | Q34: 2023-03-27 | R34: TRUE | T34: A | U34: A | V34: 0 | W34: -0.3333333333 | X34: 0 | Y34: FALSE | Z34: FALSE | AA34: TRUE | AB34: 07:00:00 | AC34: 08:00:00 | AD34: 09:00:00 | AE34: 14:00:00 | AF34: 16:00:00 | AG34: 18:00:00 | AH34: FALSE | AI34: TRUE | AJ34: FALSE | AK34: TRUE | AL34: FALSE | AM34: FALSE | AN34: FALSE | AO34: 00:00:00 | AP34: 23:59:00 | AQ34: 00:00:00 | AR34: 23:59:00 | AS34: TRUE | AT34: FALSE | AU34: TRUE | AV34: FALSE | AW34: FALSE | AX34: FALSE | AY34: FALSE | BD34: TRUE | BE34: FALSE | BF34: TRUE | BG34: FALSE | BH34: 0
A35: 2023-03-28 | B35: Di | E35: 08:00-16:00 | F35: 08:00:00 | J35: 0 | Q35: 2023-03-28 | R35: TRUE | T35: A | U35: A | V35: 0 | W35: -0.3333333333 | X35: 0 | Y35: FALSE | Z35: FALSE | AA35: TRUE | AB35: 07:00:00 | AC35: 08:00:00 | AD35: 09:00:00 | AE35: 14:00:00 | AF35: 16:00:00 | AG35: 18:00:00 | AH35: FALSE | AI35: TRUE | AJ35: FALSE | AK35: TRUE | AL35: FALSE | AM35: FALSE | AN35: FALSE | AO35: 00:00:00 | AP35: 23:59:00 | AQ35: 00:00:00 | AR35: 23:59:00 | AS35: TRUE | AT35: FALSE | AU35: TRUE | AV35: FALSE | AW35: FALSE | AX35: FALSE | AY35: FALSE | BD35: TRUE | BE35: FALSE | BF35: TRUE | BG35: FALSE | BH35: 0
A36: 2023-03-29 | B36: Mi | E36: 08:00-16:00 | F36: 08:00:00 | J36: 0 | Q36: 2023-03-29 | R36: TRUE | T36: A | U36: A | V36: 0 | W36: -0.3333333333 | X36: 0 | Y36: FALSE | Z36: FALSE | AA36: TRUE | AB36: 07:00:00 | AC36: 08:00:00 | AD36: 09:00:00 | AE36: 14:00:00 | AF36: 16:00:00 | AG36: 18:00:00 | AH36: FALSE | AI36: TRUE | AJ36: FALSE | AK36: TRUE | AL36: FALSE | AM36: FALSE | AN36: FALSE | AO36: 00:00:00 | AP36: 23:59:00 | AQ36: 00:00:00 | AR36: 23:59:00 | AS36: TRUE | AT36: FALSE | AU36: TRUE | AV36: FALSE | AW36: FALSE | AX36: FALSE | AY36: FALSE | BD36: TRUE | BE36: FALSE | BF36: TRUE | BG36: FALSE | BH36: 0
A37: 2023-03-30 | B37: Do | E37: 08:00-16:00 | F37: 08:00:00 | J37: 0 | Q37: 2023-03-30 | R37: TRUE | T37: A | U37: A | V37: 0 | W37: -0.3333333333 | X37: 0 | Y37: FALSE | Z37: FALSE | AA37: TRUE | AB37: 07:00:00 | AC37: 08:00:00 | AD37: 09:00:00 | AE37: 14:00:00 | AF37: 16:00:00 | AG37: 18:00:00 | AH37: FALSE | AI37: TRUE | AJ37: FALSE | AK37: TRUE | AL37: FALSE | AM37: FALSE | AN37: FALSE | AO37: 00:00:00 | AP37: 23:59:00 | AQ37: 00:00:00 | AR37: 23:59:00 | AS37: TRUE | AT37: FALSE | AU37: TRUE | AV37: FALSE | AW37: FALSE | AX37: FALSE | AY37: FALSE | BD37: TRUE | BE37: FALSE | BF37: TRUE | BG37: FALSE | BH37: 0
A38: 2023-03-31 | B38: Fr | E38: 08:00-16:00 | F38: 08:00:00 | J38: =IF($R38,$X38,"") -> 0 | Q38: 2023-03-31 | R38: TRUE | T38: A | U38: A | V38: 0 | W38: -0.3333333333 | X38: 0 | Y38: FALSE | Z38: FALSE | AA38: TRUE | AB38: 07:00:00 | AC38: 08:00:00 | AD38: 09:00:00 | AE38: 12:00:00 | AF38: 16:00:00 | AG38: 18:00:00 | AH38: FALSE | AI38: TRUE | AJ38: FALSE | AK38: TRUE | AL38: FALSE | AM38: FALSE | AN38: FALSE | AO38: 00:00:00 | AP38: 23:59:00 | AQ38: 00:00:00 | AR38: 23:59:00 | AS38: TRUE | AT38: FALSE | AU38: TRUE | AV38: FALSE | AW38: FALSE | AX38: FALSE | AY38: FALSE | BD38: TRUE | BE38: FALSE | BF38: TRUE | BG38: FALSE | BH38: 0
A39: Arbeitstage | B39: =COUNTIF(T$8:T$38,"A") -> 23 | E39: ="Saldo Monat (~15min) > " -> Saldo Monat (~15min) > | I39: =ROUND(SUM(I8:I38)*4,0)/4 -> 0 | K39: =SUM(K8:K38) -> 0 | L39: < ÜS1:2 | N39: =SUM(N8:N38) -> 0 | O39: =IF(Zeitmodell="Vollzeit"," < ÜS1:1,5 "," < ÜS1:1,25 ")&Zeitmodell -> < ÜS1:1,5 Vollzeit | Q39: Zeitmodell Text
A40: Freie Tage | B40: =COUNTIF(T$8:T$38,"F") -> 8 | E40: ="Saldo "&IF(Zeitmodell="Vollzeit","1:1,5","1:1,25")& " (~15min) > " -> Saldo 1:1,5 (~15min) > | I40: =ROUND($N40*4,0)/4 -> 0 | N40: =IF(Zeitmodell="Vollzeit",$N39*1.5,$N39*1.25) -> 0 | O40: =IF(Zeitmodell="Vollzeit"," < 1:1,5 "," < 1:1,25 ")&$Q40 -> < 1:1,5 Stunden berechnen | Q40: Stunden berechnen
A41: ZK-Tage | B41: 0 | E41: Saldo 1:2 (~15min) > | I41: =ROUND($N41*4,0)/4 -> 0 | N41: =K39*2 -> 0 | O41: < 1:2 Stunden berechnen
A42: ZA-Tage | B42: =COUNTIF(D$8:D$38,"Z") -> 0 | E42: Saldo Vormonat > | I42: =$J5 -> 0 | Q42: Gültigkeit ausbezahlt
A43: Urlaubstage | B43: =COUNTIF(D$8:D$38,"U") -> 0 | E43: Saldo Gesamt > | I43: =SUM(I39:I42) -> 0 | K43: =IF($I$43>=$R$2,"< Hier ausbezahlte Std. eingeben. (Die Eingabe ist hier erst ab < einem Saldo von "&TEXT($R$2,"#.##0,00")&" Std., und nur in 0,25-Schritten möglich.)","") ->  | Q43: =IF(AND($J$43<>"",NOT(ISNUMBER($J$43))),FALSE,OR(AND($J$43>=0,$J$43<=$I$43,MOD($J$43,0.25)=0),$J$43="")) -> TRUE
A44: Krank | B44: =COUNTIF(D$8:D$38,"K") -> 0 | E44: Saldo Übertrag > | I44: =$I43-$J43 -> 0 | J44: =" < Dieser Stunden-Saldo wird in das nächste "&IF($Q$3="Dezember","Jahr","Monat")&" übertragen" -> < Dieser Stunden-Saldo wird in das nächste Monat übertragen
D45: Z
A48: ="Unterschrift von "&Vorgesetzter -> Unterschrift von Vorname Nachname | L48: ="Unterschrift von "&Name -> Unterschrift von Vorname Nachname

Sheet April (hidden)
A1: BOKU-Zeiterfassung für Allgemeines Personal | Q1: Monat | R1: Stunden-Saldo Grenzen | S1: Status Blatteingabe
A2: =" Org.-Einh. : "&OrgEinheit -> Org.-Einh. : HXXXXX | F2: Zeitmodell: | I2: =" "&Zeitmodell -> Vollzeit | J2: Modus: | K2: =" "&Zeitmodus -> Gleitzeit | Q2: =IF(ISNA($Q$4),1,$Q$4) -> 4 | R2: =IF($Q$2=12,NormalOGDez,NormalOG) -> 72 | S2: =SUM($BH8:$BH38) -> 0
A3: =" Mitarbeiter/in: "&Name -> Mitarbeiter/in: Vorname Nachname | F3: Vorgesetzte/r: | I3: =" "&Vorgesetzter -> Vorname Nachname | Q3: =RIGHT(CELL("filename",A1),LEN(CELL("filename",A1))-SEARCH("]",CELL("filename",A1),1)) -> April | R3: =IF($Q$2=12,NormalUGDez,NormalUG) -> -24 | S3: =IF($Q$2=1,$S$2,$S$2+INDIRECT($S$5)) -> 0
A4: =" Monat: "&$Q$3&" "&Jahr -> Monat: April 2023 | E4: Dienstplan | G4: Normalstunden Feiertag-ÜS1:2 | J4: Übertrag | K4: Überstundenberechnung | O4: Unterschrift des Vorgesetzten | P4: Anmerkungen (z.B. Überstunden- notwendigkeit) | Q4: =IF(ISNA(VLOOKUP($Q$3,MTab,2,FALSE)),1,VLOOKUP($Q$3,MTab,2,FALSE)) -> 4 | S4: Übertrags Adresse Blatteingabe
A5: Datum | B5: Wochentag | C5: Tagesinformationen | E5: ="Wochen-AZ"&" "&TEXT(WAZ,"[hh]:mm") -> Wochen-AZ 40:00 | J5: =IF(ISNA($Q$5),Übertrag,INDIRECT($Q$5)) -> 0 | K5: ÜS1:2 | L5: =IF(Zeitmodell="Vollzeit"," Überstunden1:1,5"," Überstunden1:1,25") -> Überstunden1:1,5 | Q5: =IF(ISNA(VLOOKUP($Q$3,MTab,3,FALSE)),"Übertrag",VLOOKUP($Q$3,MTab,3,FALSE)) -> März!$I$44 | S5: =IF(ISNA(VLOOKUP($Q$3,MTab,4,FALSE)),$Q$3&"!$S$2",VLOOKUP($Q$3,MTab,4,FALSE)) -> März!$S$3
C6: Feiertage Wochenende Urlaub, ZA, Krank | D6: [U]rlaub [Z]A [ZK] [K]rank | E6: Normal- | F6: Soll | G6: Von | H6: Bis | I6: Plus | J6: Saldo | K6: Plus | L6: Von | M6: Bis | N6: Plus | Q6: Hintergrundberechnungen | X6: Saldo aktuell | AB6: GAZ-Tabellenabbildung | AH6: Eingabebeprüfungen
E7: Arbeitszeit | I7: Minus | J7: akuell | Q7: Datum | R7: Monat OK | S7: Abwesenh. | T7: Freie Tage | U7: ÜA-Tage | V7: Std. | W7: Soll-Std. | X7: =IF(ISNA($Q$5),Übertrag,INDIRECT($Q$5)) -> 0 | Y7: Std.-Soll = 0 | Z7: Std.-Soll > 0 | AA7: Std.-Soll < 0 | AB7: =I_GAZGRVon -> 2 | AC7: =I_GAZNAZVon -> 3 | AD7: =I_GAZKVon -> 4 | AE7: =I_GAZKBis -> 6 | AF7: =I_GAZNAZBis -> 7 | AG7: =I_GAZGRBis -> 8 | AH7: Zeiteingabe | AI7: UZK-Eing. erlaubt | AJ7: UZK-Eing. gültig | AK7: Normalst. ein erlaubt | AL7: Überstd. ein erlaubt | AM7: Normalstd. eingegeben | AN7: Überstd. eingegeben | AO7: Normal VON möglich OG | AP7: Normal VON möglich UG | AQ7: Normal BIS möglich OG | AR7: Normal BIS möglich UG | AS7: Normal VON 15min | AT7: Normal VON richtig | AU7: Normal BIS 15min | AV7: Normal BIS richtig | AW7: ZA-Kern Von | AX7: ZA-Kern Bis | AY7: ZA-Kern | AZ7: Über VON Obergrenze | BA7: Über VON Untergrenze | BB7: Über BIS Obergrenze | BC7: Über BIS Untergrenze | BD7: Über VON 15min | BE7: Über VON richtig | BF7: Überl BIS 15min | BG7: Über BIS richtig | BH7: Status Zeilen Eingabe
A8: =IF($R8,$Q8,"") -> 2023-04-01 | B8: =IF($R8,VLOOKUP(WEEKDAY($Q8,2),WOTA,2,FALSE),"") -> Sa | C8: =IF($R8," "&IF($S8="",VLOOKUP($Q8,FListe,3,FALSE),$S8),"") -> Wochenende | E8: =IF(AND($R8,$T8<>"F"),IF($AC8=$AF8,"keine NAZ",TEXT($AC8,"hh:mm")&"-"&TEXT($AF8,"hh:mm")),"") ->  | F8: =IF($R8,IF($T8="F",0,VLOOKUP($B8,GAZ,I_GAZNAZ,FALSE)),"") -> 00:00:00 | I8: =IF(Zeitmodus="Gleitzeit",IF($U8="F","",IF(AND($R8,$AM8,NOT($Y8)),ROUND(($V8-$F8)*24,2),IF($D8="Z",$F8*-24,""))),IF(OR($D8="Z",AND($AM8,$U8="A",W8<0)),ROUND($W8*24,2),"")) ->  | J8: =IF($R8,$X8,"") -> 0 | K8: =IF(AND($U8="F",$AM8),ROUND($V8*24,2),"") ->  | N8: =IF(Zeitmodus="Gleitzeit",IF(AND($R8,$AN8,$M8-$L8<>0,$AL8),ROUND(($M8-$L8)*24,2),""),IF(AND($AM8,$U8="A",W8>0),ROUND(W8*24,2),"")) ->  | Q8: =DATE(Jahr,$Q2,1) -> 2023-04-01 | R8: =$Q$2=MONTH($Q8) -> TRUE | S8: =IF(OR($D8="U",$D8="Z",$D8="ZK",$D8="K"),VLOOKUP($D8,UZK,2,FALSE),"") ->  | T8: =IF($R8,VLOOKUP($Q8,FListe,4,FALSE),"") -> F | U8: =IF($R8,VLOOKUP($Q8,FListe,5,FALSE),"") -> A | V8: =$H8-$G8 -> 0 | W8: =IF($R8,ROUND($V8-$F8,15),"") -> 0 | X8: =IF($I8<>"",$X7+$I8,$X7) -> 0 | Y8: =($W8=0) -> TRUE | Z8: =($W8>0) -> FALSE | AA8: =($W8<0) -> FALSE | AB8: =IF(ISNA(VLOOKUP($B8,GAZ,AB$7,FALSE)),"",VLOOKUP($B8,GAZ,AB$7,FALSE)) ->  | AD8: =IF(ISNA(VLOOKUP($B8,GAZ,AD$7,FALSE)),"",IF($AC8=$AF8,$G8,VLOOKUP($B8,GAZ,AD$7,FALSE))) ->  | AE8: =IF(ISNA(VLOOKUP($B8,GAZ,AE$7,FALSE)),"",IF($AC8=$AF8,$H8,VLOOKUP($B8,GAZ,AE$7,FALSE))) ->  | AH8: =OR($G8<>"",$H8<>"",$L8<>"",$M8<>"") -> FALSE | AI8: =AND($T8<>"F",NOT($AH8),NOT($AC8=$AF8)) -> FALSE | AJ8: =AND($AI8,OR($D8="U",$D8="Z",$D8="K")) -> FALSE | AK8: =AND($D8<>"U",$D8<>"Z",$D8<>"K",$R8) -> TRUE | AL8: =AND(Zeitmodus=C_Gleitzeit,$U8<>"F",OR($B8="Sa",AND($AM8,$I8>=0,NOT($AY8)))) -> TRUE | AM8: =AND($G8<>"",$H8<>"") -> FALSE | AN8: =OR($K8<>"",AND($L8<>"",$M8<>"")) -> FALSE | AO8: =IF($AK8,TagUG,"") -> 00:00:00 | AP8: =IF($AK8,IF($H8="",IF(AND($L8<>"",$L8<$AG8),$L8,IF(AND($M8<>"",$M8<$AG8),$M8,TagOG)),$H8),"") -> 23:59:00 | AQ8: =IF($AK8,IF($G8="",$AB8,$G8),"") ->  | AR8: =IF($AK8,IF(AND($L8<>"",$L8<$AG8),$L8,IF(AND($M8<>"",$M8<$AG8),$M8,TagOG)),"") -> 23:59:00 | AS8: =MOD($G8*24,0.25)=0 -> TRUE | AT8: =AND($AK8,ISNUMBER($G8),$G8>=$AO8,$G8<=$AP8) -> FALSE | AU8: =MOD($H8*24,0.25)=0 -> TRUE | AV8: =AND($AK8,ISNUMBER($H8),$H8>=$AQ8,$H8<=$AR8) -> FALSE | AW8: =AND(Zeitmodus=C_Gleitzeit,$B8<>"Sa",$G8<>"",$G8>$AD8) -> FALSE | AX8: =AND(Zeitmodus=C_Gleitzeit,$B8<>"Sa",$H8<>"",$H8<$AE8) -> FALSE | AY8: =AND($U8<>"F",OR($AW8,$AX8)) -> FALSE | AZ8: =IF($B8="Sa",IF($H8<>"",$H8,TIME(0,0,0)),IF($AL8,IF(AND($H8<>"",$H8>$AF8),$H8,$AF8),"")) -> 00:00:00 | BA8: =IF($AL8,IF($M8<>"",$M8,$BC8),"") -> 23:59:00 | BB8: =IF($B8="Sa",IF($L8="",TIME(0,0,0),$L8),IF($AL8,IF($L8<>"",$L8,IF(AND($H8<>"",$H8>$AF8),$H8,$AF8)),"")) -> 00:00:00 | BC8: =IF($AL8,TIME(23,59,0),"") -> 23:59:00 | BD8: =MOD($L8*24,0.25)=0 -> TRUE | BE8: =AND($AL8,ISNUMBER($L8),$L8>=$AZ8,$BA8>=$L8) -> FALSE | BF8: =MOD($M8*24,0.25)=0 -> TRUE | BG8: =AND($AL8,ISNUMBER($M8),$M8>=$BB8,$M8<=$BC8) -> FALSE | BH8: =IF(AND(ISBLANK($D8),ISBLANK($G8),ISBLANK($H8),ISBLANK($L8),ISBLANK($M8),ISBLANK($P8)),0,1) -> 0
A9: =IF($R9,$Q9,"") -> 2023-04-02 | B9: So | C9: Palmsonntag | E9: =IF(AND($R9,$T9<>"F"),IF($AC9=$AF9,"keine NAZ",TEXT($AC9,"hh:mm")&"-"&TEXT($AF9,"hh:mm")),"") ->  | F9: 00:00:00 | J9: 0 | K9: =IF(AND($U9="F",$AM9),ROUND($V9*24,2),"") ->  | Q9: =Q8+1 -> 2023-04-02 | R9: TRUE | T9: F | U9: F | V9: 0 | W9: 0 | X9: 0 | Y9: TRUE | Z9: FALSE | AA9: FALSE | AH9: FALSE | AI9: =AND($T9<>"F",NOT($AH9),NOT($AC9=$AF9)) -> FALSE | AJ9: FALSE | AK9: TRUE | AL9: =AND(Zeitmodus=C_Gleitzeit,$U9<>"F",OR($B9="Sa",AND($AM9,$I9>=0,NOT($AY9)))) -> FALSE | AM9: FALSE | AN9: =OR($K9<>"",AND($L9<>"",$M9<>"")) -> FALSE | AO9: 00:00:00 | AP9: 23:59:00 | AQ9: =IF($AK9,IF($G9="",TagUG,$G9),"") -> 00:00:00 | AR9: 23:59:00 | AS9: TRUE | AT9: FALSE | AU9: TRUE | AV9: FALSE | AW9: FALSE | AX9: FALSE | AY9: =AND($U9<>"F",OR($AW9,$AX9)) -> FALSE | BD9: TRUE | BE9: FALSE | BF9: TRUE | BG9: FALSE | BH9: 0
A10: 2023-04-03 | B10: Mo | E10: 08:00-16:00 | F10: 08:00:00 | J10: 0 | Q10: 2023-04-03 | R10: TRUE | T10: A | U10: A | V10: 0 | W10: -0.3333333333 | X10: 0 | Y10: FALSE | Z10: FALSE | AA10: TRUE | AB10: 07:00:00 | AC10: 08:00:00 | AD10: 09:00:00 | AE10: 14:00:00 | AF10: 16:00:00 | AG10: 18:00:00 | AH10: FALSE | AI10: TRUE | AJ10: FALSE | AK10: TRUE | AL10: FALSE | AM10: FALSE | AN10: FALSE | AO10: 00:00:00 | AP10: 23:59:00 | AQ10: 00:00:00 | AR10: 23:59:00 | AS10: TRUE | AT10: FALSE | AU10: TRUE | AV10: FALSE | AW10: FALSE | AX10: FALSE | AY10: FALSE | BD10: TRUE | BE10: FALSE | BF10: TRUE | BG10: FALSE | BH10: 0
A11: 2023-04-04 | B11: Di | E11: 08:00-16:00 | F11: 08:00:00 | J11: 0 | Q11: 2023-04-04 | R11: TRUE | T11: A | U11: A | V11: 0 | W11: -0.3333333333 | X11: 0 | Y11: FALSE | Z11: FALSE | AA11: TRUE | AB11: 07:00:00 | AC11: 08:00:00 | AD11: 09:00:00 | AE11: 14:00:00 | AF11: 16:00:00 | AG11: 18:00:00 | AH11: FALSE | AI11: TRUE | AJ11: FALSE | AK11: TRUE | AL11: FALSE | AM11: FALSE | AN11: FALSE | AO11: 00:00:00 | AP11: 23:59:00 | AQ11: 00:00:00 | AR11: 23:59:00 | AS11: TRUE | AT11: FALSE | AU11: TRUE | AV11: FALSE | AW11: FALSE | AX11: FALSE | AY11: FALSE | BD11: TRUE | BE11: FALSE | BF11: TRUE | BG11: FALSE | BH11: 0
A12: 2023-04-05 | B12: Mi | E12: 08:00-16:00 | F12: 08:00:00 | J12: 0 | Q12: 2023-04-05 | R12: TRUE | T12: A | U12: A | V12: 0 | W12: -0.3333333333 | X12: 0 | Y12: FALSE | Z12: FALSE | AA12: TRUE | AB12: 07:00:00 | AC12: 08:00:00 | AD12: 09:00:00 | AE12: 14:00:00 | AF12: 16:00:00 | AG12: 18:00:00 | AH12: FALSE | AI12: TRUE | AJ12: FALSE | AK12: TRUE | AL12: FALSE | AM12: FALSE | AN12: FALSE | AO12: 00:00:00 | AP12: 23:59:00 | AQ12: 00:00:00 | AR12: 23:59:00 | AS12: TRUE | AT12: FALSE | AU12: TRUE | AV12: FALSE | AW12: FALSE | AX12: FALSE | AY12: FALSE | BD12: TRUE | BE12: FALSE | BF12: TRUE | BG12: FALSE | BH12: 0
A13: 2023-04-06 | B13: Do | C13: Gründonnerstag | E13: 08:00-16:00 | F13: 08:00:00 | J13: 0 | Q13: 2023-04-06 | R13: TRUE | T13: A | U13: A | V13: 0 | W13: -0.3333333333 | X13: 0 | Y13: FALSE | Z13: FALSE | AA13: TRUE | AB13: 07:00:00 | AC13: 08:00:00 | AD13: 09:00:00 | AE13: 14:00:00 | AF13: 16:00:00 | AG13: 18:00:00 | AH13: FALSE | AI13: TRUE | AJ13: FALSE | AK13: TRUE | AL13: FALSE | AM13: FALSE | AN13: FALSE | AO13: 00:00:00 | AP13: 23:59:00 | AQ13: 00:00:00 | AR13: 23:59:00 | AS13: TRUE | AT13: FALSE | AU13: TRUE | AV13: FALSE | AW13: FALSE | AX13: FALSE | AY13: FALSE | BD13: TRUE | BE13: FALSE | BF13: TRUE | BG13: FALSE | BH13: 0
A14: 2023-04-07 | B14: Fr | C14: Karfreitag | E14: 08:00-16:00 | F14: 08:00:00 | J14: 0 | Q14: 2023-04-07 | R14: TRUE | T14: A | U14: A | V14: 0 | W14: -0.3333333333 | X14: 0 | Y14: FALSE | Z14: FALSE | AA14: TRUE | AB14: 07:00:00 | AC14: 08:00:00 | AD14: 09:00:00 | AE14: 12:00:00 | AF14: 16:00:00 | AG14: 18:00:00 | AH14: FALSE | AI14: TRUE | AJ14: FALSE | AK14: TRUE | AL14: FALSE | AM14: FALSE | AN14: FALSE | AO14: 00:00:00 | AP14: 23:59:00 | AQ14: 00:00:00 | AR14: 23:59:00 | AS14: TRUE | AT14: FALSE | AU14: TRUE | AV14: FALSE | AW14: FALSE | AX14: FALSE | AY14: FALSE | BD14: TRUE | BE14: FALSE | BF14: TRUE | BG14: FALSE | BH14: 0
A15: 2023-04-08 | B15: Sa | C15: Wochenende | F15: 00:00:00 | J15: 0 | Q15: 2023-04-08 | R15: TRUE | T15: F | U15: A | V15: 0 | W15: 0 | X15: 0 | Y15: TRUE | Z15: FALSE | AA15: FALSE | AH15: FALSE | AI15: FALSE | AJ15: FALSE | AK15: TRUE | AL15: TRUE | AM15: FALSE | AN15: FALSE | AO15: 00:00:00 | AP15: 23:59:00 | AQ15: 00:00:00 | AR15: 23:59:00 | AS15: TRUE | AT15: FALSE | AU15: TRUE | AV15: FALSE | AW15: FALSE | AX15: FALSE | AY15: FALSE | AZ15: 00:00:00 | BA15: 23:59:00 | BB15: 00:00:00 | BC15: 23:59:00 | BD15: TRUE | BE15: FALSE | BF15: TRUE | BG15: FALSE | BH15: 0
A16: 2023-04-09 | B16: So | C16: Ostersonntag | F16: 00:00:00 | J16: 0 | Q16: 2023-04-09 | R16: TRUE | T16: F | U16: F | V16: 0 | W16: 0 | X16: 0 | Y16: TRUE | Z16: FALSE | AA16: FALSE | AH16: FALSE | AI16: FALSE | AJ16: FALSE | AK16: TRUE | AL16: FALSE | AM16: FALSE | AN16: FALSE | AO16: 00:00:00 | AP16: 23:59:00 | AQ16: 00:00:00 | AR16: 23:59:00 | AS16: TRUE | AT16: FALSE | AU16: TRUE | AV16: FALSE | AW16: FALSE | AX16: FALSE | AY16: FALSE | BD16: TRUE | BE16: FALSE | BF16: TRUE | BG16: FALSE | BH16: 0
A17: 2023-04-10 | B17: Mo | C17: Ostermontag | F17: 00:00:00 | J17: 0 | Q17: 2023-04-10 | R17: TRUE | T17: F | U17: F | V17: 0 | W17: 0 | X17: 0 | Y17: TRUE | Z17: FALSE | AA17: FALSE | AB17: 07:00:00 | AC17: 08:00:00 | AD17: 09:00:00 | AE17: 14:00:00 | AF17: 16:00:00 | AG17: 18:00:00 | AH17: FALSE | AI17: FALSE | AJ17: FALSE | AK17: TRUE | AL17: FALSE | AM17: FALSE | AN17: FALSE | AO17: 00:00:00 | AP17: 23:59:00 | AQ17: 00:00:00 | AR17: 23:59:00 | AS17: TRUE | AT17: FALSE | AU17: TRUE | AV17: FALSE | AW17: FALSE | AX17: FALSE | AY17: FALSE | BD17: TRUE | BE17: FALSE | BF17: TRUE | BG17: FALSE | BH17: 0
A18: 2023-04-11 | B18: Di | C18: Osterdienstag | E18: 08:00-16:00 | F18: 08:00:00 | J18: 0 | Q18: 2023-04-11 | R18: TRUE | T18: A | U18: A | V18: 0 | W18: -0.3333333333 | X18: 0 | Y18: FALSE | Z18: FALSE | AA18: TRUE | AB18: 07:00:00 | AC18: 08:00:00 | AD18: 09:00:00 | AE18: 14:00:00 | AF18: 16:00:00 | AG18: 18:00:00 | AH18: FALSE | AI18: TRUE | AJ18: FALSE | AK18: TRUE | AL18: FALSE | AM18: FALSE | AN18: FALSE | AO18: 00:00:00 | AP18: 23:59:00 | AQ18: 00:00:00 | AR18: 23:59:00 | AS18: TRUE | AT18: FALSE | AU18: TRUE | AV18: FALSE | AW18: FALSE | AX18: FALSE | AY18: FALSE | BD18: TRUE | BE18: FALSE | BF18: TRUE | BG18: FALSE | BH18: 0
A19: 2023-04-12 | B19: Mi | E19: 08:00-16:00 | F19: 08:00:00 | J19: 0 | Q19: 2023-04-12 | R19: TRUE | T19: A | U19: A | V19: 0 | W19: -0.3333333333 | X19: 0 | Y19: FALSE | Z19: FALSE | AA19: TRUE | AB19: 07:00:00 | AC19: 08:00:00 | AD19: 09:00:00 | AE19: 14:00:00 | AF19: 16:00:00 | AG19: 18:00:00 | AH19: FALSE | AI19: TRUE | AJ19: FALSE | AK19: TRUE | AL19: FALSE | AM19: FALSE | AN19: FALSE | AO19: 00:00:00 | AP19: 23:59:00 | AQ19: 00:00:00 | AR19: 23:59:00 | AS19: TRUE | AT19: FALSE | AU19: TRUE | AV19: FALSE | AW19: FALSE | AX19: FALSE | AY19: FALSE | BD19: TRUE | BE19: FALSE | BF19: TRUE | BG19: FALSE | BH19: 0
A20: 2023-04-13 | B20: Do | E20: 08:00-16:00 | F20: 08:00:00 | J20: 0 | Q20: 2023-04-13 | R20: TRUE | T20: A | U20: A | V20: 0 | W20: -0.3333333333 | X20: 0 | Y20: FALSE | Z20: FALSE | AA20: TRUE | AB20: 07:00:00 | AC20: 08:00:00 | AD20: 09:00:00 | AE20: 14:00:00 | AF20: 16:00:00 | AG20: 18:00:00 | AH20: FALSE | AI20: TRUE | AJ20: FALSE | AK20: TRUE | AL20: FALSE | AM20: FALSE | AN20: FALSE | AO20: 00:00:00 | AP20: 23:59:00 | AQ20: 00:00:00 | AR20: 23:59:00 | AS20: TRUE | AT20: FALSE | AU20: TRUE | AV20: FALSE | AW20: FALSE | AX20: FALSE | AY20: FALSE | BD20: TRUE | BE20: FALSE | BF20: TRUE | BG20: FALSE | BH20: 0
A21: 2023-04-14 | B21: Fr | E21: 08:00-16:00 | F21: 08:00:00 | J21: 0 | Q21: 2023-04-14 | R21: TRUE | T21: A | U21: A | V21: 0 | W21: -0.3333333333 | X21: 0 | Y21: FALSE | Z21: FALSE | AA21: TRUE | AB21: 07:00:00 | AC21: 08:00:00 | AD21: 09:00:00 | AE21: 12:00:00 | AF21: 16:00:00 | AG21: 18:00:00 | AH21: FALSE | AI21: TRUE | AJ21: FALSE | AK21: TRUE | AL21: FALSE | AM21: FALSE | AN21: FALSE | AO21: 00:00:00 | AP21: 23:59:00 | AQ21: 00:00:00 | AR21: 23:59:00 | AS21: TRUE | AT21: FALSE | AU21: TRUE | AV21: FALSE | AW21: FALSE | AX21: FALSE | AY21: FALSE | BD21: TRUE | BE21: FALSE | BF21: TRUE | BG21: FALSE | BH21: 0
A22: 2023-04-15 | B22: Sa | C22: Wochenende | F22: 00:00:00 | J22: 0 | Q22: 2023-04-15 | R22: TRUE | T22: F | U22: A | V22: 0 | W22: 0 | X22: 0 | Y22: TRUE | Z22: FALSE | AA22: FALSE | AH22: FALSE | AI22: FALSE | AJ22: FALSE | AK22: TRUE | AL22: TRUE | AM22: FALSE | AN22: FALSE | AO22: 00:00:00 | AP22: 23:59:00 | AQ22: 00:00:00 | AR22: 23:59:00 | AS22: TRUE | AT22: FALSE | AU22: TRUE | AV22: FALSE | AW22: FALSE | AX22: FALSE | AY22: FALSE | AZ22: 00:00:00 | BA22: 23:59:00 | BB22: 00:00:00 | BC22: 23:59:00 | BD22: TRUE | BE22: FALSE | BF22: TRUE | BG22: FALSE | BH22: 0
A23: 2023-04-16 | B23: So | C23: Wochenende | F23: 00:00:00 | J23: 0 | Q23: 2023-04-16 | R23: TRUE | T23: F | U23: F | V23: 0 | W23: 0 | X23: 0 | Y23: TRUE | Z23: FALSE | AA23: FALSE | AH23: FALSE | AI23: FALSE | AJ23: FALSE | AK23: TRUE | AL23: FALSE | AM23: FALSE | AN23: FALSE | AO23: 00:00:00 | AP23: 23:59:00 | AQ23: 00:00:00 | AR23: 23:59:00 | AS23: TRUE | AT23: FALSE | AU23: TRUE | AV23: FALSE | AW23: FALSE | AX23: FALSE | AY23: FALSE | BD23: TRUE | BE23: FALSE | BF23: TRUE | BG23: FALSE | BH23: 0
A24: 2023-04-17 | B24: Mo | E24: 08:00-16:00 | F24: 08:00:00 | J24: 0 | Q24: 2023-04-17 | R24: TRUE | T24: A | U24: A | V24: 0 | W24: -0.3333333333 | X24: 0 | Y24: FALSE | Z24: FALSE | AA24: TRUE | AB24: =IF(ISNA(VLOOKUP($B24,GAZ,AB$7,FALSE)),"",VLOOKUP($B24,GAZ,AB$7,FALSE)) -> 07:00:00 | AC24: 08:00:00 | AD24: 09:00:00 | AE24: 14:00:00 | AF24: 16:00:00 | AG24: 18:00:00 | AH24: FALSE | AI24: TRUE | AJ24: FALSE | AK24: TRUE | AL24: FALSE | AM24: FALSE | AN24: FALSE | AO24: 00:00:00 | AP24: 23:59:00 | AQ24: 00:00:00 | AR24: 23:59:00 | AS24: TRUE | AT24: FALSE | AU24: TRUE | AV24: FALSE | AW24: FALSE | AX24: FALSE | AY24: FALSE | BD24: TRUE | BE24: FALSE | BF24: TRUE | BG24: FALSE | BH24: 0
A25: 2023-04-18 | B25: Di | E25: 08:00-16:00 | F25: 08:00:00 | J25: 0 | Q25: 2023-04-18 | R25: TRUE | T25: A | U25: A | V25: 0 | W25: -0.3333333333 | X25: 0 | Y25: FALSE | Z25: FALSE | AA25: TRUE | AB25: 07:00:00 | AC25: 08:00:00 | AD25: 09:00:00 | AE25: 14:00:00 | AF25: 16:00:00 | AG25: 18:00:00 | AH25: FALSE | AI25: TRUE | AJ25: FALSE | AK25: TRUE | AL25: FALSE | AM25: FALSE | AN25: FALSE | AO25: 00:00:00 | AP25: 23:59:00 | AQ25: 00:00:00 | AR25: 23:59:00 | AS25: TRUE | AT25: FALSE | AU25: TRUE | AV25: FALSE | AW25: FALSE | AX25: FALSE | AY25: FALSE | BD25: TRUE | BE25: FALSE | BF25: TRUE | BG25: FALSE | BH25: 0
A26: 2023-04-19 | B26: Mi | E26: 08:00-16:00 | F26: 08:00:00 | J26: 0 | Q26: 2023-04-19 | R26: TRUE | T26: A | U26: A | V26: 0 | W26: -0.3333333333 | X26: 0 | Y26: FALSE | Z26: FALSE | AA26: TRUE | AB26: 07:00:00 | AC26: 08:00:00 | AD26: 09:00:00 | AE26: 14:00:00 | AF26: 16:00:00 | AG26: 18:00:00 | AH26: FALSE | AI26: TRUE | AJ26: FALSE | AK26: TRUE | AL26: FALSE | AM26: FALSE | AN26: FALSE | AO26: 00:00:00 | AP26: 23:59:00 | AQ26: 00:00:00 | AR26: 23:59:00 | AS26: TRUE | AT26: FALSE | AU26: TRUE | AV26: FALSE | AW26: FALSE | AX26: FALSE | AY26: FALSE | BD26: TRUE | BE26: FALSE | BF26: TRUE | BG26: FALSE | BH26: 0
A27: 2023-04-20 | B27: Do | E27: 08:00-16:00 | F27: 08:00:00 | J27: 0 | Q27: 2023-04-20 | R27: TRUE | T27: A | U27: A | V27: 0 | W27: -0.3333333333 | X27: 0 | Y27: FALSE | Z27: FALSE | AA27: TRUE | AB27: 07:00:00 | AC27: 08:00:00 | AD27: 09:00:00 | AE27: 14:00:00 | AF27: 16:00:00 | AG27: 18:00:00 | AH27: FALSE | AI27: TRUE | AJ27: FALSE | AK27: TRUE | AL27: FALSE | AM27: FALSE | AN27: FALSE | AO27: 00:00:00 | AP27: 23:59:00 | AQ27: 00:00:00 | AR27: 23:59:00 | AS27: TRUE | AT27: FALSE | AU27: TRUE | AV27: FALSE | AW27: FALSE | AX27: FALSE | AY27: FALSE | BD27: TRUE | BE27: FALSE | BF27: TRUE | BG27: FALSE | BH27: 0
A28: 2023-04-21 | B28: Fr | E28: 08:00-16:00 | F28: 08:00:00 | J28: 0 | Q28: 2023-04-21 | R28: TRUE | T28: A | U28: A | V28: 0 | W28: -0.3333333333 | X28: 0 | Y28: FALSE | Z28: FALSE | AA28: TRUE | AB28: 07:00:00 | AC28: 08:00:00 | AD28: 09:00:00 | AE28: 12:00:00 | AF28: 16:00:00 | AG28: 18:00:00 | AH28: FALSE | AI28: TRUE | AJ28: FALSE | AK28: TRUE | AL28: FALSE | AM28: FALSE | AN28: FALSE | AO28: 00:00:00 | AP28: 23:59:00 | AQ28: 00:00:00 | AR28: 23:59:00 | AS28: TRUE | AT28: FALSE | AU28: TRUE | AV28: FALSE | AW28: FALSE | AX28: FALSE | AY28: FALSE | BD28: TRUE | BE28: FALSE | BF28: TRUE | BG28: FALSE | BH28: 0
A29: 2023-04-22 | B29: Sa | C29: Wochenende | F29: 00:00:00 | J29: 0 | Q29: 2023-04-22 | R29: TRUE | T29: F | U29: A | V29: 0 | W29: 0 | X29: 0 | Y29: TRUE | Z29: FALSE | AA29: FALSE | AH29: FALSE | AI29: FALSE | AJ29: FALSE | AK29: TRUE | AL29: TRUE | AM29: FALSE | AN29: FALSE | AO29: 00:00:00 | AP29: 23:59:00 | AQ29: 00:00:00 | AR29: 23:59:00 | AS29: TRUE | AT29: FALSE | AU29: TRUE | AV29: FALSE | AW29: FALSE | AX29: FALSE | AY29: FALSE | AZ29: 00:00:00 | BA29: 23:59:00 | BB29: 00:00:00 | BC29: 23:59:00 | BD29: TRUE | BE29: FALSE | BF29: TRUE | BG29: FALSE | BH29: 0
A30: 2023-04-23 | B30: So | C30: Wochenende | F30: 00:00:00 | J30: 0 | Q30: 2023-04-23 | R30: TRUE | T30: F | U30: F | V30: 0 | W30: 0 | X30: 0 | Y30: TRUE | Z30: FALSE | AA30: FALSE | AH30: FALSE | AI30: FALSE | AJ30: FALSE | AK30: TRUE | AL30: FALSE | AM30: FALSE | AN30: FALSE | AO30: 00:00:00 | AP30: 23:59:00 | AQ30: 00:00:00 | AR30: 23:59:00 | AS30: TRUE | AT30: FALSE | AU30: TRUE | AV30: FALSE | AW30: FALSE | AX30: FALSE | AY30: FALSE | BD30: TRUE | BE30: FALSE | BF30: TRUE | BG30: FALSE | BH30: 0
A31: 2023-04-24 | B31: Mo | E31: 08:00-16:00 | F31: 08:00:00 | J31: 0 | Q31: 2023-04-24 | R31: TRUE | T31: A | U31: A | V31: 0 | W31: -0.3333333333 | X31: 0 | Y31: FALSE | Z31: FALSE | AA31: TRUE | AB31: 07:00:00 | AC31: 08:00:00 | AD31: 09:00:00 | AE31: 14:00:00 | AF31: 16:00:00 | AG31: 18:00:00 | AH31: FALSE | AI31: TRUE | AJ31: FALSE | AK31: TRUE | AL31: FALSE | AM31: FALSE | AN31: FALSE | AO31: 00:00:00 | AP31: 23:59:00 | AQ31: 00:00:00 | AR31: 23:59:00 | AS31: TRUE | AT31: FALSE | AU31: TRUE | AV31: FALSE | AW31: FALSE | AX31: FALSE | AY31: FALSE | BD31: TRUE | BE31: FALSE | BF31: TRUE | BG31: FALSE | BH31: 0
A32: 2023-04-25 | B32: Di | E32: 08:00-16:00 | F32: 08:00:00 | J32: 0 | Q32: 2023-04-25 | R32: TRUE | T32: A | U32: A | V32: 0 | W32: -0.3333333333 | X32: 0 | Y32: FALSE | Z32: FALSE | AA32: TRUE | AB32: 07:00:00 | AC32: 08:00:00 | AD32: 09:00:00 | AE32: 14:00:00 | AF32: 16:00:00 | AG32: 18:00:00 | AH32: FALSE | AI32: TRUE | AJ32: FALSE | AK32: TRUE | AL32: FALSE | AM32: FALSE | AN32: FALSE | AO32: 00:00:00 | AP32: 23:59:00 | AQ32: 00:00:00 | AR32: 23:59:00 | AS32: TRUE | AT32: FALSE | AU32: TRUE | AV32: FALSE | AW32: FALSE | AX32: FALSE | AY32: FALSE | BD32: TRUE | BE32: FALSE | BF32: TRUE | BG32: FALSE | BH32: 0
A33: 2023-04-26 | B33: Mi | E33: 08:00-16:00 | F33: 08:00:00 | J33: 0 | Q33: 2023-04-26 | R33: TRUE | T33: A | U33: A | V33: 0 | W33: -0.3333333333 | X33: 0 | Y33: FALSE | Z33: FALSE | AA33: TRUE | AB33: 07:00:00 | AC33: 08:00:00 | AD33: 09:00:00 | AE33: 14:00:00 | AF33: 16:00:00 | AG33: 18:00:00 | AH33: FALSE | AI33: TRUE | AJ33: FALSE | AK33: TRUE | AL33: FALSE | AM33: FALSE | AN33: FALSE | AO33: 00:00:00 | AP33: 23:59:00 | AQ33: 00:00:00 | AR33: 23:59:00 | AS33: TRUE | AT33: FALSE | AU33: TRUE | AV33: FALSE | AW33: FALSE | AX33: FALSE | AY33: FALSE | BD33: TRUE | BE33: FALSE | BF33: TRUE | BG33: FALSE | BH33: 0
A34: 2023-04-27 | B34: Do | E34: 08:00-16:00 | F34: 08:00:00 | J34: 0 | Q34: 2023-04-27 | R34: TRUE | T34: A | U34: A | V34: 0 | W34: -0.3333333333 | X34: 0 | Y34: FALSE | Z34: FALSE | AA34: TRUE | AB34: 07:00:00 | AC34: 08:00:00 | AD34: 09:00:00 | AE34: 14:00:00 | AF34: 16:00:00 | AG34: 18:00:00 | AH34: FALSE | AI34: TRUE | AJ34: FALSE | AK34: TRUE | AL34: FALSE | AM34: FALSE | AN34: FALSE | AO34: 00:00:00 | AP34: 23:59:00 | AQ34: 00:00:00 | AR34: 23:59:00 | AS34: TRUE | AT34: FALSE | AU34: TRUE | AV34: FALSE | AW34: FALSE | AX34: FALSE | AY34: FALSE | BD34: TRUE | BE34: FALSE | BF34: TRUE | BG34: FALSE | BH34: 0
A35: 2023-04-28 | B35: Fr | E35: 08:00-16:00 | F35: 08:00:00 | J35: 0 | Q35: 2023-04-28 | R35: TRUE | T35: A | U35: A | V35: 0 | W35: -0.3333333333 | X35: 0 | Y35: FALSE | Z35: FALSE | AA35: TRUE | AB35: 07:00:00 | AC35: 08:00:00 | AD35: 09:00:00 | AE35: 12:00:00 | AF35: 16:00:00 | AG35: 18:00:00 | AH35: FALSE | AI35: TRUE | AJ35: FALSE | AK35: TRUE | AL35: FALSE | AM35: FALSE | AN35: FALSE | AO35: 00:00:00 | AP35: 23:59:00 | AQ35: 00:00:00 | AR35: 23:59:00 | AS35: TRUE | AT35: FALSE | AU35: TRUE | AV35: FALSE | AW35: FALSE | AX35: FALSE | AY35: FALSE | BD35: TRUE | BE35: FALSE | BF35: TRUE | BG35: FALSE | BH35: 0
A36: 2023-04-29 | B36: Sa | C36: Wochenende | F36: 00:00:00 | J36: 0 | Q36: 2023-04-29 | R36: TRUE | T36: F | U36: A | V36: 0 | W36: 0 | X36: 0 | Y36: TRUE | Z36: FALSE | AA36: FALSE | AH36: FALSE | AI36: FALSE | AJ36: FALSE | AK36: TRUE | AL36: TRUE | AM36: FALSE | AN36: FALSE | AO36: 00:00:00 | AP36: 23:59:00 | AQ36: 00:00:00 | AR36: 23:59:00 | AS36: TRUE | AT36: FALSE | AU36: TRUE | AV36: FALSE | AW36: FALSE | AX36: FALSE | AY36: FALSE | AZ36: 00:00:00 | BA36: 23:59:00 | BB36: 00:00:00 | BC36: 23:59:00 | BD36: TRUE | BE36: FALSE | BF36: TRUE | BG36: FALSE | BH36: 0
A37: 2023-04-30 | B37: So | C37: Wochenende | F37: 00:00:00 | J37: 0 | Q37: 2023-04-30 | R37: TRUE | T37: F | U37: F | V37: 0 | W37: 0 | X37: 0 | Y37: TRUE | Z37: FALSE | AA37: FALSE | AH37: FALSE | AI37: FALSE | AJ37: FALSE | AK37: TRUE | AL37: FALSE | AM37: FALSE | AN37: FALSE | AO37: 00:00:00 | AP37: 23:59:00 | AQ37: 00:00:00 | AR37: 23:59:00 | AS37: TRUE | AT37: FALSE | AU37: TRUE | AV37: FALSE | AW37: FALSE | AX37: FALSE | AY37: FALSE | BD37: TRUE | BE37: FALSE | BF37: TRUE | BG37: FALSE | BH37: 0
J38: =IF($R38,$X38,"") ->  | Q38: 2023-05-01 | R38: FALSE | V38: 0 | X38: 0 | Y38: FALSE | Z38: TRUE | AA38: FALSE | AH38: FALSE | AI38: FALSE | AJ38: FALSE | AK38: FALSE | AL38: FALSE | AM38: FALSE | AN38: FALSE | AS38: TRUE | AT38: FALSE | AU38: TRUE | AV38: FALSE | AW38: FALSE | AX38: FALSE | AY38: FALSE | BD38: TRUE | BE38: FALSE | BF38: TRUE | BG38: FALSE | BH38: 0
A39: Arbeitstage | B39: =COUNTIF(T$8:T$38,"A") -> 19 | E39: ="Saldo Monat (~15min) > " -> Saldo Monat (~15min) > | I39: =ROUND(SUM(I8:I38)*4,0)/4 -> 0 | K39: =SUM(K8:K38) -> 0 | L39: < ÜS1:2 | N39: =SUM(N8:N38) -> 0 | O39: =IF(Zeitmodell="Vollzeit"," < ÜS1:1,5 "," < ÜS1:1,25 ")&Zeitmodell -> < ÜS1:1,5 Vollzeit | Q39: Zeitmodell Text
A40: Freie Tage | B40: =COUNTIF(T$8:T$38,"F") -> 11 | E40: ="Saldo "&IF(Zeitmodell="Vollzeit","1:1,5","1:1,25")& " (~15min) > " -> Saldo 1:1,5 (~15min) > | I40: =ROUND($N40*4,0)/4 -> 0 | N40: =IF(Zeitmodell="Vollzeit",$N39*1.5,$N39*1.25) -> 0 | O40: =IF(Zeitmodell="Vollzeit"," < 1:1,5 "," < 1:1,25 ")&$Q40 -> < 1:1,5 Stunden berechnen | Q40: Stunden berechnen
A41: ZK-Tage | B41: 0 | E41: Saldo 1:2 (~15min) > | I41: =ROUND($N41*4,0)/4 -> 0 | N41: =K39*2 -> 0 | O41: < 1:2 Stunden berechnen
A42: ZA-Tage | B42: =COUNTIF(D$8:D$38,"Z") -> 0 | E42: Saldo Vormonat > | I42: =$J5 -> 0 | Q42: Gültigkeit ausbezahlt
A43: Urlaubstage | B43: =COUNTIF(D$8:D$38,"U") -> 0 | E43: Saldo Gesamt > | I43: =SUM(I39:I42) -> 0 | K43: =IF($I$43>=$R$2,"< Hier ausbezahlte Std. eingeben. (Die Eingabe ist hier erst ab < einem Saldo von "&TEXT($R$2,"#.##0,00")&" Std., und nur in 0,25-Schritten möglich.)","") ->  | Q43: =IF(AND($J$43<>"",NOT(ISNUMBER($J$43))),FALSE,OR(AND($J$43>=0,$J$43<=$I$43,MOD($J$43,0.25)=0),$J$43="")) -> TRUE
A44: Krank | B44: =COUNTIF(D$8:D$38,"K") -> 0 | E44: Saldo Übertrag > | I44: =$I43-$J43 -> 0 | J44: =" < Dieser Stunden-Saldo wird in das nächste "&IF($Q$3="Dezember","Jahr","Monat")&" übertragen" -> < Dieser Stunden-Saldo wird in das nächste Monat übertragen
D45: Z
A48: ="Unterschrift von "&Vorgesetzter -> Unterschrift von Vorname Nachname | L48: ="Unterschrift von "&Name -> Unterschrift von Vorname Nachname

Sheet Mai (hidden)
A1: BOKU-Zeiterfassung für Allgemeines Personal | Q1: Monat | R1: Stunden-Saldo Grenzen | S1: Status Blatteingabe
A2: =" Org.-Einh. : "&OrgEinheit -> Org.-Einh. : HXXXXX | F2: Zeitmodell: | I2: =" "&Zeitmodell -> Vollzeit | J2: Modus: | K2: =" "&Zeitmodus -> Gleitzeit | Q2: =IF(ISNA($Q$4),1,$Q$4) -> 5 | R2: =IF($Q$2=12,NormalOGDez,NormalOG) -> 72 | S2: =SUM($BH8:$BH38) -> 0
A3: =" Mitarbeiter/in: "&Name -> Mitarbeiter/in: Vorname Nachname | F3: Vorgesetzte/r: | I3: =" "&Vorgesetzter -> Vorname Nachname | Q3: =RIGHT(CELL("filename",A1),LEN(CELL("filename",A1))-SEARCH("]",CELL("filename",A1),1)) -> Mai | R3: =IF($Q$2=12,NormalUGDez,NormalUG) -> -24 | S3: =IF($Q$2=1,$S$2,$S$2+INDIRECT($S$5)) -> 0
A4: =" Monat: "&$Q$3&" "&Jahr -> Monat: Mai 2023 | E4: Dienstplan | G4: Normalstunden Feiertag-ÜS1:2 | J4: Übertrag | K4: Überstundenberechnung | O4: Unterschrift des Vorgesetzten | P4: Anmerkungen (z.B. Überstunden- notwendigkeit) | Q4: =IF(ISNA(VLOOKUP($Q$3,MTab,2,FALSE)),1,VLOOKUP($Q$3,MTab,2,FALSE)) -> 5 | S4: Übertrags Adresse Blatteingabe
A5: Datum | B5: Wochentag | C5: Tagesinformationen | E5: ="Wochen-AZ"&" "&TEXT(WAZ,"[hh]:mm") -> Wochen-AZ 40:00 | J5: =IF(ISNA($Q$5),Übertrag,INDIRECT($Q$5)) -> 0 | K5: ÜS1:2 | L5: =IF(Zeitmodell="Vollzeit"," Überstunden1:1,5"," Überstunden1:1,25") -> Überstunden1:1,5 | Q5: =IF(ISNA(VLOOKUP($Q$3,MTab,3,FALSE)),"Übertrag",VLOOKUP($Q$3,MTab,3,FALSE)) -> April!$I$44 | S5: =IF(ISNA(VLOOKUP($Q$3,MTab,4,FALSE)),$Q$3&"!$S$2",VLOOKUP($Q$3,MTab,4,FALSE)) -> April!$S$3
C6: Feiertage Wochenende Urlaub, ZA, Krank | D6: [U]rlaub [Z]A [ZK] [K]rank | E6: Normal- | F6: Soll | G6: Von | H6: Bis | I6: Plus | J6: Saldo | K6: Plus | L6: Von | M6: Bis | N6: Plus | Q6: Hintergrundberechnungen | X6: Saldo aktuell | AB6: GAZ-Tabellenabbildung | AH6: Eingabebeprüfungen
E7: Arbeitszeit | I7: Minus | J7: akuell | Q7: Datum | R7: Monat OK | S7: Abwesenh. | T7: Freie Tage | U7: ÜA-Tage | V7: Std. | W7: Soll-Std. | X7: =IF(ISNA($Q$5),Übertrag,INDIRECT($Q$5)) -> 0 | Y7: Std.-Soll = 0 | Z7: Std.-Soll > 0 | AA7: Std.-Soll < 0 | AB7: =I_GAZGRVon -> 2 | AC7: =I_GAZNAZVon -> 3 | AD7: =I_GAZKVon -> 4 | AE7: =I_GAZKBis -> 6 | AF7: =I_GAZNAZBis -> 7 | AG7: =I_GAZGRBis -> 8 | AH7: Zeiteingabe | AI7: UZK-Eing. erlaubt | AJ7: UZK-Eing. gültig | AK7: Normalst. ein erlaubt | AL7: Überstd. ein erlaubt | AM7: Normalstd. eingegeben | AN7: Überstd. eingegeben | AO7: Normal VON möglich OG | AP7: Normal VON möglich UG | AQ7: Normal BIS möglich OG | AR7: Normal BIS möglich UG | AS7: Normal VON 15min | AT7: Normal VON richtig | AU7: Normal BIS 15min | AV7: Normal BIS richtig | AW7: ZA-Kern Von | AX7: ZA-Kern Bis | AY7: ZA-Kern | AZ7: Über VON Obergrenze | BA7: Über VON Untergrenze | BB7: Über BIS Obergrenze | BC7: Über BIS Untergrenze | BD7: Über VON 15min | BE7: Über VON richtig | BF7: Überl BIS 15min | BG7: Über BIS richtig | BH7: Status Zeilen Eingabe
A8: =IF($R8,$Q8,"") -> 2023-05-01 | B8: =IF($R8,VLOOKUP(WEEKDAY($Q8,2),WOTA,2,FALSE),"") -> Mo | C8: =IF($R8," "&IF($S8="",VLOOKUP($Q8,FListe,3,FALSE),$S8),"") -> Staatsfeiertag | E8: =IF(AND($R8,$T8<>"F"),IF($AC8=$AF8,"keine NAZ",TEXT($AC8,"hh:mm")&"-"&TEXT($AF8,"hh:mm")),"") ->  | F8: =IF($R8,IF($T8="F",0,VLOOKUP($B8,GAZ,I_GAZNAZ,FALSE)),"") -> 00:00:00 | I8: =IF(Zeitmodus="Gleitzeit",IF($U8="F","",IF(AND($R8,$AM8,NOT($Y8)),ROUND(($V8-$F8)*24,2),IF($D8="Z",$F8*-24,""))),IF(OR($D8="Z",AND($AM8,$U8="A",W8<0)),ROUND($W8*24,2),"")) ->  | J8: =IF($R8,$X8,"") -> 0 | K8: =IF(AND($U8="F",$AM8),ROUND($V8*24,2),"") ->  | N8: =IF(Zeitmodus="Gleitzeit",IF(AND($R8,$AN8,$M8-$L8<>0,$AL8),ROUND(($M8-$L8)*24,2),""),IF(AND($AM8,$U8="A",W8>0),ROUND(W8*24,2),"")) ->  | Q8: =DATE(Jahr,$Q2,1) -> 2023-05-01 | R8: =$Q$2=MONTH($Q8) -> TRUE | S8: =IF(OR($D8="U",$D8="Z",$D8="ZK",$D8="K"),VLOOKUP($D8,UZK,2,FALSE),"") ->  | T8: =IF($R8,VLOOKUP($Q8,FListe,4,FALSE),"") -> F | U8: =IF($R8,VLOOKUP($Q8,FListe,5,FALSE),"") -> F | V8: =$H8-$G8 -> 0 | W8: =IF($R8,ROUND($V8-$F8,15),"") -> 0 | X8: =IF($I8<>"",$X7+$I8,$X7) -> 0 | Y8: =($W8=0) -> TRUE | Z8: =($W8>0) -> FALSE | AA8: =($W8<0) -> FALSE | AB8: =IF(ISNA(VLOOKUP($B8,GAZ,AB$7,FALSE)),"",VLOOKUP($B8,GAZ,AB$7,FALSE)) -> 07:00:00 | AC8: 08:00:00 | AD8: =IF(ISNA(VLOOKUP($B8,GAZ,AD$7,FALSE)),"",IF($AC8=$AF8,$G8,VLOOKUP($B8,GAZ,AD$7,FALSE))) -> 09:00:00 | AE8: =IF(ISNA(VLOOKUP($B8,GAZ,AE$7,FALSE)),"",IF($AC8=$AF8,$H8,VLOOKUP($B8,GAZ,AE$7,FALSE))) -> 14:00:00 | AF8: 16:00:00 | AG8: 18:00:00 | AH8: =OR($G8<>"",$H8<>"",$L8<>"",$M8<>"") -> FALSE | AI8: =AND($T8<>"F",NOT($AH8),NOT($AC8=$AF8)) -> FALSE | AJ8: =AND($AI8,OR($D8="U",$D8="Z",$D8="K")) -> FALSE | AK8: =AND($D8<>"U",$D8<>"Z",$D8<>"K",$R8) -> TRUE | AL8: =AND(Zeitmodus=C_Gleitzeit,$U8<>"F",OR($B8="Sa",AND($AM8,$I8>=0,NOT($AY8)))) -> FALSE | AM8: =AND($G8<>"",$H8<>"") -> FALSE | AN8: =OR($K8<>"",AND($L8<>"",$M8<>"")) -> FALSE | AO8: =IF($AK8,TagUG,"") -> 00:00:00 | AP8: =IF($AK8,IF($H8="",IF(AND($L8<>"",$L8<$AG8),$L8,IF(AND($M8<>"",$M8<$AG8),$M8,TagOG)),$H8),"") -> 23:59:00 | AQ8: =IF($AK8,IF($G8="",$AB8,$G8),"") -> 07:00:00 | AR8: =IF($AK8,IF(AND($L8<>"",$L8<$AG8),$L8,IF(AND($M8<>"",$M8<$AG8),$M8,TagOG)),"") -> 23:59:00 | AS8: =MOD($G8*24,0.25)=0 -> TRUE | AT8: =AND($AK8,ISNUMBER($G8),$G8>=$AO8,$G8<=$AP8) -> FALSE | AU8: =MOD($H8*24,0.25)=0 -> TRUE | AV8: =AND($AK8,ISNUMBER($H8),$H8>=$AQ8,$H8<=$AR8) -> FALSE | AW8: =AND(Zeitmodus=C_Gleitzeit,$B8<>"Sa",$G8<>"",$G8>$AD8) -> FALSE | AX8: =AND(Zeitmodus=C_Gleitzeit,$B8<>"Sa",$H8<>"",$H8<$AE8) -> FALSE | AY8: =AND($U8<>"F",OR($AW8,$AX8)) -> FALSE | AZ8: =IF($B8="Sa",IF($H8<>"",$H8,TIME(0,0,0)),IF($AL8,IF(AND($H8<>"",$H8>$AF8),$H8,$AF8),"")) ->  | BA8: =IF($AL8,IF($M8<>"",$M8,$BC8),"") ->  | BB8: =IF($B8="Sa",IF($L8="",TIME(0,0,0),$L8),IF($AL8,IF($L8<>"",$L8,IF(AND($H8<>"",$H8>$AF8),$H8,$AF8)),"")) ->  | BC8: =IF($AL8,TIME(23,59,0),"") ->  | BD8: =MOD($L8*24,0.25)=0 -> TRUE | BE8: =AND($AL8,ISNUMBER($L8),$L8>=$AZ8,$BA8>=$L8) -> FALSE | BF8: =MOD($M8*24,0.25)=0 -> TRUE | BG8: =AND($AL8,ISNUMBER($M8),$M8>=$BB8,$M8<=$BC8) -> FALSE | BH8: =IF(AND(ISBLANK($D8),ISBLANK($G8),ISBLANK($H8),ISBLANK($L8),ISBLANK($M8),ISBLANK($P8)),0,1) -> 0
A9: =IF($R9,$Q9,"") -> 2023-05-02 | B9: Di | E9: =IF(AND($R9,$T9<>"F"),IF($AC9=$AF9,"keine NAZ",TEXT($AC9,"hh:mm")&"-"&TEXT($AF9,"hh:mm")),"") -> 08:00-16:00 | F9: 08:00:00 | J9: 0 | K9: =IF(AND($U9="F",$AM9),ROUND($V9*24,2),"") ->  | Q9: =Q8+1 -> 2023-05-02 | R9: TRUE | T9: A | U9: A | V9: 0 | W9: -0.3333333333 | X9: 0 | Y9: FALSE | Z9: FALSE | AA9: TRUE | AB9: 07:00:00 | AC9: 08:00:00 | AD9: 09:00:00 | AE9: 14:00:00 | AF9: 16:00:00 | AG9: 18:00:00 | AH9: FALSE | AI9: =AND($T9<>"F",NOT($AH9),NOT($AC9=$AF9)) -> TRUE | AJ9: FALSE | AK9: TRUE | AL9: =AND(Zeitmodus=C_Gleitzeit,$U9<>"F",OR($B9="Sa",AND($AM9,$I9>=0,NOT($AY9)))) -> FALSE | AM9: FALSE | AN9: =OR($K9<>"",AND($L9<>"",$M9<>"")) -> FALSE | AO9: 00:00:00 | AP9: 23:59:00 | AQ9: =IF($AK9,IF($G9="",TagUG,$G9),"") -> 00:00:00 | AR9: 23:59:00 | AS9: TRUE | AT9: FALSE | AU9: TRUE | AV9: FALSE | AW9: FALSE | AX9: FALSE | AY9: =AND($U9<>"F",OR($AW9,$AX9)) -> FALSE | BD9: TRUE | BE9: FALSE | BF9: TRUE | BG9: FALSE | BH9: 0
A10: 2023-05-03 | B10: Mi | E10: 08:00-16:00 | F10: 08:00:00 | J10: 0 | Q10: 2023-05-03 | R10: TRUE | T10: A | U10: A | V10: 0 | W10: -0.3333333333 | X10: 0 | Y10: FALSE | Z10: FALSE | AA10: TRUE | AB10: 07:00:00 | AC10: 08:00:00 | AD10: 09:00:00 | AE10: 14:00:00 | AF10: 16:00:00 | AG10: 18:00:00 | AH10: FALSE | AI10: TRUE | AJ10: FALSE | AK10: TRUE | AL10: FALSE | AM10: FALSE | AN10: FALSE | AO10: 00:00:00 | AP10: 23:59:00 | AQ10: 00:00:00 | AR10: 23:59:00 | AS10: TRUE | AT10: FALSE | AU10: TRUE | AV10: FALSE | AW10: FALSE | AX10: FALSE | AY10: FALSE | BD10: TRUE | BE10: FALSE | BF10: TRUE | BG10: FALSE | BH10: 0
A11: 2023-05-04 | B11: Do | E11: 08:00-16:00 | F11: 08:00:00 | J11: 0 | Q11: 2023-05-04 | R11: TRUE | T11: A | U11: A | V11: 0 | W11: -0.3333333333 | X11: 0 | Y11: FALSE | Z11: FALSE | AA11: TRUE | AB11: 07:00:00 | AC11: 08:00:00 | AD11: 09:00:00 | AE11: 14:00:00 | AF11: 16:00:00 | AG11: 18:00:00 | AH11: FALSE | AI11: TRUE | AJ11: FALSE | AK11: TRUE | AL11: FALSE | AM11: FALSE | AN11: FALSE | AO11: 00:00:00 | AP11: 23:59:00 | AQ11: 00:00:00 | AR11: 23:59:00 | AS11: TRUE | AT11: FALSE | AU11: TRUE | AV11: FALSE | AW11: FALSE | AX11: FALSE | AY11: FALSE | BD11: TRUE | BE11: FALSE | BF11: TRUE | BG11: FALSE | BH11: 0
A12: 2023-05-05 | B12: Fr | E12: 08:00-16:00 | F12: 08:00:00 | J12: 0 | Q12: 2023-05-05 | R12: TRUE | T12: A | U12: A | V12: 0 | W12: -0.3333333333 | X12: 0 | Y12: FALSE | Z12: FALSE | AA12: TRUE | AB12: 07:00:00 | AC12: 08:00:00 | AD12: 09:00:00 | AE12: 12:00:00 | AF12: 16:00:00 | AG12: 18:00:00 | AH12: FALSE | AI12: TRUE | AJ12: FALSE | AK12: TRUE | AL12: FALSE | AM12: FALSE | AN12: FALSE | AO12: 00:00:00 | AP12: 23:59:00 | AQ12: 00:00:00 | AR12: 23:59:00 | AS12: TRUE | AT12: FALSE | AU12: TRUE | AV12: FALSE | AW12: FALSE | AX12: FALSE | AY12: FALSE | BD12: TRUE | BE12: FALSE | BF12: TRUE | BG12: FALSE | BH12: 0
A13: 2023-05-06 | B13: Sa | C13: Wochenende | F13: 00:00:00 | J13: 0 | Q13: 2023-05-06 | R13: TRUE | T13: F | U13: A | V13: 0 | W13: 0 | X13: 0 | Y13: TRUE | Z13: FALSE | AA13: FALSE | AH13: FALSE | AI13: FALSE | AJ13: FALSE | AK13: TRUE | AL13: TRUE | AM13: FALSE | AN13: FALSE | AO13: 00:00:00 | AP13: 23:59:00 | AQ13: 00:00:00 | AR13: 23:59:00 | AS13: TRUE | AT13: FALSE | AU13: TRUE | AV13: FALSE | AW13: FALSE | AX13: FALSE | AY13: FALSE | AZ13: 00:00:00 | BA13: 23:59:00 | BB13: 00:00:00 | BC13: 23:59:00 | BD13: TRUE | BE13: FALSE | BF13: TRUE | BG13: FALSE | BH13: 0
A14: 2023-05-07 | B14: So | C14: Wochenende | F14: 00:00:00 | J14: 0 | Q14: 2023-05-07 | R14: TRUE | T14: F | U14: F | V14: 0 | W14: 0 | X14: 0 | Y14: TRUE | Z14: FALSE | AA14: FALSE | AH14: FALSE | AI14: FALSE | AJ14: FALSE | AK14: TRUE | AL14: FALSE | AM14: FALSE | AN14: FALSE | AO14: 00:00:00 | AP14: 23:59:00 | AQ14: 00:00:00 | AR14: 23:59:00 | AS14: TRUE | AT14: FALSE | AU14: TRUE | AV14: FALSE | AW14: FALSE | AX14: FALSE | AY14: FALSE | BD14: TRUE | BE14: FALSE | BF14: TRUE | BG14: FALSE | BH14: 0
A15: 2023-05-08 | B15: Mo | E15: 08:00-16:00 | F15: 08:00:00 | J15: 0 | Q15: 2023-05-08 | R15: TRUE | T15: A | U15: A | V15: 0 | W15: -0.3333333333 | X15: 0 | Y15: FALSE | Z15: FALSE | AA15: TRUE | AB15: 07:00:00 | AC15: 08:00:00 | AD15: 09:00:00 | AE15: 14:00:00 | AF15: 16:00:00 | AG15: 18:00:00 | AH15: FALSE | AI15: TRUE | AJ15: FALSE | AK15: TRUE | AL15: FALSE | AM15: FALSE | AN15: FALSE | AO15: 00:00:00 | AP15: 23:59:00 | AQ15: 00:00:00 | AR15: 23:59:00 | AS15: TRUE | AT15: FALSE | AU15: TRUE | AV15: FALSE | AW15: FALSE | AX15: FALSE | AY15: FALSE | BD15: TRUE | BE15: FALSE | BF15: TRUE | BG15: FALSE | BH15: 0
A16: 2023-05-09 | B16: Di | E16: 08:00-16:00 | F16: 08:00:00 | J16: 0 | Q16: 2023-05-09 | R16: TRUE | T16: A | U16: A | V16: 0 | W16: -0.3333333333 | X16: 0 | Y16: FALSE | Z16: FALSE | AA16: TRUE | AB16: 07:00:00 | AC16: 08:00:00 | AD16: 09:00:00 | AE16: 14:00:00 | AF16: 16:00:00 | AG16: 18:00:00 | AH16: FALSE | AI16: TRUE | AJ16: FALSE | AK16: TRUE | AL16: FALSE | AM16: FALSE | AN16: FALSE | AO16: 00:00:00 | AP16: 23:59:00 | AQ16: 00:00:00 | AR16: 23:59:00 | AS16: TRUE | AT16: FALSE | AU16: TRUE | AV16: FALSE | AW16: FALSE | AX16: FALSE | AY16: FALSE | BD16: TRUE | BE16: FALSE | BF16: TRUE | BG16: FALSE | BH16: 0
A17: 2023-05-10 | B17: Mi | E17: 08:00-16:00 | F17: 08:00:00 | J17: 0 | Q17: 2023-05-10 | R17: TRUE | T17: A | U17: A | V17: 0 | W17: -0.3333333333 | X17: 0 | Y17: FALSE | Z17: FALSE | AA17: TRUE | AB17: 07:00:00 | AC17: 08:00:00 | AD17: 09:00:00 | AE17: 14:00:00 | AF17: 16:00:00 | AG17: 18:00:00 | AH17: FALSE | AI17: TRUE | AJ17: FALSE | AK17: TRUE | AL17: FALSE | AM17: FALSE | AN17: FALSE | AO17: 00:00:00 | AP17: 23:59:00 | AQ17: 00:00:00 | AR17: 23:59:00 | AS17: TRUE | AT17: FALSE | AU17: TRUE | AV17: FALSE | AW17: FALSE | AX17: FALSE | AY17: FALSE | BD17: TRUE | BE17: FALSE | BF17: TRUE | BG17: FALSE | BH17: 0
A18: 2023-05-11 | B18: Do | E18: 08:00-16:00 | F18: 08:00:00 | J18: 0 | Q18: 2023-05-11 | R18: TRUE | T18: A | U18: A | V18: 0 | W18: -0.3333333333 | X18: 0 | Y18: FALSE | Z18: FALSE | AA18: TRUE | AB18: 07:00:00 | AC18: 08:00:00 | AD18: 09:00:00 | AE18: 14:00:00 | AF18: 16:00:00 | AG18: 18:00:00 | AH18: FALSE | AI18: TRUE | AJ18: FALSE | AK18: TRUE | AL18: FALSE | AM18: FALSE | AN18: FALSE | AO18: 00:00:00 | AP18: 23:59:00 | AQ18: 00:00:00 | AR18: 23:59:00 | AS18: TRUE | AT18: FALSE | AU18: TRUE | AV18: FALSE | AW18: FALSE | AX18: FALSE | AY18: FALSE | BD18: TRUE | BE18: FALSE | BF18: TRUE | BG18: FALSE | BH18: 0
A19: 2023-05-12 | B19: Fr | E19: 08:00-16:00 | F19: 08:00:00 | J19: 0 | Q19: 2023-05-12 | R19: TRUE | T19: A | U19: A | V19: 0 | W19: -0.3333333333 | X19: 0 | Y19: FALSE | Z19: FALSE | AA19: TRUE | AB19: 07:00:00 | AC19: 08:00:00 | AD19: 09:00:00 | AE19: 12:00:00 | AF19: 16:00:00 | AG19: 18:00:00 | AH19: FALSE | AI19: TRUE | AJ19: FALSE | AK19: TRUE | AL19: FALSE | AM19: FALSE | AN19: FALSE | AO19: 00:00:00 | AP19: 23:59:00 | AQ19: 00:00:00 | AR19: 23:59:00 | AS19: TRUE | AT19: FALSE | AU19: TRUE | AV19: FALSE | AW19: FALSE | AX19: FALSE | AY19: FALSE | BD19: TRUE | BE19: FALSE | BF19: TRUE | BG19: FALSE | BH19: 0
A20: 2023-05-13 | B20: Sa | C20: Wochenende | F20: 00:00:00 | J20: 0 | Q20: 2023-05-13 | R20: TRUE | T20: F | U20: A | V20: 0 | W20: 0 | X20: 0 | Y20: TRUE | Z20: FALSE | AA20: FALSE | AH20: FALSE | AI20: FALSE | AJ20: FALSE | AK20: TRUE | AL20: TRUE | AM20: FALSE | AN20: FALSE | AO20: 00:00:00 | AP20: 23:59:00 | AQ20: 00:00:00 | AR20: 23:59:00 | AS20: TRUE | AT20: FALSE | AU20: TRUE | AV20: FALSE | AW20: FALSE | AX20: FALSE | AY20: FALSE | AZ20: 00:00:00 | BA20: 23:59:00 | BB20: 00:00:00 | BC20: 23:59:00 | BD20: TRUE | BE20: FALSE | BF20: TRUE | BG20: FALSE | BH20: 0
A21: 2023-05-14 | B21: So | C21: Muttertag | F21: 00:00:00 | J21: 0 | Q21: 2023-05-14 | R21: TRUE | T21: F | U21: F | V21: 0 | W21: 0 | X21: 0 | Y21: TRUE | Z21: FALSE | AA21: FALSE | AH21: FALSE | AI21: FALSE | AJ21: FALSE | AK21: TRUE | AL21: FALSE | AM21: FALSE | AN21: FALSE | AO21: 00:00:00 | AP21: 23:59:00 | AQ21: 00:00:00 | AR21: 23:59:00 | AS21: TRUE | AT21: FALSE | AU21: TRUE | AV21: FALSE | AW21: FALSE | AX21: FALSE | AY21: FALSE | BD21: TRUE | BE21: FALSE | BF21: TRUE | BG21: FALSE | BH21: 0
A22: 2023-05-15 | B22: Mo | E22: 08:00-16:00 | F22: 08:00:00 | J22: 0 | Q22: 2023-05-15 | R22: TRUE | T22: A | U22: A | V22: 0 | W22: -0.3333333333 | X22: 0 | Y22: FALSE | Z22: FALSE | AA22: TRUE | AB22: 07:00:00 | AC22: 08:00:00 | AD22: 09:00:00 | AE22: 14:00:00 | AF22: 16:00:00 | AG22: 18:00:00 | AH22: FALSE | AI22: TRUE | AJ22: FALSE | AK22: TRUE | AL22: FALSE | AM22: FALSE | AN22: FALSE | AO22: 00:00:00 | AP22: 23:59:00 | AQ22: 00:00:00 | AR22: 23:59:00 | AS22: TRUE | AT22: FALSE | AU22: TRUE | AV22: FALSE | AW22: FALSE | AX22: FALSE | AY22: FALSE | BD22: TRUE | BE22: FALSE | BF22: TRUE | BG22: FALSE | BH22: 0
A23: 2023-05-16 | B23: Di | E23: 08:00-16:00 | F23: 08:00:00 | J23: 0 | Q23: 2023-05-16 | R23: TRUE | T23: A | U23: A | V23: 0 | W23: -0.3333333333 | X23: 0 | Y23: FALSE | Z23: FALSE | AA23: TRUE | AB23: 07:00:00 | AC23: 08:00:00 | AD23: 09:00:00 | AE23: 14:00:00 | AF23: 16:00:00 | AG23: 18:00:00 | AH23: FALSE | AI23: TRUE | AJ23: FALSE | AK23: TRUE | AL23: FALSE | AM23: FALSE | AN23: FALSE | AO23: 00:00:00 | AP23: 23:59:00 | AQ23: 00:00:00 | AR23: 23:59:00 | AS23: TRUE | AT23: FALSE | AU23: TRUE | AV23: FALSE | AW23: FALSE | AX23: FALSE | AY23: FALSE | BD23: TRUE | BE23: FALSE | BF23: TRUE | BG23: FALSE | BH23: 0
A24: 2023-05-17 | B24: Mi | E24: 08:00-16:00 | F24: 08:00:00 | J24: 0 | Q24: 2023-05-17 | R24: TRUE | T24: A | U24: A | V24: 0 | W24: -0.3333333333 | X24: 0 | Y24: FALSE | Z24: FALSE | AA24: TRUE | AB24: =IF(ISNA(VLOOKUP($B24,GAZ,AB$7,FALSE)),"",VLOOKUP($B24,GAZ,AB$7,FALSE)) -> 07:00:00 | AC24: 08:00:00 | AD24: 09:00:00 | AE24: 14:00:00 | AF24: 16:00:00 | AG24: 18:00:00 | AH24: FALSE | AI24: TRUE | AJ24: FALSE | AK24: TRUE | AL24: FALSE | AM24: FALSE | AN24: FALSE | AO24: 00:00:00 | AP24: 23:59:00 | AQ24: 00:00:00 | AR24: 23:59:00 | AS24: TRUE | AT24: FALSE | AU24: TRUE | AV24: FALSE | AW24: FALSE | AX24: FALSE | AY24: FALSE | BD24: TRUE | BE24: FALSE | BF24: TRUE | BG24: FALSE | BH24: 0
A25: 2023-05-18 | B25: Do | C25: Christi Himmelfahrt | F25: 00:00:00 | J25: 0 | Q25: 2023-05-18 | R25: TRUE | T25: F | U25: F | V25: 0 | W25: 0 | X25: 0 | Y25: TRUE | Z25: FALSE | AA25: FALSE | AB25: 07:00:00 | AC25: 08:00:00 | AD25: 09:00:00 | AE25: 14:00:00 | AF25: 16:00:00 | AG25: 18:00:00 | AH25: FALSE | AI25: FALSE | AJ25: FALSE | AK25: TRUE | AL25: FALSE | AM25: FALSE | AN25: FALSE | AO25: 00:00:00 | AP25: 23:59:00 | AQ25: 00:00:00 | AR25: 23:59:00 | AS25: TRUE | AT25: FALSE | AU25: TRUE | AV25: FALSE | AW25: FALSE | AX25: FALSE | AY25: FALSE | BD25: TRUE | BE25: FALSE | BF25: TRUE | BG25: FALSE | BH25: 0
A26: 2023-05-19 | B26: Fr | E26: 08:00-16:00 | F26: 08:00:00 | J26: 0 | Q26: 2023-05-19 | R26: TRUE | T26: A | U26: A | V26: 0 | W26: -0.3333333333 | X26: 0 | Y26: FALSE | Z26: FALSE | AA26: TRUE | AB26: 07:00:00 | AC26: 08:00:00 | AD26: 09:00:00 | AE26: 12:00:00 | AF26: 16:00:00 | AG26: 18:00:00 | AH26: FALSE | AI26: TRUE | AJ26: FALSE | AK26: TRUE | AL26: FALSE | AM26: FALSE | AN26: FALSE | AO26: 00:00:00 | AP26: 23:59:00 | AQ26: 00:00:00 | AR26: 23:59:00 | AS26: TRUE | AT26: FALSE | AU26: TRUE | AV26: FALSE | AW26: FALSE | AX26: FALSE | AY26: FALSE | BD26: TRUE | BE26: FALSE | BF26: TRUE | BG26: FALSE | BH26: 0
A27: 2023-05-20 | B27: Sa | C27: Wochenende | F27: 00:00:00 | J27: 0 | Q27: 2023-05-20 | R27: TRUE | T27: F | U27: A | V27: 0 | W27: 0 | X27: 0 | Y27: TRUE | Z27: FALSE | AA27: FALSE | AH27: FALSE | AI27: FALSE | AJ27: FALSE | AK27: TRUE | AL27: TRUE | AM27: FALSE | AN27: FALSE | AO27: 00:00:00 | AP27: 23:59:00 | AQ27: 00:00:00 | AR27: 23:59:00 | AS27: TRUE | AT27: FALSE | AU27: TRUE | AV27: FALSE | AW27: FALSE | AX27: FALSE | AY27: FALSE | AZ27: 00:00:00 | BA27: 23:59:00 | BB27: 00:00:00 | BC27: 23:59:00 | BD27: TRUE | BE27: FALSE | BF27: TRUE | BG27: FALSE | BH27: 0
A28: 2023-05-21 | B28: So | C28: Wochenende | F28: 00:00:00 | J28: 0 | Q28: 2023-05-21 | R28: TRUE | T28: F | U28: F | V28: 0 | W28: 0 | X28: 0 | Y28: TRUE | Z28: FALSE | AA28: FALSE | AH28: FALSE | AI28: FALSE | AJ28: FALSE | AK28: TRUE | AL28: FALSE | AM28: FALSE | AN28: FALSE | AO28: 00:00:00 | AP28: 23:59:00 | AQ28: 00:00:00 | AR28: 23:59:00 | AS28: TRUE | AT28: FALSE | AU28: TRUE | AV28: FALSE | AW28: FALSE | AX28: FALSE | AY28: FALSE | BD28: TRUE | BE28: FALSE | BF28: TRUE | BG28: FALSE | BH28: 0
A29: 2023-05-22 | B29: Mo | E29: 08:00-16:00 | F29: 08:00:00 | J29: 0 | Q29: 2023-05-22 | R29: TRUE | T29: A | U29: A | V29: 0 | W29: -0.3333333333 | X29: 0 | Y29: FALSE | Z29: FALSE | AA29: TRUE | AB29: 07:00:00 | AC29: 08:00:00 | AD29: 09:00:00 | AE29: 14:00:00 | AF29: 16:00:00 | AG29: 18:00:00 | AH29: FALSE | AI29: TRUE | AJ29: FALSE | AK29: TRUE | AL29: FALSE | AM29: FALSE | AN29: FALSE | AO29: 00:00:00 | AP29: 23:59:00 | AQ29: 00:00:00 | AR29: 23:59:00 | AS29: TRUE | AT29: FALSE | AU29: TRUE | AV29: FALSE | AW29: FALSE | AX29: FALSE | AY29: FALSE | BD29: TRUE | BE29: FALSE | BF29: TRUE | BG29: FALSE | BH29: 0
A30: 2023-05-23 | B30: Di | E30: 08:00-16:00 | F30: 08:00:00 | J30: 0 | Q30: 2023-05-23 | R30: TRUE | T30: A | U30: A | V30: 0 | W30: -0.3333333333 | X30: 0 | Y30: FALSE | Z30: FALSE | AA30: TRUE | AB30: 07:00:00 | AC30: 08:00:00 | AD30: 09:00:00 | AE30: 14:00:00 | AF30: 16:00:00 | AG30: 18:00:00 | AH30: FALSE | AI30: TRUE | AJ30: FALSE | AK30: TRUE | AL30: FALSE | AM30: FALSE | AN30: FALSE | AO30: 00:00:00 | AP30: 23:59:00 | AQ30: 00:00:00 | AR30: 23:59:00 | AS30: TRUE | AT30: FALSE | AU30: TRUE | AV30: FALSE | AW30: FALSE | AX30: FALSE | AY30: FALSE | BD30: TRUE | BE30: FALSE | BF30: TRUE | BG30: FALSE | BH30: 0
A31: 2023-05-24 | B31: Mi | E31: 08:00-16:00 | F31: 08:00:00 | J31: 0 | Q31: 2023-05-24 | R31: TRUE | T31: A | U31: A | V31: 0 | W31: -0.3333333333 | X31: 0 | Y31: FALSE | Z31: FALSE | AA31: TRUE | AB31: 07:00:00 | AC31: 08:00:00 | AD31: 09:00:00 | AE31: 14:00:00 | AF31: 16:00:00 | AG31: 18:00:00 | AH31: FALSE | AI31: TRUE | AJ31: FALSE | AK31: TRUE | AL31: FALSE | AM31: FALSE | AN31: FALSE | AO31: 00:00:00 | AP31: 23:59:00 | AQ31: 00:00:00 | AR31: 23:59:00 | AS31: TRUE | AT31: FALSE | AU31: TRUE | AV31: FALSE | AW31: FALSE | AX31: FALSE | AY31: FALSE | BD31: TRUE | BE31: FALSE | BF31: TRUE | BG31: FALSE | BH31: 0
A32: 2023-05-25 | B32: Do | E32: 08:00-16:00 | F32: 08:00:00 | J32: 0 | Q32: 2023-05-25 | R32: TRUE | T32: A | U32: A | V32: 0 | W32: -0.3333333333 | X32: 0 | Y32: FALSE | Z32: FALSE | AA32: TRUE | AB32: 07:00:00 | AC32: 08:00:00 | AD32: 09:00:00 | AE32: 14:00:00 | AF32: 16:00:00 | AG32: 18:00:00 | AH32: FALSE | AI32: TRUE | AJ32: FALSE | AK32: TRUE | AL32: FALSE | AM32: FALSE | AN32: FALSE | AO32: 00:00:00 | AP32: 23:59:00 | AQ32: 00:00:00 | AR32: 23:59:00 | AS32: TRUE | AT32: FALSE | AU32: TRUE | AV32: FALSE | AW32: FALSE | AX32: FALSE | AY32: FALSE | BD32: TRUE | BE32: FALSE | BF32: TRUE | BG32: FALSE | BH32: 0
A33: 2023-05-26 | B33: Fr | E33: 08:00-16:00 | F33: 08:00:00 | J33: 0 | Q33: 2023-05-26 | R33: TRUE | T33: A | U33: A | V33: 0 | W33: -0.3333333333 | X33: 0 | Y33: FALSE | Z33: FALSE | AA33: TRUE | AB33: 07:00:00 | AC33: 08:00:00 | AD33: 09:00:00 | AE33: 12:00:00 | AF33: 16:00:00 | AG33: 18:00:00 | AH33: FALSE | AI33: TRUE | AJ33: FALSE | AK33: TRUE | AL33: FALSE | AM33: FALSE | AN33: FALSE | AO33: 00:00:00 | AP33: 23:59:00 | AQ33: 00:00:00 | AR33: 23:59:00 | AS33: TRUE | AT33: FALSE | AU33: TRUE | AV33: FALSE | AW33: FALSE | AX33: FALSE | AY33: FALSE | BD33: TRUE | BE33: FALSE | BF33: TRUE | BG33: FALSE | BH33: 0
A34: 2023-05-27 | B34: Sa | C34: Wochenende | F34: 00:00:00 | J34: 0 | Q34: 2023-05-27 | R34: TRUE | T34: F | U34: A | V34: 0 | W34: 0 | X34: 0 | Y34: TRUE | Z34: FALSE | AA34: FALSE | AH34: FALSE | AI34: FALSE | AJ34: FALSE | AK34: TRUE | AL34: TRUE | AM34: FALSE | AN34: FALSE | AO34: 00:00:00 | AP34: 23:59:00 | AQ34: 00:00:00 | AR34: 23:59:00 | AS34: TRUE | AT34: FALSE | AU34: TRUE | AV34: FALSE | AW34: FALSE | AX34: FALSE | AY34: FALSE | AZ34: 00:00:00 | BA34: 23:59:00 | BB34: 00:00:00 | BC34: 23:59:00 | BD34: TRUE | BE34: FALSE | BF34: TRUE | BG34: FALSE | BH34: 0
A35: 2023-05-28 | B35: So | C35: Pfingsten | F35: 00:00:00 | J35: 0 | Q35: 2023-05-28 | R35: TRUE | T35: F | U35: F | V35: 0 | W35: 0 | X35: 0 | Y35: TRUE | Z35: FALSE | AA35: FALSE | AH35: FALSE | AI35: FALSE | AJ35: FALSE | AK35: TRUE | AL35: FALSE | AM35: FALSE | AN35: FALSE | AO35: 00:00:00 | AP35: 23:59:00 | AQ35: 00:00:00 | AR35: 23:59:00 | AS35: TRUE | AT35: FALSE | AU35: TRUE | AV35: FALSE | AW35: FALSE | AX35: FALSE | AY35: FALSE | BD35: TRUE | BE35: FALSE | BF35: TRUE | BG35: FALSE | BH35: 0
A36: 2023-05-29 | B36: Mo | C36: Pfingstmontag | F36: 00:00:00 | J36: 0 | Q36: 2023-05-29 | R36: TRUE | T36: F | U36: F | V36: 0 | W36: 0 | X36: 0 | Y36: TRUE | Z36: FALSE | AA36: FALSE | AB36: 07:00:00 | AC36: 08:00:00 | AD36: 09:00:00 | AE36: 14:00:00 | AF36: 16:00:00 | AG36: 18:00:00 | AH36: FALSE | AI36: FALSE | AJ36: FALSE | AK36: TRUE | AL36: FALSE | AM36: FALSE | AN36: FALSE | AO36: 00:00:00 | AP36: 23:59:00 | AQ36: 00:00:00 | AR36: 23:59:00 | AS36: TRUE | AT36: FALSE | AU36: TRUE | AV36: FALSE | AW36: FALSE | AX36: FALSE | AY36: FALSE | BD36: TRUE | BE36: FALSE | BF36: TRUE | BG36: FALSE | BH36: 0
A37: 2023-05-30 | B37: Di | E37: 08:00-16:00 | F37: 08:00:00 | J37: 0 | Q37: 2023-05-30 | R37: TRUE | T37: A | U37: A | V37: 0 | W37: -0.3333333333 | X37: 0 | Y37: FALSE | Z37: FALSE | AA37: TRUE | AB37: 07:00:00 | AC37: 08:00:00 | AD37: 09:00:00 | AE37: 14:00:00 | AF37: 16:00:00 | AG37: 18:00:00 | AH37: FALSE | AI37: TRUE | AJ37: FALSE | AK37: TRUE | AL37: FALSE | AM37: FALSE | AN37: FALSE | AO37: 00:00:00 | AP37: 23:59:00 | AQ37: 00:00:00 | AR37: 23:59:00 | AS37: TRUE | AT37: FALSE | AU37: TRUE | AV37: FALSE | AW37: FALSE | AX37: FALSE | AY37: FALSE | BD37: TRUE | BE37: FALSE | BF37: TRUE | BG37: FALSE | BH37: 0
A38: 2023-05-31 | B38: Mi | E38: 08:00-16:00 | F38: 08:00:00 | J38: =IF($R38,$X38,"") -> 0 | Q38: 2023-05-31 | R38: TRUE | T38: A | U38: A | V38: 0 | W38: -0.3333333333 | X38: 0 | Y38: FALSE | Z38: FALSE | AA38: TRUE | AB38: 07:00:00 | AC38: 08:00:00 | AD38: 09:00:00 | AE38: 14:00:00 | AF38: 16:00:00 | AG38: 18:00:00 | AH38: FALSE | AI38: TRUE | AJ38: FALSE | AK38: TRUE | AL38: FALSE | AM38: FALSE | AN38: FALSE | AO38: 00:00:00 | AP38: 23:59:00 | AQ38: 00:00:00 | AR38: 23:59:00 | AS38: TRUE | AT38: FALSE | AU38: TRUE | AV38: FALSE | AW38: FALSE | AX38: FALSE | AY38: FALSE | BD38: TRUE | BE38: FALSE | BF38: TRUE | BG38: FALSE | BH38: 0
A39: Arbeitstage | B39: =COUNTIF(T$8:T$38,"A") -> 20 | E39: ="Saldo Monat (~15min) > " -> Saldo Monat (~15min) > | I39: =ROUND(SUM(I8:I38)*4,0)/4 -> 0 | K39: =SUM(K8:K38) -> 0 | L39: < ÜS1:2 | N39: =SUM(N8:N38) -> 0 | O39: =IF(Zeitmodell="Vollzeit"," < ÜS1:1,5 "," < ÜS1:1,25 ")&Zeitmodell -> < ÜS1:1,5 Vollzeit | Q39: Zeitmodell Text
A40: Freie Tage | B40: =COUNTIF(T$8:T$38,"F") -> 11 | E40: ="Saldo "&IF(Zeitmodell="Vollzeit","1:1,5","1:1,25")& " (~15min) > " -> Saldo 1:1,5 (~15min) > | I40: =ROUND($N40*4,0)/4 -> 0 | N40: =IF(Zeitmodell="Vollzeit",$N39*1.5,$N39*1.25) -> 0 | O40: =IF(Zeitmodell="Vollzeit"," < 1:1,5 "," < 1:1,25 ")&$Q40 -> < 1:1,5 Stunden berechnen | Q40: Stunden berechnen
A41: ZK-Tage | B41: 0 | E41: Saldo 1:2 (~15min) > | I41: =ROUND($N41*4,0)/4 -> 0 | N41: =K39*2 -> 0 | O41: < 1:2 Stunden berechnen
A42: ZA-Tage | B42: =COUNTIF(D$8:D$38,"Z") -> 0 | E42: Saldo Vormonat > | I42: =$J5 -> 0 | Q42: Gültigkeit ausbezahlt
A43: Urlaubstage | B43: =COUNTIF(D$8:D$38,"U") -> 0 | E43: Saldo Gesamt > | I43: =SUM(I39:I42) -> 0 | K43: =IF($I$43>=$R$2,"< Hier ausbezahlte Std. eingeben. (Die Eingabe ist hier erst ab < einem Saldo von "&TEXT($R$2,"#.##0,00")&" Std., und nur in 0,25-Schritten möglich.)","") ->  | Q43: =IF(AND($J$43<>"",NOT(ISNUMBER($J$43))),FALSE,OR(AND($J$43>=0,$J$43<=$I$43,MOD($J$43,0.25)=0),$J$43="")) -> TRUE
A44: Krank | B44: =COUNTIF(D$8:D$38,"K") -> 0 | E44: Saldo Übertrag > | I44: =$I43-$J43 -> 0 | J44: =" < Dieser Stunden-Saldo wird in das nächste "&IF($Q$3="Dezember","Jahr","Monat")&" übertragen" -> < Dieser Stunden-Saldo wird in das nächste Monat übertragen
D45: Z
A48: ="Unterschrift von "&Vorgesetzter -> Unterschrift von Vorname Nachname | L48: ="Unterschrift von "&Name -> Unterschrift von Vorname Nachname

Sheet Juni (hidden)
A1: BOKU-Zeiterfassung für Allgemeines Personal | Q1: Monat | R1: Stunden-Saldo Grenzen | S1: Status Blatteingabe
A2: =" Org.-Einh. : "&OrgEinheit -> Org.-Einh. : HXXXXX | F2: Zeitmodell: | I2: =" "&Zeitmodell -> Vollzeit | J2: Modus: | K2: =" "&Zeitmodus -> Gleitzeit | Q2: =IF(ISNA($Q$4),1,$Q$4) -> 6 | R2: =IF($Q$2=12,NormalOGDez,NormalOG) -> 72 | S2: =SUM($BH8:$BH38) -> 0
A3: =" Mitarbeiter/in: "&Name -> Mitarbeiter/in: Vorname Nachname | F3: Vorgesetzte/r: | I3: =" "&Vorgesetzter -> Vorname Nachname | Q3: =RIGHT(CELL("filename",A1),LEN(CELL("filename",A1))-SEARCH("]",CELL("filename",A1),1)) -> Juni | R3: =IF($Q$2=12,NormalUGDez,NormalUG) -> -24 | S3: =IF($Q$2=1,$S$2,$S$2+INDIRECT($S$5)) -> 0
A4: =" Monat: "&$Q$3&" "&Jahr -> Monat: Juni 2023 | E4: Dienstplan | G4: Normalstunden Feiertag-ÜS1:2 | J4: Übertrag | K4: Überstundenberechnung | O4: Unterschrift des Vorgesetzten | P4: Anmerkungen (z.B. Überstunden- notwendigkeit) | Q4: =IF(ISNA(VLOOKUP($Q$3,MTab,2,FALSE)),1,VLOOKUP($Q$3,MTab,2,FALSE)) -> 6 | S4: Übertrags Adresse Blatteingabe
A5: Datum | B5: Wochentag | C5: Tagesinformationen | E5: ="Wochen-AZ"&" "&TEXT(WAZ,"[hh]:mm") -> Wochen-AZ 40:00 | J5: =IF(ISNA($Q$5),Übertrag,INDIRECT($Q$5)) -> 0 | K5: ÜS1:2 | L5: =IF(Zeitmodell="Vollzeit"," Überstunden1:1,5"," Überstunden1:1,25") -> Überstunden1:1,5 | Q5: =IF(ISNA(VLOOKUP($Q$3,MTab,3,FALSE)),"Übertrag",VLOOKUP($Q$3,MTab,3,FALSE)) -> Mai!$I$44 | S5: =IF(ISNA(VLOOKUP($Q$3,MTab,4,FALSE)),$Q$3&"!$S$2",VLOOKUP($Q$3,MTab,4,FALSE)) -> Mai!$S$3
C6: Feiertage Wochenende Urlaub, ZA, Krank | D6: [U]rlaub [Z]A [ZK] [K]rank | E6: Normal- | F6: Soll | G6: Von | H6: Bis | I6: Plus | J6: Saldo | K6: Plus | L6: Von | M6: Bis | N6: Plus | Q6: Hintergrundberechnungen | X6: Saldo aktuell | AB6: GAZ-Tabellenabbildung | AH6: Eingabebeprüfungen
E7: Arbeitszeit | I7: Minus | J7: akuell | Q7: Datum | R7: Monat OK | S7: Abwesenh. | T7: Freie Tage | U7: ÜA-Tage | V7: Std. | W7: Soll-Std. | X7: =IF(ISNA($Q$5),Übertrag,INDIRECT($Q$5)) -> 0 | Y7: Std.-Soll = 0 | Z7: Std.-Soll > 0 | AA7: Std.-Soll < 0 | AB7: =I_GAZGRVon -> 2 | AC7: =I_GAZNAZVon -> 3 | AD7: =I_GAZKVon -> 4 | AE7: =I_GAZKBis -> 6 | AF7: =I_GAZNAZBis -> 7 | AG7: =I_GAZGRBis -> 8 | AH7: Zeiteingabe | AI7: UZK-Eing. erlaubt | AJ7: UZK-Eing. gültig | AK7: Normalst. ein erlaubt | AL7: Überstd. ein erlaubt | AM7: Normalstd. eingegeben | AN7: Überstd. eingegeben | AO7: Normal VON möglich OG | AP7: Normal VON möglich UG | AQ7: Normal BIS möglich OG | AR7: Normal BIS möglich UG | AS7: Normal VON 15min | AT7: Normal VON richtig | AU7: Normal BIS 15min | AV7: Normal BIS richtig | AW7: ZA-Kern Von | AX7: ZA-Kern Bis | AY7: ZA-Kern | AZ7: Über VON Obergrenze | BA7: Über VON Untergrenze | BB7: Über BIS Obergrenze | BC7: Über BIS Untergrenze | BD7: Über VON 15min | BE7: Über VON richtig | BF7: Überl BIS 15min | BG7: Über BIS richtig | BH7: Status Zeilen Eingabe
A8: =IF($R8,$Q8,"") -> 2023-06-01 | B8: =IF($R8,VLOOKUP(WEEKDAY($Q8,2),WOTA,2,FALSE),"") -> Do | C8: =IF($R8," "&IF($S8="",VLOOKUP($Q8,FListe,3,FALSE),$S8),"") ->  | E8: =IF(AND($R8,$T8<>"F"),IF($AC8=$AF8,"keine NAZ",TEXT($AC8,"hh:mm")&"-"&TEXT($AF8,"hh:mm")),"") -> 08:00-16:00 | F8: =IF($R8,IF($T8="F",0,VLOOKUP($B8,GAZ,I_GAZNAZ,FALSE)),"") -> 08:00:00 | I8: =IF(Zeitmodus="Gleitzeit",IF($U8="F","",IF(AND($R8,$AM8,NOT($Y8)),ROUND(($V8-$F8)*24,2),IF($D8="Z",$F8*-24,""))),IF(OR($D8="Z",AND($AM8,$U8="A",W8<0)),ROUND($W8*24,2),"")) ->  | J8: =IF($R8,$X8,"") -> 0 | K8: =IF(AND($U8="F",$AM8),ROUND($V8*24,2),"") ->  | N8: =IF(Zeitmodus="Gleitzeit",IF(AND($R8,$AN8,$M8-$L8<>0,$AL8),ROUND(($M8-$L8)*24,2),""),IF(AND($AM8,$U8="A",W8>0),ROUND(W8*24,2),"")) ->  | Q8: =DATE(Jahr,$Q2,1) -> 2023-06-01 | R8: =$Q$2=MONTH($Q8) -> TRUE | S8: =IF(OR($D8="U",$D8="Z",$D8="ZK",$D8="K"),VLOOKUP($D8,UZK,2,FALSE),"") ->  | T8: =IF($R8,VLOOKUP($Q8,FListe,4,FALSE),"") -> A | U8: =IF($R8,VLOOKUP($Q8,FListe,5,FALSE),"") -> A | V8: =$H8-$G8 -> 0 | W8: =IF($R8,ROUND($V8-$F8,15),"") -> -0.3333333333 | X8: =IF($I8<>"",$X7+$I8,$X7) -> 0 | Y8: =($W8=0) -> FALSE | Z8: =($W8>0) -> FALSE | AA8: =($W8<0) -> TRUE | AB8: =IF(ISNA(VLOOKUP($B8,GAZ,AB$7,FALSE)),"",VLOOKUP($B8,GAZ,AB$7,FALSE)) -> 07:00:00 | AC8: 08:00:00 | AD8: =IF(ISNA(VLOOKUP($B8,GAZ,AD$7,FALSE)),"",IF($AC8=$AF8,$G8,VLOOKUP($B8,GAZ,AD$7,FALSE))) -> 09:00:00 | AE8: =IF(ISNA(VLOOKUP($B8,GAZ,AE$7,FALSE)),"",IF($AC8=$AF8,$H8,VLOOKUP($B8,GAZ,AE$7,FALSE))) -> 14:00:00 | AF8: 16:00:00 | AG8: 18:00:00 | AH8: =OR($G8<>"",$H8<>"",$L8<>"",$M8<>"") -> FALSE | AI8: =AND($T8<>"F",NOT($AH8),NOT($AC8=$AF8)) -> TRUE | AJ8: =AND($AI8,OR($D8="U",$D8="Z",$D8="K")) -> FALSE | AK8: =AND($D8<>"U",$D8<>"Z",$D8<>"K",$R8) -> TRUE | AL8: =AND(Zeitmodus=C_Gleitzeit,$U8<>"F",OR($B8="Sa",AND($AM8,$I8>=0,NOT($AY8)))) -> FALSE | AM8: =AND($G8<>"",$H8<>"") -> FALSE | AN8: =OR($K8<>"",AND($L8<>"",$M8<>"")) -> FALSE | AO8: =IF($AK8,TagUG,"") -> 00:00:00 | AP8: =IF($AK8,IF($H8="",IF(AND($L8<>"",$L8<$AG8),$L8,IF(AND($M8<>"",$M8<$AG8),$M8,TagOG)),$H8),"") -> 23:59:00 | AQ8: =IF($AK8,IF($G8="",$AB8,$G8),"") -> 07:00:00 | AR8: =IF($AK8,IF(AND($L8<>"",$L8<$AG8),$L8,IF(AND($M8<>"",$M8<$AG8),$M8,TagOG)),"") -> 23:59:00 | AS8: =MOD($G8*24,0.25)=0 -> TRUE | AT8: =AND($AK8,ISNUMBER($G8),$G8>=$AO8,$G8<=$AP8) -> FALSE | AU8: =MOD($H8*24,0.25)=0 -> TRUE | AV8: =AND($AK8,ISNUMBER($H8),$H8>=$AQ8,$H8<=$AR8) -> FALSE | AW8: =AND(Zeitmodus=C_Gleitzeit,$B8<>"Sa",$G8<>"",$G8>$AD8) -> FALSE | AX8: =AND(Zeitmodus=C_Gleitzeit,$B8<>"Sa",$H8<>"",$H8<$AE8) -> FALSE | AY8: =AND($U8<>"F",OR($AW8,$AX8)) -> FALSE | AZ8: =IF($B8="Sa",IF($H8<>"",$H8,TIME(0,0,0)),IF($AL8,IF(AND($H8<>"",$H8>$AF8),$H8,$AF8),"")) ->  | BA8: =IF($AL8,IF($M8<>"",$M8,$BC8),"") ->  | BB8: =IF($B8="Sa",IF($L8="",TIME(0,0,0),$L8),IF($AL8,IF($L8<>"",$L8,IF(AND($H8<>"",$H8>$AF8),$H8,$AF8)),"")) ->  | BC8: =IF($AL8,TIME(23,59,0),"") ->  | BD8: =MOD($L8*24,0.25)=0 -> TRUE | BE8: =AND($AL8,ISNUMBER($L8),$L8>=$AZ8,$BA8>=$L8) -> FALSE | BF8: =MOD($M8*24,0.25)=0 -> TRUE | BG8: =AND($AL8,ISNUMBER($M8),$M8>=$BB8,$M8<=$BC8) -> FALSE | BH8: =IF(AND(ISBLANK($D8),ISBLANK($G8),ISBLANK($H8),ISBLANK($L8),ISBLANK($M8),ISBLANK($P8)),0,1) -> 0
A9: =IF($R9,$Q9,"") -> 2023-06-02 | B9: Fr | E9: =IF(AND($R9,$T9<>"F"),IF($AC9=$AF9,"keine NAZ",TEXT($AC9,"hh:mm")&"-"&TEXT($AF9,"hh:mm")),"") -> 08:00-16:00 | F9: 08:00:00 | J9: 0 | K9: =IF(AND($U9="F",$AM9),ROUND($V9*24,2),"") ->  | Q9: =Q8+1 -> 2023-06-02 | R9: TRUE | T9: A | U9: A | V9: 0 | W9: -0.3333333333 | X9: 0 | Y9: FALSE | Z9: FALSE | AA9: TRUE | AB9: 07:00:00 | AC9: 08:00:00 | AD9: 09:00:00 | AE9: 12:00:00 | AF9: 16:00:00 | AG9: 18:00:00 | AH9: FALSE | AI9: =AND($T9<>"F",NOT($AH9),NOT($AC9=$AF9)) -> TRUE | AJ9: FALSE | AK9: TRUE | AL9: =AND(Zeitmodus=C_Gleitzeit,$U9<>"F",OR($B9="Sa",AND($AM9,$I9>=0,NOT($AY9)))) -> FALSE | AM9: FALSE | AN9: =OR($K9<>"",AND($L9<>"",$M9<>"")) -> FALSE | AO9: 00:00:00 | AP9: 23:59:00 | AQ9: =IF($AK9,IF($G9="",TagUG,$G9),"") -> 00:00:00 | AR9: 23:59:00 | AS9: TRUE | AT9: FALSE | AU9: TRUE | AV9: FALSE | AW9: FALSE | AX9: FALSE | AY9: =AND($U9<>"F",OR($AW9,$AX9)) -> FALSE | BD9: TRUE | BE9: FALSE | BF9: TRUE | BG9: FALSE | BH9: 0
A10: 2023-06-03 | B10: Sa | C10: Wochenende | F10: 00:00:00 | J10: 0 | Q10: 2023-06-03 | R10: TRUE | T10: F | U10: A | V10: 0 | W10: 0 | X10: 0 | Y10: TRUE | Z10: FALSE | AA10: FALSE | AH10: FALSE | AI10: FALSE | AJ10: FALSE | AK10: TRUE | AL10: TRUE | AM10: FALSE | AN10: FALSE | AO10: 00:00:00 | AP10: 23:59:00 | AQ10: 00:00:00 | AR10: 23:59:00 | AS10: TRUE | AT10: FALSE | AU10: TRUE | AV10: FALSE | AW10: FALSE | AX10: FALSE | AY10: FALSE | AZ10: 00:00:00 | BA10: 23:59:00 | BB10: 00:00:00 | BC10: 23:59:00 | BD10: TRUE | BE10: FALSE | BF10: TRUE | BG10: FALSE | BH10: 0
A11: 2023-06-04 | B11: So | C11: Wochenende | F11: 00:00:00 | J11: 0 | Q11: 2023-06-04 | R11: TRUE | T11: F | U11: F | V11: 0 | W11: 0 | X11: 0 | Y11: TRUE | Z11: FALSE | AA11: FALSE | AH11: FALSE | AI11: FALSE | AJ11: FALSE | AK11: TRUE | AL11: FALSE | AM11: FALSE | AN11: FALSE | AO11: 00:00:00 | AP11: 23:59:00 | AQ11: 00:00:00 | AR11: 23:59:00 | AS11: TRUE | AT11: FALSE | AU11: TRUE | AV11: FALSE | AW11: FALSE | AX11: FALSE | AY11: FALSE | BD11: TRUE | BE11: FALSE | BF11: TRUE | BG11: FALSE | BH11: 0
A12: 2023-06-05 | B12: Mo | E12: 08:00-16:00 | F12: 08:00:00 | J12: 0 | Q12: 2023-06-05 | R12: TRUE | T12: A | U12: A | V12: 0 | W12: -0.3333333333 | X12: 0 | Y12: FALSE | Z12: FALSE | AA12: TRUE | AB12: 07:00:00 | AC12: 08:00:00 | AD12: 09:00:00 | AE12: 14:00:00 | AF12: 16:00:00 | AG12: 18:00:00 | AH12: FALSE | AI12: TRUE | AJ12: FALSE | AK12: TRUE | AL12: FALSE | AM12: FALSE | AN12: FALSE | AO12: 00:00:00 | AP12: 23:59:00 | AQ12: 00:00:00 | AR12: 23:59:00 | AS12: TRUE | AT12: FALSE | AU12: TRUE | AV12: FALSE | AW12: FALSE | AX12: FALSE | AY12: FALSE | BD12: TRUE | BE12: FALSE | BF12: TRUE | BG12: FALSE | BH12: 0
A13: 2023-06-06 | B13: Di | E13: 08:00-16:00 | F13: 08:00:00 | J13: 0 | Q13: 2023-06-06 | R13: TRUE | T13: A | U13: A | V13: 0 | W13: -0.3333333333 | X13: 0 | Y13: FALSE | Z13: FALSE | AA13: TRUE | AB13: 07:00:00 | AC13: 08:00:00 | AD13: 09:00:00 | AE13: 14:00:00 | AF13: 16:00:00 | AG13: 18:00:00 | AH13: FALSE | AI13: TRUE | AJ13: FALSE | AK13: TRUE | AL13: FALSE | AM13: FALSE | AN13: FALSE | AO13: 00:00:00 | AP13: 23:59:00 | AQ13: 00:00:00 | AR13: 23:59:00 | AS13: TRUE | AT13: FALSE | AU13: TRUE | AV13: FALSE | AW13: FALSE | AX13: FALSE | AY13: FALSE | BD13: TRUE | BE13: FALSE | BF13: TRUE | BG13: FALSE | BH13: 0
A14: 2023-06-07 | B14: Mi | E14: 08:00-16:00 | F14: 08:00:00 | J14: 0 | Q14: 2023-06-07 | R14: TRUE | T14: A | U14: A | V14: 0 | W14: -0.3333333333 | X14: 0 | Y14: FALSE | Z14: FALSE | AA14: TRUE | AB14: 07:00:00 | AC14: 08:00:00 | AD14: 09:00:00 | AE14: 14:00:00 | AF14: 16:00:00 | AG14: 18:00:00 | AH14: FALSE | AI14: TRUE | AJ14: FALSE | AK14: TRUE | AL14: FALSE | AM14: FALSE | AN14: FALSE | AO14: 00:00:00 | AP14: 23:59:00 | AQ14: 00:00:00 | AR14: 23:59:00 | AS14: TRUE | AT14: FALSE | AU14: TRUE | AV14: FALSE | AW14: FALSE | AX14: FALSE | AY14: FALSE | BD14: TRUE | BE14: FALSE | BF14: TRUE | BG14: FALSE | BH14: 0
A15: 2023-06-08 | B15: Do | C15: Fronleichnam | F15: 00:00:00 | J15: 0 | Q15: 2023-06-08 | R15: TRUE | T15: F | U15: F | V15: 0 | W15: 0 | X15: 0 | Y15: TRUE | Z15: FALSE | AA15: FALSE | AB15: 07:00:00 | AC15: 08:00:00 | AD15: 09:00:00 | AE15: 14:00:00 | AF15: 16:00:00 | AG15: 18:00:00 | AH15: FALSE | AI15: FALSE | AJ15: FALSE | AK15: TRUE | AL15: FALSE | AM15: FALSE | AN15: FALSE | AO15: 00:00:00 | AP15: 23:59:00 | AQ15: 00:00:00 | AR15: 23:59:00 | AS15: TRUE | AT15: FALSE | AU15: TRUE | AV15: FALSE | AW15: FALSE | AX15: FALSE | AY15: FALSE | BD15: TRUE | BE15: FALSE | BF15: TRUE | BG15: FALSE | BH15: 0
A16: 2023-06-09 | B16: Fr | E16: 08:00-16:00 | F16: 08:00:00 | J16: 0 | Q16: 2023-06-09 | R16: TRUE | T16: A | U16: A | V16: 0 | W16: -0.3333333333 | X16: 0 | Y16: FALSE | Z16: FALSE | AA16: TRUE | AB16: 07:00:00 | AC16: 08:00:00 | AD16: 09:00:00 | AE16: 12:00:00 | AF16: 16:00:00 | AG16: 18:00:00 | AH16: FALSE | AI16: TRUE | AJ16: FALSE | AK16: TRUE | AL16: FALSE | AM16: FALSE | AN16: FALSE | AO16: 00:00:00 | AP16: 23:59:00 | AQ16: 00:00:00 | AR16: 23:59:00 | AS16: TRUE | AT16: FALSE | AU16: TRUE | AV16: FALSE | AW16: FALSE | AX16: FALSE | AY16: FALSE | BD16: TRUE | BE16: FALSE | BF16: TRUE | BG16: FALSE | BH16: 0
A17: 2023-06-10 | B17: Sa | C17: Wochenende | F17: 00:00:00 | J17: 0 | Q17: 2023-06-10 | R17: TRUE | T17: F | U17: A | V17: 0 | W17: 0 | X17: 0 | Y17: TRUE | Z17: FALSE | AA17: FALSE | AH17: FALSE | AI17: FALSE | AJ17: FALSE | AK17: TRUE | AL17: TRUE | AM17: FALSE | AN17: FALSE | AO17: 00:00:00 | AP17: 23:59:00 | AQ17: 00:00:00 | AR17: 23:59:00 | AS17: TRUE | AT17: FALSE | AU17: TRUE | AV17: FALSE | AW17: FALSE | AX17: FALSE | AY17: FALSE | AZ17: 00:00:00 | BA17: 23:59:00 | BB17: 00:00:00 | BC17: 23:59:00 | BD17: TRUE | BE17: FALSE | BF17: TRUE | BG17: FALSE | BH17: 0
A18: 2023-06-11 | B18: So | C18: Vatertag | F18: 00:00:00 | J18: 0 | Q18: 2023-06-11 | R18: TRUE | T18: F | U18: F | V18: 0 | W18: 0 | X18: 0 | Y18: TRUE | Z18: FALSE | AA18: FALSE | AH18: FALSE | AI18: FALSE | AJ18: FALSE | AK18: TRUE | AL18: FALSE | AM18: FALSE | AN18: FALSE | AO18: 00:00:00 | AP18: 23:59:00 | AQ18: 00:00:00 | AR18: 23:59:00 | AS18: TRUE | AT18: FALSE | AU18: TRUE | AV18: FALSE | AW18: FALSE | AX18: FALSE | AY18: FALSE | BD18: TRUE | BE18: FALSE | BF18: TRUE | BG18: FALSE | BH18: 0
A19: 2023-06-12 | B19: Mo | E19: 08:00-16:00 | F19: 08:00:00 | J19: 0 | Q19: 2023-06-12 | R19: TRUE | T19: A | U19: A | V19: 0 | W19: -0.3333333333 | X19: 0 | Y19: FALSE | Z19: FALSE | AA19: TRUE | AB19: 07:00:00 | AC19: 08:00:00 | AD19: 09:00:00 | AE19: 14:00:00 | AF19: 16:00:00 | AG19: 18:00:00 | AH19: FALSE | AI19: TRUE | AJ19: FALSE | AK19: TRUE | AL19: FALSE | AM19: FALSE | AN19: FALSE | AO19: 00:00:00 | AP19: 23:59:00 | AQ19: 00:00:00 | AR19: 23:59:00 | AS19: TRUE | AT19: FALSE | AU19: TRUE | AV19: FALSE | AW19: FALSE | AX19: FALSE | AY19: FALSE | BD19: TRUE | BE19: FALSE | BF19: TRUE | BG19: FALSE | BH19: 0
A20: 2023-06-13 | B20: Di | E20: 08:00-16:00 | F20: 08:00:00 | J20: 0 | Q20: 2023-06-13 | R20: TRUE | T20: A | U20: A | V20: 0 | W20: -0.3333333333 | X20: 0 | Y20: FALSE | Z20: FALSE | AA20: TRUE | AB20: 07:00:00 | AC20: 08:00:00 | AD20: 09:00:00 | AE20: 14:00:00 | AF20: 16:00:00 | AG20: 18:00:00 | AH20: FALSE | AI20: TRUE | AJ20: FALSE | AK20: TRUE | AL20: FALSE | AM20: FALSE | AN20: FALSE | AO20: 00:00:00 | AP20: 23:59:00 | AQ20: 00:00:00 | AR20: 23:59:00 | AS20: TRUE | AT20: FALSE | AU20: TRUE | AV20: FALSE | AW20: FALSE | AX20: FALSE | AY20: FALSE | BD20: TRUE | BE20: FALSE | BF20: TRUE | BG20: FALSE | BH20: 0
A21: 2023-06-14 | B21: Mi | E21: 08:00-16:00 | F21: 08:00:00 | J21: 0 | Q21: 2023-06-14 | R21: TRUE | T21: A | U21: A | V21: 0 | W21: -0.3333333333 | X21: 0 | Y21: FALSE | Z21: FALSE | AA21: TRUE | AB21: 07:00:00 | AC21: 08:00:00 | AD21: 09:00:00 | AE21: 14:00:00 | AF21: 16:00:00 | AG21: 18:00:00 | AH21: FALSE | AI21: TRUE | AJ21: FALSE | AK21: TRUE | AL21: FALSE | AM21: FALSE | AN21: FALSE | AO21: 00:00:00 | AP21: 23:59:00 | AQ21: 00:00:00 | AR21: 23:59:00 | AS21: TRUE | AT21: FALSE | AU21: TRUE | AV21: FALSE | AW21: FALSE | AX21: FALSE | AY21: FALSE | BD21: TRUE | BE21: FALSE | BF21: TRUE | BG21: FALSE | BH21: 0
A22: 2023-06-15 | B22: Do | E22: 08:00-16:00 | F22: 08:00:00 | J22: 0 | Q22: 2023-06-15 | R22: TRUE | T22: A | U22: A | V22: 0 | W22: -0.3333333333 | X22: 0 | Y22: FALSE | Z22: FALSE | AA22: TRUE | AB22: 07:00:00 | AC22: 08:00:00 | AD22: 09:00:00 | AE22: 14:00:00 | AF22: 16:00:00 | AG22: 18:00:00 | AH22: FALSE | AI22: TRUE | AJ22: FALSE | AK22: TRUE | AL22: FALSE | AM22: FALSE | AN22: FALSE | AO22: 00:00:00 | AP22: 23:59:00 | AQ22: 00:00:00 | AR22: 23:59:00 | AS22: TRUE | AT22: FALSE | AU22: TRUE | AV22: FALSE | AW22: FALSE | AX22: FALSE | AY22: FALSE | BD22: TRUE | BE22: FALSE | BF22: TRUE | BG22: FALSE | BH22: 0
A23: 2023-06-16 | B23: Fr | E23: 08:00-16:00 | F23: 08:00:00 | J23: 0 | Q23: 2023-06-16 | R23: TRUE | T23: A | U23: A | V23: 0 | W23: -0.3333333333 | X23: 0 | Y23: FALSE | Z23: FALSE | AA23: TRUE | AB23: 07:00:00 | AC23: 08:00:00 | AD23: 09:00:00 | AE23: 12:00:00 | AF23: 16:00:00 | AG23: 18:00:00 | AH23: FALSE | AI23: TRUE | AJ23: FALSE | AK23: TRUE | AL23: FALSE | AM23: FALSE | AN23: FALSE | AO23: 00:00:00 | AP23: 23:59:00 | AQ23: 00:00:00 | AR23: 23:59:00 | AS23: TRUE | AT23: FALSE | AU23: TRUE | AV23: FALSE | AW23: FALSE | AX23: FALSE | AY23: FALSE | BD23: TRUE | BE23: FALSE | BF23: TRUE | BG23: FALSE | BH23: 0
A24: 2023-06-17 | B24: Sa | C24: Wochenende | F24: 00:00:00 | J24: 0 | Q24: 2023-06-17 | R24: TRUE | T24: F | U24: A | V24: 0 | W24: 0 | X24: 0 | Y24: TRUE | Z24: FALSE | AA24: FALSE | AB24: =IF(ISNA(VLOOKUP($B24,GAZ,AB$7,FALSE)),"",VLOOKUP($B24,GAZ,AB$7,FALSE)) ->  | AH24: FALSE | AI24: FALSE | AJ24: FALSE | AK24: TRUE | AL24: TRUE | AM24: FALSE | AN24: FALSE | AO24: 00:00:00 | AP24: 23:59:00 | AQ24: 00:00:00 | AR24: 23:59:00 | AS24: TRUE | AT24: FALSE | AU24: TRUE | AV24: FALSE | AW24: FALSE | AX24: FALSE | AY24: FALSE | AZ24: 00:00:00 | BA24: 23:59:00 | BB24: 00:00:00 | BC24: 23:59:00 | BD24: TRUE | BE24: FALSE | BF24: TRUE | BG24: FALSE | BH24: 0
A25: 2023-06-18 | B25: So | C25: Wochenende | F25: 00:00:00 | J25: 0 | Q25: 2023-06-18 | R25: TRUE | T25: F | U25: F | V25: 0 | W25: 0 | X25: 0 | Y25: TRUE | Z25: FALSE | AA25: FALSE | AH25: FALSE | AI25: FALSE | AJ25: FALSE | AK25: TRUE | AL25: FALSE | AM25: FALSE | AN25: FALSE | AO25: 00:00:00 | AP25: 23:59:00 | AQ25: 00:00:00 | AR25: 23:59:00 | AS25: TRUE | AT25: FALSE | AU25: TRUE | AV25: FALSE | AW25: FALSE | AX25: FALSE | AY25: FALSE | BD25: TRUE | BE25: FALSE | BF25: TRUE | BG25: FALSE | BH25: 0
A26: 2023-06-19 | B26: Mo | E26: 08:00-16:00 | F26: 08:00:00 | J26: 0 | Q26: 2023-06-19 | R26: TRUE | T26: A | U26: A | V26: 0 | W26: -0.3333333333 | X26: 0 | Y26: FALSE | Z26: FALSE | AA26: TRUE | AB26: 07:00:00 | AC26: 08:00:00 | AD26: 09:00:00 | AE26: 14:00:00 | AF26: 16:00:00 | AG26: 18:00:00 | AH26: FALSE | AI26: TRUE | AJ26: FALSE | AK26: TRUE | AL26: FALSE | AM26: FALSE | AN26: FALSE | AO26: 00:00:00 | AP26: 23:59:00 | AQ26: 00:00:00 | AR26: 23:59:00 | AS26: TRUE | AT26: FALSE | AU26: TRUE | AV26: FALSE | AW26: FALSE | AX26: FALSE | AY26: FALSE | BD26: TRUE | BE26: FALSE | BF26: TRUE | BG26: FALSE | BH26: 0
A27: 2023-06-20 | B27: Di | E27: 08:00-16:00 | F27: 08:00:00 | J27: 0 | Q27: 2023-06-20 | R27: TRUE | T27: A | U27: A | V27: 0 | W27: -0.3333333333 | X27: 0 | Y27: FALSE | Z27: FALSE | AA27: TRUE | AB27: 07:00:00 | AC27: 08:00:00 | AD27: 09:00:00 | AE27: 14:00:00 | AF27: 16:00:00 | AG27: 18:00:00 | AH27: FALSE | AI27: TRUE | AJ27: FALSE | AK27: TRUE | AL27: FALSE | AM27: FALSE | AN27: FALSE | AO27: 00:00:00 | AP27: 23:59:00 | AQ27: 00:00:00 | AR27: 23:59:00 | AS27: TRUE | AT27: FALSE | AU27: TRUE | AV27: FALSE | AW27: FALSE | AX27: FALSE | AY27: FALSE | BD27: TRUE | BE27: FALSE | BF27: TRUE | BG27: FALSE | BH27: 0
A28: 2023-06-21 | B28: Mi | E28: 08:00-16:00 | F28: 08:00:00 | J28: 0 | Q28: 2023-06-21 | R28: TRUE | T28: A | U28: A | V28: 0 | W28: -0.3333333333 | X28: 0 | Y28: FALSE | Z28: FALSE | AA28: TRUE | AB28: 07:00:00 | AC28: 08:00:00 | AD28: 09:00:00 | AE28: 14:00:00 | AF28: 16:00:00 | AG28: 18:00:00 | AH28: FALSE | AI28: TRUE | AJ28: FALSE | AK28: TRUE | AL28: FALSE | AM28: FALSE | AN28: FALSE | AO28: 00:00:00 | AP28: 23:59:00 | AQ28: 00:00:00 | AR28: 23:59:00 | AS28: TRUE | AT28: FALSE | AU28: TRUE | AV28: FALSE | AW28: FALSE | AX28: FALSE | AY28: FALSE | BD28: TRUE | BE28: FALSE | BF28: TRUE | BG28: FALSE | BH28: 0
A29: 2023-06-22 | B29: Do | E29: 08:00-16:00 | F29: 08:00:00 | J29: 0 | Q29: 2023-06-22 | R29: TRUE | T29: A | U29: A | V29: 0 | W29: -0.3333333333 | X29: 0 | Y29: FALSE | Z29: FALSE | AA29: TRUE | AB29: 07:00:00 | AC29: 08:00:00 | AD29: 09:00:00 | AE29: 14:00:00 | AF29: 16:00:00 | AG29: 18:00:00 | AH29: FALSE | AI29: TRUE | AJ29: FALSE | AK29: TRUE | AL29: FALSE | AM29: FALSE | AN29: FALSE | AO29: 00:00:00 | AP29: 23:59:00 | AQ29: 00:00:00 | AR29: 23:59:00 | AS29: TRUE | AT29: FALSE | AU29: TRUE | AV29: FALSE | AW29: FALSE | AX29: FALSE | AY29: FALSE | BD29: TRUE | BE29: FALSE | BF29: TRUE | BG29: FALSE | BH29: 0
A30: 2023-06-23 | B30: Fr | E30: 08:00-16:00 | F30: 08:00:00 | J30: 0 | Q30: 2023-06-23 | R30: TRUE | T30: A | U30: A | V30: 0 | W30: -0.3333333333 | X30: 0 | Y30: FALSE | Z30: FALSE | AA30: TRUE | AB30: 07:00:00 | AC30: 08:00:00 | AD30: 09:00:00 | AE30: 12:00:00 | AF30: 16:00:00 | AG30: 18:00:00 | AH30: FALSE | AI30: TRUE | AJ30: FALSE | AK30: TRUE | AL30: FALSE | AM30: FALSE | AN30: FALSE | AO30: 00:00:00 | AP30: 23:59:00 | AQ30: 00:00:00 | AR30: 23:59:00 | AS30: TRUE | AT30: FALSE | AU30: TRUE | AV30: FALSE | AW30: FALSE | AX30: FALSE | AY30: FALSE | BD30: TRUE | BE30: FALSE | BF30: TRUE | BG30: FALSE | BH30: 0
A31: 2023-06-24 | B31: Sa | C31: Wochenende | F31: 00:00:00 | J31: 0 | Q31: 2023-06-24 | R31: TRUE | T31: F | U31: A | V31: 0 | W31: 0 | X31: 0 | Y31: TRUE | Z31: FALSE | AA31: FALSE | AH31: FALSE | AI31: FALSE | AJ31: FALSE | AK31: TRUE | AL31: TRUE | AM31: FALSE | AN31: FALSE | AO31: 00:00:00 | AP31: 23:59:00 | AQ31: 00:00:00 | AR31: 23:59:00 | AS31: TRUE | AT31: FALSE | AU31: TRUE | AV31: FALSE | AW31: FALSE | AX31: FALSE | AY31: FALSE | AZ31: 00:00:00 | BA31: 23:59:00 | BB31: 00:00:00 | BC31: 23:59:00 | BD31: TRUE | BE31: FALSE | BF31: TRUE | BG31: FALSE | BH31: 0
A32: 2023-06-25 | B32: So | C32: Wochenende | F32: 00:00:00 | J32: 0 | Q32: 2023-06-25 | R32: TRUE | T32: F | U32: F | V32: 0 | W32: 0 | X32: 0 | Y32: TRUE | Z32: FALSE | AA32: FALSE | AH32: FALSE | AI32: FALSE | AJ32: FALSE | AK32: TRUE | AL32: FALSE | AM32: FALSE | AN32: FALSE | AO32: 00:00:00 | AP32: 23:59:00 | AQ32: 00:00:00 | AR32: 23:59:00 | AS32: TRUE | AT32: FALSE | AU32: TRUE | AV32: FALSE | AW32: FALSE | AX32: FALSE | AY32: FALSE | BD32: TRUE | BE32: FALSE | BF32: TRUE | BG32: FALSE | BH32: 0
A33: 2023-06-26 | B33: Mo | E33: 08:00-16:00 | F33: 08:00:00 | J33: 0 | Q33: 2023-06-26 | R33: TRUE | T33: A | U33: A | V33: 0 | W33: -0.3333333333 | X33: 0 | Y33: FALSE | Z33: FALSE | AA33: TRUE | AB33: 07:00:00 | AC33: 08:00:00 | AD33: 09:00:00 | AE33: 14:00:00 | AF33: 16:00:00 | AG33: 18:00:00 | AH33: FALSE | AI33: TRUE | AJ33: FALSE | AK33: TRUE | AL33: FALSE | AM33: FALSE | AN33: FALSE | AO33: 00:00:00 | AP33: 23:59:00 | AQ33: 00:00:00 | AR33: 23:59:00 | AS33: TRUE | AT33: FALSE | AU33: TRUE | AV33: FALSE | AW33: FALSE | AX33: FALSE | AY33: FALSE | BD33: TRUE | BE33: FALSE | BF33: TRUE | BG33: FALSE | BH33: 0
A34: 2023-06-27 | B34: Di | E34: 08:00-16:00 | F34: 08:00:00 | J34: 0 | Q34: 2023-06-27 | R34: TRUE | T34: A | U34: A | V34: 0 | W34: -0.3333333333 | X34: 0 | Y34: FALSE | Z34: FALSE | AA34: TRUE | AB34: 07:00:00 | AC34: 08:00:00 | AD34: 09:00:00 | AE34: 14:00:00 | AF34: 16:00:00 | AG34: 18:00:00 | AH34: FALSE | AI34: TRUE | AJ34: FALSE | AK34: TRUE | AL34: FALSE | AM34: FALSE | AN34: FALSE | AO34: 00:00:00 | AP34: 23:59:00 | AQ34: 00:00:00 | AR34: 23:59:00 | AS34: TRUE | AT34: FALSE | AU34: TRUE | AV34: FALSE | AW34: FALSE | AX34: FALSE | AY34: FALSE | BD34: TRUE | BE34: FALSE | BF34: TRUE | BG34: FALSE | BH34: 0
A35: 2023-06-28 | B35: Mi | E35: 08:00-16:00 | F35: 08:00:00 | J35: 0 | Q35: 2023-06-28 | R35: TRUE | T35: A | U35: A | V35: 0 | W35: -0.3333333333 | X35: 0 | Y35: FALSE | Z35: FALSE | AA35: TRUE | AB35: 07:00:00 | AC35: 08:00:00 | AD35: 09:00:00 | AE35: 14:00:00 | AF35: 16:00:00 | AG35: 18:00:00 | AH35: FALSE | AI35: TRUE | AJ35: FALSE | AK35: TRUE | AL35: FALSE | AM35: FALSE | AN35: FALSE | AO35: 00:00:00 | AP35: 23:59:00 | AQ35: 00:00:00 | AR35: 23:59:00 | AS35: TRUE | AT35: FALSE | AU35: TRUE | AV35: FALSE | AW35: FALSE | AX35: FALSE | AY35: FALSE | BD35: TRUE | BE35: FALSE | BF35: TRUE | BG35: FALSE | BH35: 0
A36: 2023-06-29 | B36: Do | E36: 08:00-16:00 | F36: 08:00:00 | J36: 0 | Q36: 2023-06-29 | R36: TRUE | T36: A | U36: A | V36: 0 | W36: -0.3333333333 | X36: 0 | Y36: FALSE | Z36: FALSE | AA36: TRUE | AB36: 07:00:00 | AC36: 08:00:00 | AD36: 09:00:00 | AE36: 14:00:00 | AF36: 16:00:00 | AG36: 18:00:00 | AH36: FALSE | AI36: TRUE | AJ36: FALSE | AK36: TRUE | AL36: FALSE | AM36: FALSE | AN36: FALSE | AO36: 00:00:00 | AP36: 23:59:00 | AQ36: 00:00:00 | AR36: 23:59:00 | AS36: TRUE | AT36: FALSE | AU36: TRUE | AV36: FALSE | AW36: FALSE | AX36: FALSE | AY36: FALSE | BD36: TRUE | BE36: FALSE | BF36: TRUE | BG36: FALSE | BH36: 0
A37: 2023-06-30 | B37: Fr | E37: 08:00-16:00 | F37: 08:00:00 | J37: 0 | Q37: 2023-06-30 | R37: TRUE | T37: A | U37: A | V37: 0 | W37: -0.3333333333 | X37: 0 | Y37: FALSE | Z37: FALSE | AA37: TRUE | AB37: 07:00:00 | AC37: 08:00:00 | AD37: 09:00:00 | AE37: 12:00:00 | AF37: 16:00:00 | AG37: 18:00:00 | AH37: FALSE | AI37: TRUE | AJ37: FALSE | AK37: TRUE | AL37: FALSE | AM37: FALSE | AN37: FALSE | AO37: 00:00:00 | AP37: 23:59:00 | AQ37: 00:00:00 | AR37: 23:59:00 | AS37: TRUE | AT37: FALSE | AU37: TRUE | AV37: FALSE | AW37: FALSE | AX37: FALSE | AY37: FALSE | BD37: TRUE | BE37: FALSE | BF37: TRUE | BG37: FALSE | BH37: 0
J38: =IF($R38,$X38,"") ->  | Q38: 2023-07-01 | R38: FALSE | V38: 0 | X38: 0 | Y38: FALSE | Z38: TRUE | AA38: FALSE | AH38: FALSE | AI38: FALSE | AJ38: FALSE | AK38: FALSE | AL38: FALSE | AM38: FALSE | AN38: FALSE | AS38: TRUE | AT38: FALSE | AU38: TRUE | AV38: FALSE | AW38: FALSE | AX38: FALSE | AY38: FALSE | BD38: TRUE | BE38: FALSE | BF38: TRUE | BG38: FALSE | BH38: 0
A39: Arbeitstage | B39: =COUNTIF(T$8:T$38,"A") -> 21 | E39: ="Saldo Monat (~15min) > " -> Saldo Monat (~15min) > | I39: =ROUND(SUM(I8:I38)*4,0)/4 -> 0 | K39: =SUM(K8:K38) -> 0 | L39: < ÜS1:2 | N39: =SUM(N8:N38) -> 0 | O39: =IF(Zeitmodell="Vollzeit"," < ÜS1:1,5 "," < ÜS1:1,25 ")&Zeitmodell -> < ÜS1:1,5 Vollzeit | Q39: Zeitmodell Text
A40: Freie Tage | B40: =COUNTIF(T$8:T$38,"F") -> 9 | E40: ="Saldo "&IF(Zeitmodell="Vollzeit","1:1,5","1:1,25")& " (~15min) > " -> Saldo 1:1,5 (~15min) > | I40: =ROUND($N40*4,0)/4 -> 0 | N40: =IF(Zeitmodell="Vollzeit",$N39*1.5,$N39*1.25) -> 0 | O40: =IF(Zeitmodell="Vollzeit"," < 1:1,5 "," < 1:1,25 ")&$Q40 -> < 1:1,5 Stunden berechnen | Q40: Stunden berechnen
A41: ZK-Tage | B41: 0 | E41: Saldo 1:2 (~15min) > | I41: =ROUND($N41*4,0)/4 -> 0 | N41: =K39*2 -> 0 | O41: < 1:2 Stunden berechnen
A42: ZA-Tage | B42: =COUNTIF(D$8:D$38,"Z") -> 0 | E42: Saldo Vormonat > | I42: =$J5 -> 0 | Q42: Gültigkeit ausbezahlt
A43: Urlaubstage | B43: =COUNTIF(D$8:D$38,"U") -> 0 | E43: Saldo Gesamt > | I43: =SUM(I39:I42) -> 0 | K43: =IF($I$43>=$R$2,"< Hier ausbezahlte Std. eingeben. (Die Eingabe ist hier erst ab < einem Saldo von "&TEXT($R$2,"#.##0,00")&" Std., und nur in 0,25-Schritten möglich.)","") ->  | Q43: =IF(AND($J$43<>"",NOT(ISNUMBER($J$43))),FALSE,OR(AND($J$43>=0,$J$43<=$I$43,MOD($J$43,0.25)=0),$J$43="")) -> TRUE
A44: Krank | B44: =COUNTIF(D$8:D$38,"K") -> 0 | E44: Saldo Übertrag > | I44: =$I43-$J43 -> 0 | J44: =" < Dieser Stunden-Saldo wird in das nächste "&IF($Q$3="Dezember","Jahr","Monat")&" übertragen" -> < Dieser Stunden-Saldo wird in das nächste Monat übertragen
D45: Z
A48: ="Unterschrift von "&Vorgesetzter -> Unterschrift von Vorname Nachname | L48: ="Unterschrift von "&Name -> Unterschrift von Vorname Nachname

Sheet Juli (hidden)
A1: BOKU-Zeiterfassung für Allgemeines Personal | Q1: Monat | R1: Stunden-Saldo Grenzen | S1: Status Blatteingabe
A2: =" Org.-Einh. : "&OrgEinheit -> Org.-Einh. : HXXXXX | F2: Zeitmodell: | I2: =" "&Zeitmodell -> Vollzeit | J2: Modus: | K2: =" "&Zeitmodus -> Gleitzeit | Q2: =IF(ISNA($Q$4),1,$Q$4) -> 7 | R2: =IF($Q$2=12,NormalOGDez,NormalOG) -> 72 | S2: =SUM($BH8:$BH38) -> 0
A3: =" Mitarbeiter/in: "&Name -> Mitarbeiter/in: Vorname Nachname | F3: Vorgesetzte/r: | I3: =" "&Vorgesetzter -> Vorname Nachname | Q3: =RIGHT(CELL("filename",A1),LEN(CELL("filename",A1))-SEARCH("]",CELL("filename",A1),1)) -> Juli | R3: =IF($Q$2=12,NormalUGDez,NormalUG) -> -24 | S3: =IF($Q$2=1,$S$2,$S$2+INDIRECT($S$5)) -> 0
A4: =" Monat: "&$Q$3&" "&Jahr -> Monat: Juli 2023 | E4: Dienstplan | G4: Normalstunden Feiertag-ÜS1:2 | J4: Übertrag | K4: Überstundenberechnung | O4: Unterschrift des Vorgesetzten | P4: Anmerkungen (z.B. Überstunden- notwendigkeit) | Q4: =IF(ISNA(VLOOKUP($Q$3,MTab,2,FALSE)),1,VLOOKUP($Q$3,MTab,2,FALSE)) -> 7 | S4: Übertrags Adresse Blatteingabe
A5: Datum | B5: Wochentag | C5: Tagesinformationen | E5: ="Wochen-AZ"&" "&TEXT(WAZ,"[hh]:mm") -> Wochen-AZ 40:00 | J5: =IF(ISNA($Q$5),Übertrag,INDIRECT($Q$5)) -> 0 | K5: ÜS1:2 | L5: =IF(Zeitmodell="Vollzeit"," Überstunden1:1,5"," Überstunden1:1,25") -> Überstunden1:1,5 | Q5: =IF(ISNA(VLOOKUP($Q$3,MTab,3,FALSE)),"Übertrag",VLOOKUP($Q$3,MTab,3,FALSE)) -> Juni!$I$44 | S5: =IF(ISNA(VLOOKUP($Q$3,MTab,4,FALSE)),$Q$3&"!$S$2",VLOOKUP($Q$3,MTab,4,FALSE)) -> Juni!$S$3
C6: Feiertage Wochenende Urlaub, ZA, Krank | D6: [U]rlaub [Z]A [ZK] [K]rank | E6: Normal- | F6: Soll | G6: Von | H6: Bis | I6: Plus | J6: Saldo | K6: Plus | L6: Von | M6: Bis | N6: Plus | Q6: Hintergrundberechnungen | X6: Saldo aktuell | AB6: GAZ-Tabellenabbildung | AH6: Eingabebeprüfungen
E7: Arbeitszeit | I7: Minus | J7: akuell | Q7: Datum | R7: Monat OK | S7: Abwesenh. | T7: Freie Tage | U7: ÜA-Tage | V7: Std. | W7: Soll-Std. | X7: =IF(ISNA($Q$5),Übertrag,INDIRECT($Q$5)) -> 0 | Y7: Std.-Soll = 0 | Z7: Std.-Soll > 0 | AA7: Std.-Soll < 0 | AB7: =I_GAZGRVon -> 2 | AC7: =I_GAZNAZVon -> 3 | AD7: =I_GAZKVon -> 4 | AE7: =I_GAZKBis -> 6 | AF7: =I_GAZNAZBis -> 7 | AG7: =I_GAZGRBis -> 8 | AH7: Zeiteingabe | AI7: UZK-Eing. erlaubt | AJ7: UZK-Eing. gültig | AK7: Normalst. ein erlaubt | AL7: Überstd. ein erlaubt | AM7: Normalstd. eingegeben | AN7: Überstd. eingegeben | AO7: Normal VON möglich OG | AP7: Normal VON möglich UG | AQ7: Normal BIS möglich OG | AR7: Normal BIS möglich UG | AS7: Normal VON 15min | AT7: Normal VON richtig | AU7: Normal BIS 15min | AV7: Normal BIS richtig | AW7: ZA-Kern Von | AX7: ZA-Kern Bis | AY7: ZA-Kern | AZ7: Über VON Obergrenze | BA7: Über VON Untergrenze | BB7: Über BIS Obergrenze | BC7: Über BIS Untergrenze | BD7: Über VON 15min | BE7: Über VON richtig | BF7: Überl BIS 15min | BG7: Über BIS richtig | BH7: Status Zeilen Eingabe
A8: =IF($R8,$Q8,"") -> 2023-07-01 | B8: =IF($R8,VLOOKUP(WEEKDAY($Q8,2),WOTA,2,FALSE),"") -> Sa | C8: =IF($R8," "&IF($S8="",VLOOKUP($Q8,FListe,3,FALSE),$S8),"") -> Wochenende | E8: =IF(AND($R8,$T8<>"F"),IF($AC8=$AF8,"keine NAZ",TEXT($AC8,"hh:mm")&"-"&TEXT($AF8,"hh:mm")),"") ->  | F8: =IF($R8,IF($T8="F",0,VLOOKUP($B8,GAZ,I_GAZNAZ,FALSE)),"") -> 00:00:00 | I8: =IF(Zeitmodus="Gleitzeit",IF($U8="F","",IF(AND($R8,$AM8,NOT($Y8)),ROUND(($V8-$F8)*24,2),IF($D8="Z",$F8*-24,""))),IF(OR($D8="Z",AND($AM8,$U8="A",W8<0)),ROUND($W8*24,2),"")) ->  | J8: =IF($R8,$X8,"") -> 0 | K8: =IF(AND($U8="F",$AM8),ROUND($V8*24,2),"") ->  | N8: =IF(Zeitmodus="Gleitzeit",IF(AND($R8,$AN8,$M8-$L8<>0,$AL8),ROUND(($M8-$L8)*24,2),""),IF(AND($AM8,$U8="A",W8>0),ROUND(W8*24,2),"")) ->  | Q8: =DATE(Jahr,$Q2,1) -> 2023-07-01 | R8: =$Q$2=MONTH($Q8) -> TRUE | S8: =IF(OR($D8="U",$D8="Z",$D8="ZK",$D8="K"),VLOOKUP($D8,UZK,2,FALSE),"") ->  | T8: =IF($R8,VLOOKUP($Q8,FListe,4,FALSE),"") -> F | U8: =IF($R8,VLOOKUP($Q8,FListe,5,FALSE),"") -> A | V8: =$H8-$G8 -> 0 | W8: =IF($R8,ROUND($V8-$F8,15),"") -> 0 | X8: =IF($I8<>"",$X7+$I8,$X7) -> 0 | Y8: =($W8=0) -> TRUE | Z8: =($W8>0) -> FALSE | AA8: =($W8<0) -> FALSE | AB8: =IF(ISNA(VLOOKUP($B8,GAZ,AB$7,FALSE)),"",VLOOKUP($B8,GAZ,AB$7,FALSE)) ->  | AD8: =IF(ISNA(VLOOKUP($B8,GAZ,AD$7,FALSE)),"",IF($AC8=$AF8,$G8,VLOOKUP($B8,GAZ,AD$7,FALSE))) ->  | AE8: =IF(ISNA(VLOOKUP($B8,GAZ,AE$7,FALSE)),"",IF($AC8=$AF8,$H8,VLOOKUP($B8,GAZ,AE$7,FALSE))) ->  | AH8: =OR($G8<>"",$H8<>"",$L8<>"",$M8<>"") -> FALSE | AI8: =AND($T8<>"F",NOT($AH8),NOT($AC8=$AF8)) -> FALSE | AJ8: =AND($AI8,OR($D8="U",$D8="Z",$D8="K")) -> FALSE | AK8: =AND($D8<>"U",$D8<>"Z",$D8<>"K",$R8) -> TRUE | AL8: =AND(Zeitmodus=C_Gleitzeit,$U8<>"F",OR($B8="Sa",AND($AM8,$I8>=0,NOT($AY8)))) -> TRUE | AM8: =AND($G8<>"",$H8<>"") -> FALSE | AN8: =OR($K8<>"",AND($L8<>"",$M8<>"")) -> FALSE | AO8: =IF($AK8,TagUG,"") -> 00:00:00 | AP8: =IF($AK8,IF($H8="",IF(AND($L8<>"",$L8<$AG8),$L8,IF(AND($M8<>"",$M8<$AG8),$M8,TagOG)),$H8),"") -> 23:59:00 | AQ8: =IF($AK8,IF($G8="",$AB8,$G8),"") ->  | AR8: =IF($AK8,IF(AND($L8<>"",$L8<$AG8),$L8,IF(AND($M8<>"",$M8<$AG8),$M8,TagOG)),"") -> 23:59:00 | AS8: =MOD($G8*24,0.25)=0 -> TRUE | AT8: =AND($AK8,ISNUMBER($G8),$G8>=$AO8,$G8<=$AP8) -> FALSE | AU8: =MOD($H8*24,0.25)=0 -> TRUE | AV8: =AND($AK8,ISNUMBER($H8),$H8>=$AQ8,$H8<=$AR8) -> FALSE | AW8: =AND(Zeitmodus=C_Gleitzeit,$B8<>"Sa",$G8<>"",$G8>$AD8) -> FALSE | AX8: =AND(Zeitmodus=C_Gleitzeit,$B8<>"Sa",$H8<>"",$H8<$AE8) -> FALSE | AY8: =AND($U8<>"F",OR($AW8,$AX8)) -> FALSE | AZ8: =IF($B8="Sa",IF($H8<>"",$H8,TIME(0,0,0)),IF($AL8,IF(AND($H8<>"",$H8>$AF8),$H8,$AF8),"")) -> 00:00:00 | BA8: =IF($AL8,IF($M8<>"",$M8,$BC8),"") -> 23:59:00 | BB8: =IF($B8="Sa",IF($L8="",TIME(0,0,0),$L8),IF($AL8,IF($L8<>"",$L8,IF(AND($H8<>"",$H8>$AF8),$H8,$AF8)),"")) -> 00:00:00 | BC8: =IF($AL8,TIME(23,59,0),"") -> 23:59:00 | BD8: =MOD($L8*24,0.25)=0 -> TRUE | BE8: =AND($AL8,ISNUMBER($L8),$L8>=$AZ8,$BA8>=$L8) -> FALSE | BF8: =MOD($M8*24,0.25)=0 -> TRUE | BG8: =AND($AL8,ISNUMBER($M8),$M8>=$BB8,$M8<=$BC8) -> FALSE | BH8: =IF(AND(ISBLANK($D8),ISBLANK($G8),ISBLANK($H8),ISBLANK($L8),ISBLANK($M8),ISBLANK($P8)),0,1) -> 0
A9: =IF($R9,$Q9,"") -> 2023-07-02 | B9: So | C9: Wochenende | E9: =IF(AND($R9,$T9<>"F"),IF($AC9=$AF9,"keine NAZ",TEXT($AC9,"hh:mm")&"-"&TEXT($AF9,"hh:mm")),"") ->  | F9: 00:00:00 | J9: 0 | K9: =IF(AND($U9="F",$AM9),ROUND($V9*24,2),"") ->  | Q9: =Q8+1 -> 2023-07-02 | R9: TRUE | T9: F | U9: F | V9: 0 | W9: 0 | X9: 0 | Y9: TRUE | Z9: FALSE | AA9: FALSE | AH9: FALSE | AI9: =AND($T9<>"F",NOT($AH9),NOT($AC9=$AF9)) -> FALSE | AJ9: FALSE | AK9: TRUE | AL9: =AND(Zeitmodus=C_Gleitzeit,$U9<>"F",OR($B9="Sa",AND($AM9,$I9>=0,NOT($AY9)))) -> FALSE | AM9: FALSE | AN9: =OR($K9<>"",AND($L9<>"",$M9<>"")) -> FALSE | AO9: 00:00:00 | AP9: 23:59:00 | AQ9: =IF($AK9,IF($G9="",TagUG,$G9),"") -> 00:00:00 | AR9: 23:59:00 | AS9: TRUE | AT9: FALSE | AU9: TRUE | AV9: FALSE | AW9: FALSE | AX9: FALSE | AY9: =AND($U9<>"F",OR($AW9,$AX9)) -> FALSE | BD9: TRUE | BE9: FALSE | BF9: TRUE | BG9: FALSE | BH9: 0
A10: 2023-07-03 | B10: Mo | E10: 08:00-16:00 | F10: 08:00:00 | J10: 0 | Q10: 2023-07-03 | R10: TRUE | T10: A | U10: A | V10: 0 | W10: -0.3333333333 | X10: 0 | Y10: FALSE | Z10: FALSE | AA10: TRUE | AB10: 07:00:00 | AC10: 08:00:00 | AD10: 09:00:00 | AE10: 14:00:00 | AF10: 16:00:00 | AG10: 18:00:00 | AH10: FALSE | AI10: TRUE | AJ10: FALSE | AK10: TRUE | AL10: FALSE | AM10: FALSE | AN10: FALSE | AO10: 00:00:00 | AP10: 23:59:00 | AQ10: 00:00:00 | AR10: 23:59:00 | AS10: TRUE | AT10: FALSE | AU10: TRUE | AV10: FALSE | AW10: FALSE | AX10: FALSE | AY10: FALSE | BD10: TRUE | BE10: FALSE | BF10: TRUE | BG10: FALSE | BH10: 0
A11: 2023-07-04 | B11: Di | E11: 08:00-16:00 | F11: 08:00:00 | J11: 0 | Q11: 2023-07-04 | R11: TRUE | T11: A | U11: A | V11: 0 | W11: -0.3333333333 | X11: 0 | Y11: FALSE | Z11: FALSE | AA11: TRUE | AB11: 07:00:00 | AC11: 08:00:00 | AD11: 09:00:00 | AE11: 14:00:00 | AF11: 16:00:00 | AG11: 18:00:00 | AH11: FALSE | AI11: TRUE | AJ11: FALSE | AK11: TRUE | AL11: FALSE | AM11: FALSE | AN11: FALSE | AO11: 00:00:00 | AP11: 23:59:00 | AQ11: 00:00:00 | AR11: 23:59:00 | AS11: TRUE | AT11: FALSE | AU11: TRUE | AV11: FALSE | AW11: FALSE | AX11: FALSE | AY11: FALSE | BD11: TRUE | BE11: FALSE | BF11: TRUE | BG11: FALSE | BH11: 0
A12: 2023-07-05 | B12: Mi | E12: 08:00-16:00 | F12: 08:00:00 | J12: 0 | Q12: 2023-07-05 | R12: TRUE | T12: A | U12: A | V12: 0 | W12: -0.3333333333 | X12: 0 | Y12: FALSE | Z12: FALSE | AA12: TRUE | AB12: 07:00:00 | AC12: 08:00:00 | AD12: 09:00:00 | AE12: 14:00:00 | AF12: 16:00:00 | AG12: 18:00:00 | AH12: FALSE | AI12: TRUE | AJ12: FALSE | AK12: TRUE | AL12: FALSE | AM12: FALSE | AN12: FALSE | AO12: 00:00:00 | AP12: 23:59:00 | AQ12: 00:00:00 | AR12: 23:59:00 | AS12: TRUE | AT12: FALSE | AU12: TRUE | AV12: FALSE | AW12: FALSE | AX12: FALSE | AY12: FALSE | BD12: TRUE | BE12: FALSE | BF12: TRUE | BG12: FALSE | BH12: 0
A13: 2023-07-06 | B13: Do | E13: 08:00-16:00 | F13: 08:00:00 | J13: 0 | Q13: 2023-07-06 | R13: TRUE | T13: A | U13: A | V13: 0 | W13: -0.3333333333 | X13: 0 | Y13: FALSE | Z13: FALSE | AA13: TRUE | AB13: 07:00:00 | AC13: 08:00:00 | AD13: 09:00:00 | AE13: 14:00:00 | AF13: 16:00:00 | AG13: 18:00:00 | AH13: FALSE | AI13: TRUE | AJ13: FALSE | AK13: TRUE | AL13: FALSE | AM13: FALSE | AN13: FALSE | AO13: 00:00:00 | AP13: 23:59:00 | AQ13: 00:00:00 | AR13: 23:59:00 | AS13: TRUE | AT13: FALSE | AU13: TRUE | AV13: FALSE | AW13: FALSE | AX13: FALSE | AY13: FALSE | BD13: TRUE | BE13: FALSE | BF13: TRUE | BG13: FALSE | BH13: 0
A14: 2023-07-07 | B14: Fr | E14: 08:00-16:00 | F14: 08:00:00 | J14: 0 | Q14: 2023-07-07 | R14: TRUE | T14: A | U14: A | V14: 0 | W14: -0.3333333333 | X14: 0 | Y14: FALSE | Z14: FALSE | AA14: TRUE | AB14: 07:00:00 | AC14: 08:00:00 | AD14: 09:00:00 | AE14: 12:00:00 | AF14: 16:00:00 | AG14: 18:00:00 | AH14: FALSE | AI14: TRUE | AJ14: FALSE | AK14: TRUE | AL14: FALSE | AM14: FALSE | AN14: FALSE | AO14: 00:00:00 | AP14: 23:59:00 | AQ14: 00:00:00 | AR14: 23:59:00 | AS14: TRUE | AT14: FALSE | AU14: TRUE | AV14: FALSE | AW14: FALSE | AX14: FALSE | AY14: FALSE | BD14: TRUE | BE14: FALSE | BF14: TRUE | BG14: FALSE | BH14: 0
A15: 2023-07-08 | B15: Sa | C15: Wochenende | F15: 00:00:00 | J15: 0 | Q15: 2023-07-08 | R15: TRUE | T15: F | U15: A | V15: 0 | W15: 0 | X15: 0 | Y15: TRUE | Z15: FALSE | AA15: FALSE | AH15: FALSE | AI15: FALSE | AJ15: FALSE | AK15: TRUE | AL15: TRUE | AM15: FALSE | AN15: FALSE | AO15: 00:00:00 | AP15: 23:59:00 | AQ15: 00:00:00 | AR15: 23:59:00 | AS15: TRUE | AT15: FALSE | AU15: TRUE | AV15: FALSE | AW15: FALSE | AX15: FALSE | AY15: FALSE | AZ15: 00:00:00 | BA15: 23:59:00 | BB15: 00:00:00 | BC15: 23:59:00 | BD15: TRUE | BE15: FALSE | BF15: TRUE | BG15: FALSE | BH15: 0
A16: 2023-07-09 | B16: So | C16: Wochenende | F16: 00:00:00 | J16: 0 | Q16: 2023-07-09 | R16: TRUE | T16: F | U16: F | V16: 0 | W16: 0 | X16: 0 | Y16: TRUE | Z16: FALSE | AA16: FALSE | AH16: FALSE | AI16: FALSE | AJ16: FALSE | AK16: TRUE | AL16: FALSE | AM16: FALSE | AN16: FALSE | AO16: 00:00:00 | AP16: 23:59:00 | AQ16: 00:00:00 | AR16: 23:59:00 | AS16: TRUE | AT16: FALSE | AU16: TRUE | AV16: FALSE | AW16: FALSE | AX16: FALSE | AY16: FALSE | BD16: TRUE | BE16: FALSE | BF16: TRUE | BG16: FALSE | BH16: 0
A17: 2023-07-10 | B17: Mo | E17: 08:00-16:00 | F17: 08:00:00 | J17: 0 | Q17: 2023-07-10 | R17: TRUE | T17: A | U17: A | V17: 0 | W17: -0.3333333333 | X17: 0 | Y17: FALSE | Z17: FALSE | AA17: TRUE | AB17: 07:00:00 | AC17: 08:00:00 | AD17: 09:00:00 | AE17: 14:00:00 | AF17: 16:00:00 | AG17: 18:00:00 | AH17: FALSE | AI17: TRUE | AJ17: FALSE | AK17: TRUE | AL17: FALSE | AM17: FALSE | AN17: FALSE | AO17: 00:00:00 | AP17: 23:59:00 | AQ17: 00:00:00 | AR17: 23:59:00 | AS17: TRUE | AT17: FALSE | AU17: TRUE | AV17: FALSE | AW17: FALSE | AX17: FALSE | AY17: FALSE | BD17: TRUE | BE17: FALSE | BF17: TRUE | BG17: FALSE | BH17: 0
A18: 2023-07-11 | B18: Di | E18: 08:00-16:00 | F18: 08:00:00 | J18: 0 | Q18: 2023-07-11 | R18: TRUE | T18: A | U18: A | V18: 0 | W18: -0.3333333333 | X18: 0 | Y18: FALSE | Z18: FALSE | AA18: TRUE | AB18: 07:00:00 | AC18: 08:00:00 | AD18: 09:00:00 | AE18: 14:00:00 | AF18: 16:00:00 | AG18: 18:00:00 | AH18: FALSE | AI18: TRUE | AJ18: FALSE | AK18: TRUE | AL18: FALSE | AM18: FALSE | AN18: FALSE | AO18: 00:00:00 | AP18: 23:59:00 | AQ18: 00:00:00 | AR18: 23:59:00 | AS18: TRUE | AT18: FALSE | AU18: TRUE | AV18: FALSE | AW18: FALSE | AX18: FALSE | AY18: FALSE | BD18: TRUE | BE18: FALSE | BF18: TRUE | BG18: FALSE | BH18: 0
A19: 2023-07-12 | B19: Mi | E19: 08:00-16:00 | F19: 08:00:00 | J19: 0 | Q19: 2023-07-12 | R19: TRUE | T19: A | U19: A | V19: 0 | W19: -0.3333333333 | X19: 0 | Y19: FALSE | Z19: FALSE | AA19: TRUE | AB19: 07:00:00 | AC19: 08:00:00 | AD19: 09:00:00 | AE19: 14:00:00 | AF19: 16:00:00 | AG19: 18:00:00 | AH19: FALSE | AI19: TRUE | AJ19: FALSE | AK19: TRUE | AL19: FALSE | AM19: FALSE | AN19: FALSE | AO19: 00:00:00 | AP19: 23:59:00 | AQ19: 00:00:00 | AR19: 23:59:00 | AS19: TRUE | AT19: FALSE | AU19: TRUE | AV19: FALSE | AW19: FALSE | AX19: FALSE | AY19: FALSE | BD19: TRUE | BE19: FALSE | BF19: TRUE | BG19: FALSE | BH19: 0
A20: 2023-07-13 | B20: Do | E20: 08:00-16:00 | F20: 08:00:00 | J20: 0 | Q20: 2023-07-13 | R20: TRUE | T20: A | U20: A | V20: 0 | W20: -0.3333333333 | X20: 0 | Y20: FALSE | Z20: FALSE | AA20: TRUE | AB20: 07:00:00 | AC20: 08:00:00 | AD20: 09:00:00 | AE20: 14:00:00 | AF20: 16:00:00 | AG20: 18:00:00 | AH20: FALSE | AI20: TRUE | AJ20: FALSE | AK20: TRUE | AL20: FALSE | AM20: FALSE | AN20: FALSE | AO20: 00:00:00 | AP20: 23:59:00 | AQ20: 00:00:00 | AR20: 23:59:00 | AS20: TRUE | AT20: FALSE | AU20: TRUE | AV20: FALSE | AW20: FALSE | AX20: FALSE | AY20: FALSE | BD20: TRUE | BE20: FALSE | BF20: TRUE | BG20: FALSE | BH20: 0
A21: 2023-07-14 | B21: Fr | E21: 08:00-16:00 | F21: 08:00:00 | J21: 0 | Q21: 2023-07-14 | R21: TRUE | T21: A | U21: A | V21: 0 | W21: -0.3333333333 | X21: 0 | Y21: FALSE | Z21: FALSE | AA21: TRUE | AB21: 07:00:00 | AC21: 08:00:00 | AD21: 09:00:00 | AE21: 12:00:00 | AF21: 16:00:00 | AG21: 18:00:00 | AH21: FALSE | AI21: TRUE | AJ21: FALSE | AK21: TRUE | AL21: FALSE | AM21: FALSE | AN21: FALSE | AO21: 00:00:00 | AP21: 23:59:00 | AQ21: 00:00:00 | AR21: 23:59:00 | AS21: TRUE | AT21: FALSE | AU21: TRUE | AV21: FALSE | AW21: FALSE | AX21: FALSE | AY21: FALSE | BD21: TRUE | BE21: FALSE | BF21: TRUE | BG21: FALSE | BH21: 0
A22: 2023-07-15 | B22: Sa | C22: Wochenende | F22: 00:00:00 | J22: 0 | Q22: 2023-07-15 | R22: TRUE | T22: F | U22: A | V22: 0 | W22: 0 | X22: 0 | Y22: TRUE | Z22: FALSE | AA22: FALSE | AH22: FALSE | AI22: FALSE | AJ22: FALSE | AK22: TRUE | AL22: TRUE | AM22: FALSE | AN22: FALSE | AO22: 00:00:00 | AP22: 23:59:00 | AQ22: 00:00:00 | AR22: 23:59:00 | AS22: TRUE | AT22: FALSE | AU22: TRUE | AV22: FALSE | AW22: FALSE | AX22: FALSE | AY22: FALSE | AZ22: 00:00:00 | BA22: 23:59:00 | BB22: 00:00:00 | BC22: 23:59:00 | BD22: TRUE | BE22: FALSE | BF22: TRUE | BG22: FALSE | BH22: 0
A23: 2023-07-16 | B23: So | C23: Wochenende | F23: 00:00:00 | J23: 0 | Q23: 2023-07-16 | R23: TRUE | T23: F | U23: F | V23: 0 | W23: 0 | X23: 0 | Y23: TRUE | Z23: FALSE | AA23: FALSE | AH23: FALSE | AI23: FALSE | AJ23: FALSE | AK23: TRUE | AL23: FALSE | AM23: FALSE | AN23: FALSE | AO23: 00:00:00 | AP23: 23:59:00 | AQ23: 00:00:00 | AR23: 23:59:00 | AS23: TRUE | AT23: FALSE | AU23: TRUE | AV23: FALSE | AW23: FALSE | AX23: FALSE | AY23: FALSE | BD23: TRUE | BE23: FALSE | BF23: TRUE | BG23: FALSE | BH23: 0
A24: 2023-07-17 | B24: Mo | E24: 08:00-16:00 | F24: 08:00:00 | J24: 0 | Q24: 2023-07-17 | R24: TRUE | T24: A | U24: A | V24: 0 | W24: -0.3333333333 | X24: 0 | Y24: FALSE | Z24: FALSE | AA24: TRUE | AB24: =IF(ISNA(VLOOKUP($B24,GAZ,AB$7,FALSE)),"",VLOOKUP($B24,GAZ,AB$7,FALSE)) -> 07:00:00 | AC24: 08:00:00 | AD24: 09:00:00 | AE24: 14:00:00 | AF24: 16:00:00 | AG24: 18:00:00 | AH24: FALSE | AI24: TRUE | AJ24: FALSE | AK24: TRUE | AL24: FALSE | AM24: FALSE | AN24: FALSE | AO24: 00:00:00 | AP24: 23:59:00 | AQ24: 00:00:00 | AR24: 23:59:00 | AS24: TRUE | AT24: FALSE | AU24: TRUE | AV24: FALSE | AW24: FALSE | AX24: FALSE | AY24: FALSE | BD24: TRUE | BE24: FALSE | BF24: TRUE | BG24: FALSE | BH24: 0
A25: 2023-07-18 | B25: Di | E25: 08:00-16:00 | F25: 08:00:00 | J25: 0 | Q25: 2023-07-18 | R25: TRUE | T25: A | U25: A | V25: 0 | W25: -0.3333333333 | X25: 0 | Y25: FALSE | Z25: FALSE | AA25: TRUE | AB25: 07:00:00 | AC25: 08:00:00 | AD25: 09:00:00 | AE25: 14:00:00 | AF25: 16:00:00 | AG25: 18:00:00 | AH25: FALSE | AI25: TRUE | AJ25: FALSE | AK25: TRUE | AL25: FALSE | AM25: FALSE | AN25: FALSE | AO25: 00:00:00 | AP25: 23:59:00 | AQ25: 00:00:00 | AR25: 23:59:00 | AS25: TRUE | AT25: FALSE | AU25: TRUE | AV25: FALSE | AW25: FALSE | AX25: FALSE | AY25: FALSE | BD25: TRUE | BE25: FALSE | BF25: TRUE | BG25: FALSE | BH25: 0
A26: 2023-07-19 | B26: Mi | E26: 08:00-16:00 | F26: 08:00:00 | J26: 0 | Q26: 2023-07-19 | R26: TRUE | T26: A | U26: A | V26: 0 | W26: -0.3333333333 | X26: 0 | Y26: FALSE | Z26: FALSE | AA26: TRUE | AB26: 07:00:00 | AC26: 08:00:00 | AD26: 09:00:00 | AE26: 14:00:00 | AF26: 16:00:00 | AG26: 18:00:00 | AH26: FALSE | AI26: TRUE | AJ26: FALSE | AK26: TRUE | AL26: FALSE | AM26: FALSE | AN26: FALSE | AO26: 00:00:00 | AP26: 23:59:00 | AQ26: 00:00:00 | AR26: 23:59:00 | AS26: TRUE | AT26: FALSE | AU26: TRUE | AV26: FALSE | AW26: FALSE | AX26: FALSE | AY26: FALSE | BD26: TRUE | BE26: FALSE | BF26: TRUE | BG26: FALSE | BH26: 0
A27: 2023-07-20 | B27: Do | E27: 08:00-16:00 | F27: 08:00:00 | J27: 0 | Q27: 2023-07-20 | R27: TRUE | T27: A | U27: A | V27: 0 | W27: -0.3333333333 | X27: 0 | Y27: FALSE | Z27: FALSE | AA27: TRUE | AB27: 07:00:00 | AC27: 08:00:00 | AD27: 09:00:00 | AE27: 14:00:00 | AF27: 16:00:00 | AG27: 18:00:00 | AH27: FALSE | AI27: TRUE | AJ27: FALSE | AK27: TRUE | AL27: FALSE | AM27: FALSE | AN27: FALSE | AO27: 00:00:00 | AP27: 23:59:00 | AQ27: 00:00:00 | AR27: 23:59:00 | AS27: TRUE | AT27: FALSE | AU27: TRUE | AV27: FALSE | AW27: FALSE | AX27: FALSE | AY27: FALSE | BD27: TRUE | BE27: FALSE | BF27: TRUE | BG27: FALSE | BH27: 0
A28: 2023-07-21 | B28: Fr | E28: 08:00-16:00 | F28: 08:00:00 | J28: 0 | Q28: 2023-07-21 | R28: TRUE | T28: A | U28: A | V28: 0 | W28: -0.3333333333 | X28: 0 | Y28: FALSE | Z28: FALSE | AA28: TRUE | AB28: 07:00:00 | AC28: 08:00:00 | AD28: 09:00:00 | AE28: 12:00:00 | AF28: 16:00:00 | AG28: 18:00:00 | AH28: FALSE | AI28: TRUE | AJ28: FALSE | AK28: TRUE | AL28: FALSE | AM28: FALSE | AN28: FALSE | AO28: 00:00:00 | AP28: 23:59:00 | AQ28: 00:00:00 | AR28: 23:59:00 | AS28: TRUE | AT28: FALSE | AU28: TRUE | AV28: FALSE | AW28: FALSE | AX28: FALSE | AY28: FALSE | BD28: TRUE | BE28: FALSE | BF28: TRUE | BG28: FALSE | BH28: 0
A29: 2023-07-22 | B29: Sa | C29: Wochenende | F29: 00:00:00 | J29: 0 | Q29: 2023-07-22 | R29: TRUE | T29: F | U29: A | V29: 0 | W29: 0 | X29: 0 | Y29: TRUE | Z29: FALSE | AA29: FALSE | AH29: FALSE | AI29: FALSE | AJ29: FALSE | AK29: TRUE | AL29: TRUE | AM29: FALSE | AN29: FALSE | AO29: 00:00:00 | AP29: 23:59:00 | AQ29: 00:00:00 | AR29: 23:59:00 | AS29: TRUE | AT29: FALSE | AU29: TRUE | AV29: FALSE | AW29: FALSE | AX29: FALSE | AY29: FALSE | AZ29: 00:00:00 | BA29: 23:59:00 | BB29: 00:00:00 | BC29: 23:59:00 | BD29: TRUE | BE29: FALSE | BF29: TRUE | BG29: FALSE | BH29: 0
A30: 2023-07-23 | B30: So | C30: Wochenende | F30: 00:00:00 | J30: 0 | Q30: 2023-07-23 | R30: TRUE | T30: F | U30: F | V30: 0 | W30: 0 | X30: 0 | Y30: TRUE | Z30: FALSE | AA30: FALSE | AH30: FALSE | AI30: FALSE | AJ30: FALSE | AK30: TRUE | AL30: FALSE | AM30: FALSE | AN30: FALSE | AO30: 00:00:00 | AP30: 23:59:00 | AQ30: 00:00:00 | AR30: 23:59:00 | AS30: TRUE | AT30: FALSE | AU30: TRUE | AV30: FALSE | AW30: FALSE | AX30: FALSE | AY30: FALSE | BD30: TRUE | BE30: FALSE | BF30: TRUE | BG30: FALSE | BH30: 0
A31: 2023-07-24 | B31: Mo | E31: 08:00-16:00 | F31: 08:00:00 | J31: 0 | Q31: 2023-07-24 | R31: TRUE | T31: A | U31: A | V31: 0 | W31: -0.3333333333 | X31: 0 | Y31: FALSE | Z31: FALSE | AA31: TRUE | AB31: 07:00:00 | AC31: 08:00:00 | AD31: 09:00:00 | AE31: 14:00:00 | AF31: 16:00:00 | AG31: 18:00:00 | AH31: FALSE | AI31: TRUE | AJ31: FALSE | AK31: TRUE | AL31: FALSE | AM31: FALSE | AN31: FALSE | AO31: 00:00:00 | AP31: 23:59:00 | AQ31: 00:00:00 | AR31: 23:59:00 | AS31: TRUE | AT31: FALSE | AU31: TRUE | AV31: FALSE | AW31: FALSE | AX31: FALSE | AY31: FALSE | BD31: TRUE | BE31: FALSE | BF31: TRUE | BG31: FALSE | BH31: 0
A32: 2023-07-25 | B32: Di | E32: 08:00-16:00 | F32: 08:00:00 | J32: 0 | Q32: 2023-07-25 | R32: TRUE | T32: A | U32: A | V32: 0 | W32: -0.3333333333 | X32: 0 | Y32: FALSE | Z32: FALSE | AA32: TRUE | AB32: 07:00:00 | AC32: 08:00:00 | AD32: 09:00:00 | AE32: 14:00:00 | AF32: 16:00:00 | AG32: 18:00:00 | AH32: FALSE | AI32: TRUE | AJ32: FALSE | AK32: TRUE | AL32: FALSE | AM32: FALSE | AN32: FALSE | AO32: 00:00:00 | AP32: 23:59:00 | AQ32: 00:00:00 | AR32: 23:59:00 | AS32: TRUE | AT32: FALSE | AU32: TRUE | AV32: FALSE | AW32: FALSE | AX32: FALSE | AY32: FALSE | BD32: TRUE | BE32: FALSE | BF32: TRUE | BG32: FALSE | BH32: 0
A33: 2023-07-26 | B33: Mi | E33: 08:00-16:00 | F33: 08:00:00 | J33: 0 | Q33: 2023-07-26 | R33: TRUE | T33: A | U33: A | V33: 0 | W33: -0.3333333333 | X33: 0 | Y33: FALSE | Z33: FALSE | AA33: TRUE | AB33: 07:00:00 | AC33: 08:00:00 | AD33: 09:00:00 | AE33: 14:00:00 | AF33: 16:00:00 | AG33: 18:00:00 | AH33: FALSE | AI33: TRUE | AJ33: FALSE | AK33: TRUE | AL33: FALSE | AM33: FALSE | AN33: FALSE | AO33: 00:00:00 | AP33: 23:59:00 | AQ33: 00:00:00 | AR33: 23:59:00 | AS33: TRUE | AT33: FALSE | AU33: TRUE | AV33: FALSE | AW33: FALSE | AX33: FALSE | AY33: FALSE | BD33: TRUE | BE33: FALSE | BF33: TRUE | BG33: FALSE | BH33: 0
A34: 2023-07-27 | B34: Do | E34: 08:00-16:00 | F34: 08:00:00 | J34: 0 | Q34: 2023-07-27 | R34: TRUE | T34: A | U34: A | V34: 0 | W34: -0.3333333333 | X34: 0 | Y34: FALSE | Z34: FALSE | AA34: TRUE | AB34: 07:00:00 | AC34: 08:00:00 | AD34: 09:00:00 | AE34: 14:00:00 | AF34: 16:00:00 | AG34: 18:00:00 | AH34: FALSE | AI34: TRUE | AJ34: FALSE | AK34: TRUE | AL34: FALSE | AM34: FALSE | AN34: FALSE | AO34: 00:00:00 | AP34: 23:59:00 | AQ34: 00:00:00 | AR34: 23:59:00 | AS34: TRUE | AT34: FALSE | AU34: TRUE | AV34: FALSE | AW34: FALSE | AX34: FALSE | AY34: FALSE | BD34: TRUE | BE34: FALSE | BF34: TRUE | BG34: FALSE | BH34: 0
A35: 2023-07-28 | B35: Fr | E35: 08:00-16:00 | F35: 08:00:00 | J35: 0 | Q35: 2023-07-28 | R35: TRUE | T35: A | U35: A | V35: 0 | W35: -0.3333333333 | X35: 0 | Y35: FALSE | Z35: FALSE | AA35: TRUE | AB35: 07:00:00 | AC35: 08:00:00 | AD35: 09:00:00 | AE35: 12:00:00 | AF35: 16:00:00 | AG35: 18:00:00 | AH35: FALSE | AI35: TRUE | AJ35: FALSE | AK35: TRUE | AL35: FALSE | AM35: FALSE | AN35: FALSE | AO35: 00:00:00 | AP35: 23:59:00 | AQ35: 00:00:00 | AR35: 23:59:00 | AS35: TRUE | AT35: FALSE | AU35: TRUE | AV35: FALSE | AW35: FALSE | AX35: FALSE | AY35: FALSE | BD35: TRUE | BE35: FALSE | BF35: TRUE | BG35: FALSE | BH35: 0
A36: 2023-07-29 | B36: Sa | C36: Wochenende | F36: 00:00:00 | J36: 0 | Q36: 2023-07-29 | R36: TRUE | T36: F | U36: A | V36: 0 | W36: 0 | X36: 0 | Y36: TRUE | Z36: FALSE | AA36: FALSE | AH36: FALSE | AI36: FALSE | AJ36: FALSE | AK36: TRUE | AL36: TRUE | AM36: FALSE | AN36: FALSE | AO36: 00:00:00 | AP36: 23:59:00 | AQ36: 00:00:00 | AR36: 23:59:00 | AS36: TRUE | AT36: FALSE | AU36: TRUE | AV36: FALSE | AW36: FALSE | AX36: FALSE | AY36: FALSE | AZ36: 00:00:00 | BA36: 23:59:00 | BB36: 00:00:00 | BC36: 23:59:00 | BD36: TRUE | BE36: FALSE | BF36: TRUE | BG36: FALSE | BH36: 0
A37: 2023-07-30 | B37: So | C37: Wochenende | F37: 00:00:00 | J37: 0 | Q37: 2023-07-30 | R37: TRUE | T37: F | U37: F | V37: 0 | W37: 0 | X37: 0 | Y37: TRUE | Z37: FALSE | AA37: FALSE | AH37: FALSE | AI37: FALSE | AJ37: FALSE | AK37: TRUE | AL37: FALSE | AM37: FALSE | AN37: FALSE | AO37: 00:00:00 | AP37: 23:59:00 | AQ37: 00:00:00 | AR37: 23:59:00 | AS37: TRUE | AT37: FALSE | AU37: TRUE | AV37: FALSE | AW37: FALSE | AX37: FALSE | AY37: FALSE | BD37: TRUE | BE37: FALSE | BF37: TRUE | BG37: FALSE | BH37: 0
A38: 2023-07-31 | B38: Mo | E38: 08:00-16:00 | F38: 08:00:00 | J38: =IF($R38,$X38,"") -> 0 | Q38: 2023-07-31 | R38: TRUE | T38: A | U38: A | V38: 0 | W38: -0.3333333333 | X38: 0 | Y38: FALSE | Z38: FALSE | AA38: TRUE | AB38: 07:00:00 | AC38: 08:00:00 | AD38: 09:00:00 | AE38: 14:00:00 | AF38: 16:00:00 | AG38: 18:00:00 | AH38: FALSE | AI38: TRUE | AJ38: FALSE | AK38: TRUE | AL38: FALSE | AM38: FALSE | AN38: FALSE | AO38: 00:00:00 | AP38: 23:59:00 | AQ38: 00:00:00 | AR38: 23:59:00 | AS38: TRUE | AT38: FALSE | AU38: TRUE | AV38: FALSE | AW38: FALSE | AX38: FALSE | AY38: FALSE | BD38: TRUE | BE38: FALSE | BF38: TRUE | BG38: FALSE | BH38: 0
A39: Arbeitstage | B39: =COUNTIF(T$8:T$38,"A") -> 21 | E39: ="Saldo Monat (~15min) > " -> Saldo Monat (~15min) > | I39: =ROUND(SUM(I8:I38)*4,0)/4 -> 0 | K39: =SUM(K8:K38) -> 0 | L39: < ÜS1:2 | N39: =SUM(N8:N38) -> 0 | O39: =IF(Zeitmodell="Vollzeit"," < ÜS1:1,5 "," < ÜS1:1,25 ")&Zeitmodell -> < ÜS1:1,5 Vollzeit | Q39: Zeitmodell Text
A40: Freie Tage | B40: =COUNTIF(T$8:T$38,"F") -> 10 | E40: ="Saldo "&IF(Zeitmodell="Vollzeit","1:1,5","1:1,25")& " (~15min) > " -> Saldo 1:1,5 (~15min) > | I40: =ROUND($N40*4,0)/4 -> 0 | N40: =IF(Zeitmodell="Vollzeit",$N39*1.5,$N39*1.25) -> 0 | O40: =IF(Zeitmodell="Vollzeit"," < 1:1,5 "," < 1:1,25 ")&$Q40 -> < 1:1,5 Stunden berechnen | Q40: Stunden berechnen
A41: ZK-Tage | B41: 0 | E41: Saldo 1:2 (~15min) > | I41: =ROUND($N41*4,0)/4 -> 0 | N41: =K39*2 -> 0 | O41: < 1:2 Stunden berechnen
A42: ZA-Tage | B42: =COUNTIF(D$8:D$38,"Z") -> 0 | E42: Saldo Vormonat > | I42: =$J5 -> 0 | Q42: Gültigkeit ausbezahlt
A43: Urlaubstage | B43: =COUNTIF(D$8:D$38,"U") -> 0 | E43: Saldo Gesamt > | I43: =SUM(I39:I42) -> 0 | K43: =IF($I$43>=$R$2,"< Hier ausbezahlte Std. eingeben. (Die Eingabe ist hier erst ab < einem Saldo von "&TEXT($R$2,"#.##0,00")&" Std., und nur in 0,25-Schritten möglich.)","") ->  | Q43: =IF(AND($J$43<>"",NOT(ISNUMBER($J$43))),FALSE,OR(AND($J$43>=0,$J$43<=$I$43,MOD($J$43,0.25)=0),$J$43="")) -> TRUE
A44: Krank | B44: =COUNTIF(D$8:D$38,"K") -> 0 | E44: Saldo Übertrag > | I44: =$I43-$J43 -> 0 | J44: =" < Dieser Stunden-Saldo wird in das nächste "&IF($Q$3="Dezember","Jahr","Monat")&" übertragen" -> < Dieser Stunden-Saldo wird in das nächste Monat übertragen
D45: Z
A48: ="Unterschrift von "&Vorgesetzter -> Unterschrift von Vorname Nachname | L48: ="Unterschrift von "&Name -> Unterschrift von Vorname Nachname

Sheet August (hidden)
A1: BOKU-Zeiterfassung für Allgemeines Personal | Q1: Monat | R1: Stunden-Saldo Grenzen | S1: Status Blatteingabe
A2: =" Org.-Einh. : "&OrgEinheit -> Org.-Einh. : HXXXXX | F2: Zeitmodell: | I2: =" "&Zeitmodell -> Vollzeit | J2: Modus: | K2: =" "&Zeitmodus -> Gleitzeit | Q2: =IF(ISNA($Q$4),1,$Q$4) -> 8 | R2: =IF($Q$2=12,NormalOGDez,NormalOG) -> 72 | S2: =SUM($BH8:$BH38) -> 0
A3: =" Mitarbeiter/in: "&Name -> Mitarbeiter/in: Vorname Nachname | F3: Vorgesetzte/r: | I3: =" "&Vorgesetzter -> Vorname Nachname | Q3: =RIGHT(CELL("filename",A1),LEN(CELL("filename",A1))-SEARCH("]",CELL("filename",A1),1)) -> August | R3: =IF($Q$2=12,NormalUGDez,NormalUG) -> -24 | S3: =IF($Q$2=1,$S$2,$S$2+INDIRECT($S$5)) -> 0
A4: =" Monat: "&$Q$3&" "&Jahr -> Monat: August 2023 | E4: Dienstplan | G4: Normalstunden Feiertag-ÜS1:2 | J4: Übertrag | K4: Überstundenberechnung | O4: Unterschrift des Vorgesetzten | P4: Anmerkungen (z.B. Überstunden- notwendigkeit) | Q4: =IF(ISNA(VLOOKUP($Q$3,MTab,2,FALSE)),1,VLOOKUP($Q$3,MTab,2,FALSE)) -> 8 | S4: Übertrags Adresse Blatteingabe
A5: Datum | B5: Wochentag | C5: Tagesinformationen | E5: ="Wochen-AZ"&" "&TEXT(WAZ,"[hh]:mm") -> Wochen-AZ 40:00 | J5: =IF(ISNA($Q$5),Übertrag,INDIRECT($Q$5)) -> 0 | K5: ÜS1:2 | L5: =IF(Zeitmodell="Vollzeit"," Überstunden1:1,5"," Überstunden1:1,25") -> Überstunden1:1,5 | Q5: =IF(ISNA(VLOOKUP($Q$3,MTab,3,FALSE)),"Übertrag",VLOOKUP($Q$3,MTab,3,FALSE)) -> Juli!$I$44 | S5: =IF(ISNA(VLOOKUP($Q$3,MTab,4,FALSE)),$Q$3&"!$S$2",VLOOKUP($Q$3,MTab,4,FALSE)) -> Juli!$S$3
C6: Feiertage Wochenende Urlaub, ZA, Krank | D6: [U]rlaub [Z]A [ZK] [K]rank | E6: Normal- | F6: Soll | G6: Von | H6: Bis | I6: Plus | J6: Saldo | K6: Plus | L6: Von | M6: Bis | N6: Plus | Q6: Hintergrundberechnungen | X6: Saldo aktuell | AB6: GAZ-Tabellenabbildung | AH6: Eingabebeprüfungen
E7: Arbeitszeit | I7: Minus | J7: akuell | Q7: Datum | R7: Monat OK | S7: Abwesenh. | T7: Freie Tage | U7: ÜA-Tage | V7: Std. | W7: Soll-Std. | X7: =IF(ISNA($Q$5),Übertrag,INDIRECT($Q$5)) -> 0 | Y7: Std.-Soll = 0 | Z7: Std.-Soll > 0 | AA7: Std.-Soll < 0 | AB7: =I_GAZGRVon -> 2 | AC7: =I_GAZNAZVon -> 3 | AD7: =I_GAZKVon -> 4 | AE7: =I_GAZKBis -> 6 | AF7: =I_GAZNAZBis -> 7 | AG7: =I_GAZGRBis -> 8 | AH7: Zeiteingabe | AI7: UZK-Eing. erlaubt | AJ7: UZK-Eing. gültig | AK7: Normalst. ein erlaubt | AL7: Überstd. ein erlaubt | AM7: Normalstd. eingegeben | AN7: Überstd. eingegeben | AO7: Normal VON möglich OG | AP7: Normal VON möglich UG | AQ7: Normal BIS möglich OG | AR7: Normal BIS möglich UG | AS7: Normal VON 15min | AT7: Normal VON richtig | AU7: Normal BIS 15min | AV7: Normal BIS richtig | AW7: ZA-Kern Von | AX7: ZA-Kern Bis | AY7: ZA-Kern | AZ7: Über VON Obergrenze | BA7: Über VON Untergrenze | BB7: Über BIS Obergrenze | BC7: Über BIS Untergrenze | BD7: Über VON 15min | BE7: Über VON richtig | BF7: Überl BIS 15min | BG7: Über BIS richtig | BH7: Status Zeilen Eingabe
A8: =IF($R8,$Q8,"") -> 2023-08-01 | B8: =IF($R8,VLOOKUP(WEEKDAY($Q8,2),WOTA,2,FALSE),"") -> Di | C8: =IF($R8," "&IF($S8="",VLOOKUP($Q8,FListe,3,FALSE),$S8),"") ->  | E8: =IF(AND($R8,$T8<>"F"),IF($AC8=$AF8,"keine NAZ",TEXT($AC8,"hh:mm")&"-"&TEXT($AF8,"hh:mm")),"") -> 08:00-16:00 | F8: =IF($R8,IF($T8="F",0,VLOOKUP($B8,GAZ,I_GAZNAZ,FALSE)),"") -> 08:00:00 | I8: =IF(Zeitmodus="Gleitzeit",IF($U8="F","",IF(AND($R8,$AM8,NOT($Y8)),ROUND(($V8-$F8)*24,2),IF($D8="Z",$F8*-24,""))),IF(OR($D8="Z",AND($AM8,$U8="A",W8<0)),ROUND($W8*24,2),"")) ->  | J8: =IF($R8,$X8,"") -> 0 | K8: =IF(AND($U8="F",$AM8),ROUND($V8*24,2),"") ->  | N8: =IF(Zeitmodus="Gleitzeit",IF(AND($R8,$AN8,$M8-$L8<>0,$AL8),ROUND(($M8-$L8)*24,2),""),IF(AND($AM8,$U8="A",W8>0),ROUND(W8*24,2),"")) ->  | Q8: =DATE(Jahr,$Q2,1) -> 2023-08-01 | R8: =$Q$2=MONTH($Q8) -> TRUE | S8: =IF(OR($D8="U",$D8="Z",$D8="ZK",$D8="K"),VLOOKUP($D8,UZK,2,FALSE),"") ->  | T8: =IF($R8,VLOOKUP($Q8,FListe,4,FALSE),"") -> A | U8: =IF($R8,VLOOKUP($Q8,FListe,5,FALSE),"") -> A | V8: =$H8-$G8 -> 0 | W8: =IF($R8,ROUND($V8-$F8,15),"") -> -0.3333333333 | X8: =IF($I8<>"",$X7+$I8,$X7) -> 0 | Y8: =($W8=0) -> FALSE | Z8: =($W8>0) -> FALSE | AA8: =($W8<0) -> TRUE | AB8: =IF(ISNA(VLOOKUP($B8,GAZ,AB$7,FALSE)),"",VLOOKUP($B8,GAZ,AB$7,FALSE)) -> 07:00:00 | AC8: 08:00:00 | AD8: =IF(ISNA(VLOOKUP($B8,GAZ,AD$7,FALSE)),"",IF($AC8=$AF8,$G8,VLOOKUP($B8,GAZ,AD$7,FALSE))) -> 09:00:00 | AE8: =IF(ISNA(VLOOKUP($B8,GAZ,AE$7,FALSE)),"",IF($AC8=$AF8,$H8,VLOOKUP($B8,GAZ,AE$7,FALSE))) -> 14:00:00 | AF8: 16:00:00 | AG8: 18:00:00 | AH8: =OR($G8<>"",$H8<>"",$L8<>"",$M8<>"") -> FALSE | AI8: =AND($T8<>"F",NOT($AH8),NOT($AC8=$AF8)) -> TRUE | AJ8: =AND($AI8,OR($D8="U",$D8="Z",$D8="K")) -> FALSE | AK8: =AND($D8<>"U",$D8<>"Z",$D8<>"K",$R8) -> TRUE | AL8: =AND(Zeitmodus=C_Gleitzeit,$U8<>"F",OR($B8="Sa",AND($AM8,$I8>=0,NOT($AY8)))) -> FALSE | AM8: =AND($G8<>"",$H8<>"") -> FALSE | AN8: =OR($K8<>"",AND($L8<>"",$M8<>"")) -> FALSE | AO8: =IF($AK8,TagUG,"") -> 00:00:00 | AP8: =IF($AK8,IF($H8="",IF(AND($L8<>"",$L8<$AG8),$L8,IF(AND($M8<>"",$M8<$AG8),$M8,TagOG)),$H8),"") -> 23:59:00 | AQ8: =IF($AK8,IF($G8="",$AB8,$G8),"") -> 07:00:00 | AR8: =IF($AK8,IF(AND($L8<>"",$L8<$AG8),$L8,IF(AND($M8<>"",$M8<$AG8),$M8,TagOG)),"") -> 23:59:00 | AS8: =MOD($G8*24,0.25)=0 -> TRUE | AT8: =AND($AK8,ISNUMBER($G8),$G8>=$AO8,$G8<=$AP8) -> FALSE | AU8: =MOD($H8*24,0.25)=0 -> TRUE | AV8: =AND($AK8,ISNUMBER($H8),$H8>=$AQ8,$H8<=$AR8) -> FALSE | AW8: =AND(Zeitmodus=C_Gleitzeit,$B8<>"Sa",$G8<>"",$G8>$AD8) -> FALSE | AX8: =AND(Zeitmodus=C_Gleitzeit,$B8<>"Sa",$H8<>"",$H8<$AE8) -> FALSE | AY8: =AND($U8<>"F",OR($AW8,$AX8)) -> FALSE | AZ8: =IF($B8="Sa",IF($H8<>"",$H8,TIME(0,0,0)),IF($AL8,IF(AND($H8<>"",$H8>$AF8),$H8,$AF8),"")) ->  | BA8: =IF($AL8,IF($M8<>"",$M8,$BC8),"") ->  | BB8: =IF($B8="Sa",IF($L8="",TIME(0,0,0),$L8),IF($AL8,IF($L8<>"",$L8,IF(AND($H8<>"",$H8>$AF8),$H8,$AF8)),"")) ->  | BC8: =IF($AL8,TIME(23,59,0),"") ->  | BD8: =MOD($L8*24,0.25)=0 -> TRUE | BE8: =AND($AL8,ISNUMBER($L8),$L8>=$AZ8,$BA8>=$L8) -> FALSE | BF8: =MOD($M8*24,0.25)=0 -> TRUE | BG8: =AND($AL8,ISNUMBER($M8),$M8>=$BB8,$M8<=$BC8) -> FALSE | BH8: =IF(AND(ISBLANK($D8),ISBLANK($G8),ISBLANK($H8),ISBLANK($L8),ISBLANK($M8),ISBLANK($P8)),0,1) -> 0
A9: =IF($R9,$Q9,"") -> 2023-08-02 | B9: Mi | E9: =IF(AND($R9,$T9<>"F"),IF($AC9=$AF9,"keine NAZ",TEXT($AC9,"hh:mm")&"-"&TEXT($AF9,"hh:mm")),"") -> 08:00-16:00 | F9: 08:00:00 | J9: 0 | K9: =IF(AND($U9="F",$AM9),ROUND($V9*24,2),"") ->  | Q9: =Q8+1 -> 2023-08-02 | R9: TRUE | T9: A | U9: A | V9: 0 | W9: -0.3333333333 | X9: 0 | Y9: FALSE | Z9: FALSE | AA9: TRUE | AB9: 07:00:00 | AC9: 08:00:00 | AD9: 09:00:00 | AE9: 14:00:00 | AF9: 16:00:00 | AG9: 18:00:00 | AH9: FALSE | AI9: =AND($T9<>"F",NOT($AH9),NOT($AC9=$AF9)) -> TRUE | AJ9: FALSE | AK9: TRUE | AL9: =AND(Zeitmodus=C_Gleitzeit,$U9<>"F",OR($B9="Sa",AND($AM9,$I9>=0,NOT($AY9)))) -> FALSE | AM9: FALSE | AN9: =OR($K9<>"",AND($L9<>"",$M9<>"")) -> FALSE | AO9: 00:00:00 | AP9: 23:59:00 | AQ9: =IF($AK9,IF($G9="",TagUG,$G9),"") -> 00:00:00 | AR9: 23:59:00 | AS9: TRUE | AT9: FALSE | AU9: TRUE | AV9: FALSE | AW9: FALSE | AX9: FALSE | AY9: =AND($U9<>"F",OR($AW9,$AX9)) -> FALSE | BD9: TRUE | BE9: FALSE | BF9: TRUE | BG9: FALSE | BH9: 0
A10: 2023-08-03 | B10: Do | E10: 08:00-16:00 | F10: 08:00:00 | J10: 0 | Q10: 2023-08-03 | R10: TRUE | T10: A | U10: A | V10: 0 | W10: -0.3333333333 | X10: 0 | Y10: FALSE | Z10: FALSE | AA10: TRUE | AB10: 07:00:00 | AC10: 08:00:00 | AD10: 09:00:00 | AE10: 14:00:00 | AF10: 16:00:00 | AG10: 18:00:00 | AH10: FALSE | AI10: TRUE | AJ10: FALSE | AK10: TRUE | AL10: FALSE | AM10: FALSE | AN10: FALSE | AO10: 00:00:00 | AP10: 23:59:00 | AQ10: 00:00:00 | AR10: 23:59:00 | AS10: TRUE | AT10: FALSE | AU10: TRUE | AV10: FALSE | AW10: FALSE | AX10: FALSE | AY10: FALSE | BD10: TRUE | BE10: FALSE | BF10: TRUE | BG10: FALSE | BH10: 0
A11: 2023-08-04 | B11: Fr | E11: 08:00-16:00 | F11: 08:00:00 | J11: 0 | Q11: 2023-08-04 | R11: TRUE | T11: A | U11: A | V11: 0 | W11: -0.3333333333 | X11: 0 | Y11: FALSE | Z11: FALSE | AA11: TRUE | AB11: 07:00:00 | AC11: 08:00:00 | AD11: 09:00:00 | AE11: 12:00:00 | AF11: 16:00:00 | AG11: 18:00:00 | AH11: FALSE | AI11: TRUE | AJ11: FALSE | AK11: TRUE | AL11: FALSE | AM11: FALSE | AN11: FALSE | AO11: 00:00:00 | AP11: 23:59:00 | AQ11: 00:00:00 | AR11: 23:59:00 | AS11: TRUE | AT11: FALSE | AU11: TRUE | AV11: FALSE | AW11: FALSE | AX11: FALSE | AY11: FALSE | BD11: TRUE | BE11: FALSE | BF11: TRUE | BG11: FALSE | BH11: 0
A12: 2023-08-05 | B12: Sa | C12: Wochenende | F12: 00:00:00 | J12: 0 | Q12: 2023-08-05 | R12: TRUE | T12: F | U12: A | V12: 0 | W12: 0 | X12: 0 | Y12: TRUE | Z12: FALSE | AA12: FALSE | AH12: FALSE | AI12: FALSE | AJ12: FALSE | AK12: TRUE | AL12: TRUE | AM12: FALSE | AN12: FALSE | AO12: 00:00:00 | AP12: 23:59:00 | AQ12: 00:00:00 | AR12: 23:59:00 | AS12: TRUE | AT12: FALSE | AU12: TRUE | AV12: FALSE | AW12: FALSE | AX12: FALSE | AY12: FALSE | AZ12: 00:00:00 | BA12: 23:59:00 | BB12: 00:00:00 | BC12: 23:59:00 | BD12: TRUE | BE12: FALSE | BF12: TRUE | BG12: FALSE | BH12: 0
A13: 2023-08-06 | B13: So | C13: Wochenende | F13: 00:00:00 | J13: 0 | Q13: 2023-08-06 | R13: TRUE | T13: F | U13: F | V13: 0 | W13: 0 | X13: 0 | Y13: TRUE | Z13: FALSE | AA13: FALSE | AH13: FALSE | AI13: FALSE | AJ13: FALSE | AK13: TRUE | AL13: FALSE | AM13: FALSE | AN13: FALSE | AO13: 00:00:00 | AP13: 23:59:00 | AQ13: 00:00:00 | AR13: 23:59:00 | AS13: TRUE | AT13: FALSE | AU13: TRUE | AV13: FALSE | AW13: FALSE | AX13: FALSE | AY13: FALSE | BD13: TRUE | BE13: FALSE | BF13: TRUE | BG13: FALSE | BH13: 0
A14: 2023-08-07 | B14: Mo | E14: 08:00-16:00 | F14: 08:00:00 | J14: 0 | Q14: 2023-08-07 | R14: TRUE | T14: A | U14: A | V14: 0 | W14: -0.3333333333 | X14: 0 | Y14: FALSE | Z14: FALSE | AA14: TRUE | AB14: 07:00:00 | AC14: 08:00:00 | AD14: 09:00:00 | AE14: 14:00:00 | AF14: 16:00:00 | AG14: 18:00:00 | AH14: FALSE | AI14: TRUE | AJ14: FALSE | AK14: TRUE | AL14: FALSE | AM14: FALSE | AN14: FALSE | AO14: 00:00:00 | AP14: 23:59:00 | AQ14: 00:00:00 | AR14: 23:59:00 | AS14: TRUE | AT14: FALSE | AU14: TRUE | AV14: FALSE | AW14: FALSE | AX14: FALSE | AY14: FALSE | BD14: TRUE | BE14: FALSE | BF14: TRUE | BG14: FALSE | BH14: 0
A15: 2023-08-08 | B15: Di | E15: 08:00-16:00 | F15: 08:00:00 | J15: 0 | Q15: 2023-08-08 | R15: TRUE | T15: A | U15: A | V15: 0 | W15: -0.3333333333 | X15: 0 | Y15: FALSE | Z15: FALSE | AA15: TRUE | AB15: 07:00:00 | AC15: 08:00:00 | AD15: 09:00:00 | AE15: 14:00:00 | AF15: 16:00:00 | AG15: 18:00:00 | AH15: FALSE | AI15: TRUE | AJ15: FALSE | AK15: TRUE | AL15: FALSE | AM15: FALSE | AN15: FALSE | AO15: 00:00:00 | AP15: 23:59:00 | AQ15: 00:00:00 | AR15: 23:59:00 | AS15: TRUE | AT15: FALSE | AU15: TRUE | AV15: FALSE | AW15: FALSE | AX15: FALSE | AY15: FALSE | BD15: TRUE | BE15: FALSE | BF15: TRUE | BG15: FALSE | BH15: 0
A16: 2023-08-09 | B16: Mi | E16: 08:00-16:00 | F16: 08:00:00 | J16: 0 | Q16: 2023-08-09 | R16: TRUE | T16: A | U16: A | V16: 0 | W16: -0.3333333333 | X16: 0 | Y16: FALSE | Z16: FALSE | AA16: TRUE | AB16: 07:00:00 | AC16: 08:00:00 | AD16: 09:00:00 | AE16: 14:00:00 | AF16: 16:00:00 | AG16: 18:00:00 | AH16: FALSE | AI16: TRUE | AJ16: FALSE | AK16: TRUE | AL16: FALSE | AM16: FALSE | AN16: FALSE | AO16: 00:00:00 | AP16: 23:59:00 | AQ16: 00:00:00 | AR16: 23:59:00 | AS16: TRUE | AT16: FALSE | AU16: TRUE | AV16: FALSE | AW16: FALSE | AX16: FALSE | AY16: FALSE | BD16: TRUE | BE16: FALSE | BF16: TRUE | BG16: FALSE | BH16: 0
A17: 2023-08-10 | B17: Do | E17: 08:00-16:00 | F17: 08:00:00 | J17: 0 | Q17: 2023-08-10 | R17: TRUE | T17: A | U17: A | V17: 0 | W17: -0.3333333333 | X17: 0 | Y17: FALSE | Z17: FALSE | AA17: TRUE | AB17: 07:00:00 | AC17: 08:00:00 | AD17: 09:00:00 | AE17: 14:00:00 | AF17: 16:00:00 | AG17: 18:00:00 | AH17: FALSE | AI17: TRUE | AJ17: FALSE | AK17: TRUE | AL17: FALSE | AM17: FALSE | AN17: FALSE | AO17: 00:00:00 | AP17: 23:59:00 | AQ17: 00:00:00 | AR17: 23:59:00 | AS17: TRUE | AT17: FALSE | AU17: TRUE | AV17: FALSE | AW17: FALSE | AX17: FALSE | AY17: FALSE | BD17: TRUE | BE17: FALSE | BF17: TRUE | BG17: FALSE | BH17: 0
A18: 2023-08-11 | B18: Fr | E18: 08:00-16:00 | F18: 08:00:00 | J18: 0 | Q18: 2023-08-11 | R18: TRUE | T18: A | U18: A | V18: 0 | W18: -0.3333333333 | X18: 0 | Y18: FALSE | Z18: FALSE | AA18: TRUE | AB18: 07:00:00 | AC18: 08:00:00 | AD18: 09:00:00 | AE18: 12:00:00 | AF18: 16:00:00 | AG18: 18:00:00 | AH18: FALSE | AI18: TRUE | AJ18: FALSE | AK18: TRUE | AL18: FALSE | AM18: FALSE | AN18: FALSE | AO18: 00:00:00 | AP18: 23:59:00 | AQ18: 00:00:00 | AR18: 23:59:00 | AS18: TRUE | AT18: FALSE | AU18: TRUE | AV18: FALSE | AW18: FALSE | AX18: FALSE | AY18: FALSE | BD18: TRUE | BE18: FALSE | BF18: TRUE | BG18: FALSE | BH18: 0
A19: 2023-08-12 | B19: Sa | C19: Wochenende | F19: 00:00:00 | J19: 0 | Q19: 2023-08-12 | R19: TRUE | T19: F | U19: A | V19: 0 | W19: 0 | X19: 0 | Y19: TRUE | Z19: FALSE | AA19: FALSE | AH19: FALSE | AI19: FALSE | AJ19: FALSE | AK19: TRUE | AL19: TRUE | AM19: FALSE | AN19: FALSE | AO19: 00:00:00 | AP19: 23:59:00 | AQ19: 00:00:00 | AR19: 23:59:00 | AS19: TRUE | AT19: FALSE | AU19: TRUE | AV19: FALSE | AW19: FALSE | AX19: FALSE | AY19: FALSE | AZ19: 00:00:00 | BA19: 23:59:00 | BB19: 00:00:00 | BC19: 23:59:00 | BD19: TRUE | BE19: FALSE | BF19: TRUE | BG19: FALSE | BH19: 0
A20: 2023-08-13 | B20: So | C20: Wochenende | F20: 00:00:00 | J20: 0 | Q20: 2023-08-13 | R20: TRUE | T20: F | U20: F | V20: 0 | W20: 0 | X20: 0 | Y20: TRUE | Z20: FALSE | AA20: FALSE | AH20: FALSE | AI20: FALSE | AJ20: FALSE | AK20: TRUE | AL20: FALSE | AM20: FALSE | AN20: FALSE | AO20: 00:00:00 | AP20: 23:59:00 | AQ20: 00:00:00 | AR20: 23:59:00 | AS20: TRUE | AT20: FALSE | AU20: TRUE | AV20: FALSE | AW20: FALSE | AX20: FALSE | AY20: FALSE | BD20: TRUE | BE20: FALSE | BF20: TRUE | BG20: FALSE | BH20: 0
A21: 2023-08-14 | B21: Mo | E21: 08:00-16:00 | F21: 08:00:00 | J21: 0 | Q21: 2023-08-14 | R21: TRUE | T21: A | U21: A | V21: 0 | W21: -0.3333333333 | X21: 0 | Y21: FALSE | Z21: FALSE | AA21: TRUE | AB21: 07:00:00 | AC21: 08:00:00 | AD21: 09:00:00 | AE21: 14:00:00 | AF21: 16:00:00 | AG21: 18:00:00 | AH21: FALSE | AI21: TRUE | AJ21: FALSE | AK21: TRUE | AL21: FALSE | AM21: FALSE | AN21: FALSE | AO21: 00:00:00 | AP21: 23:59:00 | AQ21: 00:00:00 | AR21: 23:59:00 | AS21: TRUE | AT21: FALSE | AU21: TRUE | AV21: FALSE | AW21: FALSE | AX21: FALSE | AY21: FALSE | BD21: TRUE | BE21: FALSE | BF21: TRUE | BG21: FALSE | BH21: 0
A22: 2023-08-15 | B22: Di | C22: Maria Himmelfahrt | F22: 00:00:00 | J22: 0 | Q22: 2023-08-15 | R22: TRUE | T22: F | U22: F | V22: 0 | W22: 0 | X22: 0 | Y22: TRUE | Z22: FALSE | AA22: FALSE | AB22: 07:00:00 | AC22: 08:00:00 | AD22: 09:00:00 | AE22: 14:00:00 | AF22: 16:00:00 | AG22: 18:00:00 | AH22: FALSE | AI22: FALSE | AJ22: FALSE | AK22: TRUE | AL22: FALSE | AM22: FALSE | AN22: FALSE | AO22: 00:00:00 | AP22: 23:59:00 | AQ22: 00:00:00 | AR22: 23:59:00 | AS22: TRUE | AT22: FALSE | AU22: TRUE | AV22: FALSE | AW22: FALSE | AX22: FALSE | AY22: FALSE | BD22: TRUE | BE22: FALSE | BF22: TRUE | BG22: FALSE | BH22: 0
A23: 2023-08-16 | B23: Mi | E23: 08:00-16:00 | F23: 08:00:00 | J23: 0 | Q23: 2023-08-16 | R23: TRUE | T23: A | U23: A | V23: 0 | W23: -0.3333333333 | X23: 0 | Y23: FALSE | Z23: FALSE | AA23: TRUE | AB23: 07:00:00 | AC23: 08:00:00 | AD23: 09:00:00 | AE23: 14:00:00 | AF23: 16:00:00 | AG23: 18:00:00 | AH23: FALSE | AI23: TRUE | AJ23: FALSE | AK23: TRUE | AL23: FALSE | AM23: FALSE | AN23: FALSE | AO23: 00:00:00 | AP23: 23:59:00 | AQ23: 00:00:00 | AR23: 23:59:00 | AS23: TRUE | AT23: FALSE | AU23: TRUE | AV23: FALSE | AW23: FALSE | AX23: FALSE | AY23: FALSE | BD23: TRUE | BE23: FALSE | BF23: TRUE | BG23: FALSE | BH23: 0
A24: 2023-08-17 | B24: Do | E24: 08:00-16:00 | F24: 08:00:00 | J24: 0 | Q24: 2023-08-17 | R24: TRUE | T24: A | U24: A | V24: 0 | W24: -0.3333333333 | X24: 0 | Y24: FALSE | Z24: FALSE | AA24: TRUE | AB24: =IF(ISNA(VLOOKUP($B24,GAZ,AB$7,FALSE)),"",VLOOKUP($B24,GAZ,AB$7,FALSE)) -> 07:00:00 | AC24: 08:00:00 | AD24: 09:00:00 | AE24: 14:00:00 | AF24: 16:00:00 | AG24: 18:00:00 | AH24: FALSE | AI24: TRUE | AJ24: FALSE | AK24: TRUE | AL24: FALSE | AM24: FALSE | AN24: FALSE | AO24: 00:00:00 | AP24: 23:59:00 | AQ24: 00:00:00 | AR24: 23:59:00 | AS24: TRUE | AT24: FALSE | AU24: TRUE | AV24: FALSE | AW24: FALSE | AX24: FALSE | AY24: FALSE | BD24: TRUE | BE24: FALSE | BF24: TRUE | BG24: FALSE | BH24: 0
A25: 2023-08-18 | B25: Fr | E25: 08:00-16:00 | F25: 08:00:00 | J25: 0 | Q25: 2023-08-18 | R25: TRUE | T25: A | U25: A | V25: 0 | W25: -0.3333333333 | X25: 0 | Y25: FALSE | Z25: FALSE | AA25: TRUE | AB25: 07:00:00 | AC25: 08:00:00 | AD25: 09:00:00 | AE25: 12:00:00 | AF25: 16:00:00 | AG25: 18:00:00 | AH25: FALSE | AI25: TRUE | AJ25: FALSE | AK25: TRUE | AL25: FALSE | AM25: FALSE | AN25: FALSE | AO25: 00:00:00 | AP25: 23:59:00 | AQ25: 00:00:00 | AR25: 23:59:00 | AS25: TRUE | AT25: FALSE | AU25: TRUE | AV25: FALSE | AW25: FALSE | AX25: FALSE | AY25: FALSE | BD25: TRUE | BE25: FALSE | BF25: TRUE | BG25: FALSE | BH25: 0
A26: 2023-08-19 | B26: Sa | C26: Wochenende | F26: 00:00:00 | J26: 0 | Q26: 2023-08-19 | R26: TRUE | T26: F | U26: A | V26: 0 | W26: 0 | X26: 0 | Y26: TRUE | Z26: FALSE | AA26: FALSE | AH26: FALSE | AI26: FALSE | AJ26: FALSE | AK26: TRUE | AL26: TRUE | AM26: FALSE | AN26: FALSE | AO26: 00:00:00 | AP26: 23:59:00 | AQ26: 00:00:00 | AR26: 23:59:00 | AS26: TRUE | AT26: FALSE | AU26: TRUE | AV26: FALSE | AW26: FALSE | AX26: FALSE | AY26: FALSE | AZ26: 00:00:00 | BA26: 23:59:00 | BB26: 00:00:00 | BC26: 23:59:00 | BD26: TRUE | BE26: FALSE | BF26: TRUE | BG26: FALSE | BH26: 0
A27: 2023-08-20 | B27: So | C27: Wochenende | F27: 00:00:00 | J27: 0 | Q27: 2023-08-20 | R27: TRUE | T27: F | U27: F | V27: 0 | W27: 0 | X27: 0 | Y27: TRUE | Z27: FALSE | AA27: FALSE | AH27: FALSE | AI27: FALSE | AJ27: FALSE | AK27: TRUE | AL27: FALSE | AM27: FALSE | AN27: FALSE | AO27: 00:00:00 | AP27: 23:59:00 | AQ27: 00:00:00 | AR27: 23:59:00 | AS27: TRUE | AT27: FALSE | AU27: TRUE | AV27: FALSE | AW27: FALSE | AX27: FALSE | AY27: FALSE | BD27: TRUE | BE27: FALSE | BF27: TRUE | BG27: FALSE | BH27: 0
A28: 2023-08-21 | B28: Mo | E28: 08:00-16:00 | F28: 08:00:00 | J28: 0 | Q28: 2023-08-21 | R28: TRUE | T28: A | U28: A | V28: 0 | W28: -0.3333333333 | X28: 0 | Y28: FALSE | Z28: FALSE | AA28: TRUE | AB28: 07:00:00 | AC28: 08:00:00 | AD28: 09:00:00 | AE28: 14:00:00 | AF28: 16:00:00 | AG28: 18:00:00 | AH28: FALSE | AI28: TRUE | AJ28: FALSE | AK28: TRUE | AL28: FALSE | AM28: FALSE | AN28: FALSE | AO28: 00:00:00 | AP28: 23:59:00 | AQ28: 00:00:00 | AR28: 23:59:00 | AS28: TRUE | AT28: FALSE | AU28: TRUE | AV28: FALSE | AW28: FALSE | AX28: FALSE | AY28: FALSE | BD28: TRUE | BE28: FALSE | BF28: TRUE | BG28: FALSE | BH28: 0
A29: 2023-08-22 | B29: Di | E29: 08:00-16:00 | F29: 08:00:00 | J29: 0 | Q29: 2023-08-22 | R29: TRUE | T29: A | U29: A | V29: 0 | W29: -0.3333333333 | X29: 0 | Y29: FALSE | Z29: FALSE | AA29: TRUE | AB29: 07:00:00 | AC29: 08:00:00 | AD29: 09:00:00 | AE29: 14:00:00 | AF29: 16:00:00 | AG29: 18:00:00 | AH29: FALSE | AI29: TRUE | AJ29: FALSE | AK29: TRUE | AL29: FALSE | AM29: FALSE | AN29: FALSE | AO29: 00:00:00 | AP29: 23:59:00 | AQ29: 00:00:00 | AR29: 23:59:00 | AS29: TRUE | AT29: FALSE | AU29: TRUE | AV29: FALSE | AW29: FALSE | AX29: FALSE | AY29: FALSE | BD29: TRUE | BE29: FALSE | BF29: TRUE | BG29: FALSE | BH29: 0
A30: 2023-08-23 | B30: Mi | E30: 08:00-16:00 | F30: 08:00:00 | J30: 0 | Q30: 2023-08-23 | R30: TRUE | T30: A | U30: A | V30: 0 | W30: -0.3333333333 | X30: 0 | Y30: FALSE | Z30: FALSE | AA30: TRUE | AB30: 07:00:00 | AC30: 08:00:00 | AD30: 09:00:00 | AE30: 14:00:00 | AF30: 16:00:00 | AG30: 18:00:00 | AH30: FALSE | AI30: TRUE | AJ30: FALSE | AK30: TRUE | AL30: FALSE | AM30: FALSE | AN30: FALSE | AO30: 00:00:00 | AP30: 23:59:00 | AQ30: 00:00:00 | AR30: 23:59:00 | AS30: TRUE | AT30: FALSE | AU30: TRUE | AV30: FALSE | AW30: FALSE | AX30: FALSE | AY30: FALSE | BD30: TRUE | BE30: FALSE | BF30: TRUE | BG30: FALSE | BH30: 0
A31: 2023-08-24 | B31: Do | E31: 08:00-16:00 | F31: 08:00:00 | J31: 0 | Q31: 2023-08-24 | R31: TRUE | T31: A | U31: A | V31: 0 | W31: -0.3333333333 | X31: 0 | Y31: FALSE | Z31: FALSE | AA31: TRUE | AB31: 07:00:00 | AC31: 08:00:00 | AD31: 09:00:00 | AE31: 14:00:00 | AF31: 16:00:00 | AG31: 18:00:00 | AH31: FALSE | AI31: TRUE | AJ31: FALSE | AK31: TRUE | AL31: FALSE | AM31: FALSE | AN31: FALSE | AO31: 00:00:00 | AP31: 23:59:00 | AQ31: 00:00:00 | AR31: 23:59:00 | AS31: TRUE | AT31: FALSE | AU31: TRUE | AV31: FALSE | AW31: FALSE | AX31: FALSE | AY31: FALSE | BD31: TRUE | BE31: FALSE | BF31: TRUE | BG31: FALSE | BH31: 0
A32: 2023-08-25 | B32: Fr | E32: 08:00-16:00 | F32: 08:00:00 | J32: 0 | Q32: 2023-08-25 | R32: TRUE | T32: A | U32: A | V32: 0 | W32: -0.3333333333 | X32: 0 | Y32: FALSE | Z32: FALSE | AA32: TRUE | AB32: 07:00:00 | AC32: 08:00:00 | AD32: 09:00:00 | AE32: 12:00:00 | AF32: 16:00:00 | AG32: 18:00:00 | AH32: FALSE | AI32: TRUE | AJ32: FALSE | AK32: TRUE | AL32: FALSE | AM32: FALSE | AN32: FALSE | AO32: 00:00:00 | AP32: 23:59:00 | AQ32: 00:00:00 | AR32: 23:59:00 | AS32: TRUE | AT32: FALSE | AU32: TRUE | AV32: FALSE | AW32: FALSE | AX32: FALSE | AY32: FALSE | BD32: TRUE | BE32: FALSE | BF32: TRUE | BG32: FALSE | BH32: 0
A33: 2023-08-26 | B33: Sa | C33: Wochenende | F33: 00:00:00 | J33: 0 | Q33: 2023-08-26 | R33: TRUE | T33: F | U33: A | V33: 0 | W33: 0 | X33: 0 | Y33: TRUE | Z33: FALSE | AA33: FALSE | AH33: FALSE | AI33: FALSE | AJ33: FALSE | AK33: TRUE | AL33: TRUE | AM33: FALSE | AN33: FALSE | AO33: 00:00:00 | AP33: 23:59:00 | AQ33: 00:00:00 | AR33: 23:59:00 | AS33: TRUE | AT33: FALSE | AU33: TRUE | AV33: FALSE | AW33: FALSE | AX33: FALSE | AY33: FALSE | AZ33: 00:00:00 | BA33: 23:59:00 | BB33: 00:00:00 | BC33: 23:59:00 | BD33: TRUE | BE33: FALSE | BF33: TRUE | BG33: FALSE | BH33: 0
A34: 2023-08-27 | B34: So | C34: Wochenende | F34: 00:00:00 | J34: 0 | Q34: 2023-08-27 | R34: TRUE | T34: F | U34: F | V34: 0 | W34: 0 | X34: 0 | Y34: TRUE | Z34: FALSE | AA34: FALSE | AH34: FALSE | AI34: FALSE | AJ34: FALSE | AK34: TRUE | AL34: FALSE | AM34: FALSE | AN34: FALSE | AO34: 00:00:00 | AP34: 23:59:00 | AQ34: 00:00:00 | AR34: 23:59:00 | AS34: TRUE | AT34: FALSE | AU34: TRUE | AV34: FALSE | AW34: FALSE | AX34: FALSE | AY34: FALSE | BD34: TRUE | BE34: FALSE | BF34: TRUE | BG34: FALSE | BH34: 0
A35: 2023-08-28 | B35: Mo | E35: 08:00-16:00 | F35: 08:00:00 | J35: 0 | Q35: 2023-08-28 | R35: TRUE | T35: A | U35: A | V35: 0 | W35: -0.3333333333 | X35: 0 | Y35: FALSE | Z35: FALSE | AA35: TRUE | AB35: 07:00:00 | AC35: 08:00:00 | AD35: 09:00:00 | AE35: 14:00:00 | AF35: 16:00:00 | AG35: 18:00:00 | AH35: FALSE | AI35: TRUE | AJ35: FALSE | AK35: TRUE | AL35: FALSE | AM35: FALSE | AN35: FALSE | AO35: 00:00:00 | AP35: 23:59:00 | AQ35: 00:00:00 | AR35: 23:59:00 | AS35: TRUE | AT35: FALSE | AU35: TRUE | AV35: FALSE | AW35: FALSE | AX35: FALSE | AY35: FALSE | BD35: TRUE | BE35: FALSE | BF35: TRUE | BG35: FALSE | BH35: 0
A36: 2023-08-29 | B36: Di | E36: 08:00-16:00 | F36: 08:00:00 | J36: 0 | Q36: 2023-08-29 | R36: TRUE | T36: A | U36: A | V36: 0 | W36: -0.3333333333 | X36: 0 | Y36: FALSE | Z36: FALSE | AA36: TRUE | AB36: 07:00:00 | AC36: 08:00:00 | AD36: 09:00:00 | AE36: 14:00:00 | AF36: 16:00:00 | AG36: 18:00:00 | AH36: FALSE | AI36: TRUE | AJ36: FALSE | AK36: TRUE | AL36: FALSE | AM36: FALSE | AN36: FALSE | AO36: 00:00:00 | AP36: 23:59:00 | AQ36: 00:00:00 | AR36: 23:59:00 | AS36: TRUE | AT36: FALSE | AU36: TRUE | AV36: FALSE | AW36: FALSE | AX36: FALSE | AY36: FALSE | BD36: TRUE | BE36: FALSE | BF36: TRUE | BG36: FALSE | BH36: 0
A37: 2023-08-30 | B37: Mi | E37: 08:00-16:00 | F37: 08:00:00 | J37: 0 | Q37: 2023-08-30 | R37: TRUE | T37: A | U37: A | V37: 0 | W37: -0.3333333333 | X37: 0 | Y37: FALSE | Z37: FALSE | AA37: TRUE | AB37: 07:00:00 | AC37: 08:00:00 | AD37: 09:00:00 | AE37: 14:00:00 | AF37: 16:00:00 | AG37: 18:00:00 | AH37: FALSE | AI37: TRUE | AJ37: FALSE | AK37: TRUE | AL37: FALSE | AM37: FALSE | AN37: FALSE | AO37: 00:00:00 | AP37: 23:59:00 | AQ37: 00:00:00 | AR37: 23:59:00 | AS37: TRUE | AT37: FALSE | AU37: TRUE | AV37: FALSE | AW37: FALSE | AX37: FALSE | AY37: FALSE | BD37: TRUE | BE37: FALSE | BF37: TRUE | BG37: FALSE | BH37: 0
A38: 2023-08-31 | B38: Do | E38: 08:00-16:00 | F38: 08:00:00 | J38: =IF($R38,$X38,"") -> 0 | Q38: 2023-08-31 | R38: TRUE | T38: A | U38: A | V38: 0 | W38: -0.3333333333 | X38: 0 | Y38: FALSE | Z38: FALSE | AA38: TRUE | AB38: 07:00:00 | AC38: 08:00:00 | AD38: 09:00:00 | AE38: 14:00:00 | AF38: 16:00:00 | AG38: 18:00:00 | AH38: FALSE | AI38: TRUE | AJ38: FALSE | AK38: TRUE | AL38: FALSE | AM38: FALSE | AN38: FALSE | AO38: 00:00:00 | AP38: 23:59:00 | AQ38: 00:00:00 | AR38: 23:59:00 | AS38: TRUE | AT38: FALSE | AU38: TRUE | AV38: FALSE | AW38: FALSE | AX38: FALSE | AY38: FALSE | BD38: TRUE | BE38: FALSE | BF38: TRUE | BG38: FALSE | BH38: 0
A39: Arbeitstage | B39: =COUNTIF(T$8:T$38,"A") -> 22 | E39: ="Saldo Monat (~15min) > " -> Saldo Monat (~15min) > | I39: =ROUND(SUM(I8:I38)*4,0)/4 -> 0 | K39: =SUM(K8:K38) -> 0 | L39: < ÜS1:2 | N39: =SUM(N8:N38) -> 0 | O39: =IF(Zeitmodell="Vollzeit"," < ÜS1:1,5 "," < ÜS1:1,25 ")&Zeitmodell -> < ÜS1:1,5 Vollzeit | Q39: Zeitmodell Text
A40: Freie Tage | B40: =COUNTIF(T$8:T$38,"F") -> 9 | E40: ="Saldo "&IF(Zeitmodell="Vollzeit","1:1,5","1:1,25")& " (~15min) > " -> Saldo 1:1,5 (~15min) > | I40: =ROUND($N40*4,0)/4 -> 0 | N40: =IF(Zeitmodell="Vollzeit",$N39*1.5,$N39*1.25) -> 0 | O40: =IF(Zeitmodell="Vollzeit"," < 1:1,5 "," < 1:1,25 ")&$Q40 -> < 1:1,5 Stunden berechnen | Q40: Stunden berechnen
A41: ZK-Tage | B41: 0 | E41: Saldo 1:2 (~15min) > | I41: =ROUND($N41*4,0)/4 -> 0 | N41: =K39*2 -> 0 | O41: < 1:2 Stunden berechnen
A42: ZA-Tage | B42: =COUNTIF(D$8:D$38,"Z") -> 0 | E42: Saldo Vormonat > | I42: =$J5 -> 0 | Q42: Gültigkeit ausbezahlt
A43: Urlaubstage | B43: =COUNTIF(D$8:D$38,"U") -> 0 | E43: Saldo Gesamt > | I43: =SUM(I39:I42) -> 0 | K43: =IF($I$43>=$R$2,"< Hier ausbezahlte Std. eingeben. (Die Eingabe ist hier erst ab < einem Saldo von "&TEXT($R$2,"#.##0,00")&" Std., und nur in 0,25-Schritten möglich.)","") ->  | Q43: =IF(AND($J$43<>"",NOT(ISNUMBER($J$43))),FALSE,OR(AND($J$43>=0,$J$43<=$I$43,MOD($J$43,0.25)=0),$J$43="")) -> TRUE
A44: Krank | B44: =COUNTIF(D$8:D$38,"K") -> 0 | E44: Saldo Übertrag > | I44: =$I43-$J43 -> 0 | J44: =" < Dieser Stunden-Saldo wird in das nächste "&IF($Q$3="Dezember","Jahr","Monat")&" übertragen" -> < Dieser Stunden-Saldo wird in das nächste Monat übertragen
D45: Z
A48: ="Unterschrift von "&Vorgesetzter -> Unterschrift von Vorname Nachname | L48: ="Unterschrift von "&Name -> Unterschrift von Vorname Nachname

Sheet September (hidden)
A1: BOKU-Zeiterfassung für Allgemeines Personal | Q1: Monat | R1: Stunden-Saldo Grenzen | S1: Status Blatteingabe
A2: =" Org.-Einh. : "&OrgEinheit -> Org.-Einh. : HXXXXX | F2: Zeitmodell: | I2: =" "&Zeitmodell -> Vollzeit | J2: Modus: | K2: =" "&Zeitmodus -> Gleitzeit | Q2: =IF(ISNA($Q$4),1,$Q$4) -> 9 | R2: =IF($Q$2=12,NormalOGDez,NormalOG) -> 72 | S2: =SUM($BH8:$BH38) -> 0
A3: =" Mitarbeiter/in: "&Name -> Mitarbeiter/in: Vorname Nachname | F3: Vorgesetzte/r: | I3: =" "&Vorgesetzter -> Vorname Nachname | Q3: =RIGHT(CELL("filename",A1),LEN(CELL("filename",A1))-SEARCH("]",CELL("filename",A1),1)) -> September | R3: =IF($Q$2=12,NormalUGDez,NormalUG) -> -24 | S3: =IF($Q$2=1,$S$2,$S$2+INDIRECT($S$5)) -> 0
A4: =" Monat: "&$Q$3&" "&Jahr -> Monat: September 2023 | E4: Dienstplan | G4: Normalstunden Feiertag-ÜS1:2 | J4: Übertrag | K4: Überstundenberechnung | O4: Unterschrift des Vorgesetzten | P4: Anmerkungen (z.B. Überstunden- notwendigkeit) | Q4: =IF(ISNA(VLOOKUP($Q$3,MTab,2,FALSE)),1,VLOOKUP($Q$3,MTab,2,FALSE)) -> 9 | S4: Übertrags Adresse Blatteingabe
A5: Datum | B5: Wochentag | C5: Tagesinformationen | E5: ="Wochen-AZ"&" "&TEXT(WAZ,"[hh]:mm") -> Wochen-AZ 40:00 | J5: =IF(ISNA($Q$5),Übertrag,INDIRECT($Q$5)) -> 0 | K5: ÜS1:2 | L5: =IF(Zeitmodell="Vollzeit"," Überstunden1:1,5"," Überstunden1:1,25") -> Überstunden1:1,5 | Q5: =IF(ISNA(VLOOKUP($Q$3,MTab,3,FALSE)),"Übertrag",VLOOKUP($Q$3,MTab,3,FALSE)) -> August!$I$44 | S5: =IF(ISNA(VLOOKUP($Q$3,MTab,4,FALSE)),$Q$3&"!$S$2",VLOOKUP($Q$3,MTab,4,FALSE)) -> August!$S$3
C6: Feiertage Wochenende Urlaub, ZA, Krank | D6: [U]rlaub [Z]A [ZK] [K]rank | E6: Normal- | F6: Soll | G6: Von | H6: Bis | I6: Plus | J6: Saldo | K6: Plus | L6: Von | M6: Bis | N6: Plus | Q6: Hintergrundberechnungen | X6: Saldo aktuell | AB6: GAZ-Tabellenabbildung | AH6: Eingabebeprüfungen
E7: Arbeitszeit | I7: Minus | J7: akuell | Q7: Datum | R7: Monat OK | S7: Abwesenh. | T7: Freie Tage | U7: ÜA-Tage | V7: Std. | W7: Soll-Std. | X7: =IF(ISNA($Q$5),Übertrag,INDIRECT($Q$5)) -> 0 | Y7: Std.-Soll = 0 | Z7: Std.-Soll > 0 | AA7: Std.-Soll < 0 | AB7: =I_GAZGRVon -> 2 | AC7: =I_GAZNAZVon -> 3 | AD7: =I_GAZKVon -> 4 | AE7: =I_GAZKBis -> 6 | AF7: =I_GAZNAZBis -> 7 | AG7: =I_GAZGRBis -> 8 | AH7: Zeiteingabe | AI7: UZK-Eing. erlaubt | AJ7: UZK-Eing. gültig | AK7: Normalst. ein erlaubt | AL7: Überstd. ein erlaubt | AM7: Normalstd. eingegeben | AN7: Überstd. eingegeben | AO7: Normal VON möglich OG | AP7: Normal VON möglich UG | AQ7: Normal BIS möglich OG | AR7: Normal BIS möglich UG | AS7: Normal VON 15min | AT7: Normal VON richtig | AU7: Normal BIS 15min | AV7: Normal BIS richtig | AW7: ZA-Kern Von | AX7: ZA-Kern Bis | AY7: ZA-Kern | AZ7: Über VON Obergrenze | BA7: Über VON Untergrenze | BB7: Über BIS Obergrenze | BC7: Über BIS Untergrenze | BD7: Über VON 15min | BE7: Über VON richtig | BF7: Überl BIS 15min | BG7: Über BIS richtig | BH7: Status Zeilen Eingabe
A8: =IF($R8,$Q8,"") -> 2023-09-01 | B8: =IF($R8,VLOOKUP(WEEKDAY($Q8,2),WOTA,2,FALSE),"") -> Fr | C8: =IF($R8," "&IF($S8="",VLOOKUP($Q8,FListe,3,FALSE),$S8),"") ->  | E8: =IF(AND($R8,$T8<>"F"),IF($AC8=$AF8,"keine NAZ",TEXT($AC8,"hh:mm")&"-"&TEXT($AF8,"hh:mm")),"") -> 08:00-16:00 | F8: =IF($R8,IF($T8="F",0,VLOOKUP($B8,GAZ,I_GAZNAZ,FALSE)),"") -> 08:00:00 | I8: =IF(Zeitmodus="Gleitzeit",IF($U8="F","",IF(AND($R8,$AM8,NOT($Y8)),ROUND(($V8-$F8)*24,2),IF($D8="Z",$F8*-24,""))),IF(OR($D8="Z",AND($AM8,$U8="A",W8<0)),ROUND($W8*24,2),"")) ->  | J8: =IF($R8,$X8,"") -> 0 | K8: =IF(AND($U8="F",$AM8),ROUND($V8*24,2),"") ->  | N8: =IF(Zeitmodus="Gleitzeit",IF(AND($R8,$AN8,$M8-$L8<>0,$AL8),ROUND(($M8-$L8)*24,2),""),IF(AND($AM8,$U8="A",W8>0),ROUND(W8*24,2),"")) ->  | Q8: =DATE(Jahr,$Q2,1) -> 2023-09-01 | R8: =$Q$2=MONTH($Q8) -> TRUE | S8: =IF(OR($D8="U",$D8="Z",$D8="ZK",$D8="K"),VLOOKUP($D8,UZK,2,FALSE),"") ->  | T8: =IF($R8,VLOOKUP($Q8,FListe,4,FALSE),"") -> A | U8: =IF($R8,VLOOKUP($Q8,FListe,5,FALSE),"") -> A | V8: =$H8-$G8 -> 0 | W8: =IF($R8,ROUND($V8-$F8,15),"") -> -0.3333333333 | X8: =IF($I8<>"",$X7+$I8,$X7) -> 0 | Y8: =($W8=0) -> FALSE | Z8: =($W8>0) -> FALSE | AA8: =($W8<0) -> TRUE | AB8: =IF(ISNA(VLOOKUP($B8,GAZ,AB$7,FALSE)),"",VLOOKUP($B8,GAZ,AB$7,FALSE)) -> 07:00:00 | AC8: 08:00:00 | AD8: =IF(ISNA(VLOOKUP($B8,GAZ,AD$7,FALSE)),"",IF($AC8=$AF8,$G8,VLOOKUP($B8,GAZ,AD$7,FALSE))) -> 09:00:00 | AE8: =IF(ISNA(VLOOKUP($B8,GAZ,AE$7,FALSE)),"",IF($AC8=$AF8,$H8,VLOOKUP($B8,GAZ,AE$7,FALSE))) -> 12:00:00 | AF8: 16:00:00 | AG8: 18:00:00 | AH8: =OR($G8<>"",$H8<>"",$L8<>"",$M8<>"") -> FALSE | AI8: =AND($T8<>"F",NOT($AH8),NOT($AC8=$AF8)) -> TRUE | AJ8: =AND($AI8,OR($D8="U",$D8="Z",$D8="K")) -> FALSE | AK8: =AND($D8<>"U",$D8<>"Z",$D8<>"K",$R8) -> TRUE | AL8: =AND(Zeitmodus=C_Gleitzeit,$U8<>"F",OR($B8="Sa",AND($AM8,$I8>=0,NOT($AY8)))) -> FALSE | AM8: =AND($G8<>"",$H8<>"") -> FALSE | AN8: =OR($K8<>"",AND($L8<>"",$M8<>"")) -> FALSE | AO8: =IF($AK8,TagUG,"") -> 00:00:00 | AP8: =IF($AK8,IF($H8="",IF(AND($L8<>"",$L8<$AG8),$L8,IF(AND($M8<>"",$M8<$AG8),$M8,TagOG)),$H8),"") -> 23:59:00 | AQ8: =IF($AK8,IF($G8="",$AB8,$G8),"") -> 07:00:00 | AR8: =IF($AK8,IF(AND($L8<>"",$L8<$AG8),$L8,IF(AND($M8<>"",$M8<$AG8),$M8,TagOG)),"") -> 23:59:00 | AS8: =MOD($G8*24,0.25)=0 -> TRUE | AT8: =AND($AK8,ISNUMBER($G8),$G8>=$AO8,$G8<=$AP8) -> FALSE | AU8: =MOD($H8*24,0.25)=0 -> TRUE | AV8: =AND($AK8,ISNUMBER($H8),$H8>=$AQ8,$H8<=$AR8) -> FALSE | AW8: =AND(Zeitmodus=C_Gleitzeit,$B8<>"Sa",$G8<>"",$G8>$AD8) -> FALSE | AX8: =AND(Zeitmodus=C_Gleitzeit,$B8<>"Sa",$H8<>"",$H8<$AE8) -> FALSE | AY8: =AND($U8<>"F",OR($AW8,$AX8)) -> FALSE | AZ8: =IF($B8="Sa",IF($H8<>"",$H8,TIME(0,0,0)),IF($AL8,IF(AND($H8<>"",$H8>$AF8),$H8,$AF8),"")) ->  | BA8: =IF($AL8,IF($M8<>"",$M8,$BC8),"") ->  | BB8: =IF($B8="Sa",IF($L8="",TIME(0,0,0),$L8),IF($AL8,IF($L8<>"",$L8,IF(AND($H8<>"",$H8>$AF8),$H8,$AF8)),"")) ->  | BC8: =IF($AL8,TIME(23,59,0),"") ->  | BD8: =MOD($L8*24,0.25)=0 -> TRUE | BE8: =AND($AL8,ISNUMBER($L8),$L8>=$AZ8,$BA8>=$L8) -> FALSE | BF8: =MOD($M8*24,0.25)=0 -> TRUE | BG8: =AND($AL8,ISNUMBER($M8),$M8>=$BB8,$M8<=$BC8) -> FALSE | BH8: =IF(AND(ISBLANK($D8),ISBLANK($G8),ISBLANK($H8),ISBLANK($L8),ISBLANK($M8),ISBLANK($P8)),0,1) -> 0
A9: =IF($R9,$Q9,"") -> 2023-09-02 | B9: Sa | C9: Wochenende | E9: =IF(AND($R9,$T9<>"F"),IF($AC9=$AF9,"keine NAZ",TEXT($AC9,"hh:mm")&"-"&TEXT($AF9,"hh:mm")),"") ->  | F9: 00:00:00 | J9: 0 | K9: =IF(AND($U9="F",$AM9),ROUND($V9*24,2),"") ->  | Q9: =Q8+1 -> 2023-09-02 | R9: TRUE | T9: F | U9: A | V9: 0 | W9: 0 | X9: 0 | Y9: TRUE | Z9: FALSE | AA9: FALSE | AH9: FALSE | AI9: =AND($T9<>"F",NOT($AH9),NOT($AC9=$AF9)) -> FALSE | AJ9: FALSE | AK9: TRUE | AL9: =AND(Zeitmodus=C_Gleitzeit,$U9<>"F",OR($B9="Sa",AND($AM9,$I9>=0,NOT($AY9)))) -> TRUE | AM9: FALSE | AN9: =OR($K9<>"",AND($L9<>"",$M9<>"")) -> FALSE | AO9: 00:00:00 | AP9: 23:59:00 | AQ9: =IF($AK9,IF($G9="",TagUG,$G9),"") -> 00:00:00 | AR9: 23:59:00 | AS9: TRUE | AT9: FALSE | AU9: TRUE | AV9: FALSE | AW9: FALSE | AX9: FALSE | AY9: =AND($U9<>"F",OR($AW9,$AX9)) -> FALSE | AZ9: 00:00:00 | BA9: 23:59:00 | BB9: 00:00:00 | BC9: 23:59:00 | BD9: TRUE | BE9: FALSE | BF9: TRUE | BG9: FALSE | BH9: 0
A10: 2023-09-03 | B10: So | C10: Wochenende | F10: 00:00:00 | J10: 0 | Q10: 2023-09-03 | R10: TRUE | T10: F | U10: F | V10: 0 | W10: 0 | X10: 0 | Y10: TRUE | Z10: FALSE | AA10: FALSE | AH10: FALSE | AI10: FALSE | AJ10: FALSE | AK10: TRUE | AL10: FALSE | AM10: FALSE | AN10: FALSE | AO10: 00:00:00 | AP10: 23:59:00 | AQ10: 00:00:00 | AR10: 23:59:00 | AS10: TRUE | AT10: FALSE | AU10: TRUE | AV10: FALSE | AW10: FALSE | AX10: FALSE | AY10: FALSE | BD10: TRUE | BE10: FALSE | BF10: TRUE | BG10: FALSE | BH10: 0
A11: 2023-09-04 | B11: Mo | E11: 08:00-16:00 | F11: 08:00:00 | J11: 0 | Q11: 2023-09-04 | R11: TRUE | T11: A | U11: A | V11: 0 | W11: -0.3333333333 | X11: 0 | Y11: FALSE | Z11: FALSE | AA11: TRUE | AB11: 07:00:00 | AC11: 08:00:00 | AD11: 09:00:00 | AE11: 14:00:00 | AF11: 16:00:00 | AG11: 18:00:00 | AH11: FALSE | AI11: TRUE | AJ11: FALSE | AK11: TRUE | AL11: FALSE | AM11: FALSE | AN11: FALSE | AO11: 00:00:00 | AP11: 23:59:00 | AQ11: 00:00:00 | AR11: 23:59:00 | AS11: TRUE | AT11: FALSE | AU11: TRUE | AV11: FALSE | AW11: FALSE | AX11: FALSE | AY11: FALSE | BD11: TRUE | BE11: FALSE | BF11: TRUE | BG11: FALSE | BH11: 0
A12: 2023-09-05 | B12: Di | E12: 08:00-16:00 | F12: 08:00:00 | J12: 0 | Q12: 2023-09-05 | R12: TRUE | T12: A | U12: A | V12: 0 | W12: -0.3333333333 | X12: 0 | Y12: FALSE | Z12: FALSE | AA12: TRUE | AB12: 07:00:00 | AC12: 08:00:00 | AD12: 09:00:00 | AE12: 14:00:00 | AF12: 16:00:00 | AG12: 18:00:00 | AH12: FALSE | AI12: TRUE | AJ12: FALSE | AK12: TRUE | AL12: FALSE | AM12: FALSE | AN12: FALSE | AO12: 00:00:00 | AP12: 23:59:00 | AQ12: 00:00:00 | AR12: 23:59:00 | AS12: TRUE | AT12: FALSE | AU12: TRUE | AV12: FALSE | AW12: FALSE | AX12: FALSE | AY12: FALSE | BD12: TRUE | BE12: FALSE | BF12: TRUE | BG12: FALSE | BH12: 0
A13: 2023-09-06 | B13: Mi | E13: 08:00-16:00 | F13: 08:00:00 | J13: 0 | Q13: 2023-09-06 | R13: TRUE | T13: A | U13: A | V13: 0 | W13: -0.3333333333 | X13: 0 | Y13: FALSE | Z13: FALSE | AA13: TRUE | AB13: 07:00:00 | AC13: 08:00:00 | AD13: 09:00:00 | AE13: 14:00:00 | AF13: 16:00:00 | AG13: 18:00:00 | AH13: FALSE | AI13: TRUE | AJ13: FALSE | AK13: TRUE | AL13: FALSE | AM13: FALSE | AN13: FALSE | AO13: 00:00:00 | AP13: 23:59:00 | AQ13: 00:00:00 | AR13: 23:59:00 | AS13: TRUE | AT13: FALSE | AU13: TRUE | AV13: FALSE | AW13: FALSE | AX13: FALSE | AY13: FALSE | BD13: TRUE | BE13: FALSE | BF13: TRUE | BG13: FALSE | BH13: 0
A14: 2023-09-07 | B14: Do | E14: 08:00-16:00 | F14: 08:00:00 | J14: 0 | Q14: 2023-09-07 | R14: TRUE | T14: A | U14: A | V14: 0 | W14: -0.3333333333 | X14: 0 | Y14: FALSE | Z14: FALSE | AA14: TRUE | AB14: 07:00:00 | AC14: 08:00:00 | AD14: 09:00:00 | AE14: 14:00:00 | AF14: 16:00:00 | AG14: 18:00:00 | AH14: FALSE | AI14: TRUE | AJ14: FALSE | AK14: TRUE | AL14: FALSE | AM14: FALSE | AN14: FALSE | AO14: 00:00:00 | AP14: 23:59:00 | AQ14: 00:00:00 | AR14: 23:59:00 | AS14: TRUE | AT14: FALSE | AU14: TRUE | AV14: FALSE | AW14: FALSE | AX14: FALSE | AY14: FALSE | BD14: TRUE | BE14: FALSE | BF14: TRUE | BG14: FALSE | BH14: 0
A15: 2023-09-08 | B15: Fr | E15: 08:00-16:00 | F15: 08:00:00 | J15: 0 | Q15: 2023-09-08 | R15: TRUE | T15: A | U15: A | V15: 0 | W15: -0.3333333333 | X15: 0 | Y15: FALSE | Z15: FALSE | AA15: TRUE | AB15: 07:00:00 | AC15: 08:00:00 | AD15: 09:00:00 | AE15: 12:00:00 | AF15: 16:00:00 | AG15: 18:00:00 | AH15: FALSE | AI15: TRUE | AJ15: FALSE | AK15: TRUE | AL15: FALSE | AM15: FALSE | AN15: FALSE | AO15: 00:00:00 | AP15: 23:59:00 | AQ15: 00:00:00 | AR15: 23:59:00 | AS15: TRUE | AT15: FALSE | AU15: TRUE | AV15: FALSE | AW15: FALSE | AX15: FALSE | AY15: FALSE | BD15: TRUE | BE15: FALSE | BF15: TRUE | BG15: FALSE | BH15: 0
A16: 2023-09-09 | B16: Sa | C16: Wochenende | F16: 00:00:00 | J16: 0 | Q16: 2023-09-09 | R16: TRUE | T16: F | U16: A | V16: 0 | W16: 0 | X16: 0 | Y16: TRUE | Z16: FALSE | AA16: FALSE | AH16: FALSE | AI16: FALSE | AJ16: FALSE | AK16: TRUE | AL16: TRUE | AM16: FALSE | AN16: FALSE | AO16: 00:00:00 | AP16: 23:59:00 | AQ16: 00:00:00 | AR16: 23:59:00 | AS16: TRUE | AT16: FALSE | AU16: TRUE | AV16: FALSE | AW16: FALSE | AX16: FALSE | AY16: FALSE | AZ16: 00:00:00 | BA16: 23:59:00 | BB16: 00:00:00 | BC16: 23:59:00 | BD16: TRUE | BE16: FALSE | BF16: TRUE | BG16: FALSE | BH16: 0
A17: 2023-09-10 | B17: So | C17: Wochenende | F17: 00:00:00 | J17: 0 | Q17: 2023-09-10 | R17: TRUE | T17: F | U17: F | V17: 0 | W17: 0 | X17: 0 | Y17: TRUE | Z17: FALSE | AA17: FALSE | AH17: FALSE | AI17: FALSE | AJ17: FALSE | AK17: TRUE | AL17: FALSE | AM17: FALSE | AN17: FALSE | AO17: 00:00:00 | AP17: 23:59:00 | AQ17: 00:00:00 | AR17: 23:59:00 | AS17: TRUE | AT17: FALSE | AU17: TRUE | AV17: FALSE | AW17: FALSE | AX17: FALSE | AY17: FALSE | BD17: TRUE | BE17: FALSE | BF17: TRUE | BG17: FALSE | BH17: 0
A18: 2023-09-11 | B18: Mo | E18: 08:00-16:00 | F18: 08:00:00 | J18: 0 | Q18: 2023-09-11 | R18: TRUE | T18: A | U18: A | V18: 0 | W18: -0.3333333333 | X18: 0 | Y18: FALSE | Z18: FALSE | AA18: TRUE | AB18: 07:00:00 | AC18: 08:00:00 | AD18: 09:00:00 | AE18: 14:00:00 | AF18: 16:00:00 | AG18: 18:00:00 | AH18: FALSE | AI18: TRUE | AJ18: FALSE | AK18: TRUE | AL18: FALSE | AM18: FALSE | AN18: FALSE | AO18: 00:00:00 | AP18: 23:59:00 | AQ18: 00:00:00 | AR18: 23:59:00 | AS18: TRUE | AT18: FALSE | AU18: TRUE | AV18: FALSE | AW18: FALSE | AX18: FALSE | AY18: FALSE | BD18: TRUE | BE18: FALSE | BF18: TRUE | BG18: FALSE | BH18: 0
A19: 2023-09-12 | B19: Di | E19: 08:00-16:00 | F19: 08:00:00 | J19: 0 | Q19: 2023-09-12 | R19: TRUE | T19: A | U19: A | V19: 0 | W19: -0.3333333333 | X19: 0 | Y19: FALSE | Z19: FALSE | AA19: TRUE | AB19: 07:00:00 | AC19: 08:00:00 | AD19: 09:00:00 | AE19: 14:00:00 | AF19: 16:00:00 | AG19: 18:00:00 | AH19: FALSE | AI19: TRUE | AJ19: FALSE | AK19: TRUE | AL19: FALSE | AM19: FALSE | AN19: FALSE | AO19: 00:00:00 | AP19: 23:59:00 | AQ19: 00:00:00 | AR19: 23:59:00 | AS19: TRUE | AT19: FALSE | AU19: TRUE | AV19: FALSE | AW19: FALSE | AX19: FALSE | AY19: FALSE | BD19: TRUE | BE19: FALSE | BF19: TRUE | BG19: FALSE | BH19: 0
A20: 2023-09-13 | B20: Mi | E20: 08:00-16:00 | F20: 08:00:00 | J20: 0 | Q20: 2023-09-13 | R20: TRUE | T20: A | U20: A | V20: 0 | W20: -0.3333333333 | X20: 0 | Y20: FALSE | Z20: FALSE | AA20: TRUE | AB20: 07:00:00 | AC20: 08:00:00 | AD20: 09:00:00 | AE20: 14:00:00 | AF20: 16:00:00 | AG20: 18:00:00 | AH20: FALSE | AI20: TRUE | AJ20: FALSE | AK20: TRUE | AL20: FALSE | AM20: FALSE | AN20: FALSE | AO20: 00:00:00 | AP20: 23:59:00 | AQ20: 00:00:00 | AR20: 23:59:00 | AS20: TRUE | AT20: FALSE | AU20: TRUE | AV20: FALSE | AW20: FALSE | AX20: FALSE | AY20: FALSE | BD20: TRUE | BE20: FALSE | BF20: TRUE | BG20: FALSE | BH20: 0
A21: 2023-09-14 | B21: Do | E21: 08:00-16:00 | F21: 08:00:00 | J21: 0 | Q21: 2023-09-14 | R21: TRUE | T21: A | U21: A | V21: 0 | W21: -0.3333333333 | X21: 0 | Y21: FALSE | Z21: FALSE | AA21: TRUE | AB21: 07:00:00 | AC21: 08:00:00 | AD21: 09:00:00 | AE21: 14:00:00 | AF21: 16:00:00 | AG21: 18:00:00 | AH21: FALSE | AI21: TRUE | AJ21: FALSE | AK21: TRUE | AL21: FALSE | AM21: FALSE | AN21: FALSE | AO21: 00:00:00 | AP21: 23:59:00 | AQ21: 00:00:00 | AR21: 23:59:00 | AS21: TRUE | AT21: FALSE | AU21: TRUE | AV21: FALSE | AW21: FALSE | AX21: FALSE | AY21: FALSE | BD21: TRUE | BE21: FALSE | BF21: TRUE | BG21: FALSE | BH21: 0
A22: 2023-09-15 | B22: Fr | E22: 08:00-16:00 | F22: 08:00:00 | J22: 0 | Q22: 2023-09-15 | R22: TRUE | T22: A | U22: A | V22: 0 | W22: -0.3333333333 | X22: 0 | Y22: FALSE | Z22: FALSE | AA22: TRUE | AB22: 07:00:00 | AC22: 08:00:00 | AD22: 09:00:00 | AE22: 12:00:00 | AF22: 16:00:00 | AG22: 18:00:00 | AH22: FALSE | AI22: TRUE | AJ22: FALSE | AK22: TRUE | AL22: FALSE | AM22: FALSE | AN22: FALSE | AO22: 00:00:00 | AP22: 23:59:00 | AQ22: 00:00:00 | AR22: 23:59:00 | AS22: TRUE | AT22: FALSE | AU22: TRUE | AV22: FALSE | AW22: FALSE | AX22: FALSE | AY22: FALSE | BD22: TRUE | BE22: FALSE | BF22: TRUE | BG22: FALSE | BH22: 0
A23: 2023-09-16 | B23: Sa | C23: Wochenende | F23: 00:00:00 | J23: 0 | Q23: 2023-09-16 | R23: TRUE | T23: F | U23: A | V23: 0 | W23: 0 | X23: 0 | Y23: TRUE | Z23: FALSE | AA23: FALSE | AH23: FALSE | AI23: FALSE | AJ23: FALSE | AK23: TRUE | AL23: TRUE | AM23: FALSE | AN23: FALSE | AO23: 00:00:00 | AP23: 23:59:00 | AQ23: 00:00:00 | AR23: 23:59:00 | AS23: TRUE | AT23: FALSE | AU23: TRUE | AV23: FALSE | AW23: FALSE | AX23: FALSE | AY23: FALSE | AZ23: 00:00:00 | BA23: 23:59:00 | BB23: 00:00:00 | BC23: 23:59:00 | BD23: TRUE | BE23: FALSE | BF23: TRUE | BG23: FALSE | BH23: 0
A24: 2023-09-17 | B24: So | C24: Wochenende | F24: 00:00:00 | J24: 0 | Q24: 2023-09-17 | R24: TRUE | T24: F | U24: F | V24: 0 | W24: 0 | X24: 0 | Y24: TRUE | Z24: FALSE | AA24: FALSE | AB24: =IF(ISNA(VLOOKUP($B24,GAZ,AB$7,FALSE)),"",VLOOKUP($B24,GAZ,AB$7,FALSE)) ->  | AH24: FALSE | AI24: FALSE | AJ24: FALSE | AK24: TRUE | AL24: FALSE | AM24: FALSE | AN24: FALSE | AO24: 00:00:00 | AP24: 23:59:00 | AQ24: 00:00:00 | AR24: 23:59:00 | AS24: TRUE | AT24: FALSE | AU24: TRUE | AV24: FALSE | AW24: FALSE | AX24: FALSE | AY24: FALSE | BD24: TRUE | BE24: FALSE | BF24: TRUE | BG24: FALSE | BH24: 0
A25: 2023-09-18 | B25: Mo | E25: 08:00-16:00 | F25: 08:00:00 | J25: 0 | Q25: 2023-09-18 | R25: TRUE | T25: A | U25: A | V25: 0 | W25: -0.3333333333 | X25: 0 | Y25: FALSE | Z25: FALSE | AA25: TRUE | AB25: 07:00:00 | AC25: 08:00:00 | AD25: 09:00:00 | AE25: 14:00:00 | AF25: 16:00:00 | AG25: 18:00:00 | AH25: FALSE | AI25: TRUE | AJ25: FALSE | AK25: TRUE | AL25: FALSE | AM25: FALSE | AN25: FALSE | AO25: 00:00:00 | AP25: 23:59:00 | AQ25: 00:00:00 | AR25: 23:59:00 | AS25: TRUE | AT25: FALSE | AU25: TRUE | AV25: FALSE | AW25: FALSE | AX25: FALSE | AY25: FALSE | BD25: TRUE | BE25: FALSE | BF25: TRUE | BG25: FALSE | BH25: 0
A26: 2023-09-19 | B26: Di | E26: 08:00-16:00 | F26: 08:00:00 | J26: 0 | Q26: 2023-09-19 | R26: TRUE | T26: A | U26: A | V26: 0 | W26: -0.3333333333 | X26: 0 | Y26: FALSE | Z26: FALSE | AA26: TRUE | AB26: 07:00:00 | AC26: 08:00:00 | AD26: 09:00:00 | AE26: 14:00:00 | AF26: 16:00:00 | AG26: 18:00:00 | AH26: FALSE | AI26: TRUE | AJ26: FALSE | AK26: TRUE | AL26: FALSE | AM26: FALSE | AN26: FALSE | AO26: 00:00:00 | AP26: 23:59:00 | AQ26: 00:00:00 | AR26: 23:59:00 | AS26: TRUE | AT26: FALSE | AU26: TRUE | AV26: FALSE | AW26: FALSE | AX26: FALSE | AY26: FALSE | BD26: TRUE | BE26: FALSE | BF26: TRUE | BG26: FALSE | BH26: 0
A27: 2023-09-20 | B27: Mi | E27: 08:00-16:00 | F27: 08:00:00 | J27: 0 | Q27: 2023-09-20 | R27: TRUE | T27: A | U27: A | V27: 0 | W27: -0.3333333333 | X27: 0 | Y27: FALSE | Z27: FALSE | AA27: TRUE | AB27: 07:00:00 | AC27: 08:00:00 | AD27: 09:00:00 | AE27: 14:00:00 | AF27: 16:00:00 | AG27: 18:00:00 | AH27: FALSE | AI27: TRUE | AJ27: FALSE | AK27: TRUE | AL27: FALSE | AM27: FALSE | AN27: FALSE | AO27: 00:00:00 | AP27: 23:59:00 | AQ27: 00:00:00 | AR27: 23:59:00 | AS27: TRUE | AT27: FALSE | AU27: TRUE | AV27: FALSE | AW27: FALSE | AX27: FALSE | AY27: FALSE | BD27: TRUE | BE27: FALSE | BF27: TRUE | BG27: FALSE | BH27: 0
A28: 2023-09-21 | B28: Do | E28: 08:00-16:00 | F28: 08:00:00 | J28: 0 | Q28: 2023-09-21 | R28: TRUE | T28: A | U28: A | V28: 0 | W28: -0.3333333333 | X28: 0 | Y28: FALSE | Z28: FALSE | AA28: TRUE | AB28: 07:00:00 | AC28: 08:00:00 | AD28: 09:00:00 | AE28: 14:00:00 | AF28: 16:00:00 | AG28: 18:00:00 | AH28: FALSE | AI28: TRUE | AJ28: FALSE | AK28: TRUE | AL28: FALSE | AM28: FALSE | AN28: FALSE | AO28: 00:00:00 | AP28: 23:59:00 | AQ28: 00:00:00 | AR28: 23:59:00 | AS28: TRUE | AT28: FALSE | AU28: TRUE | AV28: FALSE | AW28: FALSE | AX28: FALSE | AY28: FALSE | BD28: TRUE | BE28: FALSE | BF28: TRUE | BG28: FALSE | BH28: 0
A29: 2023-09-22 | B29: Fr | E29: 08:00-16:00 | F29: 08:00:00 | J29: 0 | Q29: 2023-09-22 | R29: TRUE | T29: A | U29: A | V29: 0 | W29: -0.3333333333 | X29: 0 | Y29: FALSE | Z29: FALSE | AA29: TRUE | AB29: 07:00:00 | AC29: 08:00:00 | AD29: 09:00:00 | AE29: 12:00:00 | AF29: 16:00:00 | AG29: 18:00:00 | AH29: FALSE | AI29: TRUE | AJ29: FALSE | AK29: TRUE | AL29: FALSE | AM29: FALSE | AN29: FALSE | AO29: 00:00:00 | AP29: 23:59:00 | AQ29: 00:00:00 | AR29: 23:59:00 | AS29: TRUE | AT29: FALSE | AU29: TRUE | AV29: FALSE | AW29: FALSE | AX29: FALSE | AY29: FALSE | BD29: TRUE | BE29: FALSE | BF29: TRUE | BG29: FALSE | BH29: 0
A30: 2023-09-23 | B30: Sa | C30: Wochenende | F30: 00:00:00 | J30: 0 | Q30: 2023-09-23 | R30: TRUE | T30: F | U30: A | V30: 0 | W30: 0 | X30: 0 | Y30: TRUE | Z30: FALSE | AA30: FALSE | AH30: FALSE | AI30: FALSE | AJ30: FALSE | AK30: TRUE | AL30: TRUE | AM30: FALSE | AN30: FALSE | AO30: 00:00:00 | AP30: 23:59:00 | AQ30: 00:00:00 | AR30: 23:59:00 | AS30: TRUE | AT30: FALSE | AU30: TRUE | AV30: FALSE | AW30: FALSE | AX30: FALSE | AY30: FALSE | AZ30: 00:00:00 | BA30: 23:59:00 | BB30: 00:00:00 | BC30: 23:59:00 | BD30: TRUE | BE30: FALSE | BF30: TRUE | BG30: FALSE | BH30: 0
A31: 2023-09-24 | B31: So | C31: Wochenende | F31: 00:00:00 | J31: 0 | Q31: 2023-09-24 | R31: TRUE | T31: F | U31: F | V31: 0 | W31: 0 | X31: 0 | Y31: TRUE | Z31: FALSE | AA31: FALSE | AH31: FALSE | AI31: FALSE | AJ31: FALSE | AK31: TRUE | AL31: FALSE | AM31: FALSE | AN31: FALSE | AO31: 00:00:00 | AP31: 23:59:00 | AQ31: 00:00:00 | AR31: 23:59:00 | AS31: TRUE | AT31: FALSE | AU31: TRUE | AV31: FALSE | AW31: FALSE | AX31: FALSE | AY31: FALSE | BD31: TRUE | BE31: FALSE | BF31: TRUE | BG31: FALSE | BH31: 0
A32: 2023-09-25 | B32: Mo | E32: 08:00-16:00 | F32: 08:00:00 | J32: 0 | Q32: 2023-09-25 | R32: TRUE | T32: A | U32: A | V32: 0 | W32: -0.3333333333 | X32: 0 | Y32: FALSE | Z32: FALSE | AA32: TRUE | AB32: 07:00:00 | AC32: 08:00:00 | AD32: 09:00:00 | AE32: 14:00:00 | AF32: 16:00:00 | AG32: 18:00:00 | AH32: FALSE | AI32: TRUE | AJ32: FALSE | AK32: TRUE | AL32: FALSE | AM32: FALSE | AN32: FALSE | AO32: 00:00:00 | AP32: 23:59:00 | AQ32: 00:00:00 | AR32: 23:59:00 | AS32: TRUE | AT32: FALSE | AU32: TRUE | AV32: FALSE | AW32: FALSE | AX32: FALSE | AY32: FALSE | BD32: TRUE | BE32: FALSE | BF32: TRUE | BG32: FALSE | BH32: 0
A33: 2023-09-26 | B33: Di | E33: 08:00-16:00 | F33: 08:00:00 | J33: 0 | Q33: 2023-09-26 | R33: TRUE | T33: A | U33: A | V33: 0 | W33: -0.3333333333 | X33: 0 | Y33: FALSE | Z33: FALSE | AA33: TRUE | AB33: 07:00:00 | AC33: 08:00:00 | AD33: 09:00:00 | AE33: 14:00:00 | AF33: 16:00:00 | AG33: 18:00:00 | AH33: FALSE | AI33: TRUE | AJ33: FALSE | AK33: TRUE | AL33: FALSE | AM33: FALSE | AN33: FALSE | AO33: 00:00:00 | AP33: 23:59:00 | AQ33: 00:00:00 | AR33: 23:59:00 | AS33: TRUE | AT33: FALSE | AU33: TRUE | AV33: FALSE | AW33: FALSE | AX33: FALSE | AY33: FALSE | BD33: TRUE | BE33: FALSE | BF33: TRUE | BG33: FALSE | BH33: 0
A34: 2023-09-27 | B34: Mi | E34: 08:00-16:00 | F34: 08:00:00 | J34: 0 | Q34: 2023-09-27 | R34: TRUE | T34: A | U34: A | V34: 0 | W34: -0.3333333333 | X34: 0 | Y34: FALSE | Z34: FALSE | AA34: TRUE | AB34: 07:00:00 | AC34: 08:00:00 | AD34: 09:00:00 | AE34: 14:00:00 | AF34: 16:00:00 | AG34: 18:00:00 | AH34: FALSE | AI34: TRUE | AJ34: FALSE | AK34: TRUE | AL34: FALSE | AM34: FALSE | AN34: FALSE | AO34: 00:00:00 | AP34: 23:59:00 | AQ34: 00:00:00 | AR34: 23:59:00 | AS34: TRUE | AT34: FALSE | AU34: TRUE | AV34: FALSE | AW34: FALSE | AX34: FALSE | AY34: FALSE | BD34: TRUE | BE34: FALSE | BF34: TRUE | BG34: FALSE | BH34: 0
A35: 2023-09-28 | B35: Do | E35: 08:00-16:00 | F35: 08:00:00 | J35: 0 | Q35: 2023-09-28 | R35: TRUE | T35: A | U35: A | V35: 0 | W35: -0.3333333333 | X35: 0 | Y35: FALSE | Z35: FALSE | AA35: TRUE | AB35: 07:00:00 | AC35: 08:00:00 | AD35: 09:00:00 | AE35: 14:00:00 | AF35: 16:00:00 | AG35: 18:00:00 | AH35: FALSE | AI35: TRUE | AJ35: FALSE | AK35: TRUE | AL35: FALSE | AM35: FALSE | AN35: FALSE | AO35: 00:00:00 | AP35: 23:59:00 | AQ35: 00:00:00 | AR35: 23:59:00 | AS35: TRUE | AT35: FALSE | AU35: TRUE | AV35: FALSE | AW35: FALSE | AX35: FALSE | AY35: FALSE | BD35: TRUE | BE35: FALSE | BF35: TRUE | BG35: FALSE | BH35: 0
A36: 2023-09-29 | B36: Fr | E36: 08:00-16:00 | F36: 08:00:00 | J36: 0 | Q36: 2023-09-29 | R36: TRUE | T36: A | U36: A | V36: 0 | W36: -0.3333333333 | X36: 0 | Y36: FALSE | Z36: FALSE | AA36: TRUE | AB36: 07:00:00 | AC36: 08:00:00 | AD36: 09:00:00 | AE36: 12:00:00 | AF36: 16:00:00 | AG36: 18:00:00 | AH36: FALSE | AI36: TRUE | AJ36: FALSE | AK36: TRUE | AL36: FALSE | AM36: FALSE | AN36: FALSE | AO36: 00:00:00 | AP36: 23:59:00 | AQ36: 00:00:00 | AR36: 23:59:00 | AS36: TRUE | AT36: FALSE | AU36: TRUE | AV36: FALSE | AW36: FALSE | AX36: FALSE | AY36: FALSE | BD36: TRUE | BE36: FALSE | BF36: TRUE | BG36: FALSE | BH36: 0
A37: 2023-09-30 | B37: Sa | C37: Wochenende | F37: 00:00:00 | J37: 0 | Q37: 2023-09-30 | R37: TRUE | T37: F | U37: A | V37: 0 | W37: 0 | X37: 0 | Y37: TRUE | Z37: FALSE | AA37: FALSE | AH37: FALSE | AI37: FALSE | AJ37: FALSE | AK37: TRUE | AL37: TRUE | AM37: FALSE | AN37: FALSE | AO37: 00:00:00 | AP37: 23:59:00 | AQ37: 00:00:00 | AR37: 23:59:00 | AS37: TRUE | AT37: FALSE | AU37: TRUE | AV37: FALSE | AW37: FALSE | AX37: FALSE | AY37: FALSE | AZ37: 00:00:00 | BA37: 23:59:00 | BB37: 00:00:00 | BC37: 23:59:00 | BD37: TRUE | BE37: FALSE | BF37: TRUE | BG37: FALSE | BH37: 0
J38: =IF($R38,$X38,"") ->  | Q38: 2023-10-01 | R38: FALSE | V38: 0 | X38: 0 | Y38: FALSE | Z38: TRUE | AA38: FALSE | AH38: FALSE | AI38: FALSE | AJ38: FALSE | AK38: FALSE | AL38: FALSE | AM38: FALSE | AN38: FALSE | AS38: TRUE | AT38: FALSE | AU38: TRUE | AV38: FALSE | AW38: FALSE | AX38: FALSE | AY38: FALSE | BD38: TRUE | BE38: FALSE | BF38: TRUE | BG38: FALSE | BH38: 0
A39: Arbeitstage | B39: =COUNTIF(T$8:T$38,"A") -> 21 | E39: ="Saldo Monat (~15min) > " -> Saldo Monat (~15min) > | I39: =ROUND(SUM(I8:I38)*4,0)/4 -> 0 | K39: =SUM(K8:K38) -> 0 | L39: < ÜS1:2 | N39: =SUM(N8:N38) -> 0 | O39: =IF(Zeitmodell="Vollzeit"," < ÜS1:1,5 "," < ÜS1:1,25 ")&Zeitmodell -> < ÜS1:1,5 Vollzeit | Q39: Zeitmodell Text
A40: Freie Tage | B40: =COUNTIF(T$8:T$38,"F") -> 9 | E40: ="Saldo "&IF(Zeitmodell="Vollzeit","1:1,5","1:1,25")& " (~15min) > " -> Saldo 1:1,5 (~15min) > | I40: =ROUND($N40*4,0)/4 -> 0 | N40: =IF(Zeitmodell="Vollzeit",$N39*1.5,$N39*1.25) -> 0 | O40: =IF(Zeitmodell="Vollzeit"," < 1:1,5 "," < 1:1,25 ")&$Q40 -> < 1:1,5 Stunden berechnen | Q40: Stunden berechnen
A41: ZK-Tage | B41: 0 | E41: Saldo 1:2 (~15min) > | I41: =ROUND($N41*4,0)/4 -> 0 | N41: =K39*2 -> 0 | O41: < 1:2 Stunden berechnen
A42: ZA-Tage | B42: =COUNTIF(D$8:D$38,"Z") -> 0 | E42: Saldo Vormonat > | I42: =$J5 -> 0 | Q42: Gültigkeit ausbezahlt
A43: Urlaubstage | B43: =COUNTIF(D$8:D$38,"U") -> 0 | E43: Saldo Gesamt > | I43: =SUM(I39:I42) -> 0 | K43: =IF($I$43>=$R$2,"< Hier ausbezahlte Std. eingeben. (Die Eingabe ist hier erst ab < einem Saldo von "&TEXT($R$2,"#.##0,00")&" Std., und nur in 0,25-Schritten möglich.)","") ->  | Q43: =IF(AND($J$43<>"",NOT(ISNUMBER($J$43))),FALSE,OR(AND($J$43>=0,$J$43<=$I$43,MOD($J$43,0.25)=0),$J$43="")) -> TRUE
A44: Krank | B44: =COUNTIF(D$8:D$38,"K") -> 0 | E44: Saldo Übertrag > | I44: =$I43-$J43 -> 0 | J44: =" < Dieser Stunden-Saldo wird in das nächste "&IF($Q$3="Dezember","Jahr","Monat")&" übertragen" -> < Dieser Stunden-Saldo wird in das nächste Monat übertragen
D45: Z
A48: ="Unterschrift von "&Vorgesetzter -> Unterschrift von Vorname Nachname | L48: ="Unterschrift von "&Name -> Unterschrift von Vorname Nachname

Sheet Oktober (hidden)
A1: BOKU-Zeiterfassung für Allgemeines Personal | Q1: Monat | R1: Stunden-Saldo Grenzen | S1: Status Blatteingabe
A2: =" Org.-Einh. : "&OrgEinheit -> Org.-Einh. : HXXXXX | F2: Zeitmodell: | I2: =" "&Zeitmodell -> Vollzeit | J2: Modus: | K2: =" "&Zeitmodus -> Gleitzeit | Q2: =IF(ISNA($Q$4),1,$Q$4) -> 10 | R2: =IF($Q$2=12,NormalOGDez,NormalOG) -> 72 | S2: =SUM($BH8:$BH38) -> 0
A3: =" Mitarbeiter/in: "&Name -> Mitarbeiter/in: Vorname Nachname | F3: Vorgesetzte/r: | I3: =" "&Vorgesetzter -> Vorname Nachname | Q3: =RIGHT(CELL("filename",A1),LEN(CELL("filename",A1))-SEARCH("]",CELL("filename",A1),1)) -> Oktober | R3: =IF($Q$2=12,NormalUGDez,NormalUG) -> -24 | S3: =IF($Q$2=1,$S$2,$S$2+INDIRECT($S$5)) -> 0
A4: =" Monat: "&$Q$3&" "&Jahr -> Monat: Oktober 2023 | E4: Dienstplan | G4: Normalstunden Feiertag-ÜS1:2 | J4: Übertrag | K4: Überstundenberechnung | O4: Unterschrift des Vorgesetzten | P4: Anmerkungen (z.B. Überstunden- notwendigkeit) | Q4: =IF(ISNA(VLOOKUP($Q$3,MTab,2,FALSE)),1,VLOOKUP($Q$3,MTab,2,FALSE)) -> 10 | S4: Übertrags Adresse Blatteingabe
A5: Datum | B5: Wochentag | C5: Tagesinformationen | E5: ="Wochen-AZ"&" "&TEXT(WAZ,"[hh]:mm") -> Wochen-AZ 40:00 | J5: =IF(ISNA($Q$5),Übertrag,INDIRECT($Q$5)) -> 0 | K5: ÜS1:2 | L5: =IF(Zeitmodell="Vollzeit"," Überstunden1:1,5"," Überstunden1:1,25") -> Überstunden1:1,5 | Q5: =IF(ISNA(VLOOKUP($Q$3,MTab,3,FALSE)),"Übertrag",VLOOKUP($Q$3,MTab,3,FALSE)) -> September!$I$44 | S5: =IF(ISNA(VLOOKUP($Q$3,MTab,4,FALSE)),$Q$3&"!$S$2",VLOOKUP($Q$3,MTab,4,FALSE)) -> September!$S$3
C6: Feiertage Wochenende Urlaub, ZA, Krank | D6: [U]rlaub [Z]A [ZK] [K]rank | E6: Normal- | F6: Soll | G6: Von | H6: Bis | I6: Plus | J6: Saldo | K6: Plus | L6: Von | M6: Bis | N6: Plus | Q6: Hintergrundberechnungen | X6: Saldo aktuell | AB6: GAZ-Tabellenabbildung | AH6: Eingabebeprüfungen
E7: Arbeitszeit | I7: Minus | J7: akuell | Q7: Datum | R7: Monat OK | S7: Abwesenh. | T7: Freie Tage | U7: ÜA-Tage | V7: Std. | W7: Soll-Std. | X7: =IF(ISNA($Q$5),Übertrag,INDIRECT($Q$5)) -> 0 | Y7: Std.-Soll = 0 | Z7: Std.-Soll > 0 | AA7: Std.-Soll < 0 | AB7: =I_GAZGRVon -> 2 | AC7: =I_GAZNAZVon -> 3 | AD7: =I_GAZKVon -> 4 | AE7: =I_GAZKBis -> 6 | AF7: =I_GAZNAZBis -> 7 | AG7: =I_GAZGRBis -> 8 | AH7: Zeiteingabe | AI7: UZK-Eing. erlaubt | AJ7: UZK-Eing. gültig | AK7: Normalst. ein erlaubt | AL7: Überstd. ein erlaubt | AM7: Normalstd. eingegeben | AN7: Überstd. eingegeben | AO7: Normal VON möglich OG | AP7: Normal VON möglich UG | AQ7: Normal BIS möglich OG | AR7: Normal BIS möglich UG | AS7: Normal VON 15min | AT7: Normal VON richtig | AU7: Normal BIS 15min | AV7: Normal BIS richtig | AW7: ZA-Kern Von | AX7: ZA-Kern Bis | AY7: ZA-Kern | AZ7: Über VON Obergrenze | BA7: Über VON Untergrenze | BB7: Über BIS Obergrenze | BC7: Über BIS Untergrenze | BD7: Über VON 15min | BE7: Über VON richtig | BF7: Überl BIS 15min | BG7: Über BIS richtig | BH7: Status Zeilen Eingabe
A8: =IF($R8,$Q8,"") -> 2023-10-01 | B8: =IF($R8,VLOOKUP(WEEKDAY($Q8,2),WOTA,2,FALSE),"") -> So | C8: =IF($R8," "&IF($S8="",VLOOKUP($Q8,FListe,3,FALSE),$S8),"") -> Wochenende | E8: =IF(AND($R8,$T8<>"F"),IF($AC8=$AF8,"keine NAZ",TEXT($AC8,"hh:mm")&"-"&TEXT($AF8,"hh:mm")),"") ->  | F8: =IF($R8,IF($T8="F",0,VLOOKUP($B8,GAZ,I_GAZNAZ,FALSE)),"") -> 00:00:00 | I8: =IF(Zeitmodus="Gleitzeit",IF($U8="F","",IF(AND($R8,$AM8,NOT($Y8)),ROUND(($V8-$F8)*24,2),IF($D8="Z",$F8*-24,""))),IF(OR($D8="Z",AND($AM8,$U8="A",W8<0)),ROUND($W8*24,2),"")) ->  | J8: =IF($R8,$X8,"") -> 0 | K8: =IF(AND($U8="F",$AM8),ROUND($V8*24,2),"") ->  | N8: =IF(Zeitmodus="Gleitzeit",IF(AND($R8,$AN8,$M8-$L8<>0,$AL8),ROUND(($M8-$L8)*24,2),""),IF(AND($AM8,$U8="A",W8>0),ROUND(W8*24,2),"")) ->  | Q8: =DATE(Jahr,$Q2,1) -> 2023-10-01 | R8: =$Q$2=MONTH($Q8) -> TRUE | S8: =IF(OR($D8="U",$D8="Z",$D8="ZK",$D8="K"),VLOOKUP($D8,UZK,2,FALSE),"") ->  | T8: =IF($R8,VLOOKUP($Q8,FListe,4,FALSE),"") -> F | U8: =IF($R8,VLOOKUP($Q8,FListe,5,FALSE),"") -> F | V8: =$H8-$G8 -> 0 | W8: =IF($R8,ROUND($V8-$F8,15),"") -> 0 | X8: =IF($I8<>"",$X7+$I8,$X7) -> 0 | Y8: =($W8=0) -> TRUE | Z8: =($W8>0) -> FALSE | AA8: =($W8<0) -> FALSE | AB8: =IF(ISNA(VLOOKUP($B8,GAZ,AB$7,FALSE)),"",VLOOKUP($B8,GAZ,AB$7,FALSE)) ->  | AD8: =IF(ISNA(VLOOKUP($B8,GAZ,AD$7,FALSE)),"",IF($AC8=$AF8,$G8,VLOOKUP($B8,GAZ,AD$7,FALSE))) ->  | AE8: =IF(ISNA(VLOOKUP($B8,GAZ,AE$7,FALSE)),"",IF($AC8=$AF8,$H8,VLOOKUP($B8,GAZ,AE$7,FALSE))) ->  | AH8: =OR($G8<>"",$H8<>"",$L8<>"",$M8<>"") -> FALSE | AI8: =AND($T8<>"F",NOT($AH8),NOT($AC8=$AF8)) -> FALSE | AJ8: =AND($AI8,OR($D8="U",$D8="Z",$D8="K")) -> FALSE | AK8: =AND($D8<>"U",$D8<>"Z",$D8<>"K",$R8) -> TRUE | AL8: =AND(Zeitmodus=C_Gleitzeit,$U8<>"F",OR($B8="Sa",AND($AM8,$I8>=0,NOT($AY8)))) -> FALSE | AM8: =AND($G8<>"",$H8<>"") -> FALSE | AN8: =OR($K8<>"",AND($L8<>"",$M8<>"")) -> FALSE | AO8: =IF($AK8,TagUG,"") -> 00:00:00 | AP8: =IF($AK8,IF($H8="",IF(AND($L8<>"",$L8<$AG8),$L8,IF(AND($M8<>"",$M8<$AG8),$M8,TagOG)),$H8),"") -> 23:59:00 | AQ8: =IF($AK8,IF($G8="",$AB8,$G8),"") ->  | AR8: =IF($AK8,IF(AND($L8<>"",$L8<$AG8),$L8,IF(AND($M8<>"",$M8<$AG8),$M8,TagOG)),"") -> 23:59:00 | AS8: =MOD($G8*24,0.25)=0 -> TRUE | AT8: =AND($AK8,ISNUMBER($G8),$G8>=$AO8,$G8<=$AP8) -> FALSE | AU8: =MOD($H8*24,0.25)=0 -> TRUE | AV8: =AND($AK8,ISNUMBER($H8),$H8>=$AQ8,$H8<=$AR8) -> FALSE | AW8: =AND(Zeitmodus=C_Gleitzeit,$B8<>"Sa",$G8<>"",$G8>$AD8) -> FALSE | AX8: =AND(Zeitmodus=C_Gleitzeit,$B8<>"Sa",$H8<>"",$H8<$AE8) -> FALSE | AY8: =AND($U8<>"F",OR($AW8,$AX8)) -> FALSE | AZ8: =IF($B8="Sa",IF($H8<>"",$H8,TIME(0,0,0)),IF($AL8,IF(AND($H8<>"",$H8>$AF8),$H8,$AF8),"")) ->  | BA8: =IF($AL8,IF($M8<>"",$M8,$BC8),"") ->  | BB8: =IF($B8="Sa",IF($L8="",TIME(0,0,0),$L8),IF($AL8,IF($L8<>"",$L8,IF(AND($H8<>"",$H8>$AF8),$H8,$AF8)),"")) ->  | BC8: =IF($AL8,TIME(23,59,0),"") ->  | BD8: =MOD($L8*24,0.25)=0 -> TRUE | BE8: =AND($AL8,ISNUMBER($L8),$L8>=$AZ8,$BA8>=$L8) -> FALSE | BF8: =MOD($M8*24,0.25)=0 -> TRUE | BG8: =AND($AL8,ISNUMBER($M8),$M8>=$BB8,$M8<=$BC8) -> FALSE | BH8: =IF(AND(ISBLANK($D8),ISBLANK($G8),ISBLANK($H8),ISBLANK($L8),ISBLANK($M8),ISBLANK($P8)),0,1) -> 0
A9: =IF($R9,$Q9,"") -> 2023-10-02 | B9: Mo | E9: =IF(AND($R9,$T9<>"F"),IF($AC9=$AF9,"keine NAZ",TEXT($AC9,"hh:mm")&"-"&TEXT($AF9,"hh:mm")),"") -> 08:00-16:00 | F9: 08:00:00 | J9: 0 | K9: =IF(AND($U9="F",$AM9),ROUND($V9*24,2),"") ->  | Q9: =Q8+1 -> 2023-10-02 | R9: TRUE | T9: A | U9: A | V9: 0 | W9: -0.3333333333 | X9: 0 | Y9: FALSE | Z9: FALSE | AA9: TRUE | AB9: 07:00:00 | AC9: 08:00:00 | AD9: 09:00:00 | AE9: 14:00:00 | AF9: 16:00:00 | AG9: 18:00:00 | AH9: FALSE | AI9: =AND($T9<>"F",NOT($AH9),NOT($AC9=$AF9)) -> TRUE | AJ9: FALSE | AK9: TRUE | AL9: =AND(Zeitmodus=C_Gleitzeit,$U9<>"F",OR($B9="Sa",AND($AM9,$I9>=0,NOT($AY9)))) -> FALSE | AM9: FALSE | AN9: =OR($K9<>"",AND($L9<>"",$M9<>"")) -> FALSE | AO9: 00:00:00 | AP9: 23:59:00 | AQ9: =IF($AK9,IF($G9="",TagUG,$G9),"") -> 00:00:00 | AR9: 23:59:00 | AS9: TRUE | AT9: FALSE | AU9: TRUE | AV9: FALSE | AW9: FALSE | AX9: FALSE | AY9: =AND($U9<>"F",OR($AW9,$AX9)) -> FALSE | BD9: TRUE | BE9: FALSE | BF9: TRUE | BG9: FALSE | BH9: 0
A10: 2023-10-03 | B10: Di | E10: 08:00-16:00 | F10: 08:00:00 | J10: 0 | Q10: 2023-10-03 | R10: TRUE | T10: A | U10: A | V10: 0 | W10: -0.3333333333 | X10: 0 | Y10: FALSE | Z10: FALSE | AA10: TRUE | AB10: 07:00:00 | AC10: 08:00:00 | AD10: 09:00:00 | AE10: 14:00:00 | AF10: 16:00:00 | AG10: 18:00:00 | AH10: FALSE | AI10: TRUE | AJ10: FALSE | AK10: TRUE | AL10: FALSE | AM10: FALSE | AN10: FALSE | AO10: 00:00:00 | AP10: 23:59:00 | AQ10: 00:00:00 | AR10: 23:59:00 | AS10: TRUE | AT10: FALSE | AU10: TRUE | AV10: FALSE | AW10: FALSE | AX10: FALSE | AY10: FALSE | BD10: TRUE | BE10: FALSE | BF10: TRUE | BG10: FALSE | BH10: 0
A11: 2023-10-04 | B11: Mi | E11: 08:00-16:00 | F11: 08:00:00 | J11: 0 | Q11: 2023-10-04 | R11: TRUE | T11: A | U11: A | V11: 0 | W11: -0.3333333333 | X11: 0 | Y11: FALSE | Z11: FALSE | AA11: TRUE | AB11: 07:00:00 | AC11: 08:00:00 | AD11: 09:00:00 | AE11: 14:00:00 | AF11: 16:00:00 | AG11: 18:00:00 | AH11: FALSE | AI11: TRUE | AJ11: FALSE | AK11: TRUE | AL11: FALSE | AM11: FALSE | AN11: FALSE | AO11: 00:00:00 | AP11: 23:59:00 | AQ11: 00:00:00 | AR11: 23:59:00 | AS11: TRUE | AT11: FALSE | AU11: TRUE | AV11: FALSE | AW11: FALSE | AX11: FALSE | AY11: FALSE | BD11: TRUE | BE11: FALSE | BF11: TRUE | BG11: FALSE | BH11: 0
A12: 2023-10-05 | B12: Do | E12: 08:00-16:00 | F12: 08:00:00 | J12: 0 | Q12: 2023-10-05 | R12: TRUE | T12: A | U12: A | V12: 0 | W12: -0.3333333333 | X12: 0 | Y12: FALSE | Z12: FALSE | AA12: TRUE | AB12: 07:00:00 | AC12: 08:00:00 | AD12: 09:00:00 | AE12: 14:00:00 | AF12: 16:00:00 | AG12: 18:00:00 | AH12: FALSE | AI12: TRUE | AJ12: FALSE | AK12: TRUE | AL12: FALSE | AM12: FALSE | AN12: FALSE | AO12: 00:00:00 | AP12: 23:59:00 | AQ12: 00:00:00 | AR12: 23:59:00 | AS12: TRUE | AT12: FALSE | AU12: TRUE | AV12: FALSE | AW12: FALSE | AX12: FALSE | AY12: FALSE | BD12: TRUE | BE12: FALSE | BF12: TRUE | BG12: FALSE | BH12: 0
A13: 2023-10-06 | B13: Fr | E13: 08:00-16:00 | F13: 08:00:00 | J13: 0 | Q13: 2023-10-06 | R13: TRUE | T13: A | U13: A | V13: 0 | W13: -0.3333333333 | X13: 0 | Y13: FALSE | Z13: FALSE | AA13: TRUE | AB13: 07:00:00 | AC13: 08:00:00 | AD13: 09:00:00 | AE13: 12:00:00 | AF13: 16:00:00 | AG13: 18:00:00 | AH13: FALSE | AI13: TRUE | AJ13: FALSE | AK13: TRUE | AL13: FALSE | AM13: FALSE | AN13: FALSE | AO13: 00:00:00 | AP13: 23:59:00 | AQ13: 00:00:00 | AR13: 23:59:00 | AS13: TRUE | AT13: FALSE | AU13: TRUE | AV13: FALSE | AW13: FALSE | AX13: FALSE | AY13: FALSE | BD13: TRUE | BE13: FALSE | BF13: TRUE | BG13: FALSE | BH13: 0
A14: 2023-10-07 | B14: Sa | C14: Wochenende | F14: 00:00:00 | J14: 0 | Q14: 2023-10-07 | R14: TRUE | T14: F | U14: A | V14: 0 | W14: 0 | X14: 0 | Y14: TRUE | Z14: FALSE | AA14: FALSE | AH14: FALSE | AI14: FALSE | AJ14: FALSE | AK14: TRUE | AL14: TRUE | AM14: FALSE | AN14: FALSE | AO14: 00:00:00 | AP14: 23:59:00 | AQ14: 00:00:00 | AR14: 23:59:00 | AS14: TRUE | AT14: FALSE | AU14: TRUE | AV14: FALSE | AW14: FALSE | AX14: FALSE | AY14: FALSE | AZ14: 00:00:00 | BA14: 23:59:00 | BB14: 00:00:00 | BC14: 23:59:00 | BD14: TRUE | BE14: FALSE | BF14: TRUE | BG14: FALSE | BH14: 0
A15: 2023-10-08 | B15: So | C15: Wochenende | F15: 00:00:00 | J15: 0 | Q15: 2023-10-08 | R15: TRUE | T15: F | U15: F | V15: 0 | W15: 0 | X15: 0 | Y15: TRUE | Z15: FALSE | AA15: FALSE | AH15: FALSE | AI15: FALSE | AJ15: FALSE | AK15: TRUE | AL15: FALSE | AM15: FALSE | AN15: FALSE | AO15: 00:00:00 | AP15: 23:59:00 | AQ15: 00:00:00 | AR15: 23:59:00 | AS15: TRUE | AT15: FALSE | AU15: TRUE | AV15: FALSE | AW15: FALSE | AX15: FALSE | AY15: FALSE | BD15: TRUE | BE15: FALSE | BF15: TRUE | BG15: FALSE | BH15: 0
A16: 2023-10-09 | B16: Mo | E16: 08:00-16:00 | F16: 08:00:00 | J16: 0 | Q16: 2023-10-09 | R16: TRUE | T16: A | U16: A | V16: 0 | W16: -0.3333333333 | X16: 0 | Y16: FALSE | Z16: FALSE | AA16: TRUE | AB16: 07:00:00 | AC16: 08:00:00 | AD16: 09:00:00 | AE16: 14:00:00 | AF16: 16:00:00 | AG16: 18:00:00 | AH16: FALSE | AI16: TRUE | AJ16: FALSE | AK16: TRUE | AL16: FALSE | AM16: FALSE | AN16: FALSE | AO16: 00:00:00 | AP16: 23:59:00 | AQ16: 00:00:00 | AR16: 23:59:00 | AS16: TRUE | AT16: FALSE | AU16: TRUE | AV16: FALSE | AW16: FALSE | AX16: FALSE | AY16: FALSE | BD16: TRUE | BE16: FALSE | BF16: TRUE | BG16: FALSE | BH16: 0
A17: 2023-10-10 | B17: Di | E17: 08:00-16:00 | F17: 08:00:00 | J17: 0 | Q17: 2023-10-10 | R17: TRUE | T17: A | U17: A | V17: 0 | W17: -0.3333333333 | X17: 0 | Y17: FALSE | Z17: FALSE | AA17: TRUE | AB17: 07:00:00 | AC17: 08:00:00 | AD17: 09:00:00 | AE17: 14:00:00 | AF17: 16:00:00 | AG17: 18:00:00 | AH17: FALSE | AI17: TRUE | AJ17: FALSE | AK17: TRUE | AL17: FALSE | AM17: FALSE | AN17: FALSE | AO17: 00:00:00 | AP17: 23:59:00 | AQ17: 00:00:00 | AR17: 23:59:00 | AS17: TRUE | AT17: FALSE | AU17: TRUE | AV17: FALSE | AW17: FALSE | AX17: FALSE | AY17: FALSE | BD17: TRUE | BE17: FALSE | BF17: TRUE | BG17: FALSE | BH17: 0
A18: 2023-10-11 | B18: Mi | E18: 08:00-16:00 | F18: 08:00:00 | J18: 0 | Q18: 2023-10-11 | R18: TRUE | T18: A | U18: A | V18: 0 | W18: -0.3333333333 | X18: 0 | Y18: FALSE | Z18: FALSE | AA18: TRUE | AB18: 07:00:00 | AC18: 08:00:00 | AD18: 09:00:00 | AE18: 14:00:00 | AF18: 16:00:00 | AG18: 18:00:00 | AH18: FALSE | AI18: TRUE | AJ18: FALSE | AK18: TRUE | AL18: FALSE | AM18: FALSE | AN18: FALSE | AO18: 00:00:00 | AP18: 23:59:00 | AQ18: 00:00:00 | AR18: 23:59:00 | AS18: TRUE | AT18: FALSE | AU18: TRUE | AV18: FALSE | AW18: FALSE | AX18: FALSE | AY18: FALSE | BD18: TRUE | BE18: FALSE | BF18: TRUE | BG18: FALSE | BH18: 0
A19: 2023-10-12 | B19: Do | E19: 08:00-16:00 | F19: 08:00:00 | J19: 0 | Q19: 2023-10-12 | R19: TRUE | T19: A | U19: A | V19: 0 | W19: -0.3333333333 | X19: 0 | Y19: FALSE | Z19: FALSE | AA19: TRUE | AB19: 07:00:00 | AC19: 08:00:00 | AD19: 09:00:00 | AE19: 14:00:00 | AF19: 16:00:00 | AG19: 18:00:00 | AH19: FALSE | AI19: TRUE | AJ19: FALSE | AK19: TRUE | AL19: FALSE | AM19: FALSE | AN19: FALSE | AO19: 00:00:00 | AP19: 23:59:00 | AQ19: 00:00:00 | AR19: 23:59:00 | AS19: TRUE | AT19: FALSE | AU19: TRUE | AV19: FALSE | AW19: FALSE | AX19: FALSE | AY19: FALSE | BD19: TRUE | BE19: FALSE | BF19: TRUE | BG19: FALSE | BH19: 0
A20: 2023-10-13 | B20: Fr | E20: 08:00-16:00 | F20: 08:00:00 | J20: 0 | Q20: 2023-10-13 | R20: TRUE | T20: A | U20: A | V20: 0 | W20: -0.3333333333 | X20: 0 | Y20: FALSE | Z20: FALSE | AA20: TRUE | AB20: 07:00:00 | AC20: 08:00:00 | AD20: 09:00:00 | AE20: 12:00:00 | AF20: 16:00:00 | AG20: 18:00:00 | AH20: FALSE | AI20: TRUE | AJ20: FALSE | AK20: TRUE | AL20: FALSE | AM20: FALSE | AN20: FALSE | AO20: 00:00:00 | AP20: 23:59:00 | AQ20: 00:00:00 | AR20: 23:59:00 | AS20: TRUE | AT20: FALSE | AU20: TRUE | AV20: FALSE | AW20: FALSE | AX20: FALSE | AY20: FALSE | BD20: TRUE | BE20: FALSE | BF20: TRUE | BG20: FALSE | BH20: 0
A21: 2023-10-14 | B21: Sa | C21: Wochenende | F21: 00:00:00 | J21: 0 | Q21: 2023-10-14 | R21: TRUE | T21: F | U21: A | V21: 0 | W21: 0 | X21: 0 | Y21: TRUE | Z21: FALSE | AA21: FALSE | AH21: FALSE | AI21: FALSE | AJ21: FALSE | AK21: TRUE | AL21: TRUE | AM21: FALSE | AN21: FALSE | AO21: 00:00:00 | AP21: 23:59:00 | AQ21: 00:00:00 | AR21: 23:59:00 | AS21: TRUE | AT21: FALSE | AU21: TRUE | AV21: FALSE | AW21: FALSE | AX21: FALSE | AY21: FALSE | AZ21: 00:00:00 | BA21: 23:59:00 | BB21: 00:00:00 | BC21: 23:59:00 | BD21: TRUE | BE21: FALSE | BF21: TRUE | BG21: FALSE | BH21: 0
A22: 2023-10-15 | B22: So | C22: Wochenende | F22: 00:00:00 | J22: 0 | Q22: 2023-10-15 | R22: TRUE | T22: F | U22: F | V22: 0 | W22: 0 | X22: 0 | Y22: TRUE | Z22: FALSE | AA22: FALSE | AH22: FALSE | AI22: FALSE | AJ22: FALSE | AK22: TRUE | AL22: FALSE | AM22: FALSE | AN22: FALSE | AO22: 00:00:00 | AP22: 23:59:00 | AQ22: 00:00:00 | AR22: 23:59:00 | AS22: TRUE | AT22: FALSE | AU22: TRUE | AV22: FALSE | AW22: FALSE | AX22: FALSE | AY22: FALSE | BD22: TRUE | BE22: FALSE | BF22: TRUE | BG22: FALSE | BH22: 0
A23: 2023-10-16 | B23: Mo | E23: 08:00-16:00 | F23: 08:00:00 | J23: 0 | Q23: 2023-10-16 | R23: TRUE | T23: A | U23: A | V23: 0 | W23: -0.3333333333 | X23: 0 | Y23: FALSE | Z23: FALSE | AA23: TRUE | AB23: 07:00:00 | AC23: 08:00:00 | AD23: 09:00:00 | AE23: 14:00:00 | AF23: 16:00:00 | AG23: 18:00:00 | AH23: FALSE | AI23: TRUE | AJ23: FALSE | AK23: TRUE | AL23: FALSE | AM23: FALSE | AN23: FALSE | AO23: 00:00:00 | AP23: 23:59:00 | AQ23: 00:00:00 | AR23: 23:59:00 | AS23: TRUE | AT23: FALSE | AU23: TRUE | AV23: FALSE | AW23: FALSE | AX23: FALSE | AY23: FALSE | BD23: TRUE | BE23: FALSE | BF23: TRUE | BG23: FALSE | BH23: 0
A24: 2023-10-17 | B24: Di | E24: 08:00-16:00 | F24: 08:00:00 | J24: 0 | Q24: 2023-10-17 | R24: TRUE | T24: A | U24: A | V24: 0 | W24: -0.3333333333 | X24: 0 | Y24: FALSE | Z24: FALSE | AA24: TRUE | AB24: =IF(ISNA(VLOOKUP($B24,GAZ,AB$7,FALSE)),"",VLOOKUP($B24,GAZ,AB$7,FALSE)) -> 07:00:00 | AC24: 08:00:00 | AD24: 09:00:00 | AE24: 14:00:00 | AF24: 16:00:00 | AG24: 18:00:00 | AH24: FALSE | AI24: TRUE | AJ24: FALSE | AK24: TRUE | AL24: FALSE | AM24: FALSE | AN24: FALSE | AO24: 00:00:00 | AP24: 23:59:00 | AQ24: 00:00:00 | AR24: 23:59:00 | AS24: TRUE | AT24: FALSE | AU24: TRUE | AV24: FALSE | AW24: FALSE | AX24: FALSE | AY24: FALSE | BD24: TRUE | BE24: FALSE | BF24: TRUE | BG24: FALSE | BH24: 0
A25: 2023-10-18 | B25: Mi | E25: 08:00-16:00 | F25: 08:00:00 | J25: 0 | Q25: 2023-10-18 | R25: TRUE | T25: A | U25: A | V25: 0 | W25: -0.3333333333 | X25: 0 | Y25: FALSE | Z25: FALSE | AA25: TRUE | AB25: 07:00:00 | AC25: 08:00:00 | AD25: 09:00:00 | AE25: 14:00:00 | AF25: 16:00:00 | AG25: 18:00:00 | AH25: FALSE | AI25: TRUE | AJ25: FALSE | AK25: TRUE | AL25: FALSE | AM25: FALSE | AN25: FALSE | AO25: 00:00:00 | AP25: 23:59:00 | AQ25: 00:00:00 | AR25: 23:59:00 | AS25: TRUE | AT25: FALSE | AU25: TRUE | AV25: FALSE | AW25: FALSE | AX25: FALSE | AY25: FALSE | BD25: TRUE | BE25: FALSE | BF25: TRUE | BG25: FALSE | BH25: 0
A26: 2023-10-19 | B26: Do | E26: 08:00-16:00 | F26: 08:00:00 | J26: 0 | Q26: 2023-10-19 | R26: TRUE | T26: A | U26: A | V26: 0 | W26: -0.3333333333 | X26: 0 | Y26: FALSE | Z26: FALSE | AA26: TRUE | AB26: 07:00:00 | AC26: 08:00:00 | AD26: 09:00:00 | AE26: 14:00:00 | AF26: 16:00:00 | AG26: 18:00:00 | AH26: FALSE | AI26: TRUE | AJ26: FALSE | AK26: TRUE | AL26: FALSE | AM26: FALSE | AN26: FALSE | AO26: 00:00:00 | AP26: 23:59:00 | AQ26: 00:00:00 | AR26: 23:59:00 | AS26: TRUE | AT26: FALSE | AU26: TRUE | AV26: FALSE | AW26: FALSE | AX26: FALSE | AY26: FALSE | BD26: TRUE | BE26: FALSE | BF26: TRUE | BG26: FALSE | BH26: 0
A27: 2023-10-20 | B27: Fr | E27: 08:00-16:00 | F27: 08:00:00 | J27: 0 | Q27: 2023-10-20 | R27: TRUE | T27: A | U27: A | V27: 0 | W27: -0.3333333333 | X27: 0 | Y27: FALSE | Z27: FALSE | AA27: TRUE | AB27: 07:00:00 | AC27: 08:00:00 | AD27: 09:00:00 | AE27: 12:00:00 | AF27: 16:00:00 | AG27: 18:00:00 | AH27: FALSE | AI27: TRUE | AJ27: FALSE | AK27: TRUE | AL27: FALSE | AM27: FALSE | AN27: FALSE | AO27: 00:00:00 | AP27: 23:59:00 | AQ27: 00:00:00 | AR27: 23:59:00 | AS27: TRUE | AT27: FALSE | AU27: TRUE | AV27: FALSE | AW27: FALSE | AX27: FALSE | AY27: FALSE | BD27: TRUE | BE27: FALSE | BF27: TRUE | BG27: FALSE | BH27: 0
A28: 2023-10-21 | B28: Sa | C28: Wochenende | F28: 00:00:00 | J28: 0 | Q28: 2023-10-21 | R28: TRUE | T28: F | U28: A | V28: 0 | W28: 0 | X28: 0 | Y28: TRUE | Z28: FALSE | AA28: FALSE | AH28: FALSE | AI28: FALSE | AJ28: FALSE | AK28: TRUE | AL28: TRUE | AM28: FALSE | AN28: FALSE | AO28: 00:00:00 | AP28: 23:59:00 | AQ28: 00:00:00 | AR28: 23:59:00 | AS28: TRUE | AT28: FALSE | AU28: TRUE | AV28: FALSE | AW28: FALSE | AX28: FALSE | AY28: FALSE | AZ28: 00:00:00 | BA28: 23:59:00 | BB28: 00:00:00 | BC28: 23:59:00 | BD28: TRUE | BE28: FALSE | BF28: TRUE | BG28: FALSE | BH28: 0
A29: 2023-10-22 | B29: So | C29: Wochenende | F29: 00:00:00 | J29: 0 | Q29: 2023-10-22 | R29: TRUE | T29: F | U29: F | V29: 0 | W29: 0 | X29: 0 | Y29: TRUE | Z29: FALSE | AA29: FALSE | AH29: FALSE | AI29: FALSE | AJ29: FALSE | AK29: TRUE | AL29: FALSE | AM29: FALSE | AN29: FALSE | AO29: 00:00:00 | AP29: 23:59:00 | AQ29: 00:00:00 | AR29: 23:59:00 | AS29: TRUE | AT29: FALSE | AU29: TRUE | AV29: FALSE | AW29: FALSE | AX29: FALSE | AY29: FALSE | BD29: TRUE | BE29: FALSE | BF29: TRUE | BG29: FALSE | BH29: 0
A30: 2023-10-23 | B30: Mo | E30: 08:00-16:00 | F30: 08:00:00 | J30: 0 | Q30: 2023-10-23 | R30: TRUE | T30: A | U30: A | V30: 0 | W30: -0.3333333333 | X30: 0 | Y30: FALSE | Z30: FALSE | AA30: TRUE | AB30: 07:00:00 | AC30: 08:00:00 | AD30: 09:00:00 | AE30: 14:00:00 | AF30: 16:00:00 | AG30: 18:00:00 | AH30: FALSE | AI30: TRUE | AJ30: FALSE | AK30: TRUE | AL30: FALSE | AM30: FALSE | AN30: FALSE | AO30: 00:00:00 | AP30: 23:59:00 | AQ30: 00:00:00 | AR30: 23:59:00 | AS30: TRUE | AT30: FALSE | AU30: TRUE | AV30: FALSE | AW30: FALSE | AX30: FALSE | AY30: FALSE | BD30: TRUE | BE30: FALSE | BF30: TRUE | BG30: FALSE | BH30: 0
A31: 2023-10-24 | B31: Di | E31: 08:00-16:00 | F31: 08:00:00 | J31: 0 | Q31: 2023-10-24 | R31: TRUE | T31: A | U31: A | V31: 0 | W31: -0.3333333333 | X31: 0 | Y31: FALSE | Z31: FALSE | AA31: TRUE | AB31: 07:00:00 | AC31: 08:00:00 | AD31: 09:00:00 | AE31: 14:00:00 | AF31: 16:00:00 | AG31: 18:00:00 | AH31: FALSE | AI31: TRUE | AJ31: FALSE | AK31: TRUE | AL31: FALSE | AM31: FALSE | AN31: FALSE | AO31: 00:00:00 | AP31: 23:59:00 | AQ31: 00:00:00 | AR31: 23:59:00 | AS31: TRUE | AT31: FALSE | AU31: TRUE | AV31: FALSE | AW31: FALSE | AX31: FALSE | AY31: FALSE | BD31: TRUE | BE31: FALSE | BF31: TRUE | BG31: FALSE | BH31: 0
A32: 2023-10-25 | B32: Mi | E32: 08:00-16:00 | F32: 08:00:00 | J32: 0 | Q32: 2023-10-25 | R32: TRUE | T32: A | U32: A | V32: 0 | W32: -0.3333333333 | X32: 0 | Y32: FALSE | Z32: FALSE | AA32: TRUE | AB32: 07:00:00 | AC32: 08:00:00 | AD32: 09:00:00 | AE32: 14:00:00 | AF32: 16:00:00 | AG32: 18:00:00 | AH32: FALSE | AI32: TRUE | AJ32: FALSE | AK32: TRUE | AL32: FALSE | AM32: FALSE | AN32: FALSE | AO32: 00:00:00 | AP32: 23:59:00 | AQ32: 00:00:00 | AR32: 23:59:00 | AS32: TRUE | AT32: FALSE | AU32: TRUE | AV32: FALSE | AW32: FALSE | AX32: FALSE | AY32: FALSE | BD32: TRUE | BE32: FALSE | BF32: TRUE | BG32: FALSE | BH32: 0
A33: 2023-10-26 | B33: Do | C33: Nationalfeiertag | F33: 00:00:00 | J33: 0 | Q33: 2023-10-26 | R33: TRUE | T33: F | U33: F | V33: 0 | W33: 0 | X33: 0 | Y33: TRUE | Z33: FALSE | AA33: FALSE | AB33: 07:00:00 | AC33: 08:00:00 | AD33: 09:00:00 | AE33: 14:00:00 | AF33: 16:00:00 | AG33: 18:00:00 | AH33: FALSE | AI33: FALSE | AJ33: FALSE | AK33: TRUE | AL33: FALSE | AM33: FALSE | AN33: FALSE | AO33: 00:00:00 | AP33: 23:59:00 | AQ33: 00:00:00 | AR33: 23:59:00 | AS33: TRUE | AT33: FALSE | AU33: TRUE | AV33: FALSE | AW33: FALSE | AX33: FALSE | AY33: FALSE | BD33: TRUE | BE33: FALSE | BF33: TRUE | BG33: FALSE | BH33: 0
A34: 2023-10-27 | B34: Fr | E34: 08:00-16:00 | F34: 08:00:00 | J34: 0 | Q34: 2023-10-27 | R34: TRUE | T34: A | U34: A | V34: 0 | W34: -0.3333333333 | X34: 0 | Y34: FALSE | Z34: FALSE | AA34: TRUE | AB34: 07:00:00 | AC34: 08:00:00 | AD34: 09:00:00 | AE34: 12:00:00 | AF34: 16:00:00 | AG34: 18:00:00 | AH34: FALSE | AI34: TRUE | AJ34: FALSE | AK34: TRUE | AL34: FALSE | AM34: FALSE | AN34: FALSE | AO34: 00:00:00 | AP34: 23:59:00 | AQ34: 00:00:00 | AR34: 23:59:00 | AS34: TRUE | AT34: FALSE | AU34: TRUE | AV34: FALSE | AW34: FALSE | AX34: FALSE | AY34: FALSE | BD34: TRUE | BE34: FALSE | BF34: TRUE | BG34: FALSE | BH34: 0
A35: 2023-10-28 | B35: Sa | C35: Wochenende | F35: 00:00:00 | J35: 0 | Q35: 2023-10-28 | R35: TRUE | T35: F | U35: A | V35: 0 | W35: 0 | X35: 0 | Y35: TRUE | Z35: FALSE | AA35: FALSE | AH35: FALSE | AI35: FALSE | AJ35: FALSE | AK35: TRUE | AL35: TRUE | AM35: FALSE | AN35: FALSE | AO35: 00:00:00 | AP35: 23:59:00 | AQ35: 00:00:00 | AR35: 23:59:00 | AS35: TRUE | AT35: FALSE | AU35: TRUE | AV35: FALSE | AW35: FALSE | AX35: FALSE | AY35: FALSE | AZ35: 00:00:00 | BA35: 23:59:00 | BB35: 00:00:00 | BC35: 23:59:00 | BD35: TRUE | BE35: FALSE | BF35: TRUE | BG35: FALSE | BH35: 0
A36: 2023-10-29 | B36: So | C36: Wochenende | F36: 00:00:00 | J36: 0 | Q36: 2023-10-29 | R36: TRUE | T36: F | U36: F | V36: 0 | W36: 0 | X36: 0 | Y36: TRUE | Z36: FALSE | AA36: FALSE | AH36: FALSE | AI36: FALSE | AJ36: FALSE | AK36: TRUE | AL36: FALSE | AM36: FALSE | AN36: FALSE | AO36: 00:00:00 | AP36: 23:59:00 | AQ36: 00:00:00 | AR36: 23:59:00 | AS36: TRUE | AT36: FALSE | AU36: TRUE | AV36: FALSE | AW36: FALSE | AX36: FALSE | AY36: FALSE | BD36: TRUE | BE36: FALSE | BF36: TRUE | BG36: FALSE | BH36: 0
A37: 2023-10-30 | B37: Mo | E37: 08:00-16:00 | F37: 08:00:00 | J37: 0 | Q37: 2023-10-30 | R37: TRUE | T37: A | U37: A | V37: 0 | W37: -0.3333333333 | X37: 0 | Y37: FALSE | Z37: FALSE | AA37: TRUE | AB37: 07:00:00 | AC37: 08:00:00 | AD37: 09:00:00 | AE37: 14:00:00 | AF37: 16:00:00 | AG37: 18:00:00 | AH37: FALSE | AI37: TRUE | AJ37: FALSE | AK37: TRUE | AL37: FALSE | AM37: FALSE | AN37: FALSE | AO37: 00:00:00 | AP37: 23:59:00 | AQ37: 00:00:00 | AR37: 23:59:00 | AS37: TRUE | AT37: FALSE | AU37: TRUE | AV37: FALSE | AW37: FALSE | AX37: FALSE | AY37: FALSE | BD37: TRUE | BE37: FALSE | BF37: TRUE | BG37: FALSE | BH37: 0
A38: 2023-10-31 | B38: Di | E38: 08:00-16:00 | F38: 08:00:00 | J38: =IF($R38,$X38,"") -> 0 | Q38: 2023-10-31 | R38: TRUE | T38: A | U38: A | V38: 0 | W38: -0.3333333333 | X38: 0 | Y38: FALSE | Z38: FALSE | AA38: TRUE | AB38: 07:00:00 | AC38: 08:00:00 | AD38: 09:00:00 | AE38: 14:00:00 | AF38: 16:00:00 | AG38: 18:00:00 | AH38: FALSE | AI38: TRUE | AJ38: FALSE | AK38: TRUE | AL38: FALSE | AM38: FALSE | AN38: FALSE | AO38: 00:00:00 | AP38: 23:59:00 | AQ38: 00:00:00 | AR38: 23:59:00 | AS38: TRUE | AT38: FALSE | AU38: TRUE | AV38: FALSE | AW38: FALSE | AX38: FALSE | AY38: FALSE | BD38: TRUE | BE38: FALSE | BF38: TRUE | BG38: FALSE | BH38: 0
A39: Arbeitstage | B39: =COUNTIF(T$8:T$38,"A") -> 21 | E39: ="Saldo Monat (~15min) > " -> Saldo Monat (~15min) > | I39: =ROUND(SUM(I8:I38)*4,0)/4 -> 0 | K39: =SUM(K8:K38) -> 0 | L39: < ÜS1:2 | N39: =SUM(N8:N38) -> 0 | O39: =IF(Zeitmodell="Vollzeit"," < ÜS1:1,5 "," < ÜS1:1,25 ")&Zeitmodell -> < ÜS1:1,5 Vollzeit | Q39: Zeitmodell Text
A40: Freie Tage | B40: =COUNTIF(T$8:T$38,"F") -> 10 | E40: ="Saldo "&IF(Zeitmodell="Vollzeit","1:1,5","1:1,25")& " (~15min) > " -> Saldo 1:1,5 (~15min) > | I40: =ROUND($N40*4,0)/4 -> 0 | N40: =IF(Zeitmodell="Vollzeit",$N39*1.5,$N39*1.25) -> 0 | O40: =IF(Zeitmodell="Vollzeit"," < 1:1,5 "," < 1:1,25 ")&$Q40 -> < 1:1,5 Stunden berechnen | Q40: Stunden berechnen
A41: ZK-Tage | B41: 0 | E41: Saldo 1:2 (~15min) > | I41: =ROUND($N41*4,0)/4 -> 0 | N41: =K39*2 -> 0 | O41: < 1:2 Stunden berechnen
A42: ZA-Tage | B42: =COUNTIF(D$8:D$38,"Z") -> 0 | E42: Saldo Vormonat > | I42: =$J5 -> 0 | Q42: Gültigkeit ausbezahlt
A43: Urlaubstage | B43: =COUNTIF(D$8:D$38,"U") -> 0 | E43: Saldo Gesamt > | I43: =SUM(I39:I42) -> 0 | K43: =IF($I$43>=$R$2,"< Hier ausbezahlte Std. eingeben. (Die Eingabe ist hier erst ab < einem Saldo von "&TEXT($R$2,"#.##0,00")&" Std., und nur in 0,25-Schritten möglich.)","") ->  | Q43: =IF(AND($J$43<>"",NOT(ISNUMBER($J$43))),FALSE,OR(AND($J$43>=0,$J$43<=$I$43,MOD($J$43,0.25)=0),$J$43="")) -> TRUE
A44: Krank | B44: =COUNTIF(D$8:D$38,"K") -> 0 | E44: Saldo Übertrag > | I44: =$I43-$J43 -> 0 | J44: =" < Dieser Stunden-Saldo wird in das nächste "&IF($Q$3="Dezember","Jahr","Monat")&" übertragen" -> < Dieser Stunden-Saldo wird in das nächste Monat übertragen
D45: Z
A48: ="Unterschrift von "&Vorgesetzter -> Unterschrift von Vorname Nachname | L48: ="Unterschrift von "&Name -> Unterschrift von Vorname Nachname

Sheet November (hidden)
A1: BOKU-Zeiterfassung für Allgemeines Personal | Q1: Monat | R1: Stunden-Saldo Grenzen | S1: Status Blatteingabe
A2: =" Org.-Einh. : "&OrgEinheit -> Org.-Einh. : HXXXXX | F2: Zeitmodell: | I2: =" "&Zeitmodell -> Vollzeit | J2: Modus: | K2: =" "&Zeitmodus -> Gleitzeit | Q2: =IF(ISNA($Q$4),1,$Q$4) -> 11 | R2: =IF($Q$2=12,NormalOGDez,NormalOG) -> 72 | S2: =SUM($BH8:$BH38) -> 0
A3: =" Mitarbeiter/in: "&Name -> Mitarbeiter/in: Vorname Nachname | F3: Vorgesetzte/r: | I3: =" "&Vorgesetzter -> Vorname Nachname | Q3: =RIGHT(CELL("filename",A1),LEN(CELL("filename",A1))-SEARCH("]",CELL("filename",A1),1)) -> November | R3: =IF($Q$2=12,NormalUGDez,NormalUG) -> -24 | S3: =IF($Q$2=1,$S$2,$S$2+INDIRECT($S$5)) -> 0
A4: =" Monat: "&$Q$3&" "&Jahr -> Monat: November 2023 | E4: Dienstplan | G4: Normalstunden Feiertag-ÜS1:2 | J4: Übertrag | K4: Überstundenberechnung | O4: Unterschrift des Vorgesetzten | P4: Anmerkungen (z.B. Überstunden- notwendigkeit) | Q4: =IF(ISNA(VLOOKUP($Q$3,MTab,2,FALSE)),1,VLOOKUP($Q$3,MTab,2,FALSE)) -> 11 | S4: Übertrags Adresse Blatteingabe
A5: Datum | B5: Wochentag | C5: Tagesinformationen | E5: ="Wochen-AZ"&" "&TEXT(WAZ,"[hh]:mm") -> Wochen-AZ 40:00 | J5: =IF(ISNA($Q$5),Übertrag,INDIRECT($Q$5)) -> 0 | K5: ÜS1:2 | L5: =IF(Zeitmodell="Vollzeit"," Überstunden1:1,5"," Überstunden1:1,25") -> Überstunden1:1,5 | Q5: =IF(ISNA(VLOOKUP($Q$3,MTab,3,FALSE)),"Übertrag",VLOOKUP($Q$3,MTab,3,FALSE)) -> Oktober!$I$44 | S5: =IF(ISNA(VLOOKUP($Q$3,MTab,4,FALSE)),$Q$3&"!$S$2",VLOOKUP($Q$3,MTab,4,FALSE)) -> Oktober!$S$3
C6: Feiertage Wochenende Urlaub, ZA, Krank | D6: [U]rlaub [Z]A [ZK] [K]rank | E6: Normal- | F6: Soll | G6: Von | H6: Bis | I6: Plus | J6: Saldo | K6: Plus | L6: Von | M6: Bis | N6: Plus | Q6: Hintergrundberechnungen | X6: Saldo aktuell | AB6: GAZ-Tabellenabbildung | AH6: Eingabebeprüfungen
E7: Arbeitszeit | I7: Minus | J7: akuell | Q7: Datum | R7: Monat OK | S7: Abwesenh. | T7: Freie Tage | U7: ÜA-Tage | V7: Std. | W7: Soll-Std. | X7: =IF(ISNA($Q$5),Übertrag,INDIRECT($Q$5)) -> 0 | Y7: Std.-Soll = 0 | Z7: Std.-Soll > 0 | AA7: Std.-Soll < 0 | AB7: =I_GAZGRVon -> 2 | AC7: =I_GAZNAZVon -> 3 | AD7: =I_GAZKVon -> 4 | AE7: =I_GAZKBis -> 6 | AF7: =I_GAZNAZBis -> 7 | AG7: =I_GAZGRBis -> 8 | AH7: Zeiteingabe | AI7: UZK-Eing. erlaubt | AJ7: UZK-Eing. gültig | AK7: Normalst. ein erlaubt | AL7: Überstd. ein erlaubt | AM7: Normalstd. eingegeben | AN7: Überstd. eingegeben | AO7: Normal VON möglich OG | AP7: Normal VON möglich UG | AQ7: Normal BIS möglich OG | AR7: Normal BIS möglich UG | AS7: Normal VON 15min | AT7: Normal VON richtig | AU7: Normal BIS 15min | AV7: Normal BIS richtig | AW7: ZA-Kern Von | AX7: ZA-Kern Bis | AY7: ZA-Kern | AZ7: Über VON Obergrenze | BA7: Über VON Untergrenze | BB7: Über BIS Obergrenze | BC7: Über BIS Untergrenze | BD7: Über VON 15min | BE7: Über VON richtig | BF7: Überl BIS 15min | BG7: Über BIS richtig | BH7: Status Zeilen Eingabe
A8: =IF($R8,$Q8,"") -> 2023-11-01 | B8: =IF($R8,VLOOKUP(WEEKDAY($Q8,2),WOTA,2,FALSE),"") -> Mi | C8: =IF($R8," "&IF($S8="",VLOOKUP($Q8,FListe,3,FALSE),$S8),"") -> Allerheiligen | E8: =IF(AND($R8,$T8<>"F"),IF($AC8=$AF8,"keine NAZ",TEXT($AC8,"hh:mm")&"-"&TEXT($AF8,"hh:mm")),"") ->  | F8: =IF($R8,IF($T8="F",0,VLOOKUP($B8,GAZ,I_GAZNAZ,FALSE)),"") -> 00:00:00 | I8: =IF(Zeitmodus="Gleitzeit",IF($U8="F","",IF(AND($R8,$AM8,NOT($Y8)),ROUND(($V8-$F8)*24,2),IF($D8="Z",$F8*-24,""))),IF(OR($D8="Z",AND($AM8,$U8="A",W8<0)),ROUND($W8*24,2),"")) ->  | J8: =IF($R8,$X8,"") -> 0 | K8: =IF(AND($U8="F",$AM8),ROUND($V8*24,2),"") ->  | N8: =IF(Zeitmodus="Gleitzeit",IF(AND($R8,$AN8,$M8-$L8<>0,$AL8),ROUND(($M8-$L8)*24,2),""),IF(AND($AM8,$U8="A",W8>0),ROUND(W8*24,2),"")) ->  | Q8: =DATE(Jahr,$Q2,1) -> 2023-11-01 | R8: =$Q$2=MONTH($Q8) -> TRUE | S8: =IF(OR($D8="U",$D8="Z",$D8="ZK",$D8="K"),VLOOKUP($D8,UZK,2,FALSE),"") ->  | T8: =IF($R8,VLOOKUP($Q8,FListe,4,FALSE),"") -> F | U8: =IF($R8,VLOOKUP($Q8,FListe,5,FALSE),"") -> F | V8: =$H8-$G8 -> 0 | W8: =IF($R8,ROUND($V8-$F8,15),"") -> 0 | X8: =IF($I8<>"",$X7+$I8,$X7) -> 0 | Y8: =($W8=0) -> TRUE | Z8: =($W8>0) -> FALSE | AA8: =($W8<0) -> FALSE | AB8: =IF(ISNA(VLOOKUP($B8,GAZ,AB$7,FALSE)),"",VLOOKUP($B8,GAZ,AB$7,FALSE)) -> 07:00:00 | AC8: 08:00:00 | AD8: =IF(ISNA(VLOOKUP($B8,GAZ,AD$7,FALSE)),"",IF($AC8=$AF8,$G8,VLOOKUP($B8,GAZ,AD$7,FALSE))) -> 09:00:00 | AE8: =IF(ISNA(VLOOKUP($B8,GAZ,AE$7,FALSE)),"",IF($AC8=$AF8,$H8,VLOOKUP($B8,GAZ,AE$7,FALSE))) -> 14:00:00 | AF8: 16:00:00 | AG8: 18:00:00 | AH8: =OR($G8<>"",$H8<>"",$L8<>"",$M8<>"") -> FALSE | AI8: =AND($T8<>"F",NOT($AH8),NOT($AC8=$AF8)) -> FALSE | AJ8: =AND($AI8,OR($D8="U",$D8="Z",$D8="K")) -> FALSE | AK8: =AND($D8<>"U",$D8<>"Z",$D8<>"K",$R8) -> TRUE | AL8: =AND(Zeitmodus=C_Gleitzeit,$U8<>"F",OR($B8="Sa",AND($AM8,$I8>=0,NOT($AY8)))) -> FALSE | AM8: =AND($G8<>"",$H8<>"") -> FALSE | AN8: =OR($K8<>"",AND($L8<>"",$M8<>"")) -> FALSE | AO8: =IF($AK8,TagUG,"") -> 00:00:00 | AP8: =IF($AK8,IF($H8="",IF(AND($L8<>"",$L8<$AG8),$L8,IF(AND($M8<>"",$M8<$AG8),$M8,TagOG)),$H8),"") -> 23:59:00 | AQ8: =IF($AK8,IF($G8="",$AB8,$G8),"") -> 07:00:00 | AR8: =IF($AK8,IF(AND($L8<>"",$L8<$AG8),$L8,IF(AND($M8<>"",$M8<$AG8),$M8,TagOG)),"") -> 23:59:00 | AS8: =MOD($G8*24,0.25)=0 -> TRUE | AT8: =AND($AK8,ISNUMBER($G8),$G8>=$AO8,$G8<=$AP8) -> FALSE | AU8: =MOD($H8*24,0.25)=0 -> TRUE | AV8: =AND($AK8,ISNUMBER($H8),$H8>=$AQ8,$H8<=$AR8) -> FALSE | AW8: =AND(Zeitmodus=C_Gleitzeit,$B8<>"Sa",$G8<>"",$G8>$AD8) -> FALSE | AX8: =AND(Zeitmodus=C_Gleitzeit,$B8<>"Sa",$H8<>"",$H8<$AE8) -> FALSE | AY8: =AND($U8<>"F",OR($AW8,$AX8)) -> FALSE | AZ8: =IF($B8="Sa",IF($H8<>"",$H8,TIME(0,0,0)),IF($AL8,IF(AND($H8<>"",$H8>$AF8),$H8,$AF8),"")) ->  | BA8: =IF($AL8,IF($M8<>"",$M8,$BC8),"") ->  | BB8: =IF($B8="Sa",IF($L8="",TIME(0,0,0),$L8),IF($AL8,IF($L8<>"",$L8,IF(AND($H8<>"",$H8>$AF8),$H8,$AF8)),"")) ->  | BC8: =IF($AL8,TIME(23,59,0),"") ->  | BD8: =MOD($L8*24,0.25)=0 -> TRUE | BE8: =AND($AL8,ISNUMBER($L8),$L8>=$AZ8,$BA8>=$L8) -> FALSE | BF8: =MOD($M8*24,0.25)=0 -> TRUE | BG8: =AND($AL8,ISNUMBER($M8),$M8>=$BB8,$M8<=$BC8) -> FALSE | BH8: =IF(AND(ISBLANK($D8),ISBLANK($G8),ISBLANK($H8),ISBLANK($L8),ISBLANK($M8),ISBLANK($P8)),0,1) -> 0
A9: =IF($R9,$Q9,"") -> 2023-11-02 | B9: Do | C9: Allerseelen | E9: =IF(AND($R9,$T9<>"F"),IF($AC9=$AF9,"keine NAZ",TEXT($AC9,"hh:mm")&"-"&TEXT($AF9,"hh:mm")),"") -> 08:00-16:00 | F9: 08:00:00 | J9: 0 | K9: =IF(AND($U9="F",$AM9),ROUND($V9*24,2),"") ->  | Q9: =Q8+1 -> 2023-11-02 | R9: TRUE | T9: A | U9: A | V9: 0 | W9: -0.3333333333 | X9: 0 | Y9: FALSE | Z9: FALSE | AA9: TRUE | AB9: 07:00:00 | AC9: 08:00:00 | AD9: 09:00:00 | AE9: 14:00:00 | AF9: 16:00:00 | AG9: 18:00:00 | AH9: FALSE | AI9: =AND($T9<>"F",NOT($AH9),NOT($AC9=$AF9)) -> TRUE | AJ9: FALSE | AK9: TRUE | AL9: =AND(Zeitmodus=C_Gleitzeit,$U9<>"F",OR($B9="Sa",AND($AM9,$I9>=0,NOT($AY9)))) -> FALSE | AM9: FALSE | AN9: =OR($K9<>"",AND($L9<>"",$M9<>"")) -> FALSE | AO9: 00:00:00 | AP9: 23:59:00 | AQ9: =IF($AK9,IF($G9="",TagUG,$G9),"") -> 00:00:00 | AR9: 23:59:00 | AS9: TRUE | AT9: FALSE | AU9: TRUE | AV9: FALSE | AW9: FALSE | AX9: FALSE | AY9: =AND($U9<>"F",OR($AW9,$AX9)) -> FALSE | BD9: TRUE | BE9: FALSE | BF9: TRUE | BG9: FALSE | BH9: 0
A10: 2023-11-03 | B10: Fr | E10: 08:00-16:00 | F10: 08:00:00 | J10: 0 | Q10: 2023-11-03 | R10: TRUE | T10: A | U10: A | V10: 0 | W10: -0.3333333333 | X10: 0 | Y10: FALSE | Z10: FALSE | AA10: TRUE | AB10: 07:00:00 | AC10: 08:00:00 | AD10: 09:00:00 | AE10: 12:00:00 | AF10: 16:00:00 | AG10: 18:00:00 | AH10: FALSE | AI10: TRUE | AJ10: FALSE | AK10: TRUE | AL10: FALSE | AM10: FALSE | AN10: FALSE | AO10: 00:00:00 | AP10: 23:59:00 | AQ10: 00:00:00 | AR10: 23:59:00 | AS10: TRUE | AT10: FALSE | AU10: TRUE | AV10: FALSE | AW10: FALSE | AX10: FALSE | AY10: FALSE | BD10: TRUE | BE10: FALSE | BF10: TRUE | BG10: FALSE | BH10: 0
A11: 2023-11-04 | B11: Sa | C11: Wochenende | F11: 00:00:00 | J11: 0 | Q11: 2023-11-04 | R11: TRUE | T11: F | U11: A | V11: 0 | W11: 0 | X11: 0 | Y11: TRUE | Z11: FALSE | AA11: FALSE | AH11: FALSE | AI11: FALSE | AJ11: FALSE | AK11: TRUE | AL11: TRUE | AM11: FALSE | AN11: FALSE | AO11: 00:00:00 | AP11: 23:59:00 | AQ11: 00:00:00 | AR11: 23:59:00 | AS11: TRUE | AT11: FALSE | AU11: TRUE | AV11: FALSE | AW11: FALSE | AX11: FALSE | AY11: FALSE | AZ11: 00:00:00 | BA11: 23:59:00 | BB11: 00:00:00 | BC11: 23:59:00 | BD11: TRUE | BE11: FALSE | BF11: TRUE | BG11: FALSE | BH11: 0
A12: 2023-11-05 | B12: So | C12: Wochenende | F12: 00:00:00 | J12: 0 | Q12: 2023-11-05 | R12: TRUE | T12: F | U12: F | V12: 0 | W12: 0 | X12: 0 | Y12: TRUE | Z12: FALSE | AA12: FALSE | AH12: FALSE | AI12: FALSE | AJ12: FALSE | AK12: TRUE | AL12: FALSE | AM12: FALSE | AN12: FALSE | AO12: 00:00:00 | AP12: 23:59:00 | AQ12: 00:00:00 | AR12: 23:59:00 | AS12: TRUE | AT12: FALSE | AU12: TRUE | AV12: FALSE | AW12: FALSE | AX12: FALSE | AY12: FALSE | BD12: TRUE | BE12: FALSE | BF12: TRUE | BG12: FALSE | BH12: 0
A13: 2023-11-06 | B13: Mo | E13: 08:00-16:00 | F13: 08:00:00 | J13: 0 | Q13: 2023-11-06 | R13: TRUE | T13: A | U13: A | V13: 0 | W13: -0.3333333333 | X13: 0 | Y13: FALSE | Z13: FALSE | AA13: TRUE | AB13: 07:00:00 | AC13: 08:00:00 | AD13: 09:00:00 | AE13: 14:00:00 | AF13: 16:00:00 | AG13: 18:00:00 | AH13: FALSE | AI13: TRUE | AJ13: FALSE | AK13: TRUE | AL13: FALSE | AM13: FALSE | AN13: FALSE | AO13: 00:00:00 | AP13: 23:59:00 | AQ13: 00:00:00 | AR13: 23:59:00 | AS13: TRUE | AT13: FALSE | AU13: TRUE | AV13: FALSE | AW13: FALSE | AX13: FALSE | AY13: FALSE | BD13: TRUE | BE13: FALSE | BF13: TRUE | BG13: FALSE | BH13: 0
A14: 2023-11-07 | B14: Di | E14: 08:00-16:00 | F14: 08:00:00 | J14: 0 | Q14: 2023-11-07 | R14: TRUE | T14: A | U14: A | V14: 0 | W14: -0.3333333333 | X14: 0 | Y14: FALSE | Z14: FALSE | AA14: TRUE | AB14: 07:00:00 | AC14: 08:00:00 | AD14: 09:00:00 | AE14: 14:00:00 | AF14: 16:00:00 | AG14: 18:00:00 | AH14: FALSE | AI14: TRUE | AJ14: FALSE | AK14: TRUE | AL14: FALSE | AM14: FALSE | AN14: FALSE | AO14: 00:00:00 | AP14: 23:59:00 | AQ14: 00:00:00 | AR14: 23:59:00 | AS14: TRUE | AT14: FALSE | AU14: TRUE | AV14: FALSE | AW14: FALSE | AX14: FALSE | AY14: FALSE | BD14: TRUE | BE14: FALSE | BF14: TRUE | BG14: FALSE | BH14: 0
A15: 2023-11-08 | B15: Mi | E15: 08:00-16:00 | F15: 08:00:00 | J15: 0 | Q15: 2023-11-08 | R15: TRUE | T15: A | U15: A | V15: 0 | W15: -0.3333333333 | X15: 0 | Y15: FALSE | Z15: FALSE | AA15: TRUE | AB15: 07:00:00 | AC15: 08:00:00 | AD15: 09:00:00 | AE15: 14:00:00 | AF15: 16:00:00 | AG15: 18:00:00 | AH15: FALSE | AI15: TRUE | AJ15: FALSE | AK15: TRUE | AL15: FALSE | AM15: FALSE | AN15: FALSE | AO15: 00:00:00 | AP15: 23:59:00 | AQ15: 00:00:00 | AR15: 23:59:00 | AS15: TRUE | AT15: FALSE | AU15: TRUE | AV15: FALSE | AW15: FALSE | AX15: FALSE | AY15: FALSE | BD15: TRUE | BE15: FALSE | BF15: TRUE | BG15: FALSE | BH15: 0
A16: 2023-11-09 | B16: Do | E16: 08:00-16:00 | F16: 08:00:00 | J16: 0 | Q16: 2023-11-09 | R16: TRUE | T16: A | U16: A | V16: 0 | W16: -0.3333333333 | X16: 0 | Y16: FALSE | Z16: FALSE | AA16: TRUE | AB16: 07:00:00 | AC16: 08:00:00 | AD16: 09:00:00 | AE16: 14:00:00 | AF16: 16:00:00 | AG16: 18:00:00 | AH16: FALSE | AI16: TRUE | AJ16: FALSE | AK16: TRUE | AL16: FALSE | AM16: FALSE | AN16: FALSE | AO16: 00:00:00 | AP16: 23:59:00 | AQ16: 00:00:00 | AR16: 23:59:00 | AS16: TRUE | AT16: FALSE | AU16: TRUE | AV16: FALSE | AW16: FALSE | AX16: FALSE | AY16: FALSE | BD16: TRUE | BE16: FALSE | BF16: TRUE | BG16: FALSE | BH16: 0
A17: 2023-11-10 | B17: Fr | E17: 08:00-16:00 | F17: 08:00:00 | J17: 0 | Q17: 2023-11-10 | R17: TRUE | T17: A | U17: A | V17: 0 | W17: -0.3333333333 | X17: 0 | Y17: FALSE | Z17: FALSE | AA17: TRUE | AB17: 07:00:00 | AC17: 08:00:00 | AD17: 09:00:00 | AE17: 12:00:00 | AF17: 16:00:00 | AG17: 18:00:00 | AH17: FALSE | AI17: TRUE | AJ17: FALSE | AK17: TRUE | AL17: FALSE | AM17: FALSE | AN17: FALSE | AO17: 00:00:00 | AP17: 23:59:00 | AQ17: 00:00:00 | AR17: 23:59:00 | AS17: TRUE | AT17: FALSE | AU17: TRUE | AV17: FALSE | AW17: FALSE | AX17: FALSE | AY17: FALSE | BD17: TRUE | BE17: FALSE | BF17: TRUE | BG17: FALSE | BH17: 0
A18: 2023-11-11 | B18: Sa | C18: Wochenende | F18: 00:00:00 | J18: 0 | Q18: 2023-11-11 | R18: TRUE | T18: F | U18: A | V18: 0 | W18: 0 | X18: 0 | Y18: TRUE | Z18: FALSE | AA18: FALSE | AH18: FALSE | AI18: FALSE | AJ18: FALSE | AK18: TRUE | AL18: TRUE | AM18: FALSE | AN18: FALSE | AO18: 00:00:00 | AP18: 23:59:00 | AQ18: 00:00:00 | AR18: 23:59:00 | AS18: TRUE | AT18: FALSE | AU18: TRUE | AV18: FALSE | AW18: FALSE | AX18: FALSE | AY18: FALSE | AZ18: 00:00:00 | BA18: 23:59:00 | BB18: 00:00:00 | BC18: 23:59:00 | BD18: TRUE | BE18: FALSE | BF18: TRUE | BG18: FALSE | BH18: 0
A19: 2023-11-12 | B19: So | C19: Wochenende | F19: 00:00:00 | J19: 0 | Q19: 2023-11-12 | R19: TRUE | T19: F | U19: F | V19: 0 | W19: 0 | X19: 0 | Y19: TRUE | Z19: FALSE | AA19: FALSE | AH19: FALSE | AI19: FALSE | AJ19: FALSE | AK19: TRUE | AL19: FALSE | AM19: FALSE | AN19: FALSE | AO19: 00:00:00 | AP19: 23:59:00 | AQ19: 00:00:00 | AR19: 23:59:00 | AS19: TRUE | AT19: FALSE | AU19: TRUE | AV19: FALSE | AW19: FALSE | AX19: FALSE | AY19: FALSE | BD19: TRUE | BE19: FALSE | BF19: TRUE | BG19: FALSE | BH19: 0
A20: 2023-11-13 | B20: Mo | E20: 08:00-16:00 | F20: 08:00:00 | J20: 0 | Q20: 2023-11-13 | R20: TRUE | T20: A | U20: A | V20: 0 | W20: -0.3333333333 | X20: 0 | Y20: FALSE | Z20: FALSE | AA20: TRUE | AB20: 07:00:00 | AC20: 08:00:00 | AD20: 09:00:00 | AE20: 14:00:00 | AF20: 16:00:00 | AG20: 18:00:00 | AH20: FALSE | AI20: TRUE | AJ20: FALSE | AK20: TRUE | AL20: FALSE | AM20: FALSE | AN20: FALSE | AO20: 00:00:00 | AP20: 23:59:00 | AQ20: 00:00:00 | AR20: 23:59:00 | AS20: TRUE | AT20: FALSE | AU20: TRUE | AV20: FALSE | AW20: FALSE | AX20: FALSE | AY20: FALSE | BD20: TRUE | BE20: FALSE | BF20: TRUE | BG20: FALSE | BH20: 0
A21: 2023-11-14 | B21: Di | E21: 08:00-16:00 | F21: 08:00:00 | J21: 0 | Q21: 2023-11-14 | R21: TRUE | T21: A | U21: A | V21: 0 | W21: -0.3333333333 | X21: 0 | Y21: FALSE | Z21: FALSE | AA21: TRUE | AB21: 07:00:00 | AC21: 08:00:00 | AD21: 09:00:00 | AE21: 14:00:00 | AF21: 16:00:00 | AG21: 18:00:00 | AH21: FALSE | AI21: TRUE | AJ21: FALSE | AK21: TRUE | AL21: FALSE | AM21: FALSE | AN21: FALSE | AO21: 00:00:00 | AP21: 23:59:00 | AQ21: 00:00:00 | AR21: 23:59:00 | AS21: TRUE | AT21: FALSE | AU21: TRUE | AV21: FALSE | AW21: FALSE | AX21: FALSE | AY21: FALSE | BD21: TRUE | BE21: FALSE | BF21: TRUE | BG21: FALSE | BH21: 0
A22: 2023-11-15 | B22: Mi | C22: St. Leopold | E22: 08:00-16:00 | F22: 08:00:00 | J22: 0 | Q22: 2023-11-15 | R22: TRUE | T22: A | U22: A | V22: 0 | W22: -0.3333333333 | X22: 0 | Y22: FALSE | Z22: FALSE | AA22: TRUE | AB22: 07:00:00 | AC22: 08:00:00 | AD22: 09:00:00 | AE22: 14:00:00 | AF22: 16:00:00 | AG22: 18:00:00 | AH22: FALSE | AI22: TRUE | AJ22: FALSE | AK22: TRUE | AL22: FALSE | AM22: FALSE | AN22: FALSE | AO22: 00:00:00 | AP22: 23:59:00 | AQ22: 00:00:00 | AR22: 23:59:00 | AS22: TRUE | AT22: FALSE | AU22: TRUE | AV22: FALSE | AW22: FALSE | AX22: FALSE | AY22: FALSE | BD22: TRUE | BE22: FALSE | BF22: TRUE | BG22: FALSE | BH22: 0
A23: 2023-11-16 | B23: Do | E23: 08:00-16:00 | F23: 08:00:00 | J23: 0 | Q23: 2023-11-16 | R23: TRUE | T23: A | U23: A | V23: 0 | W23: -0.3333333333 | X23: 0 | Y23: FALSE | Z23: FALSE | AA23: TRUE | AB23: 07:00:00 | AC23: 08:00:00 | AD23: 09:00:00 | AE23: 14:00:00 | AF23: 16:00:00 | AG23: 18:00:00 | AH23: FALSE | AI23: TRUE | AJ23: FALSE | AK23: TRUE | AL23: FALSE | AM23: FALSE | AN23: FALSE | AO23: 00:00:00 | AP23: 23:59:00 | AQ23: 00:00:00 | AR23: 23:59:00 | AS23: TRUE | AT23: FALSE | AU23: TRUE | AV23: FALSE | AW23: FALSE | AX23: FALSE | AY23: FALSE | BD23: TRUE | BE23: FALSE | BF23: TRUE | BG23: FALSE | BH23: 0
A24: 2023-11-17 | B24: Fr | E24: 08:00-16:00 | F24: 08:00:00 | J24: 0 | Q24: 2023-11-17 | R24: TRUE | T24: A | U24: A | V24: 0 | W24: -0.3333333333 | X24: 0 | Y24: FALSE | Z24: FALSE | AA24: TRUE | AB24: =IF(ISNA(VLOOKUP($B24,GAZ,AB$7,FALSE)),"",VLOOKUP($B24,GAZ,AB$7,FALSE)) -> 07:00:00 | AC24: 08:00:00 | AD24: 09:00:00 | AE24: 12:00:00 | AF24: 16:00:00 | AG24: 18:00:00 | AH24: FALSE | AI24: TRUE | AJ24: FALSE | AK24: TRUE | AL24: FALSE | AM24: FALSE | AN24: FALSE | AO24: 00:00:00 | AP24: 23:59:00 | AQ24: 00:00:00 | AR24: 23:59:00 | AS24: TRUE | AT24: FALSE | AU24: TRUE | AV24: FALSE | AW24: FALSE | AX24: FALSE | AY24: FALSE | BD24: TRUE | BE24: FALSE | BF24: TRUE | BG24: FALSE | BH24: 0
A25: 2023-11-18 | B25: Sa | C25: Wochenende | F25: 00:00:00 | J25: 0 | Q25: 2023-11-18 | R25: TRUE | T25: F | U25: A | V25: 0 | W25: 0 | X25: 0 | Y25: TRUE | Z25: FALSE | AA25: FALSE | AH25: FALSE | AI25: FALSE | AJ25: FALSE | AK25: TRUE | AL25: TRUE | AM25: FALSE | AN25: FALSE | AO25: 00:00:00 | AP25: 23:59:00 | AQ25: 00:00:00 | AR25: 23:59:00 | AS25: TRUE | AT25: FALSE | AU25: TRUE | AV25: FALSE | AW25: FALSE | AX25: FALSE | AY25: FALSE | AZ25: 00:00:00 | BA25: 23:59:00 | BB25: 00:00:00 | BC25: 23:59:00 | BD25: TRUE | BE25: FALSE | BF25: TRUE | BG25: FALSE | BH25: 0
A26: 2023-11-19 | B26: So | C26: Wochenende | F26: 00:00:00 | J26: 0 | Q26: 2023-11-19 | R26: TRUE | T26: F | U26: F | V26: 0 | W26: 0 | X26: 0 | Y26: TRUE | Z26: FALSE | AA26: FALSE | AH26: FALSE | AI26: FALSE | AJ26: FALSE | AK26: TRUE | AL26: FALSE | AM26: FALSE | AN26: FALSE | AO26: 00:00:00 | AP26: 23:59:00 | AQ26: 00:00:00 | AR26: 23:59:00 | AS26: TRUE | AT26: FALSE | AU26: TRUE | AV26: FALSE | AW26: FALSE | AX26: FALSE | AY26: FALSE | BD26: TRUE | BE26: FALSE | BF26: TRUE | BG26: FALSE | BH26: 0
A27: 2023-11-20 | B27: Mo | E27: 08:00-16:00 | F27: 08:00:00 | J27: 0 | Q27: 2023-11-20 | R27: TRUE | T27: A | U27: A | V27: 0 | W27: -0.3333333333 | X27: 0 | Y27: FALSE | Z27: FALSE | AA27: TRUE | AB27: 07:00:00 | AC27: 08:00:00 | AD27: 09:00:00 | AE27: 14:00:00 | AF27: 16:00:00 | AG27: 18:00:00 | AH27: FALSE | AI27: TRUE | AJ27: FALSE | AK27: TRUE | AL27: FALSE | AM27: FALSE | AN27: FALSE | AO27: 00:00:00 | AP27: 23:59:00 | AQ27: 00:00:00 | AR27: 23:59:00 | AS27: TRUE | AT27: FALSE | AU27: TRUE | AV27: FALSE | AW27: FALSE | AX27: FALSE | AY27: FALSE | BD27: TRUE | BE27: FALSE | BF27: TRUE | BG27: FALSE | BH27: 0
A28: 2023-11-21 | B28: Di | E28: 08:00-16:00 | F28: 08:00:00 | J28: 0 | Q28: 2023-11-21 | R28: TRUE | T28: A | U28: A | V28: 0 | W28: -0.3333333333 | X28: 0 | Y28: FALSE | Z28: FALSE | AA28: TRUE | AB28: 07:00:00 | AC28: 08:00:00 | AD28: 09:00:00 | AE28: 14:00:00 | AF28: 16:00:00 | AG28: 18:00:00 | AH28: FALSE | AI28: TRUE | AJ28: FALSE | AK28: TRUE | AL28: FALSE | AM28: FALSE | AN28: FALSE | AO28: 00:00:00 | AP28: 23:59:00 | AQ28: 00:00:00 | AR28: 23:59:00 | AS28: TRUE | AT28: FALSE | AU28: TRUE | AV28: FALSE | AW28: FALSE | AX28: FALSE | AY28: FALSE | BD28: TRUE | BE28: FALSE | BF28: TRUE | BG28: FALSE | BH28: 0
A29: 2023-11-22 | B29: Mi | E29: 08:00-16:00 | F29: 08:00:00 | J29: 0 | Q29: 2023-11-22 | R29: TRUE | T29: A | U29: A | V29: 0 | W29: -0.3333333333 | X29: 0 | Y29: FALSE | Z29: FALSE | AA29: TRUE | AB29: 07:00:00 | AC29: 08:00:00 | AD29: 09:00:00 | AE29: 14:00:00 | AF29: 16:00:00 | AG29: 18:00:00 | AH29: FALSE | AI29: TRUE | AJ29: FALSE | AK29: TRUE | AL29: FALSE | AM29: FALSE | AN29: FALSE | AO29: 00:00:00 | AP29: 23:59:00 | AQ29: 00:00:00 | AR29: 23:59:00 | AS29: TRUE | AT29: FALSE | AU29: TRUE | AV29: FALSE | AW29: FALSE | AX29: FALSE | AY29: FALSE | BD29: TRUE | BE29: FALSE | BF29: TRUE | BG29: FALSE | BH29: 0
A30: 2023-11-23 | B30: Do | E30: 08:00-16:00 | F30: 08:00:00 | J30: 0 | Q30: 2023-11-23 | R30: TRUE | T30: A | U30: A | V30: 0 | W30: -0.3333333333 | X30: 0 | Y30: FALSE | Z30: FALSE | AA30: TRUE | AB30: 07:00:00 | AC30: 08:00:00 | AD30: 09:00:00 | AE30: 14:00:00 | AF30: 16:00:00 | AG30: 18:00:00 | AH30: FALSE | AI30: TRUE | AJ30: FALSE | AK30: TRUE | AL30: FALSE | AM30: FALSE | AN30: FALSE | AO30: 00:00:00 | AP30: 23:59:00 | AQ30: 00:00:00 | AR30: 23:59:00 | AS30: TRUE | AT30: FALSE | AU30: TRUE | AV30: FALSE | AW30: FALSE | AX30: FALSE | AY30: FALSE | BD30: TRUE | BE30: FALSE | BF30: TRUE | BG30: FALSE | BH30: 0
A31: 2023-11-24 | B31: Fr | E31: 08:00-16:00 | F31: 08:00:00 | J31: 0 | Q31: 2023-11-24 | R31: TRUE | T31: A | U31: A | V31: 0 | W31: -0.3333333333 | X31: 0 | Y31: FALSE | Z31: FALSE | AA31: TRUE | AB31: 07:00:00 | AC31: 08:00:00 | AD31: 09:00:00 | AE31: 12:00:00 | AF31: 16:00:00 | AG31: 18:00:00 | AH31: FALSE | AI31: TRUE | AJ31: FALSE | AK31: TRUE | AL31: FALSE | AM31: FALSE | AN31: FALSE | AO31: 00:00:00 | AP31: 23:59:00 | AQ31: 00:00:00 | AR31: 23:59:00 | AS31: TRUE | AT31: FALSE | AU31: TRUE | AV31: FALSE | AW31: FALSE | AX31: FALSE | AY31: FALSE | BD31: TRUE | BE31: FALSE | BF31: TRUE | BG31: FALSE | BH31: 0
A32: 2023-11-25 | B32: Sa | C32: Wochenende | F32: 00:00:00 | J32: 0 | Q32: 2023-11-25 | R32: TRUE | T32: F | U32: A | V32: 0 | W32: 0 | X32: 0 | Y32: TRUE | Z32: FALSE | AA32: FALSE | AH32: FALSE | AI32: FALSE | AJ32: FALSE | AK32: TRUE | AL32: TRUE | AM32: FALSE | AN32: FALSE | AO32: 00:00:00 | AP32: 23:59:00 | AQ32: 00:00:00 | AR32: 23:59:00 | AS32: TRUE | AT32: FALSE | AU32: TRUE | AV32: FALSE | AW32: FALSE | AX32: FALSE | AY32: FALSE | AZ32: 00:00:00 | BA32: 23:59:00 | BB32: 00:00:00 | BC32: 23:59:00 | BD32: TRUE | BE32: FALSE | BF32: TRUE | BG32: FALSE | BH32: 0
A33: 2023-11-26 | B33: So | C33: Wochenende | F33: 00:00:00 | J33: 0 | Q33: 2023-11-26 | R33: TRUE | T33: F | U33: F | V33: 0 | W33: 0 | X33: 0 | Y33: TRUE | Z33: FALSE | AA33: FALSE | AH33: FALSE | AI33: FALSE | AJ33: FALSE | AK33: TRUE | AL33: FALSE | AM33: FALSE | AN33: FALSE | AO33: 00:00:00 | AP33: 23:59:00 | AQ33: 00:00:00 | AR33: 23:59:00 | AS33: TRUE | AT33: FALSE | AU33: TRUE | AV33: FALSE | AW33: FALSE | AX33: FALSE | AY33: FALSE | BD33: TRUE | BE33: FALSE | BF33: TRUE | BG33: FALSE | BH33: 0
A34: 2023-11-27 | B34: Mo | E34: 08:00-16:00 | F34: 08:00:00 | J34: 0 | Q34: 2023-11-27 | R34: TRUE | T34: A | U34: A | V34: 0 | W34: -0.3333333333 | X34: 0 | Y34: FALSE | Z34: FALSE | AA34: TRUE | AB34: 07:00:00 | AC34: 08:00:00 | AD34: 09:00:00 | AE34: 14:00:00 | AF34: 16:00:00 | AG34: 18:00:00 | AH34: FALSE | AI34: TRUE | AJ34: FALSE | AK34: TRUE | AL34: FALSE | AM34: FALSE | AN34: FALSE | AO34: 00:00:00 | AP34: 23:59:00 | AQ34: 00:00:00 | AR34: 23:59:00 | AS34: TRUE | AT34: FALSE | AU34: TRUE | AV34: FALSE | AW34: FALSE | AX34: FALSE | AY34: FALSE | BD34: TRUE | BE34: FALSE | BF34: TRUE | BG34: FALSE | BH34: 0
A35: 2023-11-28 | B35: Di | E35: 08:00-16:00 | F35: 08:00:00 | J35: 0 | Q35: 2023-11-28 | R35: TRUE | T35: A | U35: A | V35: 0 | W35: -0.3333333333 | X35: 0 | Y35: FALSE | Z35: FALSE | AA35: TRUE | AB35: 07:00:00 | AC35: 08:00:00 | AD35: 09:00:00 | AE35: 14:00:00 | AF35: 16:00:00 | AG35: 18:00:00 | AH35: FALSE | AI35: TRUE | AJ35: FALSE | AK35: TRUE | AL35: FALSE | AM35: FALSE | AN35: FALSE | AO35: 00:00:00 | AP35: 23:59:00 | AQ35: 00:00:00 | AR35: 23:59:00 | AS35: TRUE | AT35: FALSE | AU35: TRUE | AV35: FALSE | AW35: FALSE | AX35: FALSE | AY35: FALSE | BD35: TRUE | BE35: FALSE | BF35: TRUE | BG35: FALSE | BH35: 0
